Workbook

Sheet TELA INICIAL
L3: JUNIOR
C4: APP | D4: DINHEIRO | E4: CREDITO A VISTA | F4: CREDITO PARCELADO | I4: CARTÃO
C5: RECARGAPAY | D5: 0 | E5: 0.0349 | F5: 0 | I5: AZUL | L5: CARD
C6: REC.BOLETO | D6: 0 | E6: 0.0399 | F6: 0 | I6: BMG | L6: MELIUZ_JUNIOR
C7: PICPAY | D7: 0 | E7: 0.0499 | F7: 0 | I7: C6 | L7: PAN_JUNIOR | N7: CARDMÃE
C8: PAGSEGURO | D8: 0 | E8: 0.0289 | F8: 0 | I8: C6MAE | L8: C6_JUNIOR | N8: C6
C9: CONTA | D9: 0 | E9: 0 | F9: 0 | I9: CLICK | L9: BMG_JUNIOR | N9: TRIGG
C10: GERAL | D10: 0 | E10: 0 | F10: 0 | I10: CLICKV | L10: FREE_JUNIOR | N10: NEON
C11: PAG | D11: 0 | E11: 0.0279 | F11: 0 | I11: DÉBITO | L11: NUBANK_JUNIOR | N11: PAN
C12: JUROS | D12: 0 | E12: 0 | F12: 0 | I12: DIGIO | L12: PAG_JUNIOR | N12: DIGIO
I13: FREE | L13: AZUL_JUNIOR | N13: PAG
I14: GOLD | L14: GOLD_JUNIOR
I15: INTER | L15: LATAM_JUNIOR
I16: LATAM | L16: ZERO_JUNIOR
I17: MELIUZ | L17: CLICK_JUNIOR
I18: MNEXT | L18: INTER_JUNIOR
I19: NCARD | L19: NCARD_JUNIOR
I20: NEON | L20: ORIGINAL_JUNIOR
I21: NUBANK | L21: CLICKV_JUNIOR
I22: ORIGINAL
I23: PAGMAE
I24: PAN
I25: PANMAE
I26: TRIGMAE
I27: ZERO
I28: WILL

Sheet GASTOS_JUROS
R2: LIMITE D
B3: PGTO | R3: LIMITE G
B4: GASTOS | C4: =ANNO -> 2022
A5: CARTÃO | B5: JANEIRO | C5: FEVEREIRO | D5: MARÇO | E5: ABRIL | F5: MAIO | G5: JUNHO | H5: JULHO | I5: AGOSTO | J5: SETEMBRO | K5: OUTUBRO | L5: NOVEMBRO | M5: DEZEMBRO | N5: TOTAL | R5: CARDS | S5: JANEIRO | T5: FEVEREIRO | U5: MARÇO | V5: ABRIL | W5: MAIO | X5: JUNHO | Y5: JULHO | Z5: AGOSTO | AA5: SETEMBRO | AB5: OUTUBRO | AC5: NOVEMBRO | AD5: DEZEMBRO
A6: CARTÃO | B6: 2022-01-01 | C6: 2022-02-01 | D6: 2022-03-01 | E6: 2022-04-01 | F6: 2022-05-01 | G6: 2022-06-01 | H6: 2022-07-01 | I6: 2022-08-01 | J6: 2022-09-01 | K6: 2022-10-01 | L6: 2022-11-01 | M6: 2022-12-01
A7: =CONFIG!A2 -> CLICK | B7: =SUMIFS('BASE DE DADOS'!$N:$N,'BASE DE DADOS'!$B:$B,GASTOS_JUROS!$B$3,'BASE DE DADOS'!$G:$G,GASTOS_JUROS!$A7,'BASE DE DADOS'!$O:$O,GASTOS_JUROS!B$5) -> 77.939378 | C7: =SUMIFS('BASE DE DADOS'!$N:$N,'BASE DE DADOS'!$B:$B,GASTOS_JUROS!$B$3,'BASE DE DADOS'!$G:$G,GASTOS_JUROS!$A7,'BASE DE DADOS'!$O:$O,GASTOS_JUROS!C$5) -> 77.939727 | D7: =SUMIFS('BASE DE DADOS'!$N:$N,'BASE DE DADOS'!$B:$B,GASTOS_JUROS!$B$3,'BASE DE DADOS'!$G:$G,GASTOS_JUROS!$A7,'BASE DE DADOS'!$O:$O,GASTOS_JUROS!D$5) -> 72.889773 | E7: =SUMIFS('BASE DE DADOS'!$N:$N,'BASE DE DADOS'!$B:$B,GASTOS_JUROS!$B$3,'BASE DE DADOS'!$G:$G,GASTOS_JUROS!$A7,'BASE DE DADOS'!$O:$O,GASTOS_JUROS!E$5) -> 77.58619 | F7: =SUMIFS('BASE DE DADOS'!$N:$N,'BASE DE DADOS'!$B:$B,GASTOS_JUROS!$B$3,'BASE DE DADOS'!$G:$G,GASTOS_JUROS!$A7,'BASE DE DADOS'!$O:$O,GASTOS_JUROS!F$5) -> 39.445376 | G7: =SUMIFS('BASE DE DADOS'!$N:$N,'BASE DE DADOS'!$B:$B,GASTOS_JUROS!$B$3,'BASE DE DADOS'!$G:$G,GASTOS_JUROS!$A7,'BASE DE DADOS'!$O:$O,GASTOS_JUROS!G$5) -> 102.423182 | H7: =SUMIFS('BASE DE DADOS'!$N:$N,'BASE DE DADOS'!$B:$B,GASTOS_JUROS!$B$3,'BASE DE DADOS'!$G:$G,GASTOS_JUROS!$A7,'BASE DE DADOS'!$O:$O,GASTOS_JUROS!H$5) -> 53.126176 | I7: =SUMIFS('BASE DE DADOS'!$N:$N,'BASE DE DADOS'!$B:$B,GASTOS_JUROS!$B$3,'BASE DE DADOS'!$G:$G,GASTOS_JUROS!$A7,'BASE DE DADOS'!$O:$O,GASTOS_JUROS!I$5) -> 77.190075 | J7: =SUMIFS('BASE DE DADOS'!$N:$N,'BASE DE DADOS'!$B:$B,GASTOS_JUROS!$B$3,'BASE DE DADOS'!$G:$G,GASTOS_JUROS!$A7,'BASE DE DADOS'!$O:$O,GASTOS_JUROS!J$5) -> 0 | K7: =SUMIFS('BASE DE DADOS'!$N:$N,'BASE DE DADOS'!$B:$B,GASTOS_JUROS!$B$3,'BASE DE DADOS'!$G:$G,GASTOS_JUROS!$A7,'BASE DE DADOS'!$O:$O,GASTOS_JUROS!K$5) -> 77.563156 | L7: =SUMIFS('BASE DE DADOS'!$N:$N,'BASE DE DADOS'!$B:$B,GASTOS_JUROS!$B$3,'BASE DE DADOS'!$G:$G,GASTOS_JUROS!$A7,'BASE DE DADOS'!$O:$O,GASTOS_JUROS!L$5) -> 0 | M7: =SUMIFS('BASE DE DADOS'!$N:$N,'BASE DE DADOS'!$B:$B,GASTOS_JUROS!$B$3,'BASE DE DADOS'!$G:$G,GASTOS_JUROS!$A7,'BASE DE DADOS'!$O:$O,GASTOS_JUROS!M$5) -> 0 | N7: =SUM(B7:M7) -> 656.103033
A8: DIGIO | B8: =SUMIFS('BASE DE DADOS'!$N:$N,'BASE DE DADOS'!$B:$B,GASTOS_JUROS!$B$3,'BASE DE DADOS'!$G:$G,GASTOS_JUROS!$A8,'BASE DE DADOS'!$O:$O,GASTOS_JUROS!B$5) -> 0 | C8: =SUMIFS('BASE DE DADOS'!$N:$N,'BASE DE DADOS'!$B:$B,GASTOS_JUROS!$B$3,'BASE DE DADOS'!$G:$G,GASTOS_JUROS!$A8,'BASE DE DADOS'!$O:$O,GASTOS_JUROS!C$5) -> 29.820305 | D8: =SUMIFS('BASE DE DADOS'!$N:$N,'BASE DE DADOS'!$B:$B,GASTOS_JUROS!$B$3,'BASE DE DADOS'!$G:$G,GASTOS_JUROS!$A8,'BASE DE DADOS'!$O:$O,GASTOS_JUROS!D$5) -> 25.548055 | E8: =SUMIFS('BASE DE DADOS'!$N:$N,'BASE DE DADOS'!$B:$B,GASTOS_JUROS!$B$3,'BASE DE DADOS'!$G:$G,GASTOS_JUROS!$A8,'BASE DE DADOS'!$O:$O,GASTOS_JUROS!E$5) -> 29.665 | F8: =SUMIFS('BASE DE DADOS'!$N:$N,'BASE DE DADOS'!$B:$B,GASTOS_JUROS!$B$3,'BASE DE DADOS'!$G:$G,GASTOS_JUROS!$A8,'BASE DE DADOS'!$O:$O,GASTOS_JUROS!F$5) -> 29.665 | G8: =SUMIFS('BASE DE DADOS'!$N:$N,'BASE DE DADOS'!$B:$B,GASTOS_JUROS!$B$3,'BASE DE DADOS'!$G:$G,GASTOS_JUROS!$A8,'BASE DE DADOS'!$O:$O,GASTOS_JUROS!G$5) -> 29.665 | H8: =SUMIFS('BASE DE DADOS'!$N:$N,'BASE DE DADOS'!$B:$B,GASTOS_JUROS!$B$3,'BASE DE DADOS'!$G:$G,GASTOS_JUROS!$A8,'BASE DE DADOS'!$O:$O,GASTOS_JUROS!H$5) -> 0 | I8: =SUMIFS('BASE DE DADOS'!$N:$N,'BASE DE DADOS'!$B:$B,GASTOS_JUROS!$B$3,'BASE DE DADOS'!$G:$G,GASTOS_JUROS!$A8,'BASE DE DADOS'!$O:$O,GASTOS_JUROS!I$5) -> 0 | J8: =SUMIFS('BASE DE DADOS'!$N:$N,'BASE DE DADOS'!$B:$B,GASTOS_JUROS!$B$3,'BASE DE DADOS'!$G:$G,GASTOS_JUROS!$A8,'BASE DE DADOS'!$O:$O,GASTOS_JUROS!J$5) -> 29.533776 | K8: =SUMIFS('BASE DE DADOS'!$N:$N,'BASE DE DADOS'!$B:$B,GASTOS_JUROS!$B$3,'BASE DE DADOS'!$G:$G,GASTOS_JUROS!$A8,'BASE DE DADOS'!$O:$O,GASTOS_JUROS!K$5) -> 29.676168 | L8: =SUMIFS('BASE DE DADOS'!$N:$N,'BASE DE DADOS'!$B:$B,GASTOS_JUROS!$B$3,'BASE DE DADOS'!$G:$G,GASTOS_JUROS!$A8,'BASE DE DADOS'!$O:$O,GASTOS_JUROS!L$5) -> 0 | M8: =SUMIFS('BASE DE DADOS'!$N:$N,'BASE DE DADOS'!$B:$B,GASTOS_JUROS!$B$3,'BASE DE DADOS'!$G:$G,GASTOS_JUROS!$A8,'BASE DE DADOS'!$O:$O,GASTOS_JUROS!M$5) -> 0 | N8: =SUM(B8:M8) -> 203.573304
A9: =CONFIG!A3 -> MELIUZ | B9: =SUMIFS('BASE DE DADOS'!$N:$N,'BASE DE DADOS'!$B:$B,GASTOS_JUROS!$B$3,'BASE DE DADOS'!$G:$G,GASTOS_JUROS!$A9,'BASE DE DADOS'!$O:$O,GASTOS_JUROS!B$5) -> 30.302972 | C9: =SUMIFS('BASE DE DADOS'!$N:$N,'BASE DE DADOS'!$B:$B,GASTOS_JUROS!$B$3,'BASE DE DADOS'!$G:$G,GASTOS_JUROS!$A9,'BASE DE DADOS'!$O:$O,GASTOS_JUROS!C$5) -> 0 | D9: =SUMIFS('BASE DE DADOS'!$N:$N,'BASE DE DADOS'!$B:$B,GASTOS_JUROS!$B$3,'BASE DE DADOS'!$G:$G,GASTOS_JUROS!$A9,'BASE DE DADOS'!$O:$O,GASTOS_JUROS!D$5) -> 54.276274 | E9: =SUMIFS('BASE DE DADOS'!$N:$N,'BASE DE DADOS'!$B:$B,GASTOS_JUROS!$B$3,'BASE DE DADOS'!$G:$G,GASTOS_JUROS!$A9,'BASE DE DADOS'!$O:$O,GASTOS_JUROS!E$5) -> 62.112926 | F9: =SUMIFS('BASE DE DADOS'!$N:$N,'BASE DE DADOS'!$B:$B,GASTOS_JUROS!$B$3,'BASE DE DADOS'!$G:$G,GASTOS_JUROS!$A9,'BASE DE DADOS'!$O:$O,GASTOS_JUROS!F$5) -> 31.49376 | G9: =SUMIFS('BASE DE DADOS'!$N:$N,'BASE DE DADOS'!$B:$B,GASTOS_JUROS!$B$3,'BASE DE DADOS'!$G:$G,GASTOS_JUROS!$A9,'BASE DE DADOS'!$O:$O,GASTOS_JUROS!G$5) -> 39.69177 | H9: =SUMIFS('BASE DE DADOS'!$N:$N,'BASE DE DADOS'!$B:$B,GASTOS_JUROS!$B$3,'BASE DE DADOS'!$G:$G,GASTOS_JUROS!$A9,'BASE DE DADOS'!$O:$O,GASTOS_JUROS!H$5) -> 62.758925 | I9: =SUMIFS('BASE DE DADOS'!$N:$N,'BASE DE DADOS'!$B:$B,GASTOS_JUROS!$B$3,'BASE DE DADOS'!$G:$G,GASTOS_JUROS!$A9,'BASE DE DADOS'!$O:$O,GASTOS_JUROS!I$5) -> 0 | J9: =SUMIFS('BASE DE DADOS'!$N:$N,'BASE DE DADOS'!$B:$B,GASTOS_JUROS!$B$3,'BASE DE DADOS'!$G:$G,GASTOS_JUROS!$A9,'BASE DE DADOS'!$O:$O,GASTOS_JUROS!J$5) -> 442.066434 | K9: =SUMIFS('BASE DE DADOS'!$N:$N,'BASE DE DADOS'!$B:$B,GASTOS_JUROS!$B$3,'BASE DE DADOS'!$G:$G,GASTOS_JUROS!$A9,'BASE DE DADOS'!$O:$O,GASTOS_JUROS!K$5) -> 204.964908 | L9: =SUMIFS('BASE DE DADOS'!$N:$N,'BASE DE DADOS'!$B:$B,GASTOS_JUROS!$B$3,'BASE DE DADOS'!$G:$G,GASTOS_JUROS!$A9,'BASE DE DADOS'!$O:$O,GASTOS_JUROS!L$5) -> 0 | M9: =SUMIFS('BASE DE DADOS'!$N:$N,'BASE DE DADOS'!$B:$B,GASTOS_JUROS!$B$3,'BASE DE DADOS'!$G:$G,GASTOS_JUROS!$A9,'BASE DE DADOS'!$O:$O,GASTOS_JUROS!M$5) -> 0 | N9: 927.667969
A10: =CONFIG!A4 -> ZERO | B10: =SUMIFS('BASE DE DADOS'!$N:$N,'BASE DE DADOS'!$B:$B,GASTOS_JUROS!$B$3,'BASE DE DADOS'!$G:$G,GASTOS_JUROS!$A10,'BASE DE DADOS'!$O:$O,GASTOS_JUROS!B$5) -> 45.523211 | C10: =SUMIFS('BASE DE DADOS'!$N:$N,'BASE DE DADOS'!$B:$B,GASTOS_JUROS!$B$3,'BASE DE DADOS'!$G:$G,GASTOS_JUROS!$A10,'BASE DE DADOS'!$O:$O,GASTOS_JUROS!C$5) -> 0 | D10: =SUMIFS('BASE DE DADOS'!$N:$N,'BASE DE DADOS'!$B:$B,GASTOS_JUROS!$B$3,'BASE DE DADOS'!$G:$G,GASTOS_JUROS!$A10,'BASE DE DADOS'!$O:$O,GASTOS_JUROS!D$5) -> 54.218546 | E10: =SUMIFS('BASE DE DADOS'!$N:$N,'BASE DE DADOS'!$B:$B,GASTOS_JUROS!$B$3,'BASE DE DADOS'!$G:$G,GASTOS_JUROS!$A10,'BASE DE DADOS'!$O:$O,GASTOS_JUROS!E$5) -> 20.904751 | F10: =SUMIFS('BASE DE DADOS'!$N:$N,'BASE DE DADOS'!$B:$B,GASTOS_JUROS!$B$3,'BASE DE DADOS'!$G:$G,GASTOS_JUROS!$A10,'BASE DE DADOS'!$O:$O,GASTOS_JUROS!F$5) -> 53.956796 | G10: =SUMIFS('BASE DE DADOS'!$N:$N,'BASE DE DADOS'!$B:$B,GASTOS_JUROS!$B$3,'BASE DE DADOS'!$G:$G,GASTOS_JUROS!$A10,'BASE DE DADOS'!$O:$O,GASTOS_JUROS!G$5) -> 53.956796 | H10: =SUMIFS('BASE DE DADOS'!$N:$N,'BASE DE DADOS'!$B:$B,GASTOS_JUROS!$B$3,'BASE DE DADOS'!$G:$G,GASTOS_JUROS!$A10,'BASE DE DADOS'!$O:$O,GASTOS_JUROS!H$5) -> 53.956796 | I10: =SUMIFS('BASE DE DADOS'!$N:$N,'BASE DE DADOS'!$B:$B,GASTOS_JUROS!$B$3,'BASE DE DADOS'!$G:$G,GASTOS_JUROS!$A10,'BASE DE DADOS'!$O:$O,GASTOS_JUROS!I$5) -> 53.69714 | J10: =SUMIFS('BASE DE DADOS'!$N:$N,'BASE DE DADOS'!$B:$B,GASTOS_JUROS!$B$3,'BASE DE DADOS'!$G:$G,GASTOS_JUROS!$A10,'BASE DE DADOS'!$O:$O,GASTOS_JUROS!J$5) -> 53.697489 | K10: =SUMIFS('BASE DE DADOS'!$N:$N,'BASE DE DADOS'!$B:$B,GASTOS_JUROS!$B$3,'BASE DE DADOS'!$G:$G,GASTOS_JUROS!$A10,'BASE DE DADOS'!$O:$O,GASTOS_JUROS!K$5) -> 55.838604 | L10: =SUMIFS('BASE DE DADOS'!$N:$N,'BASE DE DADOS'!$B:$B,GASTOS_JUROS!$B$3,'BASE DE DADOS'!$G:$G,GASTOS_JUROS!$A10,'BASE DE DADOS'!$O:$O,GASTOS_JUROS!L$5) -> 0 | M10: =SUMIFS('BASE DE DADOS'!$N:$N,'BASE DE DADOS'!$B:$B,GASTOS_JUROS!$B$3,'BASE DE DADOS'!$G:$G,GASTOS_JUROS!$A10,'BASE DE DADOS'!$O:$O,GASTOS_JUROS!M$5) -> 0 | N10: 445.750129
A11: =CONFIG!A5 -> NUBANK | B11: =SUMIFS('BASE DE DADOS'!$N:$N,'BASE DE DADOS'!$B:$B,GASTOS_JUROS!$B$3,'BASE DE DADOS'!$G:$G,GASTOS_JUROS!$A11,'BASE DE DADOS'!$O:$O,GASTOS_JUROS!B$5) -> 119.383128 | C11: =SUMIFS('BASE DE DADOS'!$N:$N,'BASE DE DADOS'!$B:$B,GASTOS_JUROS!$B$3,'BASE DE DADOS'!$G:$G,GASTOS_JUROS!$A11,'BASE DE DADOS'!$O:$O,GASTOS_JUROS!C$5) -> 122.948163 | D11: =SUMIFS('BASE DE DADOS'!$N:$N,'BASE DE DADOS'!$B:$B,GASTOS_JUROS!$B$3,'BASE DE DADOS'!$G:$G,GASTOS_JUROS!$A11,'BASE DE DADOS'!$O:$O,GASTOS_JUROS!D$5) -> 104.306748 | E11: =SUMIFS('BASE DE DADOS'!$N:$N,'BASE DE DADOS'!$B:$B,GASTOS_JUROS!$B$3,'BASE DE DADOS'!$G:$G,GASTOS_JUROS!$A11,'BASE DE DADOS'!$O:$O,GASTOS_JUROS!E$5) -> 121.402791 | F11: =SUMIFS('BASE DE DADOS'!$N:$N,'BASE DE DADOS'!$B:$B,GASTOS_JUROS!$B$3,'BASE DE DADOS'!$G:$G,GASTOS_JUROS!$A11,'BASE DE DADOS'!$O:$O,GASTOS_JUROS!F$5) -> 124.775178 | G11: =SUMIFS('BASE DE DADOS'!$N:$N,'BASE DE DADOS'!$B:$B,GASTOS_JUROS!$B$3,'BASE DE DADOS'!$G:$G,GASTOS_JUROS!$A11,'BASE DE DADOS'!$O:$O,GASTOS_JUROS!G$5) -> 123.691184 | H11: =SUMIFS('BASE DE DADOS'!$N:$N,'BASE DE DADOS'!$B:$B,GASTOS_JUROS!$B$3,'BASE DE DADOS'!$G:$G,GASTOS_JUROS!$A11,'BASE DE DADOS'!$O:$O,GASTOS_JUROS!H$5) -> 129.8978 | I11: =SUMIFS('BASE DE DADOS'!$N:$N,'BASE DE DADOS'!$B:$B,GASTOS_JUROS!$B$3,'BASE DE DADOS'!$G:$G,GASTOS_JUROS!$A11,'BASE DE DADOS'!$O:$O,GASTOS_JUROS!I$5) -> 134.243548 | J11: =SUMIFS('BASE DE DADOS'!$N:$N,'BASE DE DADOS'!$B:$B,GASTOS_JUROS!$B$3,'BASE DE DADOS'!$G:$G,GASTOS_JUROS!$A11,'BASE DE DADOS'!$O:$O,GASTOS_JUROS!J$5) -> 87.083178 | K11: =SUMIFS('BASE DE DADOS'!$N:$N,'BASE DE DADOS'!$B:$B,GASTOS_JUROS!$B$3,'BASE DE DADOS'!$G:$G,GASTOS_JUROS!$A11,'BASE DE DADOS'!$O:$O,GASTOS_JUROS!K$5) -> 116.217 | L11: =SUMIFS('BASE DE DADOS'!$N:$N,'BASE DE DADOS'!$B:$B,GASTOS_JUROS!$B$3,'BASE DE DADOS'!$G:$G,GASTOS_JUROS!$A11,'BASE DE DADOS'!$O:$O,GASTOS_JUROS!L$5) -> 0 | M11: =SUMIFS('BASE DE DADOS'!$N:$N,'BASE DE DADOS'!$B:$B,GASTOS_JUROS!$B$3,'BASE DE DADOS'!$G:$G,GASTOS_JUROS!$A11,'BASE DE DADOS'!$O:$O,GASTOS_JUROS!M$5) -> 0 | N11: 1183.948718
A12: NEON | B12: =SUMIFS('BASE DE DADOS'!$N:$N,'BASE DE DADOS'!$B:$B,GASTOS_JUROS!$B$3,'BASE DE DADOS'!$G:$G,GASTOS_JUROS!$A12,'BASE DE DADOS'!$O:$O,GASTOS_JUROS!B$5) -> 0 | C12: =SUMIFS('BASE DE DADOS'!$N:$N,'BASE DE DADOS'!$B:$B,GASTOS_JUROS!$B$3,'BASE DE DADOS'!$G:$G,GASTOS_JUROS!$A12,'BASE DE DADOS'!$O:$O,GASTOS_JUROS!C$5) -> 25.415227 | D12: =SUMIFS('BASE DE DADOS'!$N:$N,'BASE DE DADOS'!$B:$B,GASTOS_JUROS!$B$3,'BASE DE DADOS'!$G:$G,GASTOS_JUROS!$A12,'BASE DE DADOS'!$O:$O,GASTOS_JUROS!D$5) -> 24.677068 | E12: =SUMIFS('BASE DE DADOS'!$N:$N,'BASE DE DADOS'!$B:$B,GASTOS_JUROS!$B$3,'BASE DE DADOS'!$G:$G,GASTOS_JUROS!$A12,'BASE DE DADOS'!$O:$O,GASTOS_JUROS!E$5) -> 28.664766 | F12: =SUMIFS('BASE DE DADOS'!$N:$N,'BASE DE DADOS'!$B:$B,GASTOS_JUROS!$B$3,'BASE DE DADOS'!$G:$G,GASTOS_JUROS!$A12,'BASE DE DADOS'!$O:$O,GASTOS_JUROS!F$5) -> 28.664766 | G12: =SUMIFS('BASE DE DADOS'!$N:$N,'BASE DE DADOS'!$B:$B,GASTOS_JUROS!$B$3,'BASE DE DADOS'!$G:$G,GASTOS_JUROS!$A12,'BASE DE DADOS'!$O:$O,GASTOS_JUROS!G$5) -> 28.664766 | H12: =SUMIFS('BASE DE DADOS'!$N:$N,'BASE DE DADOS'!$B:$B,GASTOS_JUROS!$B$3,'BASE DE DADOS'!$G:$G,GASTOS_JUROS!$A12,'BASE DE DADOS'!$O:$O,GASTOS_JUROS!H$5) -> 35.715613 | I12: =SUMIFS('BASE DE DADOS'!$N:$N,'BASE DE DADOS'!$B:$B,GASTOS_JUROS!$B$3,'BASE DE DADOS'!$G:$G,GASTOS_JUROS!$A12,'BASE DE DADOS'!$O:$O,GASTOS_JUROS!I$5) -> 0 | J12: =SUMIFS('BASE DE DADOS'!$N:$N,'BASE DE DADOS'!$B:$B,GASTOS_JUROS!$B$3,'BASE DE DADOS'!$G:$G,GASTOS_JUROS!$A12,'BASE DE DADOS'!$O:$O,GASTOS_JUROS!J$5) -> 37.25226 | K12: =SUMIFS('BASE DE DADOS'!$N:$N,'BASE DE DADOS'!$B:$B,GASTOS_JUROS!$B$3,'BASE DE DADOS'!$G:$G,GASTOS_JUROS!$A12,'BASE DE DADOS'!$O:$O,GASTOS_JUROS!K$5) -> 0 | L12: =SUMIFS('BASE DE DADOS'!$N:$N,'BASE DE DADOS'!$B:$B,GASTOS_JUROS!$B$3,'BASE DE DADOS'!$G:$G,GASTOS_JUROS!$A12,'BASE DE DADOS'!$O:$O,GASTOS_JUROS!L$5) -> 0 | M12: =SUMIFS('BASE DE DADOS'!$N:$N,'BASE DE DADOS'!$B:$B,GASTOS_JUROS!$B$3,'BASE DE DADOS'!$G:$G,GASTOS_JUROS!$A12,'BASE DE DADOS'!$O:$O,GASTOS_JUROS!M$5) -> 0 | N12: 209.054466
A13: =CONFIG!A6 -> AZUL | B13: =SUMIFS('BASE DE DADOS'!$N:$N,'BASE DE DADOS'!$B:$B,GASTOS_JUROS!$B$3,'BASE DE DADOS'!$G:$G,GASTOS_JUROS!$A13,'BASE DE DADOS'!$O:$O,GASTOS_JUROS!B$5) -> 72.856542 | C13: =SUMIFS('BASE DE DADOS'!$N:$N,'BASE DE DADOS'!$B:$B,GASTOS_JUROS!$B$3,'BASE DE DADOS'!$G:$G,GASTOS_JUROS!$A13,'BASE DE DADOS'!$O:$O,GASTOS_JUROS!C$5) -> 72.856891 | D13: =SUMIFS('BASE DE DADOS'!$N:$N,'BASE DE DADOS'!$B:$B,GASTOS_JUROS!$B$3,'BASE DE DADOS'!$G:$G,GASTOS_JUROS!$A13,'BASE DE DADOS'!$O:$O,GASTOS_JUROS!D$5) -> 33.143483 | E13: =SUMIFS('BASE DE DADOS'!$N:$N,'BASE DE DADOS'!$B:$B,GASTOS_JUROS!$B$3,'BASE DE DADOS'!$G:$G,GASTOS_JUROS!$A13,'BASE DE DADOS'!$O:$O,GASTOS_JUROS!E$5) -> 73.116547 | F13: =SUMIFS('BASE DE DADOS'!$N:$N,'BASE DE DADOS'!$B:$B,GASTOS_JUROS!$B$3,'BASE DE DADOS'!$G:$G,GASTOS_JUROS!$A13,'BASE DE DADOS'!$O:$O,GASTOS_JUROS!F$5) -> 73.040465 | G13: =SUMIFS('BASE DE DADOS'!$N:$N,'BASE DE DADOS'!$B:$B,GASTOS_JUROS!$B$3,'BASE DE DADOS'!$G:$G,GASTOS_JUROS!$A13,'BASE DE DADOS'!$O:$O,GASTOS_JUROS!G$5) -> 37.780995 | H13: =SUMIFS('BASE DE DADOS'!$N:$N,'BASE DE DADOS'!$B:$B,GASTOS_JUROS!$B$3,'BASE DE DADOS'!$G:$G,GASTOS_JUROS!$A13,'BASE DE DADOS'!$O:$O,GASTOS_JUROS!H$5) -> 68.478337 | I13: =SUMIFS('BASE DE DADOS'!$N:$N,'BASE DE DADOS'!$B:$B,GASTOS_JUROS!$B$3,'BASE DE DADOS'!$G:$G,GASTOS_JUROS!$A13,'BASE DE DADOS'!$O:$O,GASTOS_JUROS!I$5) -> 72.169012 | J13: =SUMIFS('BASE DE DADOS'!$N:$N,'BASE DE DADOS'!$B:$B,GASTOS_JUROS!$B$3,'BASE DE DADOS'!$G:$G,GASTOS_JUROS!$A13,'BASE DE DADOS'!$O:$O,GASTOS_JUROS!J$5) -> 0 | K13: =SUMIFS('BASE DE DADOS'!$N:$N,'BASE DE DADOS'!$B:$B,GASTOS_JUROS!$B$3,'BASE DE DADOS'!$G:$G,GASTOS_JUROS!$A13,'BASE DE DADOS'!$O:$O,GASTOS_JUROS!K$5) -> 72.50475 | L13: =SUMIFS('BASE DE DADOS'!$N:$N,'BASE DE DADOS'!$B:$B,GASTOS_JUROS!$B$3,'BASE DE DADOS'!$G:$G,GASTOS_JUROS!$A13,'BASE DE DADOS'!$O:$O,GASTOS_JUROS!L$5) -> 0 | M13: =SUMIFS('BASE DE DADOS'!$N:$N,'BASE DE DADOS'!$B:$B,GASTOS_JUROS!$B$3,'BASE DE DADOS'!$G:$G,GASTOS_JUROS!$A13,'BASE DE DADOS'!$O:$O,GASTOS_JUROS!M$5) -> 0 | N13: 575.947022
A14: =CONFIG!A7 -> GOLD | B14: =SUMIFS('BASE DE DADOS'!$N:$N,'BASE DE DADOS'!$B:$B,GASTOS_JUROS!$B$3,'BASE DE DADOS'!$G:$G,GASTOS_JUROS!$A14,'BASE DE DADOS'!$O:$O,GASTOS_JUROS!B$5) -> 82.972307 | C14: =SUMIFS('BASE DE DADOS'!$N:$N,'BASE DE DADOS'!$B:$B,GASTOS_JUROS!$B$3,'BASE DE DADOS'!$G:$G,GASTOS_JUROS!$A14,'BASE DE DADOS'!$O:$O,GASTOS_JUROS!C$5) -> 84.716958 | D14: =SUMIFS('BASE DE DADOS'!$N:$N,'BASE DE DADOS'!$B:$B,GASTOS_JUROS!$B$3,'BASE DE DADOS'!$G:$G,GASTOS_JUROS!$A14,'BASE DE DADOS'!$O:$O,GASTOS_JUROS!D$5) -> 78.648408 | E14: =SUMIFS('BASE DE DADOS'!$N:$N,'BASE DE DADOS'!$B:$B,GASTOS_JUROS!$B$3,'BASE DE DADOS'!$G:$G,GASTOS_JUROS!$A14,'BASE DE DADOS'!$O:$O,GASTOS_JUROS!E$5) -> 84.30793 | F14: =SUMIFS('BASE DE DADOS'!$N:$N,'BASE DE DADOS'!$B:$B,GASTOS_JUROS!$B$3,'BASE DE DADOS'!$G:$G,GASTOS_JUROS!$A14,'BASE DE DADOS'!$O:$O,GASTOS_JUROS!F$5) -> 84.307581 | G14: =SUMIFS('BASE DE DADOS'!$N:$N,'BASE DE DADOS'!$B:$B,GASTOS_JUROS!$B$3,'BASE DE DADOS'!$G:$G,GASTOS_JUROS!$A14,'BASE DE DADOS'!$O:$O,GASTOS_JUROS!G$5) -> 22.583742 | H14: =SUMIFS('BASE DE DADOS'!$N:$N,'BASE DE DADOS'!$B:$B,GASTOS_JUROS!$B$3,'BASE DE DADOS'!$G:$G,GASTOS_JUROS!$A14,'BASE DE DADOS'!$O:$O,GASTOS_JUROS!H$5) -> 41.884188 | I14: =SUMIFS('BASE DE DADOS'!$N:$N,'BASE DE DADOS'!$B:$B,GASTOS_JUROS!$B$3,'BASE DE DADOS'!$G:$G,GASTOS_JUROS!$A14,'BASE DE DADOS'!$O:$O,GASTOS_JUROS!I$5) -> 82.82817 | J14: =SUMIFS('BASE DE DADOS'!$N:$N,'BASE DE DADOS'!$B:$B,GASTOS_JUROS!$B$3,'BASE DE DADOS'!$G:$G,GASTOS_JUROS!$A14,'BASE DE DADOS'!$O:$O,GASTOS_JUROS!J$5) -> 0 | K14: =SUMIFS('BASE DE DADOS'!$N:$N,'BASE DE DADOS'!$B:$B,GASTOS_JUROS!$B$3,'BASE DE DADOS'!$G:$G,GASTOS_JUROS!$A14,'BASE DE DADOS'!$O:$O,GASTOS_JUROS!K$5) -> 0 | L14: =SUMIFS('BASE DE DADOS'!$N:$N,'BASE DE DADOS'!$B:$B,GASTOS_JUROS!$B$3,'BASE DE DADOS'!$G:$G,GASTOS_JUROS!$A14,'BASE DE DADOS'!$O:$O,GASTOS_JUROS!L$5) -> 0 | M14: =SUMIFS('BASE DE DADOS'!$N:$N,'BASE DE DADOS'!$B:$B,GASTOS_JUROS!$B$3,'BASE DE DADOS'!$G:$G,GASTOS_JUROS!$A14,'BASE DE DADOS'!$O:$O,GASTOS_JUROS!M$5) -> 0 | N14: 562.249284
A15: =CONFIG!A8 -> LATAM | B15: =SUMIFS('BASE DE DADOS'!$N:$N,'BASE DE DADOS'!$B:$B,GASTOS_JUROS!$B$3,'BASE DE DADOS'!$G:$G,GASTOS_JUROS!$A15,'BASE DE DADOS'!$O:$O,GASTOS_JUROS!B$5) -> 128.770181 | C15: =SUMIFS('BASE DE DADOS'!$N:$N,'BASE DE DADOS'!$B:$B,GASTOS_JUROS!$B$3,'BASE DE DADOS'!$G:$G,GASTOS_JUROS!$A15,'BASE DE DADOS'!$O:$O,GASTOS_JUROS!C$5) -> 128.769134 | D15: =SUMIFS('BASE DE DADOS'!$N:$N,'BASE DE DADOS'!$B:$B,GASTOS_JUROS!$B$3,'BASE DE DADOS'!$G:$G,GASTOS_JUROS!$A15,'BASE DE DADOS'!$O:$O,GASTOS_JUROS!D$5) -> 128.735281 | E15: =SUMIFS('BASE DE DADOS'!$N:$N,'BASE DE DADOS'!$B:$B,GASTOS_JUROS!$B$3,'BASE DE DADOS'!$G:$G,GASTOS_JUROS!$A15,'BASE DE DADOS'!$O:$O,GASTOS_JUROS!E$5) -> 127.54205 | F15: =SUMIFS('BASE DE DADOS'!$N:$N,'BASE DE DADOS'!$B:$B,GASTOS_JUROS!$B$3,'BASE DE DADOS'!$G:$G,GASTOS_JUROS!$A15,'BASE DE DADOS'!$O:$O,GASTOS_JUROS!F$5) -> 128.147914 | G15: =SUMIFS('BASE DE DADOS'!$N:$N,'BASE DE DADOS'!$B:$B,GASTOS_JUROS!$B$3,'BASE DE DADOS'!$G:$G,GASTOS_JUROS!$A15,'BASE DE DADOS'!$O:$O,GASTOS_JUROS!G$5) -> 220.213304 | H15: =SUMIFS('BASE DE DADOS'!$N:$N,'BASE DE DADOS'!$B:$B,GASTOS_JUROS!$B$3,'BASE DE DADOS'!$G:$G,GASTOS_JUROS!$A15,'BASE DE DADOS'!$O:$O,GASTOS_JUROS!H$5) -> 113.467229 | I15: =SUMIFS('BASE DE DADOS'!$N:$N,'BASE DE DADOS'!$B:$B,GASTOS_JUROS!$B$3,'BASE DE DADOS'!$G:$G,GASTOS_JUROS!$A15,'BASE DE DADOS'!$O:$O,GASTOS_JUROS!I$5) -> 0 | J15: =SUMIFS('BASE DE DADOS'!$N:$N,'BASE DE DADOS'!$B:$B,GASTOS_JUROS!$B$3,'BASE DE DADOS'!$G:$G,GASTOS_JUROS!$A15,'BASE DE DADOS'!$O:$O,GASTOS_JUROS!J$5) -> 0 | K15: =SUMIFS('BASE DE DADOS'!$N:$N,'BASE DE DADOS'!$B:$B,GASTOS_JUROS!$B$3,'BASE DE DADOS'!$G:$G,GASTOS_JUROS!$A15,'BASE DE DADOS'!$O:$O,GASTOS_JUROS!K$5) -> 0 | L15: =SUMIFS('BASE DE DADOS'!$N:$N,'BASE DE DADOS'!$B:$B,GASTOS_JUROS!$B$3,'BASE DE DADOS'!$G:$G,GASTOS_JUROS!$A15,'BASE DE DADOS'!$O:$O,GASTOS_JUROS!L$5) -> 0 | M15: =SUMIFS('BASE DE DADOS'!$N:$N,'BASE DE DADOS'!$B:$B,GASTOS_JUROS!$B$3,'BASE DE DADOS'!$G:$G,GASTOS_JUROS!$A15,'BASE DE DADOS'!$O:$O,GASTOS_JUROS!M$5) -> 0 | N15: 975.645093
A16: =CONFIG!A9 -> FREE | B16: =SUMIFS('BASE DE DADOS'!$N:$N,'BASE DE DADOS'!$B:$B,GASTOS_JUROS!$B$3,'BASE DE DADOS'!$G:$G,GASTOS_JUROS!$A16,'BASE DE DADOS'!$O:$O,GASTOS_JUROS!B$5) -> 0 | C16: =SUMIFS('BASE DE DADOS'!$N:$N,'BASE DE DADOS'!$B:$B,GASTOS_JUROS!$B$3,'BASE DE DADOS'!$G:$G,GASTOS_JUROS!$A16,'BASE DE DADOS'!$O:$O,GASTOS_JUROS!C$5) -> 0 | D16: =SUMIFS('BASE DE DADOS'!$N:$N,'BASE DE DADOS'!$B:$B,GASTOS_JUROS!$B$3,'BASE DE DADOS'!$G:$G,GASTOS_JUROS!$A16,'BASE DE DADOS'!$O:$O,GASTOS_JUROS!D$5) -> 2.002562 | E16: =SUMIFS('BASE DE DADOS'!$N:$N,'BASE DE DADOS'!$B:$B,GASTOS_JUROS!$B$3,'BASE DE DADOS'!$G:$G,GASTOS_JUROS!$A16,'BASE DE DADOS'!$O:$O,GASTOS_JUROS!E$5) -> 0 | F16: =SUMIFS('BASE DE DADOS'!$N:$N,'BASE DE DADOS'!$B:$B,GASTOS_JUROS!$B$3,'BASE DE DADOS'!$G:$G,GASTOS_JUROS!$A16,'BASE DE DADOS'!$O:$O,GASTOS_JUROS!F$5) -> 0 | G16: =SUMIFS('BASE DE DADOS'!$N:$N,'BASE DE DADOS'!$B:$B,GASTOS_JUROS!$B$3,'BASE DE DADOS'!$G:$G,GASTOS_JUROS!$A16,'BASE DE DADOS'!$O:$O,GASTOS_JUROS!G$5) -> 0 | H16: =SUMIFS('BASE DE DADOS'!$N:$N,'BASE DE DADOS'!$B:$B,GASTOS_JUROS!$B$3,'BASE DE DADOS'!$G:$G,GASTOS_JUROS!$A16,'BASE DE DADOS'!$O:$O,GASTOS_JUROS!H$5) -> 0 | I16: =SUMIFS('BASE DE DADOS'!$N:$N,'BASE DE DADOS'!$B:$B,GASTOS_JUROS!$B$3,'BASE DE DADOS'!$G:$G,GASTOS_JUROS!$A16,'BASE DE DADOS'!$O:$O,GASTOS_JUROS!I$5) -> 0 | J16: =SUMIFS('BASE DE DADOS'!$N:$N,'BASE DE DADOS'!$B:$B,GASTOS_JUROS!$B$3,'BASE DE DADOS'!$G:$G,GASTOS_JUROS!$A16,'BASE DE DADOS'!$O:$O,GASTOS_JUROS!J$5) -> 0 | K16: =SUMIFS('BASE DE DADOS'!$N:$N,'BASE DE DADOS'!$B:$B,GASTOS_JUROS!$B$3,'BASE DE DADOS'!$G:$G,GASTOS_JUROS!$A16,'BASE DE DADOS'!$O:$O,GASTOS_JUROS!K$5) -> 0 | L16: =SUMIFS('BASE DE DADOS'!$N:$N,'BASE DE DADOS'!$B:$B,GASTOS_JUROS!$B$3,'BASE DE DADOS'!$G:$G,GASTOS_JUROS!$A16,'BASE DE DADOS'!$O:$O,GASTOS_JUROS!L$5) -> 0 | M16: =SUMIFS('BASE DE DADOS'!$N:$N,'BASE DE DADOS'!$B:$B,GASTOS_JUROS!$B$3,'BASE DE DADOS'!$G:$G,GASTOS_JUROS!$A16,'BASE DE DADOS'!$O:$O,GASTOS_JUROS!M$5) -> 0 | N16: 2.002562
A17: =CONFIG!A10 -> WILL | B17: =SUMIFS('BASE DE DADOS'!$N:$N,'BASE DE DADOS'!$B:$B,GASTOS_JUROS!$B$3,'BASE DE DADOS'!$G:$G,GASTOS_JUROS!$A17,'BASE DE DADOS'!$O:$O,GASTOS_JUROS!B$5) -> 84.92566 | C17: =SUMIFS('BASE DE DADOS'!$N:$N,'BASE DE DADOS'!$B:$B,GASTOS_JUROS!$B$3,'BASE DE DADOS'!$G:$G,GASTOS_JUROS!$A17,'BASE DE DADOS'!$O:$O,GASTOS_JUROS!C$5) -> 89.597025 | D17: =SUMIFS('BASE DE DADOS'!$N:$N,'BASE DE DADOS'!$B:$B,GASTOS_JUROS!$B$3,'BASE DE DADOS'!$G:$G,GASTOS_JUROS!$A17,'BASE DE DADOS'!$O:$O,GASTOS_JUROS!D$5) -> 100.692782 | E17: =SUMIFS('BASE DE DADOS'!$N:$N,'BASE DE DADOS'!$B:$B,GASTOS_JUROS!$B$3,'BASE DE DADOS'!$G:$G,GASTOS_JUROS!$A17,'BASE DE DADOS'!$O:$O,GASTOS_JUROS!E$5) -> 104.999791 | F17: =SUMIFS('BASE DE DADOS'!$N:$N,'BASE DE DADOS'!$B:$B,GASTOS_JUROS!$B$3,'BASE DE DADOS'!$G:$G,GASTOS_JUROS!$A17,'BASE DE DADOS'!$O:$O,GASTOS_JUROS!F$5) -> 110.240724 | G17: =SUMIFS('BASE DE DADOS'!$N:$N,'BASE DE DADOS'!$B:$B,GASTOS_JUROS!$B$3,'BASE DE DADOS'!$G:$G,GASTOS_JUROS!$A17,'BASE DE DADOS'!$O:$O,GASTOS_JUROS!G$5) -> 149.446918 | H17: =SUMIFS('BASE DE DADOS'!$N:$N,'BASE DE DADOS'!$B:$B,GASTOS_JUROS!$B$3,'BASE DE DADOS'!$G:$G,GASTOS_JUROS!$A17,'BASE DE DADOS'!$O:$O,GASTOS_JUROS!H$5) -> 125.759009 | I17: =SUMIFS('BASE DE DADOS'!$N:$N,'BASE DE DADOS'!$B:$B,GASTOS_JUROS!$B$3,'BASE DE DADOS'!$G:$G,GASTOS_JUROS!$A17,'BASE DE DADOS'!$O:$O,GASTOS_JUROS!I$5) -> 111.06576 | J17: =SUMIFS('BASE DE DADOS'!$N:$N,'BASE DE DADOS'!$B:$B,GASTOS_JUROS!$B$3,'BASE DE DADOS'!$G:$G,GASTOS_JUROS!$A17,'BASE DE DADOS'!$O:$O,GASTOS_JUROS!J$5) -> 18.394045 | K17: =SUMIFS('BASE DE DADOS'!$N:$N,'BASE DE DADOS'!$B:$B,GASTOS_JUROS!$B$3,'BASE DE DADOS'!$G:$G,GASTOS_JUROS!$A17,'BASE DE DADOS'!$O:$O,GASTOS_JUROS!K$5) -> 44.586844 | L17: =SUMIFS('BASE DE DADOS'!$N:$N,'BASE DE DADOS'!$B:$B,GASTOS_JUROS!$B$3,'BASE DE DADOS'!$G:$G,GASTOS_JUROS!$A17,'BASE DE DADOS'!$O:$O,GASTOS_JUROS!L$5) -> 0 | M17: =SUMIFS('BASE DE DADOS'!$N:$N,'BASE DE DADOS'!$B:$B,GASTOS_JUROS!$B$3,'BASE DE DADOS'!$G:$G,GASTOS_JUROS!$A17,'BASE DE DADOS'!$O:$O,GASTOS_JUROS!M$5) -> 0 | N17: 939.708558
A18: =CONFIG!A11 -> NCARD | B18: =SUMIFS('BASE DE DADOS'!$N:$N,'BASE DE DADOS'!$B:$B,GASTOS_JUROS!$B$3,'BASE DE DADOS'!$G:$G,GASTOS_JUROS!$A18,'BASE DE DADOS'!$O:$O,GASTOS_JUROS!B$5) -> 11.006413 | C18: =SUMIFS('BASE DE DADOS'!$N:$N,'BASE DE DADOS'!$B:$B,GASTOS_JUROS!$B$3,'BASE DE DADOS'!$G:$G,GASTOS_JUROS!$A18,'BASE DE DADOS'!$O:$O,GASTOS_JUROS!C$5) -> 53.609541 | D18: =SUMIFS('BASE DE DADOS'!$N:$N,'BASE DE DADOS'!$B:$B,GASTOS_JUROS!$B$3,'BASE DE DADOS'!$G:$G,GASTOS_JUROS!$A18,'BASE DE DADOS'!$O:$O,GASTOS_JUROS!D$5) -> 48.255968 | E18: =SUMIFS('BASE DE DADOS'!$N:$N,'BASE DE DADOS'!$B:$B,GASTOS_JUROS!$B$3,'BASE DE DADOS'!$G:$G,GASTOS_JUROS!$A18,'BASE DE DADOS'!$O:$O,GASTOS_JUROS!E$5) -> 53.654562 | F18: =SUMIFS('BASE DE DADOS'!$N:$N,'BASE DE DADOS'!$B:$B,GASTOS_JUROS!$B$3,'BASE DE DADOS'!$G:$G,GASTOS_JUROS!$A18,'BASE DE DADOS'!$O:$O,GASTOS_JUROS!F$5) -> 53.965521 | G18: =SUMIFS('BASE DE DADOS'!$N:$N,'BASE DE DADOS'!$B:$B,GASTOS_JUROS!$B$3,'BASE DE DADOS'!$G:$G,GASTOS_JUROS!$A18,'BASE DE DADOS'!$O:$O,GASTOS_JUROS!G$5) -> 55.84 | H18: =SUMIFS('BASE DE DADOS'!$N:$N,'BASE DE DADOS'!$B:$B,GASTOS_JUROS!$B$3,'BASE DE DADOS'!$G:$G,GASTOS_JUROS!$A18,'BASE DE DADOS'!$O:$O,GASTOS_JUROS!H$5) -> 53.396651 | I18: =SUMIFS('BASE DE DADOS'!$N:$N,'BASE DE DADOS'!$B:$B,GASTOS_JUROS!$B$3,'BASE DE DADOS'!$G:$G,GASTOS_JUROS!$A18,'BASE DE DADOS'!$O:$O,GASTOS_JUROS!I$5) -> 48.652345 | J18: =SUMIFS('BASE DE DADOS'!$N:$N,'BASE DE DADOS'!$B:$B,GASTOS_JUROS!$B$3,'BASE DE DADOS'!$G:$G,GASTOS_JUROS!$A18,'BASE DE DADOS'!$O:$O,GASTOS_JUROS!J$5) -> 61.045005 | K18: =SUMIFS('BASE DE DADOS'!$N:$N,'BASE DE DADOS'!$B:$B,GASTOS_JUROS!$B$3,'BASE DE DADOS'!$G:$G,GASTOS_JUROS!$A18,'BASE DE DADOS'!$O:$O,GASTOS_JUROS!K$5) -> 53.654562 | L18: =SUMIFS('BASE DE DADOS'!$N:$N,'BASE DE DADOS'!$B:$B,GASTOS_JUROS!$B$3,'BASE DE DADOS'!$G:$G,GASTOS_JUROS!$A18,'BASE DE DADOS'!$O:$O,GASTOS_JUROS!L$5) -> 0 | M18: =SUMIFS('BASE DE DADOS'!$N:$N,'BASE DE DADOS'!$B:$B,GASTOS_JUROS!$B$3,'BASE DE DADOS'!$G:$G,GASTOS_JUROS!$A18,'BASE DE DADOS'!$O:$O,GASTOS_JUROS!M$5) -> 0 | N18: 493.080568
A19: =CONFIG!A12 -> INTER | B19: =SUMIFS('BASE DE DADOS'!$N:$N,'BASE DE DADOS'!$B:$B,GASTOS_JUROS!$B$3,'BASE DE DADOS'!$G:$G,GASTOS_JUROS!$A19,'BASE DE DADOS'!$O:$O,GASTOS_JUROS!B$5) -> 137.433059 | C19: =SUMIFS('BASE DE DADOS'!$N:$N,'BASE DE DADOS'!$B:$B,GASTOS_JUROS!$B$3,'BASE DE DADOS'!$G:$G,GASTOS_JUROS!$A19,'BASE DE DADOS'!$O:$O,GASTOS_JUROS!C$5) -> 152.33501 | D19: =SUMIFS('BASE DE DADOS'!$N:$N,'BASE DE DADOS'!$B:$B,GASTOS_JUROS!$B$3,'BASE DE DADOS'!$G:$G,GASTOS_JUROS!$A19,'BASE DE DADOS'!$O:$O,GASTOS_JUROS!D$5) -> 101.556247 | E19: =SUMIFS('BASE DE DADOS'!$N:$N,'BASE DE DADOS'!$B:$B,GASTOS_JUROS!$B$3,'BASE DE DADOS'!$G:$G,GASTOS_JUROS!$A19,'BASE DE DADOS'!$O:$O,GASTOS_JUROS!E$5) -> 143.227506 | F19: =SUMIFS('BASE DE DADOS'!$N:$N,'BASE DE DADOS'!$B:$B,GASTOS_JUROS!$B$3,'BASE DE DADOS'!$G:$G,GASTOS_JUROS!$A19,'BASE DE DADOS'!$O:$O,GASTOS_JUROS!F$5) -> 148.732632 | G19: =SUMIFS('BASE DE DADOS'!$N:$N,'BASE DE DADOS'!$B:$B,GASTOS_JUROS!$B$3,'BASE DE DADOS'!$G:$G,GASTOS_JUROS!$A19,'BASE DE DADOS'!$O:$O,GASTOS_JUROS!G$5) -> 164.51511 | H19: =SUMIFS('BASE DE DADOS'!$N:$N,'BASE DE DADOS'!$B:$B,GASTOS_JUROS!$B$3,'BASE DE DADOS'!$G:$G,GASTOS_JUROS!$A19,'BASE DE DADOS'!$O:$O,GASTOS_JUROS!H$5) -> 158.795698 | I19: =SUMIFS('BASE DE DADOS'!$N:$N,'BASE DE DADOS'!$B:$B,GASTOS_JUROS!$B$3,'BASE DE DADOS'!$G:$G,GASTOS_JUROS!$A19,'BASE DE DADOS'!$O:$O,GASTOS_JUROS!I$5) -> 166.017904 | J19: =SUMIFS('BASE DE DADOS'!$N:$N,'BASE DE DADOS'!$B:$B,GASTOS_JUROS!$B$3,'BASE DE DADOS'!$G:$G,GASTOS_JUROS!$A19,'BASE DE DADOS'!$O:$O,GASTOS_JUROS!J$5) -> 201.410811 | K19: =SUMIFS('BASE DE DADOS'!$N:$N,'BASE DE DADOS'!$B:$B,GASTOS_JUROS!$B$3,'BASE DE DADOS'!$G:$G,GASTOS_JUROS!$A19,'BASE DE DADOS'!$O:$O,GASTOS_JUROS!K$5) -> 119.875218 | L19: =SUMIFS('BASE DE DADOS'!$N:$N,'BASE DE DADOS'!$B:$B,GASTOS_JUROS!$B$3,'BASE DE DADOS'!$G:$G,GASTOS_JUROS!$A19,'BASE DE DADOS'!$O:$O,GASTOS_JUROS!L$5) -> 0 | M19: =SUMIFS('BASE DE DADOS'!$N:$N,'BASE DE DADOS'!$B:$B,GASTOS_JUROS!$B$3,'BASE DE DADOS'!$G:$G,GASTOS_JUROS!$A19,'BASE DE DADOS'!$O:$O,GASTOS_JUROS!M$5) -> 0 | N19: 1493.899195
A20: =CONFIG!A13 -> C6 | B20: =SUMIFS('BASE DE DADOS'!$N:$N,'BASE DE DADOS'!$B:$B,GASTOS_JUROS!$B$3,'BASE DE DADOS'!$G:$G,GASTOS_JUROS!$A20,'BASE DE DADOS'!$O:$O,GASTOS_JUROS!B$5) -> 33.195833 | C20: =SUMIFS('BASE DE DADOS'!$N:$N,'BASE DE DADOS'!$B:$B,GASTOS_JUROS!$B$3,'BASE DE DADOS'!$G:$G,GASTOS_JUROS!$A20,'BASE DE DADOS'!$O:$O,GASTOS_JUROS!C$5) -> 34.33811 | D20: =SUMIFS('BASE DE DADOS'!$N:$N,'BASE DE DADOS'!$B:$B,GASTOS_JUROS!$B$3,'BASE DE DADOS'!$G:$G,GASTOS_JUROS!$A20,'BASE DE DADOS'!$O:$O,GASTOS_JUROS!D$5) -> 28.364975 | E20: =SUMIFS('BASE DE DADOS'!$N:$N,'BASE DE DADOS'!$B:$B,GASTOS_JUROS!$B$3,'BASE DE DADOS'!$G:$G,GASTOS_JUROS!$A20,'BASE DE DADOS'!$O:$O,GASTOS_JUROS!E$5) -> 34.9 | F20: =SUMIFS('BASE DE DADOS'!$N:$N,'BASE DE DADOS'!$B:$B,GASTOS_JUROS!$B$3,'BASE DE DADOS'!$G:$G,GASTOS_JUROS!$A20,'BASE DE DADOS'!$O:$O,GASTOS_JUROS!F$5) -> 60.668764 | G20: =SUMIFS('BASE DE DADOS'!$N:$N,'BASE DE DADOS'!$B:$B,GASTOS_JUROS!$B$3,'BASE DE DADOS'!$G:$G,GASTOS_JUROS!$A20,'BASE DE DADOS'!$O:$O,GASTOS_JUROS!G$5) -> 26.18198 | H20: =SUMIFS('BASE DE DADOS'!$N:$N,'BASE DE DADOS'!$B:$B,GASTOS_JUROS!$B$3,'BASE DE DADOS'!$G:$G,GASTOS_JUROS!$A20,'BASE DE DADOS'!$O:$O,GASTOS_JUROS!H$5) -> 238.958555 | I20: =SUMIFS('BASE DE DADOS'!$N:$N,'BASE DE DADOS'!$B:$B,GASTOS_JUROS!$B$3,'BASE DE DADOS'!$G:$G,GASTOS_JUROS!$A20,'BASE DE DADOS'!$O:$O,GASTOS_JUROS!I$5) -> 56.619666 | J20: =SUMIFS('BASE DE DADOS'!$N:$N,'BASE DE DADOS'!$B:$B,GASTOS_JUROS!$B$3,'BASE DE DADOS'!$G:$G,GASTOS_JUROS!$A20,'BASE DE DADOS'!$O:$O,GASTOS_JUROS!J$5) -> 152.694829 | K20: =SUMIFS('BASE DE DADOS'!$N:$N,'BASE DE DADOS'!$B:$B,GASTOS_JUROS!$B$3,'BASE DE DADOS'!$G:$G,GASTOS_JUROS!$A20,'BASE DE DADOS'!$O:$O,GASTOS_JUROS!K$5) -> 280.835985 | L20: =SUMIFS('BASE DE DADOS'!$N:$N,'BASE DE DADOS'!$B:$B,GASTOS_JUROS!$B$3,'BASE DE DADOS'!$G:$G,GASTOS_JUROS!$A20,'BASE DE DADOS'!$O:$O,GASTOS_JUROS!L$5) -> 0 | M20: =SUMIFS('BASE DE DADOS'!$N:$N,'BASE DE DADOS'!$B:$B,GASTOS_JUROS!$B$3,'BASE DE DADOS'!$G:$G,GASTOS_JUROS!$A20,'BASE DE DADOS'!$O:$O,GASTOS_JUROS!M$5) -> 0 | N20: 946.758697
A21: C6MAE | B21: =SUMIFS('BASE DE DADOS'!$N:$N,'BASE DE DADOS'!$B:$B,GASTOS_JUROS!$B$3,'BASE DE DADOS'!$G:$G,GASTOS_JUROS!$A21,'BASE DE DADOS'!$O:$O,GASTOS_JUROS!B$5) -> 0 | C21: =SUMIFS('BASE DE DADOS'!$N:$N,'BASE DE DADOS'!$B:$B,GASTOS_JUROS!$B$3,'BASE DE DADOS'!$G:$G,GASTOS_JUROS!$A21,'BASE DE DADOS'!$O:$O,GASTOS_JUROS!C$5) -> 0 | D21: =SUMIFS('BASE DE DADOS'!$N:$N,'BASE DE DADOS'!$B:$B,GASTOS_JUROS!$B$3,'BASE DE DADOS'!$G:$G,GASTOS_JUROS!$A21,'BASE DE DADOS'!$O:$O,GASTOS_JUROS!D$5) -> 0 | E21: =SUMIFS('BASE DE DADOS'!$N:$N,'BASE DE DADOS'!$B:$B,GASTOS_JUROS!$B$3,'BASE DE DADOS'!$G:$G,GASTOS_JUROS!$A21,'BASE DE DADOS'!$O:$O,GASTOS_JUROS!E$5) -> 0 | F21: =SUMIFS('BASE DE DADOS'!$N:$N,'BASE DE DADOS'!$B:$B,GASTOS_JUROS!$B$3,'BASE DE DADOS'!$G:$G,GASTOS_JUROS!$A21,'BASE DE DADOS'!$O:$O,GASTOS_JUROS!F$5) -> 0 | G21: =SUMIFS('BASE DE DADOS'!$N:$N,'BASE DE DADOS'!$B:$B,GASTOS_JUROS!$B$3,'BASE DE DADOS'!$G:$G,GASTOS_JUROS!$A21,'BASE DE DADOS'!$O:$O,GASTOS_JUROS!G$5) -> 0 | H21: =SUMIFS('BASE DE DADOS'!$N:$N,'BASE DE DADOS'!$B:$B,GASTOS_JUROS!$B$3,'BASE DE DADOS'!$G:$G,GASTOS_JUROS!$A21,'BASE DE DADOS'!$O:$O,GASTOS_JUROS!H$5) -> 0 | I21: =SUMIFS('BASE DE DADOS'!$N:$N,'BASE DE DADOS'!$B:$B,GASTOS_JUROS!$B$3,'BASE DE DADOS'!$G:$G,GASTOS_JUROS!$A21,'BASE DE DADOS'!$O:$O,GASTOS_JUROS!I$5) -> 0 | J21: =SUMIFS('BASE DE DADOS'!$N:$N,'BASE DE DADOS'!$B:$B,GASTOS_JUROS!$B$3,'BASE DE DADOS'!$G:$G,GASTOS_JUROS!$A21,'BASE DE DADOS'!$O:$O,GASTOS_JUROS!J$5) -> 60.260085 | K21: =SUMIFS('BASE DE DADOS'!$N:$N,'BASE DE DADOS'!$B:$B,GASTOS_JUROS!$B$3,'BASE DE DADOS'!$G:$G,GASTOS_JUROS!$A21,'BASE DE DADOS'!$O:$O,GASTOS_JUROS!K$5) -> 0 | L21: =SUMIFS('BASE DE DADOS'!$N:$N,'BASE DE DADOS'!$B:$B,GASTOS_JUROS!$B$3,'BASE DE DADOS'!$G:$G,GASTOS_JUROS!$A21,'BASE DE DADOS'!$O:$O,GASTOS_JUROS!L$5) -> 0 | M21: =SUMIFS('BASE DE DADOS'!$N:$N,'BASE DE DADOS'!$B:$B,GASTOS_JUROS!$B$3,'BASE DE DADOS'!$G:$G,GASTOS_JUROS!$A21,'BASE DE DADOS'!$O:$O,GASTOS_JUROS!M$5) -> 0 | N21: 60.260085
A22: =CONFIG!A14 -> BMG | B22: =SUMIFS('BASE DE DADOS'!$N:$N,'BASE DE DADOS'!$B:$B,GASTOS_JUROS!$B$3,'BASE DE DADOS'!$G:$G,GASTOS_JUROS!$A22,'BASE DE DADOS'!$O:$O,GASTOS_JUROS!B$5) -> 0 | C22: =SUMIFS('BASE DE DADOS'!$N:$N,'BASE DE DADOS'!$B:$B,GASTOS_JUROS!$B$3,'BASE DE DADOS'!$G:$G,GASTOS_JUROS!$A22,'BASE DE DADOS'!$O:$O,GASTOS_JUROS!C$5) -> 5.733372 | D22: =SUMIFS('BASE DE DADOS'!$N:$N,'BASE DE DADOS'!$B:$B,GASTOS_JUROS!$B$3,'BASE DE DADOS'!$G:$G,GASTOS_JUROS!$A22,'BASE DE DADOS'!$O:$O,GASTOS_JUROS!D$5) -> 0 | E22: =SUMIFS('BASE DE DADOS'!$N:$N,'BASE DE DADOS'!$B:$B,GASTOS_JUROS!$B$3,'BASE DE DADOS'!$G:$G,GASTOS_JUROS!$A22,'BASE DE DADOS'!$O:$O,GASTOS_JUROS!E$5) -> 0 | F22: =SUMIFS('BASE DE DADOS'!$N:$N,'BASE DE DADOS'!$B:$B,GASTOS_JUROS!$B$3,'BASE DE DADOS'!$G:$G,GASTOS_JUROS!$A22,'BASE DE DADOS'!$O:$O,GASTOS_JUROS!F$5) -> 0 | G22: =SUMIFS('BASE DE DADOS'!$N:$N,'BASE DE DADOS'!$B:$B,GASTOS_JUROS!$B$3,'BASE DE DADOS'!$G:$G,GASTOS_JUROS!$A22,'BASE DE DADOS'!$O:$O,GASTOS_JUROS!G$5) -> 0 | H22: =SUMIFS('BASE DE DADOS'!$N:$N,'BASE DE DADOS'!$B:$B,GASTOS_JUROS!$B$3,'BASE DE DADOS'!$G:$G,GASTOS_JUROS!$A22,'BASE DE DADOS'!$O:$O,GASTOS_JUROS!H$5) -> 0 | I22: =SUMIFS('BASE DE DADOS'!$N:$N,'BASE DE DADOS'!$B:$B,GASTOS_JUROS!$B$3,'BASE DE DADOS'!$G:$G,GASTOS_JUROS!$A22,'BASE DE DADOS'!$O:$O,GASTOS_JUROS!I$5) -> 0 | J22: =SUMIFS('BASE DE DADOS'!$N:$N,'BASE DE DADOS'!$B:$B,GASTOS_JUROS!$B$3,'BASE DE DADOS'!$G:$G,GASTOS_JUROS!$A22,'BASE DE DADOS'!$O:$O,GASTOS_JUROS!J$5) -> 0 | K22: =SUMIFS('BASE DE DADOS'!$N:$N,'BASE DE DADOS'!$B:$B,GASTOS_JUROS!$B$3,'BASE DE DADOS'!$G:$G,GASTOS_JUROS!$A22,'BASE DE DADOS'!$O:$O,GASTOS_JUROS!K$5) -> 0 | L22: =SUMIFS('BASE DE DADOS'!$N:$N,'BASE DE DADOS'!$B:$B,GASTOS_JUROS!$B$3,'BASE DE DADOS'!$G:$G,GASTOS_JUROS!$A22,'BASE DE DADOS'!$O:$O,GASTOS_JUROS!L$5) -> 0 | M22: =SUMIFS('BASE DE DADOS'!$N:$N,'BASE DE DADOS'!$B:$B,GASTOS_JUROS!$B$3,'BASE DE DADOS'!$G:$G,GASTOS_JUROS!$A22,'BASE DE DADOS'!$O:$O,GASTOS_JUROS!M$5) -> 0 | N22: 5.733372
A23: ORIGINAL | B23: =SUMIFS('BASE DE DADOS'!$N:$N,'BASE DE DADOS'!$B:$B,GASTOS_JUROS!$B$3,'BASE DE DADOS'!$G:$G,GASTOS_JUROS!$A23,'BASE DE DADOS'!$O:$O,GASTOS_JUROS!B$5) -> 8.471626 | C23: =SUMIFS('BASE DE DADOS'!$N:$N,'BASE DE DADOS'!$B:$B,GASTOS_JUROS!$B$3,'BASE DE DADOS'!$G:$G,GASTOS_JUROS!$A23,'BASE DE DADOS'!$O:$O,GASTOS_JUROS!C$5) -> 16.265494 | D23: =SUMIFS('BASE DE DADOS'!$N:$N,'BASE DE DADOS'!$B:$B,GASTOS_JUROS!$B$3,'BASE DE DADOS'!$G:$G,GASTOS_JUROS!$A23,'BASE DE DADOS'!$O:$O,GASTOS_JUROS!D$5) -> 17.83041 | E23: =SUMIFS('BASE DE DADOS'!$N:$N,'BASE DE DADOS'!$B:$B,GASTOS_JUROS!$B$3,'BASE DE DADOS'!$G:$G,GASTOS_JUROS!$A23,'BASE DE DADOS'!$O:$O,GASTOS_JUROS!E$5) -> 16.423242 | F23: =SUMIFS('BASE DE DADOS'!$N:$N,'BASE DE DADOS'!$B:$B,GASTOS_JUROS!$B$3,'BASE DE DADOS'!$G:$G,GASTOS_JUROS!$A23,'BASE DE DADOS'!$O:$O,GASTOS_JUROS!F$5) -> 17.131363 | G23: =SUMIFS('BASE DE DADOS'!$N:$N,'BASE DE DADOS'!$B:$B,GASTOS_JUROS!$B$3,'BASE DE DADOS'!$G:$G,GASTOS_JUROS!$A23,'BASE DE DADOS'!$O:$O,GASTOS_JUROS!G$5) -> 21.346585 | H23: =SUMIFS('BASE DE DADOS'!$N:$N,'BASE DE DADOS'!$B:$B,GASTOS_JUROS!$B$3,'BASE DE DADOS'!$G:$G,GASTOS_JUROS!$A23,'BASE DE DADOS'!$O:$O,GASTOS_JUROS!H$5) -> 23.483861 | I23: =SUMIFS('BASE DE DADOS'!$N:$N,'BASE DE DADOS'!$B:$B,GASTOS_JUROS!$B$3,'BASE DE DADOS'!$G:$G,GASTOS_JUROS!$A23,'BASE DE DADOS'!$O:$O,GASTOS_JUROS!I$5) -> 0 | J23: =SUMIFS('BASE DE DADOS'!$N:$N,'BASE DE DADOS'!$B:$B,GASTOS_JUROS!$B$3,'BASE DE DADOS'!$G:$G,GASTOS_JUROS!$A23,'BASE DE DADOS'!$O:$O,GASTOS_JUROS!J$5) -> 0 | K23: =SUMIFS('BASE DE DADOS'!$N:$N,'BASE DE DADOS'!$B:$B,GASTOS_JUROS!$B$3,'BASE DE DADOS'!$G:$G,GASTOS_JUROS!$A23,'BASE DE DADOS'!$O:$O,GASTOS_JUROS!K$5) -> 0 | L23: =SUMIFS('BASE DE DADOS'!$N:$N,'BASE DE DADOS'!$B:$B,GASTOS_JUROS!$B$3,'BASE DE DADOS'!$G:$G,GASTOS_JUROS!$A23,'BASE DE DADOS'!$O:$O,GASTOS_JUROS!L$5) -> 0 | M23: =SUMIFS('BASE DE DADOS'!$N:$N,'BASE DE DADOS'!$B:$B,GASTOS_JUROS!$B$3,'BASE DE DADOS'!$G:$G,GASTOS_JUROS!$A23,'BASE DE DADOS'!$O:$O,GASTOS_JUROS!M$5) -> 0 | N23: 120.952581
A24: TRIGG | B24: =SUMIFS('BASE DE DADOS'!$N:$N,'BASE DE DADOS'!$B:$B,GASTOS_JUROS!$B$3,'BASE DE DADOS'!$G:$G,GASTOS_JUROS!$A24,'BASE DE DADOS'!$O:$O,GASTOS_JUROS!B$5) -> 0 | C24: =SUMIFS('BASE DE DADOS'!$N:$N,'BASE DE DADOS'!$B:$B,GASTOS_JUROS!$B$3,'BASE DE DADOS'!$G:$G,GASTOS_JUROS!$A24,'BASE DE DADOS'!$O:$O,GASTOS_JUROS!C$5) -> 0 | D24: =SUMIFS('BASE DE DADOS'!$N:$N,'BASE DE DADOS'!$B:$B,GASTOS_JUROS!$B$3,'BASE DE DADOS'!$G:$G,GASTOS_JUROS!$A24,'BASE DE DADOS'!$O:$O,GASTOS_JUROS!D$5) -> 0 | E24: =SUMIFS('BASE DE DADOS'!$N:$N,'BASE DE DADOS'!$B:$B,GASTOS_JUROS!$B$3,'BASE DE DADOS'!$G:$G,GASTOS_JUROS!$A24,'BASE DE DADOS'!$O:$O,GASTOS_JUROS!E$5) -> 0 | F24: =SUMIFS('BASE DE DADOS'!$N:$N,'BASE DE DADOS'!$B:$B,GASTOS_JUROS!$B$3,'BASE DE DADOS'!$G:$G,GASTOS_JUROS!$A24,'BASE DE DADOS'!$O:$O,GASTOS_JUROS!F$5) -> 0 | G24: =SUMIFS('BASE DE DADOS'!$N:$N,'BASE DE DADOS'!$B:$B,GASTOS_JUROS!$B$3,'BASE DE DADOS'!$G:$G,GASTOS_JUROS!$A24,'BASE DE DADOS'!$O:$O,GASTOS_JUROS!G$5) -> 0 | H24: =SUMIFS('BASE DE DADOS'!$N:$N,'BASE DE DADOS'!$B:$B,GASTOS_JUROS!$B$3,'BASE DE DADOS'!$G:$G,GASTOS_JUROS!$A24,'BASE DE DADOS'!$O:$O,GASTOS_JUROS!H$5) -> 0 | I24: =SUMIFS('BASE DE DADOS'!$N:$N,'BASE DE DADOS'!$B:$B,GASTOS_JUROS!$B$3,'BASE DE DADOS'!$G:$G,GASTOS_JUROS!$A24,'BASE DE DADOS'!$O:$O,GASTOS_JUROS!I$5) -> 0 | J24: =SUMIFS('BASE DE DADOS'!$N:$N,'BASE DE DADOS'!$B:$B,GASTOS_JUROS!$B$3,'BASE DE DADOS'!$G:$G,GASTOS_JUROS!$A24,'BASE DE DADOS'!$O:$O,GASTOS_JUROS!J$5) -> 0 | K24: =SUMIFS('BASE DE DADOS'!$N:$N,'BASE DE DADOS'!$B:$B,GASTOS_JUROS!$B$3,'BASE DE DADOS'!$G:$G,GASTOS_JUROS!$A24,'BASE DE DADOS'!$O:$O,GASTOS_JUROS!K$5) -> 0 | L24: =SUMIFS('BASE DE DADOS'!$N:$N,'BASE DE DADOS'!$B:$B,GASTOS_JUROS!$B$3,'BASE DE DADOS'!$G:$G,GASTOS_JUROS!$A24,'BASE DE DADOS'!$O:$O,GASTOS_JUROS!L$5) -> 0 | M24: =SUMIFS('BASE DE DADOS'!$N:$N,'BASE DE DADOS'!$B:$B,GASTOS_JUROS!$B$3,'BASE DE DADOS'!$G:$G,GASTOS_JUROS!$A24,'BASE DE DADOS'!$O:$O,GASTOS_JUROS!M$5) -> 0 | N24: 0
A25: PAGMAE | B25: =SUMIFS('BASE DE DADOS'!$N:$N,'BASE DE DADOS'!$B:$B,GASTOS_JUROS!$B$3,'BASE DE DADOS'!$G:$G,GASTOS_JUROS!$A25,'BASE DE DADOS'!$O:$O,GASTOS_JUROS!B$5) -> 193.55889 | C25: =SUMIFS('BASE DE DADOS'!$N:$N,'BASE DE DADOS'!$B:$B,GASTOS_JUROS!$B$3,'BASE DE DADOS'!$G:$G,GASTOS_JUROS!$A25,'BASE DE DADOS'!$O:$O,GASTOS_JUROS!C$5) -> 166.043381 | D25: =SUMIFS('BASE DE DADOS'!$N:$N,'BASE DE DADOS'!$B:$B,GASTOS_JUROS!$B$3,'BASE DE DADOS'!$G:$G,GASTOS_JUROS!$A25,'BASE DE DADOS'!$O:$O,GASTOS_JUROS!D$5) -> 201.365299 | E25: =SUMIFS('BASE DE DADOS'!$N:$N,'BASE DE DADOS'!$B:$B,GASTOS_JUROS!$B$3,'BASE DE DADOS'!$G:$G,GASTOS_JUROS!$A25,'BASE DE DADOS'!$O:$O,GASTOS_JUROS!E$5) -> 182.103663 | F25: =SUMIFS('BASE DE DADOS'!$N:$N,'BASE DE DADOS'!$B:$B,GASTOS_JUROS!$B$3,'BASE DE DADOS'!$G:$G,GASTOS_JUROS!$A25,'BASE DE DADOS'!$O:$O,GASTOS_JUROS!F$5) -> 200.71688 | G25: =SUMIFS('BASE DE DADOS'!$N:$N,'BASE DE DADOS'!$B:$B,GASTOS_JUROS!$B$3,'BASE DE DADOS'!$G:$G,GASTOS_JUROS!$A25,'BASE DE DADOS'!$O:$O,GASTOS_JUROS!G$5) -> 12.788058 | H25: =SUMIFS('BASE DE DADOS'!$N:$N,'BASE DE DADOS'!$B:$B,GASTOS_JUROS!$B$3,'BASE DE DADOS'!$G:$G,GASTOS_JUROS!$A25,'BASE DE DADOS'!$O:$O,GASTOS_JUROS!H$5) -> 223.55544 | I25: =SUMIFS('BASE DE DADOS'!$N:$N,'BASE DE DADOS'!$B:$B,GASTOS_JUROS!$B$3,'BASE DE DADOS'!$G:$G,GASTOS_JUROS!$A25,'BASE DE DADOS'!$O:$O,GASTOS_JUROS!I$5) -> 267.10017 | J25: =SUMIFS('BASE DE DADOS'!$N:$N,'BASE DE DADOS'!$B:$B,GASTOS_JUROS!$B$3,'BASE DE DADOS'!$G:$G,GASTOS_JUROS!$A25,'BASE DE DADOS'!$O:$O,GASTOS_JUROS!J$5) -> 227.847093 | K25: =SUMIFS('BASE DE DADOS'!$N:$N,'BASE DE DADOS'!$B:$B,GASTOS_JUROS!$B$3,'BASE DE DADOS'!$G:$G,GASTOS_JUROS!$A25,'BASE DE DADOS'!$O:$O,GASTOS_JUROS!K$5) -> 217.01518 | L25: =SUMIFS('BASE DE DADOS'!$N:$N,'BASE DE DADOS'!$B:$B,GASTOS_JUROS!$B$3,'BASE DE DADOS'!$G:$G,GASTOS_JUROS!$A25,'BASE DE DADOS'!$O:$O,GASTOS_JUROS!L$5) -> 0 | M25: =SUMIFS('BASE DE DADOS'!$N:$N,'BASE DE DADOS'!$B:$B,GASTOS_JUROS!$B$3,'BASE DE DADOS'!$G:$G,GASTOS_JUROS!$A25,'BASE DE DADOS'!$O:$O,GASTOS_JUROS!M$5) -> 0 | N25: 1892.094054
A26: PANMAE | B26: =SUMIFS('BASE DE DADOS'!$N:$N,'BASE DE DADOS'!$B:$B,GASTOS_JUROS!$B$3,'BASE DE DADOS'!$G:$G,GASTOS_JUROS!$A26,'BASE DE DADOS'!$O:$O,GASTOS_JUROS!B$5) -> 95.138796 | C26: =SUMIFS('BASE DE DADOS'!$N:$N,'BASE DE DADOS'!$B:$B,GASTOS_JUROS!$B$3,'BASE DE DADOS'!$G:$G,GASTOS_JUROS!$A26,'BASE DE DADOS'!$O:$O,GASTOS_JUROS!C$5) -> 84.627963 | D26: =SUMIFS('BASE DE DADOS'!$N:$N,'BASE DE DADOS'!$B:$B,GASTOS_JUROS!$B$3,'BASE DE DADOS'!$G:$G,GASTOS_JUROS!$A26,'BASE DE DADOS'!$O:$O,GASTOS_JUROS!D$5) -> 66.06808 | E26: =SUMIFS('BASE DE DADOS'!$N:$N,'BASE DE DADOS'!$B:$B,GASTOS_JUROS!$B$3,'BASE DE DADOS'!$G:$G,GASTOS_JUROS!$A26,'BASE DE DADOS'!$O:$O,GASTOS_JUROS!E$5) -> 78.129583 | F26: =SUMIFS('BASE DE DADOS'!$N:$N,'BASE DE DADOS'!$B:$B,GASTOS_JUROS!$B$3,'BASE DE DADOS'!$G:$G,GASTOS_JUROS!$A26,'BASE DE DADOS'!$O:$O,GASTOS_JUROS!F$5) -> 69.178431 | G26: =SUMIFS('BASE DE DADOS'!$N:$N,'BASE DE DADOS'!$B:$B,GASTOS_JUROS!$B$3,'BASE DE DADOS'!$G:$G,GASTOS_JUROS!$A26,'BASE DE DADOS'!$O:$O,GASTOS_JUROS!G$5) -> 107.997701 | H26: =SUMIFS('BASE DE DADOS'!$N:$N,'BASE DE DADOS'!$B:$B,GASTOS_JUROS!$B$3,'BASE DE DADOS'!$G:$G,GASTOS_JUROS!$A26,'BASE DE DADOS'!$O:$O,GASTOS_JUROS!H$5) -> 134.549621 | I26: =SUMIFS('BASE DE DADOS'!$N:$N,'BASE DE DADOS'!$B:$B,GASTOS_JUROS!$B$3,'BASE DE DADOS'!$G:$G,GASTOS_JUROS!$A26,'BASE DE DADOS'!$O:$O,GASTOS_JUROS!I$5) -> 118.583918 | J26: =SUMIFS('BASE DE DADOS'!$N:$N,'BASE DE DADOS'!$B:$B,GASTOS_JUROS!$B$3,'BASE DE DADOS'!$G:$G,GASTOS_JUROS!$A26,'BASE DE DADOS'!$O:$O,GASTOS_JUROS!J$5) -> 13.669632 | K26: =SUMIFS('BASE DE DADOS'!$N:$N,'BASE DE DADOS'!$B:$B,GASTOS_JUROS!$B$3,'BASE DE DADOS'!$G:$G,GASTOS_JUROS!$A26,'BASE DE DADOS'!$O:$O,GASTOS_JUROS!K$5) -> 88.791044 | L26: =SUMIFS('BASE DE DADOS'!$N:$N,'BASE DE DADOS'!$B:$B,GASTOS_JUROS!$B$3,'BASE DE DADOS'!$G:$G,GASTOS_JUROS!$A26,'BASE DE DADOS'!$O:$O,GASTOS_JUROS!L$5) -> 0 | M26: =SUMIFS('BASE DE DADOS'!$N:$N,'BASE DE DADOS'!$B:$B,GASTOS_JUROS!$B$3,'BASE DE DADOS'!$G:$G,GASTOS_JUROS!$A26,'BASE DE DADOS'!$O:$O,GASTOS_JUROS!M$5) -> 0 | N26: 856.734769
A27: =CONFIG!A15 -> PAN | B27: =SUMIFS('BASE DE DADOS'!$N:$N,'BASE DE DADOS'!$B:$B,GASTOS_JUROS!$B$3,'BASE DE DADOS'!$G:$G,GASTOS_JUROS!$A27,'BASE DE DADOS'!$O:$O,GASTOS_JUROS!B$5) -> 0 | C27: =SUMIFS('BASE DE DADOS'!$N:$N,'BASE DE DADOS'!$B:$B,GASTOS_JUROS!$B$3,'BASE DE DADOS'!$G:$G,GASTOS_JUROS!$A27,'BASE DE DADOS'!$O:$O,GASTOS_JUROS!C$5) -> 14.857628 | D27: =SUMIFS('BASE DE DADOS'!$N:$N,'BASE DE DADOS'!$B:$B,GASTOS_JUROS!$B$3,'BASE DE DADOS'!$G:$G,GASTOS_JUROS!$A27,'BASE DE DADOS'!$O:$O,GASTOS_JUROS!D$5) -> 0 | E27: =SUMIFS('BASE DE DADOS'!$N:$N,'BASE DE DADOS'!$B:$B,GASTOS_JUROS!$B$3,'BASE DE DADOS'!$G:$G,GASTOS_JUROS!$A27,'BASE DE DADOS'!$O:$O,GASTOS_JUROS!E$5) -> 22.931394 | F27: =SUMIFS('BASE DE DADOS'!$N:$N,'BASE DE DADOS'!$B:$B,GASTOS_JUROS!$B$3,'BASE DE DADOS'!$G:$G,GASTOS_JUROS!$A27,'BASE DE DADOS'!$O:$O,GASTOS_JUROS!F$5) -> 56.226343 | G27: =SUMIFS('BASE DE DADOS'!$N:$N,'BASE DE DADOS'!$B:$B,GASTOS_JUROS!$B$3,'BASE DE DADOS'!$G:$G,GASTOS_JUROS!$A27,'BASE DE DADOS'!$O:$O,GASTOS_JUROS!G$5) -> 18.967801 | H27: =SUMIFS('BASE DE DADOS'!$N:$N,'BASE DE DADOS'!$B:$B,GASTOS_JUROS!$B$3,'BASE DE DADOS'!$G:$G,GASTOS_JUROS!$A27,'BASE DE DADOS'!$O:$O,GASTOS_JUROS!H$5) -> 22.821459 | I27: =SUMIFS('BASE DE DADOS'!$N:$N,'BASE DE DADOS'!$B:$B,GASTOS_JUROS!$B$3,'BASE DE DADOS'!$G:$G,GASTOS_JUROS!$A27,'BASE DE DADOS'!$O:$O,GASTOS_JUROS!I$5) -> 0 | J27: =SUMIFS('BASE DE DADOS'!$N:$N,'BASE DE DADOS'!$B:$B,GASTOS_JUROS!$B$3,'BASE DE DADOS'!$G:$G,GASTOS_JUROS!$A27,'BASE DE DADOS'!$O:$O,GASTOS_JUROS!J$5) -> 41.480395 | K27: =SUMIFS('BASE DE DADOS'!$N:$N,'BASE DE DADOS'!$B:$B,GASTOS_JUROS!$B$3,'BASE DE DADOS'!$G:$G,GASTOS_JUROS!$A27,'BASE DE DADOS'!$O:$O,GASTOS_JUROS!K$5) -> 0 | L27: =SUMIFS('BASE DE DADOS'!$N:$N,'BASE DE DADOS'!$B:$B,GASTOS_JUROS!$B$3,'BASE DE DADOS'!$G:$G,GASTOS_JUROS!$A27,'BASE DE DADOS'!$O:$O,GASTOS_JUROS!L$5) -> 0 | M27: =SUMIFS('BASE DE DADOS'!$N:$N,'BASE DE DADOS'!$B:$B,GASTOS_JUROS!$B$3,'BASE DE DADOS'!$G:$G,GASTOS_JUROS!$A27,'BASE DE DADOS'!$O:$O,GASTOS_JUROS!M$5) -> 0 | N27: 177.28502
A29: TOTAIS | B29: =SUM(B7:B27) -> 1121.477996 | C29: =SUM(C7:C27) -> 1159.873929 | D29: 1142.579959 | E29: 1261.672692 | F29: 1310.357494 | G29: 1215.754892 | H29: 1540.605358 | I29: 1188.167708 | J29: 1426.435032 | K29: 1361.523419 | L29: 0 | M29: 0 | N29: =SUM(N7:N27) -> 12728.44848

Sheet BASE DE DADOS
A1: ID | B1: TIPO | C1: PARCELA | D1: DESCRIÇÃO | E1: REFERENTE | F1: APP | G1: CARTÃO | H1: FORMA | I1: TAXA | J1: DATA DA VENDA | K1: DATA | L1: VALOR PAGO | M1: TOTAL BRUTO | N1: JUROS | O1: MÊS | P1: ano
A2: 1 | B2: GASTOS | C2: 08 DE 10 | D2: NOTEBOOK | E2: JUNIOR | F2: GERAL | G2: INTER | H2: CRÉDITO PARCELADO | I2: =VLOOKUP(tbldados[[#This Row],[APP]],tblbandeira[],3,0) -> 0 | J2: 44330 | K2: 44576 | L2: 349.9 | M2: =tbldados[[#This Row],[VALOR PAGO]]+(tbldados[[#This Row],[VALOR PAGO]]*tbldados[[#This Row],[TAXA]]) -> 349.9 | N2: =tbldados[[#This Row],[TOTAL BRUTO]]-tbldados[[#This Row],[VALOR PAGO]] -> 0 | O2: =CHOOSE(MONTH(tbldados[[#This Row],[DATA]]),"JANEIRO","FEVEREIRO","MARÇO","ABRIL","MAIO","JUNHO","JULHO","AGOSTO","SETEMBRO","OUTUBRO","NOVEMBRO","DEZEMBRO") -> JANEIRO | P2: =YEAR(tbldados[[#This Row],[DATA]]) -> 2022
A3: 2 | B3: GASTOS | C3: 09 DE 10 | D3: NOTEBOOK | E3: JUNIOR | F3: GERAL | G3: INTER | H3: CRÉDITO PARCELADO | I3: =VLOOKUP(tbldados[[#This Row],[APP]],tblbandeira[],3,0) -> 0 | J3: 44330 | K3: 44607 | L3: 349.9 | M3: =tbldados[[#This Row],[VALOR PAGO]]+(tbldados[[#This Row],[VALOR PAGO]]*tbldados[[#This Row],[TAXA]]) -> 349.9 | N3: =tbldados[[#This Row],[TOTAL BRUTO]]-tbldados[[#This Row],[VALOR PAGO]] -> 0 | O3: =CHOOSE(MONTH(tbldados[[#This Row],[DATA]]),"JANEIRO","FEVEREIRO","MARÇO","ABRIL","MAIO","JUNHO","JULHO","AGOSTO","SETEMBRO","OUTUBRO","NOVEMBRO","DEZEMBRO") -> FEVEREIRO | P3: =YEAR(tbldados[[#This Row],[DATA]]) -> 2022
A4: 3 | B4: GASTOS | C4: 10 DE 10 | D4: NOTEBOOK | E4: JUNIOR | F4: GERAL | G4: INTER | H4: CRÉDITO PARCELADO | I4: =VLOOKUP(tbldados[[#This Row],[APP]],tblbandeira[],3,0) -> 0 | J4: 44330 | K4: 44635 | L4: 349.9 | M4: =tbldados[[#This Row],[VALOR PAGO]]+(tbldados[[#This Row],[VALOR PAGO]]*tbldados[[#This Row],[TAXA]]) -> 349.9 | N4: =tbldados[[#This Row],[TOTAL BRUTO]]-tbldados[[#This Row],[VALOR PAGO]] -> 0 | O4: =CHOOSE(MONTH(tbldados[[#This Row],[DATA]]),"JANEIRO","FEVEREIRO","MARÇO","ABRIL","MAIO","JUNHO","JULHO","AGOSTO","SETEMBRO","OUTUBRO","NOVEMBRO","DEZEMBRO") -> MARÇO | P4: =YEAR(tbldados[[#This Row],[DATA]]) -> 2022
A5: 4 | B5: GASTOS | C5: 06 DE 06 | D5: ROTEADOR | E5: JUNIOR | F5: GERAL | G5: PAN | H5: CREDITO PARCELADO | I5: =VLOOKUP(tbldados[[#This Row],[APP]],tblbandeira[],3,0) -> 0 | J5: 44394 | K5: 44574 | L5: 50 | M5: =tbldados[[#This Row],[VALOR PAGO]]+(tbldados[[#This Row],[VALOR PAGO]]*tbldados[[#This Row],[TAXA]]) -> 50 | N5: =tbldados[[#This Row],[TOTAL BRUTO]]-tbldados[[#This Row],[VALOR PAGO]] -> 0 | O5: =CHOOSE(MONTH(tbldados[[#This Row],[DATA]]),"JANEIRO","FEVEREIRO","MARÇO","ABRIL","MAIO","JUNHO","JULHO","AGOSTO","SETEMBRO","OUTUBRO","NOVEMBRO","DEZEMBRO") -> JANEIRO | P5: =YEAR(tbldados[[#This Row],[DATA]]) -> 2022
A6: 5 | B6: GASTOS | C6: 02 DE 03 | D6: SUPERMERCADO | E6: JUNIOR | F6: GERAL | G6: C6 | H6: CREDITO PARCELADO | I6: =VLOOKUP(tbldados[[#This Row],[APP]],tblbandeira[],3,0) -> 0 | J6: 44493 | K6: 44562 | L6: 140.33 | M6: =tbldados[[#This Row],[VALOR PAGO]]+(tbldados[[#This Row],[VALOR PAGO]]*tbldados[[#This Row],[TAXA]]) -> 140.33 | N6: =tbldados[[#This Row],[TOTAL BRUTO]]-tbldados[[#This Row],[VALOR PAGO]] -> 0 | O6: =CHOOSE(MONTH(tbldados[[#This Row],[DATA]]),"JANEIRO","FEVEREIRO","MARÇO","ABRIL","MAIO","JUNHO","JULHO","AGOSTO","SETEMBRO","OUTUBRO","NOVEMBRO","DEZEMBRO") -> JANEIRO | P6: =YEAR(tbldados[[#This Row],[DATA]]) -> 2022
A7: 6 | B7: GASTOS | C7: 03 DE 03 | D7: SUPERMERCADO | E7: JUNIOR | F7: GERAL | G7: C6 | H7: CREDITO PARCELADO | I7: =VLOOKUP(tbldados[[#This Row],[APP]],tblbandeira[],3,0) -> 0 | J7: 44493 | K7: 44593 | L7: 140.33 | M7: =tbldados[[#This Row],[VALOR PAGO]]+(tbldados[[#This Row],[VALOR PAGO]]*tbldados[[#This Row],[TAXA]]) -> 140.33 | N7: =tbldados[[#This Row],[TOTAL BRUTO]]-tbldados[[#This Row],[VALOR PAGO]] -> 0 | O7: =CHOOSE(MONTH(tbldados[[#This Row],[DATA]]),"JANEIRO","FEVEREIRO","MARÇO","ABRIL","MAIO","JUNHO","JULHO","AGOSTO","SETEMBRO","OUTUBRO","NOVEMBRO","DEZEMBRO") -> FEVEREIRO | P7: =YEAR(tbldados[[#This Row],[DATA]]) -> 2022
A8: 7 | B8: GASTOS | C8: 01 DE 01 | D8: JUROS | E8: JUNIOR | F8: GERAL | G8: INTER | H8: CREDITO A VISTA | I8: =VLOOKUP(tbldados[[#This Row],[APP]],tblbandeira[],3,0) -> 0 | J8: 44534 | K8: 44576 | L8: 19.99 | M8: =tbldados[[#This Row],[VALOR PAGO]]+(tbldados[[#This Row],[VALOR PAGO]]*tbldados[[#This Row],[TAXA]]) -> 19.99 | N8: =tbldados[[#This Row],[TOTAL BRUTO]]-tbldados[[#This Row],[VALOR PAGO]] -> 0 | O8: =CHOOSE(MONTH(tbldados[[#This Row],[DATA]]),"JANEIRO","FEVEREIRO","MARÇO","ABRIL","MAIO","JUNHO","JULHO","AGOSTO","SETEMBRO","OUTUBRO","NOVEMBRO","DEZEMBRO") -> JANEIRO | P8: =YEAR(tbldados[[#This Row],[DATA]]) -> 2022
A9: 8 | B9: GASTOS | C9: 01 DE 09 | D9: LIVROS | E9: JUNIOR | F9: GERAL | G9: C6 | H9: CREDITO PARCELADO | I9: =VLOOKUP(tbldados[[#This Row],[APP]],tblbandeira[],3,0) -> 0 | J9: 44519 | K9: 44562 | L9: 30.69 | M9: =tbldados[[#This Row],[VALOR PAGO]]+(tbldados[[#This Row],[VALOR PAGO]]*tbldados[[#This Row],[TAXA]]) -> 30.69 | N9: =tbldados[[#This Row],[TOTAL BRUTO]]-tbldados[[#This Row],[VALOR PAGO]] -> 0 | O9: =CHOOSE(MONTH(tbldados[[#This Row],[DATA]]),"JANEIRO","FEVEREIRO","MARÇO","ABRIL","MAIO","JUNHO","JULHO","AGOSTO","SETEMBRO","OUTUBRO","NOVEMBRO","DEZEMBRO") -> JANEIRO | P9: =YEAR(tbldados[[#This Row],[DATA]]) -> 2022
A10: 9 | B10: GASTOS | C10: 02 DE 09 | D10: LIVROS | E10: JUNIOR | F10: GERAL | G10: C6 | H10: CREDITO PARCELADO | I10: =VLOOKUP(tbldados[[#This Row],[APP]],tblbandeira[],3,0) -> 0 | J10: 44519 | K10: 44593 | L10: 30.69 | M10: =tbldados[[#This Row],[VALOR PAGO]]+(tbldados[[#This Row],[VALOR PAGO]]*tbldados[[#This Row],[TAXA]]) -> 30.69 | N10: =tbldados[[#This Row],[TOTAL BRUTO]]-tbldados[[#This Row],[VALOR PAGO]] -> 0 | O10: =CHOOSE(MONTH(tbldados[[#This Row],[DATA]]),"JANEIRO","FEVEREIRO","MARÇO","ABRIL","MAIO","JUNHO","JULHO","AGOSTO","SETEMBRO","OUTUBRO","NOVEMBRO","DEZEMBRO") -> FEVEREIRO | P10: =YEAR(tbldados[[#This Row],[DATA]]) -> 2022
A11: 10 | B11: GASTOS | C11: 03 DE 09 | D11: LIVROS | E11: JUNIOR | F11: GERAL | G11: C6 | H11: CREDITO PARCELADO | I11: =VLOOKUP(tbldados[[#This Row],[APP]],tblbandeira[],3,0) -> 0 | J11: 44519 | K11: 44621 | L11: 30.69 | M11: =tbldados[[#This Row],[VALOR PAGO]]+(tbldados[[#This Row],[VALOR PAGO]]*tbldados[[#This Row],[TAXA]]) -> 30.69 | N11: =tbldados[[#This Row],[TOTAL BRUTO]]-tbldados[[#This Row],[VALOR PAGO]] -> 0 | O11: =CHOOSE(MONTH(tbldados[[#This Row],[DATA]]),"JANEIRO","FEVEREIRO","MARÇO","ABRIL","MAIO","JUNHO","JULHO","AGOSTO","SETEMBRO","OUTUBRO","NOVEMBRO","DEZEMBRO") -> MARÇO | P11: =YEAR(tbldados[[#This Row],[DATA]]) -> 2022
A12: 11 | B12: GASTOS | C12: 04 DE 09 | D12: LIVROS | E12: JUNIOR | F12: GERAL | G12: C6 | H12: CREDITO PARCELADO | I12: =VLOOKUP(tbldados[[#This Row],[APP]],tblbandeira[],3,0) -> 0 | J12: 44519 | K12: 44652 | L12: 30.69 | M12: =tbldados[[#This Row],[VALOR PAGO]]+(tbldados[[#This Row],[VALOR PAGO]]*tbldados[[#This Row],[TAXA]]) -> 30.69 | N12: =tbldados[[#This Row],[TOTAL BRUTO]]-tbldados[[#This Row],[VALOR PAGO]] -> 0 | O12: =CHOOSE(MONTH(tbldados[[#This Row],[DATA]]),"JANEIRO","FEVEREIRO","MARÇO","ABRIL","MAIO","JUNHO","JULHO","AGOSTO","SETEMBRO","OUTUBRO","NOVEMBRO","DEZEMBRO") -> ABRIL | P12: =YEAR(tbldados[[#This Row],[DATA]]) -> 2022
A13: 12 | B13: GASTOS | C13: 05 DE 09 | D13: LIVROS | E13: JUNIOR | F13: GERAL | G13: C6 | H13: CREDITO PARCELADO | I13: =VLOOKUP(tbldados[[#This Row],[APP]],tblbandeira[],3,0) -> 0 | J13: 44519 | K13: 44682 | L13: 30.69 | M13: =tbldados[[#This Row],[VALOR PAGO]]+(tbldados[[#This Row],[VALOR PAGO]]*tbldados[[#This Row],[TAXA]]) -> 30.69 | N13: =tbldados[[#This Row],[TOTAL BRUTO]]-tbldados[[#This Row],[VALOR PAGO]] -> 0 | O13: =CHOOSE(MONTH(tbldados[[#This Row],[DATA]]),"JANEIRO","FEVEREIRO","MARÇO","ABRIL","MAIO","JUNHO","JULHO","AGOSTO","SETEMBRO","OUTUBRO","NOVEMBRO","DEZEMBRO") -> MAIO | P13: =YEAR(tbldados[[#This Row],[DATA]]) -> 2022
A14: 13 | B14: GASTOS | C14: 06 DE 09 | D14: LIVROS | E14: JUNIOR | F14: GERAL | G14: C6 | H14: CREDITO PARCELADO | I14: =VLOOKUP(tbldados[[#This Row],[APP]],tblbandeira[],3,0) -> 0 | J14: 44519 | K14: 44713 | L14: 30.69 | M14: =tbldados[[#This Row],[VALOR PAGO]]+(tbldados[[#This Row],[VALOR PAGO]]*tbldados[[#This Row],[TAXA]]) -> 30.69 | N14: =tbldados[[#This Row],[TOTAL BRUTO]]-tbldados[[#This Row],[VALOR PAGO]] -> 0 | O14: =CHOOSE(MONTH(tbldados[[#This Row],[DATA]]),"JANEIRO","FEVEREIRO","MARÇO","ABRIL","MAIO","JUNHO","JULHO","AGOSTO","SETEMBRO","OUTUBRO","NOVEMBRO","DEZEMBRO") -> JUNHO | P14: =YEAR(tbldados[[#This Row],[DATA]]) -> 2022
A15: 14 | B15: GASTOS | C15: 07 DE 09 | D15: LIVROS | E15: JUNIOR | F15: GERAL | G15: C6 | H15: CREDITO PARCELADO | I15: =VLOOKUP(tbldados[[#This Row],[APP]],tblbandeira[],3,0) -> 0 | J15: 44519 | K15: 44743 | L15: 30.69 | M15: =tbldados[[#This Row],[VALOR PAGO]]+(tbldados[[#This Row],[VALOR PAGO]]*tbldados[[#This Row],[TAXA]]) -> 30.69 | N15: =tbldados[[#This Row],[TOTAL BRUTO]]-tbldados[[#This Row],[VALOR PAGO]] -> 0 | O15: =CHOOSE(MONTH(tbldados[[#This Row],[DATA]]),"JANEIRO","FEVEREIRO","MARÇO","ABRIL","MAIO","JUNHO","JULHO","AGOSTO","SETEMBRO","OUTUBRO","NOVEMBRO","DEZEMBRO") -> JULHO | P15: =YEAR(tbldados[[#This Row],[DATA]]) -> 2022
A16: 15 | B16: GASTOS | C16: 08 DE 09 | D16: LIVROS | E16: JUNIOR | F16: GERAL | G16: C6 | H16: CREDITO PARCELADO | I16: =VLOOKUP(tbldados[[#This Row],[APP]],tblbandeira[],3,0) -> 0 | J16: 44519 | K16: 44774 | L16: 30.69 | M16: =tbldados[[#This Row],[VALOR PAGO]]+(tbldados[[#This Row],[VALOR PAGO]]*tbldados[[#This Row],[TAXA]]) -> 30.69 | N16: =tbldados[[#This Row],[TOTAL BRUTO]]-tbldados[[#This Row],[VALOR PAGO]] -> 0 | O16: =CHOOSE(MONTH(tbldados[[#This Row],[DATA]]),"JANEIRO","FEVEREIRO","MARÇO","ABRIL","MAIO","JUNHO","JULHO","AGOSTO","SETEMBRO","OUTUBRO","NOVEMBRO","DEZEMBRO") -> AGOSTO | P16: =YEAR(tbldados[[#This Row],[DATA]]) -> 2022
A17: 16 | B17: GASTOS | C17: 09 DE 09 | D17: LIVROS | E17: JUNIOR | F17: GERAL | G17: C6 | H17: CREDITO PARCELADO | I17: =VLOOKUP(tbldados[[#This Row],[APP]],tblbandeira[],3,0) -> 0 | J17: 44519 | K17: 44805 | L17: 30.69 | M17: =tbldados[[#This Row],[VALOR PAGO]]+(tbldados[[#This Row],[VALOR PAGO]]*tbldados[[#This Row],[TAXA]]) -> 30.69 | N17: =tbldados[[#This Row],[TOTAL BRUTO]]-tbldados[[#This Row],[VALOR PAGO]] -> 0 | O17: =CHOOSE(MONTH(tbldados[[#This Row],[DATA]]),"JANEIRO","FEVEREIRO","MARÇO","ABRIL","MAIO","JUNHO","JULHO","AGOSTO","SETEMBRO","OUTUBRO","NOVEMBRO","DEZEMBRO") -> SETEMBRO | P17: =YEAR(tbldados[[#This Row],[DATA]]) -> 2022
A18: 17 | B18: GASTOS | C18: 01 DE 01 | D18: ÁGUA | E18: JUNIOR | F18: GERAL | G18: MELIUZ | H18: CREDITO A VISTA | I18: =VLOOKUP(tbldados[[#This Row],[APP]],tblbandeira[],3,0) -> 0 | J18: 44525 | K18: 44562 | L18: 10 | M18: =tbldados[[#This Row],[VALOR PAGO]]+(tbldados[[#This Row],[VALOR PAGO]]*tbldados[[#This Row],[TAXA]]) -> 10 | N18: =tbldados[[#This Row],[TOTAL BRUTO]]-tbldados[[#This Row],[VALOR PAGO]] -> 0 | O18: =CHOOSE(MONTH(tbldados[[#This Row],[DATA]]),"JANEIRO","FEVEREIRO","MARÇO","ABRIL","MAIO","JUNHO","JULHO","AGOSTO","SETEMBRO","OUTUBRO","NOVEMBRO","DEZEMBRO") -> JANEIRO | P18: =YEAR(tbldados[[#This Row],[DATA]]) -> 2022
A19: 18 | B19: GASTOS | C19: 01 DE 02 | D19: SHORTS | E19: JUNIOR | F19: GERAL | G19: C6 | H19: CREDITO PARCELADO | I19: =VLOOKUP(tbldados[[#This Row],[APP]],tblbandeira[],3,0) -> 0 | J19: 44529 | K19: 44562 | L19: 49.99 | M19: =tbldados[[#This Row],[VALOR PAGO]]+(tbldados[[#This Row],[VALOR PAGO]]*tbldados[[#This Row],[TAXA]]) -> 49.99 | N19: =tbldados[[#This Row],[TOTAL BRUTO]]-tbldados[[#This Row],[VALOR PAGO]] -> 0 | O19: =CHOOSE(MONTH(tbldados[[#This Row],[DATA]]),"JANEIRO","FEVEREIRO","MARÇO","ABRIL","MAIO","JUNHO","JULHO","AGOSTO","SETEMBRO","OUTUBRO","NOVEMBRO","DEZEMBRO") -> JANEIRO | P19: =YEAR(tbldados[[#This Row],[DATA]]) -> 2022
A20: 19 | B20: GASTOS | C20: 02 DE 02 | D20: SHORTS | E20: JUNIOR | F20: GERAL | G20: C6 | H20: CREDITO PARCELADO | I20: =VLOOKUP(tbldados[[#This Row],[APP]],tblbandeira[],3,0) -> 0 | J20: 44529 | K20: 44593 | L20: 49.99 | M20: =tbldados[[#This Row],[VALOR PAGO]]+(tbldados[[#This Row],[VALOR PAGO]]*tbldados[[#This Row],[TAXA]]) -> 49.99 | N20: =tbldados[[#This Row],[TOTAL BRUTO]]-tbldados[[#This Row],[VALOR PAGO]] -> 0 | O20: =CHOOSE(MONTH(tbldados[[#This Row],[DATA]]),"JANEIRO","FEVEREIRO","MARÇO","ABRIL","MAIO","JUNHO","JULHO","AGOSTO","SETEMBRO","OUTUBRO","NOVEMBRO","DEZEMBRO") -> FEVEREIRO | P20: =YEAR(tbldados[[#This Row],[DATA]]) -> 2022
A21: 20 | B21: PGTO | C21: 01 DE 01 | D21: C6 | E21: DEZEMBRO | F21: RECARGAPAY | G21: MELIUZ | H21: CREDITO A VISTA | I21: =VLOOKUP(tbldados[[#This Row],[APP]],tblbandeira[],3,0) -> 0.0349 | J21: 44531 | K21: 44562 | L21: 413.51 | M21: =tbldados[[#This Row],[VALOR PAGO]]+(tbldados[[#This Row],[VALOR PAGO]]*tbldados[[#This Row],[TAXA]]) -> 427.941499 | N21: =tbldados[[#This Row],[TOTAL BRUTO]]-tbldados[[#This Row],[VALOR PAGO]] -> 14.431499 | O21: =CHOOSE(MONTH(tbldados[[#This Row],[DATA]]),"JANEIRO","FEVEREIRO","MARÇO","ABRIL","MAIO","JUNHO","JULHO","AGOSTO","SETEMBRO","OUTUBRO","NOVEMBRO","DEZEMBRO") -> JANEIRO | P21: =YEAR(tbldados[[#This Row],[DATA]]) -> 2022
A22: 21 | B22: GASTOS | C22: 01 DE 01 | D22: PGTOC62 | E22: JUNIOR | F22: RECARGAPAY | G22: MELIUZ | H22: CREDITO A VISTA | I22: =VLOOKUP(tbldados[[#This Row],[APP]],tblbandeira[],3,0) -> 0.0349 | J22: 44531 | K22: 44562 | L22: 413.51 | M22: =tbldados[[#This Row],[VALOR PAGO]]+(tbldados[[#This Row],[VALOR PAGO]]*tbldados[[#This Row],[TAXA]]) -> 427.941499 | N22: =tbldados[[#This Row],[TOTAL BRUTO]]-tbldados[[#This Row],[VALOR PAGO]] -> 14.431499 | O22: =CHOOSE(MONTH(tbldados[[#This Row],[DATA]]),"JANEIRO","FEVEREIRO","MARÇO","ABRIL","MAIO","JUNHO","JULHO","AGOSTO","SETEMBRO","OUTUBRO","NOVEMBRO","DEZEMBRO") -> JANEIRO | P22: =YEAR(tbldados[[#This Row],[DATA]]) -> 2022
A23: 22 | B23: GASTOS | C23: 01 DE 01 | D23: NETFLIX | E23: JUNIOR | F23: GERAL | G23: C6 | H23: CREDITO A VISTA | I23: =VLOOKUP(tbldados[[#This Row],[APP]],tblbandeira[],3,0) -> 0 | J23: 44525 | K23: 44562 | L23: 55.9 | M23: =tbldados[[#This Row],[VALOR PAGO]]+(tbldados[[#This Row],[VALOR PAGO]]*tbldados[[#This Row],[TAXA]]) -> 55.9 | N23: =tbldados[[#This Row],[TOTAL BRUTO]]-tbldados[[#This Row],[VALOR PAGO]] -> 0 | O23: =CHOOSE(MONTH(tbldados[[#This Row],[DATA]]),"JANEIRO","FEVEREIRO","MARÇO","ABRIL","MAIO","JUNHO","JULHO","AGOSTO","SETEMBRO","OUTUBRO","NOVEMBRO","DEZEMBRO") -> JANEIRO | P23: =YEAR(tbldados[[#This Row],[DATA]]) -> 2022
A24: 23 | B24: GASTOS | C24: 01 DE 01 | D24: SUPERMERCADO | E24: JUNIOR | F24: GERAL | G24: MELIUZ | H24: CREDITO A VISTA | I24: =VLOOKUP(tbldados[[#This Row],[APP]],tblbandeira[],3,0) -> 0 | J24: 44520 | K24: 44562 | L24: 95.76 | M24: =tbldados[[#This Row],[VALOR PAGO]]+(tbldados[[#This Row],[VALOR PAGO]]*tbldados[[#This Row],[TAXA]]) -> 95.76 | N24: =tbldados[[#This Row],[TOTAL BRUTO]]-tbldados[[#This Row],[VALOR PAGO]] -> 0 | O24: =CHOOSE(MONTH(tbldados[[#This Row],[DATA]]),"JANEIRO","FEVEREIRO","MARÇO","ABRIL","MAIO","JUNHO","JULHO","AGOSTO","SETEMBRO","OUTUBRO","NOVEMBRO","DEZEMBRO") -> JANEIRO | P24: =YEAR(tbldados[[#This Row],[DATA]]) -> 2022
A25: 24 | B25: PGTO | C25: 01 DE 01 | D25: ZERO | E25: DEZEMBRO | F25: RECARGAPAY | G25: C6 | H25: CREDITO A VISTA | I25: =VLOOKUP(tbldados[[#This Row],[APP]],tblbandeira[],3,0) -> 0.0349 | J25: 44532 | K25: 44562 | L25: 702.01 | M25: =tbldados[[#This Row],[VALOR PAGO]]+(tbldados[[#This Row],[VALOR PAGO]]*tbldados[[#This Row],[TAXA]]) -> 726.510149 | N25: =tbldados[[#This Row],[TOTAL BRUTO]]-tbldados[[#This Row],[VALOR PAGO]] -> 24.500149 | O25: =CHOOSE(MONTH(tbldados[[#This Row],[DATA]]),"JANEIRO","FEVEREIRO","MARÇO","ABRIL","MAIO","JUNHO","JULHO","AGOSTO","SETEMBRO","OUTUBRO","NOVEMBRO","DEZEMBRO") -> JANEIRO | P25: =YEAR(tbldados[[#This Row],[DATA]]) -> 2022
A26: 25 | B26: GASTOS | C26: 01 DE 01 | D26: PGTOZERO1 | E26: JUNIOR | F26: RECARGAPAY | G26: C6 | H26: CREDITO A VISTA | I26: =VLOOKUP(tbldados[[#This Row],[APP]],tblbandeira[],3,0) -> 0.0349 | J26: 44532 | K26: 44562 | L26: 702.01 | M26: =tbldados[[#This Row],[VALOR PAGO]]+(tbldados[[#This Row],[VALOR PAGO]]*tbldados[[#This Row],[TAXA]]) -> 726.510149 | N26: =tbldados[[#This Row],[TOTAL BRUTO]]-tbldados[[#This Row],[VALOR PAGO]] -> 24.500149 | O26: =CHOOSE(MONTH(tbldados[[#This Row],[DATA]]),"JANEIRO","FEVEREIRO","MARÇO","ABRIL","MAIO","JUNHO","JULHO","AGOSTO","SETEMBRO","OUTUBRO","NOVEMBRO","DEZEMBRO") -> JANEIRO | P26: =YEAR(tbldados[[#This Row],[DATA]]) -> 2022
A27: 26 | B27: PGTO | C27: 01 DE 01 | D27: ZERO | E27: DEZEMBRO | F27: RECARGAPAY | G27: MELIUZ | H27: CREDITO A VISTA | I27: =VLOOKUP(tbldados[[#This Row],[APP]],tblbandeira[],3,0) -> 0.0349 | J27: 44532 | K27: 44562 | L27: 454.77 | M27: =tbldados[[#This Row],[VALOR PAGO]]+(tbldados[[#This Row],[VALOR PAGO]]*tbldados[[#This Row],[TAXA]]) -> 470.641473 | N27: =tbldados[[#This Row],[TOTAL BRUTO]]-tbldados[[#This Row],[VALOR PAGO]] -> 15.871473 | O27: =CHOOSE(MONTH(tbldados[[#This Row],[DATA]]),"JANEIRO","FEVEREIRO","MARÇO","ABRIL","MAIO","JUNHO","JULHO","AGOSTO","SETEMBRO","OUTUBRO","NOVEMBRO","DEZEMBRO") -> JANEIRO | P27: =YEAR(tbldados[[#This Row],[DATA]]) -> 2022
A28: 27 | B28: GASTOS | C28: 01 DE 01 | D28: PGTOZERO2 | E28: JUNIOR | F28: RECARGAPAY | G28: MELIUZ | H28: CREDITO A VISTA | I28: =VLOOKUP(tbldados[[#This Row],[APP]],tblbandeira[],3,0) -> 0.0349 | J28: 44532 | K28: 44562 | L28: 454.77 | M28: =tbldados[[#This Row],[VALOR PAGO]]+(tbldados[[#This Row],[VALOR PAGO]]*tbldados[[#This Row],[TAXA]]) -> 470.641473 | N28: =tbldados[[#This Row],[TOTAL BRUTO]]-tbldados[[#This Row],[VALOR PAGO]] -> 15.871473 | O28: =CHOOSE(MONTH(tbldados[[#This Row],[DATA]]),"JANEIRO","FEVEREIRO","MARÇO","ABRIL","MAIO","JUNHO","JULHO","AGOSTO","SETEMBRO","OUTUBRO","NOVEMBRO","DEZEMBRO") -> JANEIRO | P28: =YEAR(tbldados[[#This Row],[DATA]]) -> 2022
A29: 28 | B29: PGTO | C29: 01 DE 01 | D29: ZERO | E29: DEZEMBRO | F29: RECARGAPAY | G29: ORIGINAL | H29: CREDITO A VISTA | I29: =VLOOKUP(tbldados[[#This Row],[APP]],tblbandeira[],3,0) -> 0.0349 | J29: 44532 | K29: 44571 | L29: 242.74 | M29: =tbldados[[#This Row],[VALOR PAGO]]+(tbldados[[#This Row],[VALOR PAGO]]*tbldados[[#This Row],[TAXA]]) -> 251.211626 | N29: =tbldados[[#This Row],[TOTAL BRUTO]]-tbldados[[#This Row],[VALOR PAGO]] -> 8.471626 | O29: =CHOOSE(MONTH(tbldados[[#This Row],[DATA]]),"JANEIRO","FEVEREIRO","MARÇO","ABRIL","MAIO","JUNHO","JULHO","AGOSTO","SETEMBRO","OUTUBRO","NOVEMBRO","DEZEMBRO") -> JANEIRO | P29: =YEAR(tbldados[[#This Row],[DATA]]) -> 2022
A30: 29 | B30: GASTOS | C30: 01 DE 01 | D30: PGTOZERO3 | E30: JUNIOR | F30: RECARGAPAY | G30: ORIGINAL | H30: CREDITO A VISTA | I30: =VLOOKUP(tbldados[[#This Row],[APP]],tblbandeira[],3,0) -> 0.0349 | J30: 44532 | K30: 44571 | L30: 242.74 | M30: =tbldados[[#This Row],[VALOR PAGO]]+(tbldados[[#This Row],[VALOR PAGO]]*tbldados[[#This Row],[TAXA]]) -> 251.211626 | N30: =tbldados[[#This Row],[TOTAL BRUTO]]-tbldados[[#This Row],[VALOR PAGO]] -> 8.471626 | O30: =CHOOSE(MONTH(tbldados[[#This Row],[DATA]]),"JANEIRO","FEVEREIRO","MARÇO","ABRIL","MAIO","JUNHO","JULHO","AGOSTO","SETEMBRO","OUTUBRO","NOVEMBRO","DEZEMBRO") -> JANEIRO | P30: =YEAR(tbldados[[#This Row],[DATA]]) -> 2022
A31: 30 | B31: PGTO | C31: 01 DE 01 | D31: ZERO | E31: DEZEMBRO | F31: RECARGAPAY | G31: C6 | H31: CREDITO A VISTA | I31: =VLOOKUP(tbldados[[#This Row],[APP]],tblbandeira[],3,0) -> 0.0349 | J31: 44532 | K31: 44562 | L31: 249.16 | M31: =tbldados[[#This Row],[VALOR PAGO]]+(tbldados[[#This Row],[VALOR PAGO]]*tbldados[[#This Row],[TAXA]]) -> 257.855684 | N31: =tbldados[[#This Row],[TOTAL BRUTO]]-tbldados[[#This Row],[VALOR PAGO]] -> 8.695684 | O31: =CHOOSE(MONTH(tbldados[[#This Row],[DATA]]),"JANEIRO","FEVEREIRO","MARÇO","ABRIL","MAIO","JUNHO","JULHO","AGOSTO","SETEMBRO","OUTUBRO","NOVEMBRO","DEZEMBRO") -> JANEIRO | P31: =YEAR(tbldados[[#This Row],[DATA]]) -> 2022
A32: 31 | B32: GASTOS | C32: 01 DE 01 | D32: PGTOZERO4 | E32: JUNIOR | F32: RECARGAPAY | G32: ZERO | H32: CREDITO A VISTA | I32: =VLOOKUP(tbldados[[#This Row],[APP]],tblbandeira[],3,0) -> 0.0349 | J32: 44532 | K32: 44564 | L32: 249.16 | M32: =tbldados[[#This Row],[VALOR PAGO]]+(tbldados[[#This Row],[VALOR PAGO]]*tbldados[[#This Row],[TAXA]]) -> 257.855684 | N32: =tbldados[[#This Row],[TOTAL BRUTO]]-tbldados[[#This Row],[VALOR PAGO]] -> 8.695684 | O32: =CHOOSE(MONTH(tbldados[[#This Row],[DATA]]),"JANEIRO","FEVEREIRO","MARÇO","ABRIL","MAIO","JUNHO","JULHO","AGOSTO","SETEMBRO","OUTUBRO","NOVEMBRO","DEZEMBRO") -> JANEIRO | P32: =YEAR(tbldados[[#This Row],[DATA]]) -> 2022
A33: 32 | B33: GASTOS | C33: 01 DE 12 | D33: JUROSAZUL | E33: JUNIOR | F33: GERAL | G33: C6 | H33: CREDITO PARCELADO | I33: =VLOOKUP(tbldados[[#This Row],[APP]],tblbandeira[],3,0) -> 0 | J33: 44533 | K33: 44562 | L33: 156.07 | M33: =tbldados[[#This Row],[VALOR PAGO]]+(tbldados[[#This Row],[VALOR PAGO]]*tbldados[[#This Row],[TAXA]]) -> 156.07 | N33: =tbldados[[#This Row],[TOTAL BRUTO]]-tbldados[[#This Row],[VALOR PAGO]] -> 0 | O33: =CHOOSE(MONTH(tbldados[[#This Row],[DATA]]),"JANEIRO","FEVEREIRO","MARÇO","ABRIL","MAIO","JUNHO","JULHO","AGOSTO","SETEMBRO","OUTUBRO","NOVEMBRO","DEZEMBRO") -> JANEIRO | P33: =YEAR(tbldados[[#This Row],[DATA]]) -> 2022
A34: 33 | B34: GASTOS | C34: 02 DE 12 | D34: JUROSAZUL | E34: JUNIOR | F34: GERAL | G34: C6 | H34: CREDITO PARCELADO | I34: =VLOOKUP(tbldados[[#This Row],[APP]],tblbandeira[],3,0) -> 0 | J34: 44533 | K34: 44593 | L34: 156.07 | M34: =tbldados[[#This Row],[VALOR PAGO]]+(tbldados[[#This Row],[VALOR PAGO]]*tbldados[[#This Row],[TAXA]]) -> 156.07 | N34: =tbldados[[#This Row],[TOTAL BRUTO]]-tbldados[[#This Row],[VALOR PAGO]] -> 0 | O34: =CHOOSE(MONTH(tbldados[[#This Row],[DATA]]),"JANEIRO","FEVEREIRO","MARÇO","ABRIL","MAIO","JUNHO","JULHO","AGOSTO","SETEMBRO","OUTUBRO","NOVEMBRO","DEZEMBRO") -> FEVEREIRO | P34: =YEAR(tbldados[[#This Row],[DATA]]) -> 2022
A35: 34 | B35: GASTOS | C35: 03 DE 12 | D35: JUROSAZUL | E35: JUNIOR | F35: GERAL | G35: C6 | H35: CREDITO PARCELADO | I35: =VLOOKUP(tbldados[[#This Row],[APP]],tblbandeira[],3,0) -> 0 | J35: 44533 | K35: 44621 | L35: 156.07 | M35: =tbldados[[#This Row],[VALOR PAGO]]+(tbldados[[#This Row],[VALOR PAGO]]*tbldados[[#This Row],[TAXA]]) -> 156.07 | N35: =tbldados[[#This Row],[TOTAL BRUTO]]-tbldados[[#This Row],[VALOR PAGO]] -> 0 | O35: =CHOOSE(MONTH(tbldados[[#This Row],[DATA]]),"JANEIRO","FEVEREIRO","MARÇO","ABRIL","MAIO","JUNHO","JULHO","AGOSTO","SETEMBRO","OUTUBRO","NOVEMBRO","DEZEMBRO") -> MARÇO | P35: =YEAR(tbldados[[#This Row],[DATA]]) -> 2022
A36: 35 | B36: GASTOS | C36: 04 DE 12 | D36: JUROSAZUL | E36: JUNIOR | F36: GERAL | G36: C6 | H36: CREDITO PARCELADO | I36: =VLOOKUP(tbldados[[#This Row],[APP]],tblbandeira[],3,0) -> 0 | J36: 44533 | K36: 44652 | L36: 156.07 | M36: =tbldados[[#This Row],[VALOR PAGO]]+(tbldados[[#This Row],[VALOR PAGO]]*tbldados[[#This Row],[TAXA]]) -> 156.07 | N36: =tbldados[[#This Row],[TOTAL BRUTO]]-tbldados[[#This Row],[VALOR PAGO]] -> 0 | O36: =CHOOSE(MONTH(tbldados[[#This Row],[DATA]]),"JANEIRO","FEVEREIRO","MARÇO","ABRIL","MAIO","JUNHO","JULHO","AGOSTO","SETEMBRO","OUTUBRO","NOVEMBRO","DEZEMBRO") -> ABRIL | P36: =YEAR(tbldados[[#This Row],[DATA]]) -> 2022
A37: 36 | B37: GASTOS | C37: 05 DE 12 | D37: JUROSAZUL | E37: JUNIOR | F37: GERAL | G37: C6 | H37: CREDITO PARCELADO | I37: =VLOOKUP(tbldados[[#This Row],[APP]],tblbandeira[],3,0) -> 0 | J37: 44533 | K37: 44682 | L37: 156.07 | M37: =tbldados[[#This Row],[VALOR PAGO]]+(tbldados[[#This Row],[VALOR PAGO]]*tbldados[[#This Row],[TAXA]]) -> 156.07 | N37: =tbldados[[#This Row],[TOTAL BRUTO]]-tbldados[[#This Row],[VALOR PAGO]] -> 0 | O37: =CHOOSE(MONTH(tbldados[[#This Row],[DATA]]),"JANEIRO","FEVEREIRO","MARÇO","ABRIL","MAIO","JUNHO","JULHO","AGOSTO","SETEMBRO","OUTUBRO","NOVEMBRO","DEZEMBRO") -> MAIO | P37: =YEAR(tbldados[[#This Row],[DATA]]) -> 2022
A38: 37 | B38: GASTOS | C38: 06 DE 12 | D38: JUROSAZUL | E38: JUNIOR | F38: GERAL | G38: C6 | H38: CREDITO PARCELADO | I38: =VLOOKUP(tbldados[[#This Row],[APP]],tblbandeira[],3,0) -> 0 | J38: 44533 | K38: 44713 | L38: 156.07 | M38: =tbldados[[#This Row],[VALOR PAGO]]+(tbldados[[#This Row],[VALOR PAGO]]*tbldados[[#This Row],[TAXA]]) -> 156.07 | N38: =tbldados[[#This Row],[TOTAL BRUTO]]-tbldados[[#This Row],[VALOR PAGO]] -> 0 | O38: =CHOOSE(MONTH(tbldados[[#This Row],[DATA]]),"JANEIRO","FEVEREIRO","MARÇO","ABRIL","MAIO","JUNHO","JULHO","AGOSTO","SETEMBRO","OUTUBRO","NOVEMBRO","DEZEMBRO") -> JUNHO | P38: =YEAR(tbldados[[#This Row],[DATA]]) -> 2022
A39: 38 | B39: GASTOS | C39: 07 DE 12 | D39: JUROSAZUL | E39: JUNIOR | F39: GERAL | G39: C6 | H39: CREDITO PARCELADO | I39: =VLOOKUP(tbldados[[#This Row],[APP]],tblbandeira[],3,0) -> 0 | J39: 44533 | K39: 44743 | L39: 156.07 | M39: =tbldados[[#This Row],[VALOR PAGO]]+(tbldados[[#This Row],[VALOR PAGO]]*tbldados[[#This Row],[TAXA]]) -> 156.07 | N39: =tbldados[[#This Row],[TOTAL BRUTO]]-tbldados[[#This Row],[VALOR PAGO]] -> 0 | O39: =CHOOSE(MONTH(tbldados[[#This Row],[DATA]]),"JANEIRO","FEVEREIRO","MARÇO","ABRIL","MAIO","JUNHO","JULHO","AGOSTO","SETEMBRO","OUTUBRO","NOVEMBRO","DEZEMBRO") -> JULHO | P39: =YEAR(tbldados[[#This Row],[DATA]]) -> 2022
A40: 39 | B40: GASTOS | C40: 08 DE 12 | D40: JUROSAZUL | E40: JUNIOR | F40: GERAL | G40: C6 | H40: CREDITO PARCELADO | I40: =VLOOKUP(tbldados[[#This Row],[APP]],tblbandeira[],3,0) -> 0 | J40: 44533 | K40: 44774 | L40: 156.07 | M40: =tbldados[[#This Row],[VALOR PAGO]]+(tbldados[[#This Row],[VALOR PAGO]]*tbldados[[#This Row],[TAXA]]) -> 156.07 | N40: =tbldados[[#This Row],[TOTAL BRUTO]]-tbldados[[#This Row],[VALOR PAGO]] -> 0 | O40: =CHOOSE(MONTH(tbldados[[#This Row],[DATA]]),"JANEIRO","FEVEREIRO","MARÇO","ABRIL","MAIO","JUNHO","JULHO","AGOSTO","SETEMBRO","OUTUBRO","NOVEMBRO","DEZEMBRO") -> AGOSTO | P40: =YEAR(tbldados[[#This Row],[DATA]]) -> 2022
A41: 40 | B41: GASTOS | C41: 09 DE 12 | D41: JUROSAZUL | E41: JUNIOR | F41: GERAL | G41: C6 | H41: CREDITO PARCELADO | I41: =VLOOKUP(tbldados[[#This Row],[APP]],tblbandeira[],3,0) -> 0 | J41: 44533 | K41: 44805 | L41: 156.07 | M41: =tbldados[[#This Row],[VALOR PAGO]]+(tbldados[[#This Row],[VALOR PAGO]]*tbldados[[#This Row],[TAXA]]) -> 156.07 | N41: =tbldados[[#This Row],[TOTAL BRUTO]]-tbldados[[#This Row],[VALOR PAGO]] -> 0 | O41: =CHOOSE(MONTH(tbldados[[#This Row],[DATA]]),"JANEIRO","FEVEREIRO","MARÇO","ABRIL","MAIO","JUNHO","JULHO","AGOSTO","SETEMBRO","OUTUBRO","NOVEMBRO","DEZEMBRO") -> SETEMBRO | P41: =YEAR(tbldados[[#This Row],[DATA]]) -> 2022
A42: 41 | B42: GASTOS | C42: 10 DE 12 | D42: JUROSAZUL | E42: JUNIOR | F42: GERAL | G42: C6 | H42: CREDITO PARCELADO | I42: =VLOOKUP(tbldados[[#This Row],[APP]],tblbandeira[],3,0) -> 0 | J42: 44533 | K42: 44835 | L42: 156.07 | M42: =tbldados[[#This Row],[VALOR PAGO]]+(tbldados[[#This Row],[VALOR PAGO]]*tbldados[[#This Row],[TAXA]]) -> 156.07 | N42: =tbldados[[#This Row],[TOTAL BRUTO]]-tbldados[[#This Row],[VALOR PAGO]] -> 0 | O42: =CHOOSE(MONTH(tbldados[[#This Row],[DATA]]),"JANEIRO","FEVEREIRO","MARÇO","ABRIL","MAIO","JUNHO","JULHO","AGOSTO","SETEMBRO","OUTUBRO","NOVEMBRO","DEZEMBRO") -> OUTUBRO | P42: =YEAR(tbldados[[#This Row],[DATA]]) -> 2022
A43: 42 | B43: GASTOS | C43: 11 DE 12 | D43: JUROSAZUL | E43: JUNIOR | F43: GERAL | G43: C6 | H43: CREDITO PARCELADO | I43: =VLOOKUP(tbldados[[#This Row],[APP]],tblbandeira[],3,0) -> 0 | J43: 44533 | K43: 44866 | L43: 156.07 | M43: =tbldados[[#This Row],[VALOR PAGO]]+(tbldados[[#This Row],[VALOR PAGO]]*tbldados[[#This Row],[TAXA]]) -> 156.07 | N43: =tbldados[[#This Row],[TOTAL BRUTO]]-tbldados[[#This Row],[VALOR PAGO]] -> 0 | O43: =CHOOSE(MONTH(tbldados[[#This Row],[DATA]]),"JANEIRO","FEVEREIRO","MARÇO","ABRIL","MAIO","JUNHO","JULHO","AGOSTO","SETEMBRO","OUTUBRO","NOVEMBRO","DEZEMBRO") -> NOVEMBRO | P43: =YEAR(tbldados[[#This Row],[DATA]]) -> 2022
A44: 43 | B44: GASTOS | C44: 12 DE 12 | D44: JUROSAZUL | E44: JUNIOR | F44: GERAL | G44: C6 | H44: CREDITO PARCELADO | I44: =VLOOKUP(tbldados[[#This Row],[APP]],tblbandeira[],3,0) -> 0 | J44: 44533 | K44: 44896 | L44: 156.07 | M44: =tbldados[[#This Row],[VALOR PAGO]]+(tbldados[[#This Row],[VALOR PAGO]]*tbldados[[#This Row],[TAXA]]) -> 156.07 | N44: =tbldados[[#This Row],[TOTAL BRUTO]]-tbldados[[#This Row],[VALOR PAGO]] -> 0 | O44: =CHOOSE(MONTH(tbldados[[#This Row],[DATA]]),"JANEIRO","FEVEREIRO","MARÇO","ABRIL","MAIO","JUNHO","JULHO","AGOSTO","SETEMBRO","OUTUBRO","NOVEMBRO","DEZEMBRO") -> DEZEMBRO | P44: =YEAR(tbldados[[#This Row],[DATA]]) -> 2022
A45: 44 | B45: GASTOS | C45: 01 DE 01 | D45: LANCHE | E45: JUNIOR | F45: GERAL | G45: MELIUZ | H45: CREDITO A VISTA | I45: =VLOOKUP(tbldados[[#This Row],[APP]],tblbandeira[],3,0) -> 0 | J45: 44533 | K45: 44562 | L45: 22.28 | M45: =tbldados[[#This Row],[VALOR PAGO]]+(tbldados[[#This Row],[VALOR PAGO]]*tbldados[[#This Row],[TAXA]]) -> 22.28 | N45: =tbldados[[#This Row],[TOTAL BRUTO]]-tbldados[[#This Row],[VALOR PAGO]] -> 0 | O45: =CHOOSE(MONTH(tbldados[[#This Row],[DATA]]),"JANEIRO","FEVEREIRO","MARÇO","ABRIL","MAIO","JUNHO","JULHO","AGOSTO","SETEMBRO","OUTUBRO","NOVEMBRO","DEZEMBRO") -> JANEIRO | P45: =YEAR(tbldados[[#This Row],[DATA]]) -> 2022
A46: 45 | B46: PGTO | C46: 01 DE 01 | D46: AZUL | E46: DEZEMBRO | F46: RECARGAPAY | G46: ZERO | H46: CREDITO A VISTA | I46: =VLOOKUP(tbldados[[#This Row],[APP]],tblbandeira[],3,0) -> 0.0349 | J46: 44533 | K46: 44564 | L46: 1304.39 | M46: =tbldados[[#This Row],[VALOR PAGO]]+(tbldados[[#This Row],[VALOR PAGO]]*tbldados[[#This Row],[TAXA]]) -> 1349.913211 | N46: =tbldados[[#This Row],[TOTAL BRUTO]]-tbldados[[#This Row],[VALOR PAGO]] -> 45.523211 | O46: =CHOOSE(MONTH(tbldados[[#This Row],[DATA]]),"JANEIRO","FEVEREIRO","MARÇO","ABRIL","MAIO","JUNHO","JULHO","AGOSTO","SETEMBRO","OUTUBRO","NOVEMBRO","DEZEMBRO") -> JANEIRO | P46: =YEAR(tbldados[[#This Row],[DATA]]) -> 2022
A47: 46 | B47: GASTOS | C47: 01 DE 01 | D47: PGTOAZUL1 | E47: JUNIOR | F47: RECARGAPAY | G47: ZERO | H47: CREDITO A VISTA | I47: =VLOOKUP(tbldados[[#This Row],[APP]],tblbandeira[],3,0) -> 0.0349 | J47: 44533 | K47: 44564 | L47: 1304.39 | M47: =tbldados[[#This Row],[VALOR PAGO]]+(tbldados[[#This Row],[VALOR PAGO]]*tbldados[[#This Row],[TAXA]]) -> 1349.913211 | N47: =tbldados[[#This Row],[TOTAL BRUTO]]-tbldados[[#This Row],[VALOR PAGO]] -> 45.523211 | O47: =CHOOSE(MONTH(tbldados[[#This Row],[DATA]]),"JANEIRO","FEVEREIRO","MARÇO","ABRIL","MAIO","JUNHO","JULHO","AGOSTO","SETEMBRO","OUTUBRO","NOVEMBRO","DEZEMBRO") -> JANEIRO | P47: =YEAR(tbldados[[#This Row],[DATA]]) -> 2022
A48: 47 | B48: PGTO | C48: 01 DE 01 | D48: AZUL | E48: DEZEMBRO | F48: RECARGAPAY | G48: AZUL | H48: CREDITO A VISTA | I48: =VLOOKUP(tbldados[[#This Row],[APP]],tblbandeira[],3,0) -> 0.0349 | J48: 44534 | K48: 44567 | L48: 845.61 | M48: =tbldados[[#This Row],[VALOR PAGO]]+(tbldados[[#This Row],[VALOR PAGO]]*tbldados[[#This Row],[TAXA]]) -> 875.121789 | N48: =tbldados[[#This Row],[TOTAL BRUTO]]-tbldados[[#This Row],[VALOR PAGO]] -> 29.511789 | O48: =CHOOSE(MONTH(tbldados[[#This Row],[DATA]]),"JANEIRO","FEVEREIRO","MARÇO","ABRIL","MAIO","JUNHO","JULHO","AGOSTO","SETEMBRO","OUTUBRO","NOVEMBRO","DEZEMBRO") -> JANEIRO | P48: =YEAR(tbldados[[#This Row],[DATA]]) -> 2022
A49: 48 | B49: GASTOS | C49: 01 DE 01 | D49: PGTOAZUL2 | E49: JUNIOR | F49: RECARGAPAY | G49: AZUL | H49: CREDITO A VISTA | I49: =VLOOKUP(tbldados[[#This Row],[APP]],tblbandeira[],3,0) -> 0.0349 | J49: 44534 | K49: 44567 | L49: 845.61 | M49: =tbldados[[#This Row],[VALOR PAGO]]+(tbldados[[#This Row],[VALOR PAGO]]*tbldados[[#This Row],[TAXA]]) -> 875.121789 | N49: =tbldados[[#This Row],[TOTAL BRUTO]]-tbldados[[#This Row],[VALOR PAGO]] -> 29.511789 | O49: =CHOOSE(MONTH(tbldados[[#This Row],[DATA]]),"JANEIRO","FEVEREIRO","MARÇO","ABRIL","MAIO","JUNHO","JULHO","AGOSTO","SETEMBRO","OUTUBRO","NOVEMBRO","DEZEMBRO") -> JANEIRO | P49: =YEAR(tbldados[[#This Row],[DATA]]) -> 2022
A50: 49 | B50: PGTO | C50: 01 DE 01 | D50: ORIGINAL | E50: DEZEMBRO | F50: GERAL | G50: PAGMAE | H50: CREDITO A VISTA | I50: =VLOOKUP(tbldados[[#This Row],[APP]],tblbandeira[],3,0) -> 0 | J50: 44533 | K50: 44571 | L50: 278.07 | M50: =tbldados[[#This Row],[VALOR PAGO]]+(tbldados[[#This Row],[VALOR PAGO]]*tbldados[[#This Row],[TAXA]]) -> 278.07 | N50: =tbldados[[#This Row],[TOTAL BRUTO]]-tbldados[[#This Row],[VALOR PAGO]] -> 0 | O50: =CHOOSE(MONTH(tbldados[[#This Row],[DATA]]),"JANEIRO","FEVEREIRO","MARÇO","ABRIL","MAIO","JUNHO","JULHO","AGOSTO","SETEMBRO","OUTUBRO","NOVEMBRO","DEZEMBRO") -> JANEIRO | P50: =YEAR(tbldados[[#This Row],[DATA]]) -> 2022
A51: 50 | B51: GASTOS | C51: 01 DE 01 | D51: PGTOORIGINAL2 | E51: JUNIOR | F51: GERAL | G51: PAGMAE | H51: CREDITO A VISTA | I51: =VLOOKUP(tbldados[[#This Row],[APP]],tblbandeira[],3,0) -> 0 | J51: 44533 | K51: 44571 | L51: 278.07 | M51: =tbldados[[#This Row],[VALOR PAGO]]+(tbldados[[#This Row],[VALOR PAGO]]*tbldados[[#This Row],[TAXA]]) -> 278.07 | N51: =tbldados[[#This Row],[TOTAL BRUTO]]-tbldados[[#This Row],[VALOR PAGO]] -> 0 | O51: =CHOOSE(MONTH(tbldados[[#This Row],[DATA]]),"JANEIRO","FEVEREIRO","MARÇO","ABRIL","MAIO","JUNHO","JULHO","AGOSTO","SETEMBRO","OUTUBRO","NOVEMBRO","DEZEMBRO") -> JANEIRO | P51: =YEAR(tbldados[[#This Row],[DATA]]) -> 2022
A52: 51 | B52: PGTO | C52: 01 DE 01 | D52: NCARD | E52: DEZEMBRO | F52: RECARGAPAY | G52: AZUL | H52: CREDITO A VISTA | I52: =VLOOKUP(tbldados[[#This Row],[APP]],tblbandeira[],3,0) -> 0.0349 | J52: 44535 | K52: 44567 | L52: 1241.97 | M52: =tbldados[[#This Row],[VALOR PAGO]]+(tbldados[[#This Row],[VALOR PAGO]]*tbldados[[#This Row],[TAXA]]) -> 1285.314753 | N52: =tbldados[[#This Row],[TOTAL BRUTO]]-tbldados[[#This Row],[VALOR PAGO]] -> 43.344753 | O52: =CHOOSE(MONTH(tbldados[[#This Row],[DATA]]),"JANEIRO","FEVEREIRO","MARÇO","ABRIL","MAIO","JUNHO","JULHO","AGOSTO","SETEMBRO","OUTUBRO","NOVEMBRO","DEZEMBRO") -> JANEIRO | P52: =YEAR(tbldados[[#This Row],[DATA]]) -> 2022
A53: 52 | B53: GASTOS | C53: 01 DE 01 | D53: PGTONCARD2 | E53: JUNIOR | F53: RECARGAPAY | G53: AZUL | H53: CREDITO A VISTA | I53: =VLOOKUP(tbldados[[#This Row],[APP]],tblbandeira[],3,0) -> 0.0349 | J53: 44535 | K53: 44567 | L53: 1241.97 | M53: =tbldados[[#This Row],[VALOR PAGO]]+(tbldados[[#This Row],[VALOR PAGO]]*tbldados[[#This Row],[TAXA]]) -> 1285.314753 | N53: =tbldados[[#This Row],[TOTAL BRUTO]]-tbldados[[#This Row],[VALOR PAGO]] -> 43.344753 | O53: =CHOOSE(MONTH(tbldados[[#This Row],[DATA]]),"JANEIRO","FEVEREIRO","MARÇO","ABRIL","MAIO","JUNHO","JULHO","AGOSTO","SETEMBRO","OUTUBRO","NOVEMBRO","DEZEMBRO") -> JANEIRO | P53: =YEAR(tbldados[[#This Row],[DATA]]) -> 2022
A54: 53 | B54: PGTO | C54: 01 DE 01 | D54: NCARD | E54: DEZEMBRO | F54: RECARGAPAY | G54: NCARD | H54: CREDITO A VISTA | I54: =VLOOKUP(tbldados[[#This Row],[APP]],tblbandeira[],3,0) -> 0.0349 | J54: 44536 | K54: 44570 | L54: 315.37 | M54: =tbldados[[#This Row],[VALOR PAGO]]+(tbldados[[#This Row],[VALOR PAGO]]*tbldados[[#This Row],[TAXA]]) -> 326.376413 | N54: =tbldados[[#This Row],[TOTAL BRUTO]]-tbldados[[#This Row],[VALOR PAGO]] -> 11.006413 | O54: =CHOOSE(MONTH(tbldados[[#This Row],[DATA]]),"JANEIRO","FEVEREIRO","MARÇO","ABRIL","MAIO","JUNHO","JULHO","AGOSTO","SETEMBRO","OUTUBRO","NOVEMBRO","DEZEMBRO") -> JANEIRO | P54: =YEAR(tbldados[[#This Row],[DATA]]) -> 2022
A55: 54 | B55: GASTOS | C55: 01 DE 01 | D55: PGTONCARD3 | E55: JUNIOR | F55: RECARGAPAY | G55: NCARD | H55: CREDITO A VISTA | I55: =VLOOKUP(tbldados[[#This Row],[APP]],tblbandeira[],3,0) -> 0.0349 | J55: 44536 | K55: 44570 | L55: 315.37 | M55: =tbldados[[#This Row],[VALOR PAGO]]+(tbldados[[#This Row],[VALOR PAGO]]*tbldados[[#This Row],[TAXA]]) -> 326.376413 | N55: =tbldados[[#This Row],[TOTAL BRUTO]]-tbldados[[#This Row],[VALOR PAGO]] -> 11.006413 | O55: =CHOOSE(MONTH(tbldados[[#This Row],[DATA]]),"JANEIRO","FEVEREIRO","MARÇO","ABRIL","MAIO","JUNHO","JULHO","AGOSTO","SETEMBRO","OUTUBRO","NOVEMBRO","DEZEMBRO") -> JANEIRO | P55: =YEAR(tbldados[[#This Row],[DATA]]) -> 2022
A56: 55 | B56: PGTO | C56: 01 DE 01 | D56: PAGMAE | E56: DEZEMBRO | F56: GERAL | G56: NCARD | H56: CREDITO A VISTA | I56: =VLOOKUP(tbldados[[#This Row],[APP]],tblbandeira[],3,0) -> 0 | J56: 44536 | K56: 44570 | L56: 1275.2 | M56: =tbldados[[#This Row],[VALOR PAGO]]+(tbldados[[#This Row],[VALOR PAGO]]*tbldados[[#This Row],[TAXA]]) -> 1275.2 | N56: =tbldados[[#This Row],[TOTAL BRUTO]]-tbldados[[#This Row],[VALOR PAGO]] -> 0 | O56: =CHOOSE(MONTH(tbldados[[#This Row],[DATA]]),"JANEIRO","FEVEREIRO","MARÇO","ABRIL","MAIO","JUNHO","JULHO","AGOSTO","SETEMBRO","OUTUBRO","NOVEMBRO","DEZEMBRO") -> JANEIRO | P56: =YEAR(tbldados[[#This Row],[DATA]]) -> 2022
A57: 56 | B57: GASTOS | C57: 01 DE 01 | D57: PGTOPAGMAE1 | E57: JUNIOR | F57: GERAL | G57: NCARD | H57: CREDITO A VISTA | I57: =VLOOKUP(tbldados[[#This Row],[APP]],tblbandeira[],3,0) -> 0 | J57: 44536 | K57: 44570 | L57: 1275.2 | M57: =tbldados[[#This Row],[VALOR PAGO]]+(tbldados[[#This Row],[VALOR PAGO]]*tbldados[[#This Row],[TAXA]]) -> 1275.2 | N57: =tbldados[[#This Row],[TOTAL BRUTO]]-tbldados[[#This Row],[VALOR PAGO]] -> 0 | O57: =CHOOSE(MONTH(tbldados[[#This Row],[DATA]]),"JANEIRO","FEVEREIRO","MARÇO","ABRIL","MAIO","JUNHO","JULHO","AGOSTO","SETEMBRO","OUTUBRO","NOVEMBRO","DEZEMBRO") -> JANEIRO | P57: =YEAR(tbldados[[#This Row],[DATA]]) -> 2022
A58: 57 | B58: PGTO | C58: 01 DE 01 | D58: PAGMAE | E58: DEZEMBRO | F58: GERAL | G58: C6MAE | H58: CREDITO A VISTA | I58: =VLOOKUP(tbldados[[#This Row],[APP]],tblbandeira[],3,0) -> 0 | J58: 44536 | K58: 44566 | L58: 110 | M58: =tbldados[[#This Row],[VALOR PAGO]]+(tbldados[[#This Row],[VALOR PAGO]]*tbldados[[#This Row],[TAXA]]) -> 110 | N58: =tbldados[[#This Row],[TOTAL BRUTO]]-tbldados[[#This Row],[VALOR PAGO]] -> 0 | O58: =CHOOSE(MONTH(tbldados[[#This Row],[DATA]]),"JANEIRO","FEVEREIRO","MARÇO","ABRIL","MAIO","JUNHO","JULHO","AGOSTO","SETEMBRO","OUTUBRO","NOVEMBRO","DEZEMBRO") -> JANEIRO | P58: =YEAR(tbldados[[#This Row],[DATA]]) -> 2022
A59: 58 | B59: PGTO | C59: 01 DE 01 | D59: PAGMAE | E59: DEZEMBRO | F59: RECARGAPAY | G59: PAGMAE | H59: CREDITO A VISTA | I59: =VLOOKUP(tbldados[[#This Row],[APP]],tblbandeira[],3,0) -> 0.0349 | J59: 44537 | K59: 44571 | L59: 1275 | M59: =tbldados[[#This Row],[VALOR PAGO]]+(tbldados[[#This Row],[VALOR PAGO]]*tbldados[[#This Row],[TAXA]]) -> 1319.4975 | N59: =tbldados[[#This Row],[TOTAL BRUTO]]-tbldados[[#This Row],[VALOR PAGO]] -> 44.4975 | O59: =CHOOSE(MONTH(tbldados[[#This Row],[DATA]]),"JANEIRO","FEVEREIRO","MARÇO","ABRIL","MAIO","JUNHO","JULHO","AGOSTO","SETEMBRO","OUTUBRO","NOVEMBRO","DEZEMBRO") -> JANEIRO | P59: =YEAR(tbldados[[#This Row],[DATA]]) -> 2022
A60: 59 | B60: GASTOS | C60: 01 DE 01 | D60: PGTOPAGMAE4 | E60: JUNIOR | F60: RECARGAPAY | G60: PAGMAE | H60: CREDITO A VISTA | I60: =VLOOKUP(tbldados[[#This Row],[APP]],tblbandeira[],3,0) -> 0.0349 | J60: 44537 | K60: 44571 | L60: 1275 | M60: =tbldados[[#This Row],[VALOR PAGO]]+(tbldados[[#This Row],[VALOR PAGO]]*tbldados[[#This Row],[TAXA]]) -> 1319.4975 | N60: =tbldados[[#This Row],[TOTAL BRUTO]]-tbldados[[#This Row],[VALOR PAGO]] -> 44.4975 | O60: =CHOOSE(MONTH(tbldados[[#This Row],[DATA]]),"JANEIRO","FEVEREIRO","MARÇO","ABRIL","MAIO","JUNHO","JULHO","AGOSTO","SETEMBRO","OUTUBRO","NOVEMBRO","DEZEMBRO") -> JANEIRO | P60: =YEAR(tbldados[[#This Row],[DATA]]) -> 2022
A61: 60 | B61: GASTOS | C61: 01 DE 12 | D61: FONE | E61: JUNIOR | F61: GERAL | G61: C6 | H61: CREDITO PARCELADO | I61: =VLOOKUP(tbldados[[#This Row],[APP]],tblbandeira[],3,0) -> 0 | J61: 44537 | K61: 44562 | L61: 34.89 | M61: =tbldados[[#This Row],[VALOR PAGO]]+(tbldados[[#This Row],[VALOR PAGO]]*tbldados[[#This Row],[TAXA]]) -> 34.89 | N61: =tbldados[[#This Row],[TOTAL BRUTO]]-tbldados[[#This Row],[VALOR PAGO]] -> 0 | O61: =CHOOSE(MONTH(tbldados[[#This Row],[DATA]]),"JANEIRO","FEVEREIRO","MARÇO","ABRIL","MAIO","JUNHO","JULHO","AGOSTO","SETEMBRO","OUTUBRO","NOVEMBRO","DEZEMBRO") -> JANEIRO | P61: =YEAR(tbldados[[#This Row],[DATA]]) -> 2022
A62: 61 | B62: GASTOS | C62: 02 DE 12 | D62: FONE | E62: JUNIOR | F62: GERAL | G62: C6 | H62: CREDITO PARCELADO | I62: =VLOOKUP(tbldados[[#This Row],[APP]],tblbandeira[],3,0) -> 0 | J62: 44537 | K62: 44593 | L62: 34.89 | M62: =tbldados[[#This Row],[VALOR PAGO]]+(tbldados[[#This Row],[VALOR PAGO]]*tbldados[[#This Row],[TAXA]]) -> 34.89 | N62: =tbldados[[#This Row],[TOTAL BRUTO]]-tbldados[[#This Row],[VALOR PAGO]] -> 0 | O62: =CHOOSE(MONTH(tbldados[[#This Row],[DATA]]),"JANEIRO","FEVEREIRO","MARÇO","ABRIL","MAIO","JUNHO","JULHO","AGOSTO","SETEMBRO","OUTUBRO","NOVEMBRO","DEZEMBRO") -> FEVEREIRO | P62: =YEAR(tbldados[[#This Row],[DATA]]) -> 2022
A63: 62 | B63: GASTOS | C63: 03 DE 12 | D63: FONE | E63: JUNIOR | F63: GERAL | G63: C6 | H63: CREDITO PARCELADO | I63: =VLOOKUP(tbldados[[#This Row],[APP]],tblbandeira[],3,0) -> 0 | J63: 44537 | K63: 44621 | L63: 34.89 | M63: =tbldados[[#This Row],[VALOR PAGO]]+(tbldados[[#This Row],[VALOR PAGO]]*tbldados[[#This Row],[TAXA]]) -> 34.89 | N63: =tbldados[[#This Row],[TOTAL BRUTO]]-tbldados[[#This Row],[VALOR PAGO]] -> 0 | O63: =CHOOSE(MONTH(tbldados[[#This Row],[DATA]]),"JANEIRO","FEVEREIRO","MARÇO","ABRIL","MAIO","JUNHO","JULHO","AGOSTO","SETEMBRO","OUTUBRO","NOVEMBRO","DEZEMBRO") -> MARÇO | P63: =YEAR(tbldados[[#This Row],[DATA]]) -> 2022
A64: 63 | B64: GASTOS | C64: 04 DE 12 | D64: FONE | E64: JUNIOR | F64: GERAL | G64: C6 | H64: CREDITO PARCELADO | I64: =VLOOKUP(tbldados[[#This Row],[APP]],tblbandeira[],3,0) -> 0 | J64: 44537 | K64: 44652 | L64: 34.89 | M64: =tbldados[[#This Row],[VALOR PAGO]]+(tbldados[[#This Row],[VALOR PAGO]]*tbldados[[#This Row],[TAXA]]) -> 34.89 | N64: =tbldados[[#This Row],[TOTAL BRUTO]]-tbldados[[#This Row],[VALOR PAGO]] -> 0 | O64: =CHOOSE(MONTH(tbldados[[#This Row],[DATA]]),"JANEIRO","FEVEREIRO","MARÇO","ABRIL","MAIO","JUNHO","JULHO","AGOSTO","SETEMBRO","OUTUBRO","NOVEMBRO","DEZEMBRO") -> ABRIL | P64: =YEAR(tbldados[[#This Row],[DATA]]) -> 2022
A65: 64 | B65: GASTOS | C65: 05 DE 12 | D65: FONE | E65: JUNIOR | F65: GERAL | G65: C6 | H65: CREDITO PARCELADO | I65: =VLOOKUP(tbldados[[#This Row],[APP]],tblbandeira[],3,0) -> 0 | J65: 44537 | K65: 44682 | L65: 34.89 | M65: =tbldados[[#This Row],[VALOR PAGO]]+(tbldados[[#This Row],[VALOR PAGO]]*tbldados[[#This Row],[TAXA]]) -> 34.89 | N65: =tbldados[[#This Row],[TOTAL BRUTO]]-tbldados[[#This Row],[VALOR PAGO]] -> 0 | O65: =CHOOSE(MONTH(tbldados[[#This Row],[DATA]]),"JANEIRO","FEVEREIRO","MARÇO","ABRIL","MAIO","JUNHO","JULHO","AGOSTO","SETEMBRO","OUTUBRO","NOVEMBRO","DEZEMBRO") -> MAIO | P65: =YEAR(tbldados[[#This Row],[DATA]]) -> 2022
A66: 65 | B66: GASTOS | C66: 06 DE 12 | D66: FONE | E66: JUNIOR | F66: GERAL | G66: C6 | H66: CREDITO PARCELADO | I66: =VLOOKUP(tbldados[[#This Row],[APP]],tblbandeira[],3,0) -> 0 | J66: 44537 | K66: 44713 | L66: 34.89 | M66: =tbldados[[#This Row],[VALOR PAGO]]+(tbldados[[#This Row],[VALOR PAGO]]*tbldados[[#This Row],[TAXA]]) -> 34.89 | N66: =tbldados[[#This Row],[TOTAL BRUTO]]-tbldados[[#This Row],[VALOR PAGO]] -> 0 | O66: =CHOOSE(MONTH(tbldados[[#This Row],[DATA]]),"JANEIRO","FEVEREIRO","MARÇO","ABRIL","MAIO","JUNHO","JULHO","AGOSTO","SETEMBRO","OUTUBRO","NOVEMBRO","DEZEMBRO") -> JUNHO | P66: =YEAR(tbldados[[#This Row],[DATA]]) -> 2022
A67: 66 | B67: GASTOS | C67: 07 DE 12 | D67: FONE | E67: JUNIOR | F67: GERAL | G67: C6 | H67: CREDITO PARCELADO | I67: =VLOOKUP(tbldados[[#This Row],[APP]],tblbandeira[],3,0) -> 0 | J67: 44537 | K67: 44743 | L67: 34.89 | M67: =tbldados[[#This Row],[VALOR PAGO]]+(tbldados[[#This Row],[VALOR PAGO]]*tbldados[[#This Row],[TAXA]]) -> 34.89 | N67: =tbldados[[#This Row],[TOTAL BRUTO]]-tbldados[[#This Row],[VALOR PAGO]] -> 0 | O67: =CHOOSE(MONTH(tbldados[[#This Row],[DATA]]),"JANEIRO","FEVEREIRO","MARÇO","ABRIL","MAIO","JUNHO","JULHO","AGOSTO","SETEMBRO","OUTUBRO","NOVEMBRO","DEZEMBRO") -> JULHO | P67: =YEAR(tbldados[[#This Row],[DATA]]) -> 2022
A68: 67 | B68: GASTOS | C68: 08 DE 12 | D68: FONE | E68: JUNIOR | F68: GERAL | G68: C6 | H68: CREDITO PARCELADO | I68: =VLOOKUP(tbldados[[#This Row],[APP]],tblbandeira[],3,0) -> 0 | J68: 44537 | K68: 44774 | L68: 34.89 | M68: =tbldados[[#This Row],[VALOR PAGO]]+(tbldados[[#This Row],[VALOR PAGO]]*tbldados[[#This Row],[TAXA]]) -> 34.89 | N68: =tbldados[[#This Row],[TOTAL BRUTO]]-tbldados[[#This Row],[VALOR PAGO]] -> 0 | O68: =CHOOSE(MONTH(tbldados[[#This Row],[DATA]]),"JANEIRO","FEVEREIRO","MARÇO","ABRIL","MAIO","JUNHO","JULHO","AGOSTO","SETEMBRO","OUTUBRO","NOVEMBRO","DEZEMBRO") -> AGOSTO | P68: =YEAR(tbldados[[#This Row],[DATA]]) -> 2022
A69: 68 | B69: GASTOS | C69: 09 DE 12 | D69: FONE | E69: JUNIOR | F69: GERAL | G69: C6 | H69: CREDITO PARCELADO | I69: =VLOOKUP(tbldados[[#This Row],[APP]],tblbandeira[],3,0) -> 0 | J69: 44537 | K69: 44805 | L69: 34.89 | M69: =tbldados[[#This Row],[VALOR PAGO]]+(tbldados[[#This Row],[VALOR PAGO]]*tbldados[[#This Row],[TAXA]]) -> 34.89 | N69: =tbldados[[#This Row],[TOTAL BRUTO]]-tbldados[[#This Row],[VALOR PAGO]] -> 0 | O69: =CHOOSE(MONTH(tbldados[[#This Row],[DATA]]),"JANEIRO","FEVEREIRO","MARÇO","ABRIL","MAIO","JUNHO","JULHO","AGOSTO","SETEMBRO","OUTUBRO","NOVEMBRO","DEZEMBRO") -> SETEMBRO | P69: =YEAR(tbldados[[#This Row],[DATA]]) -> 2022
A70: 69 | B70: GASTOS | C70: 10 DE 12 | D70: FONE | E70: JUNIOR | F70: GERAL | G70: C6 | H70: CREDITO PARCELADO | I70: =VLOOKUP(tbldados[[#This Row],[APP]],tblbandeira[],3,0) -> 0 | J70: 44537 | K70: 44835 | L70: 34.89 | M70: =tbldados[[#This Row],[VALOR PAGO]]+(tbldados[[#This Row],[VALOR PAGO]]*tbldados[[#This Row],[TAXA]]) -> 34.89 | N70: =tbldados[[#This Row],[TOTAL BRUTO]]-tbldados[[#This Row],[VALOR PAGO]] -> 0 | O70: =CHOOSE(MONTH(tbldados[[#This Row],[DATA]]),"JANEIRO","FEVEREIRO","MARÇO","ABRIL","MAIO","JUNHO","JULHO","AGOSTO","SETEMBRO","OUTUBRO","NOVEMBRO","DEZEMBRO") -> OUTUBRO | P70: =YEAR(tbldados[[#This Row],[DATA]]) -> 2022
A71: 70 | B71: GASTOS | C71: 11 DE 12 | D71: FONE | E71: JUNIOR | F71: GERAL | G71: C6 | H71: CREDITO PARCELADO | I71: =VLOOKUP(tbldados[[#This Row],[APP]],tblbandeira[],3,0) -> 0 | J71: 44537 | K71: 44866 | L71: 34.89 | M71: =tbldados[[#This Row],[VALOR PAGO]]+(tbldados[[#This Row],[VALOR PAGO]]*tbldados[[#This Row],[TAXA]]) -> 34.89 | N71: =tbldados[[#This Row],[TOTAL BRUTO]]-tbldados[[#This Row],[VALOR PAGO]] -> 0 | O71: =CHOOSE(MONTH(tbldados[[#This Row],[DATA]]),"JANEIRO","FEVEREIRO","MARÇO","ABRIL","MAIO","JUNHO","JULHO","AGOSTO","SETEMBRO","OUTUBRO","NOVEMBRO","DEZEMBRO") -> NOVEMBRO | P71: =YEAR(tbldados[[#This Row],[DATA]]) -> 2022
A72: 71 | B72: GASTOS | C72: 12 DE 12 | D72: FONE | E72: JUNIOR | F72: GERAL | G72: C6 | H72: CREDITO PARCELADO | I72: =VLOOKUP(tbldados[[#This Row],[APP]],tblbandeira[],3,0) -> 0 | J72: 44537 | K72: 44896 | L72: 34.89 | M72: =tbldados[[#This Row],[VALOR PAGO]]+(tbldados[[#This Row],[VALOR PAGO]]*tbldados[[#This Row],[TAXA]]) -> 34.89 | N72: =tbldados[[#This Row],[TOTAL BRUTO]]-tbldados[[#This Row],[VALOR PAGO]] -> 0 | O72: =CHOOSE(MONTH(tbldados[[#This Row],[DATA]]),"JANEIRO","FEVEREIRO","MARÇO","ABRIL","MAIO","JUNHO","JULHO","AGOSTO","SETEMBRO","OUTUBRO","NOVEMBRO","DEZEMBRO") -> DEZEMBRO | P72: =YEAR(tbldados[[#This Row],[DATA]]) -> 2022
A73: 72 | B73: GASTOS | C73: 01 DE 01 | D73: TIM | E73: JUNIOR | F73: GERAL | G73: PAGMAE | H73: CREDITO A VISTA | I73: =VLOOKUP(tbldados[[#This Row],[APP]],tblbandeira[],3,0) -> 0 | J73: 44538 | K73: 44571 | L73: 10 | M73: =tbldados[[#This Row],[VALOR PAGO]]+(tbldados[[#This Row],[VALOR PAGO]]*tbldados[[#This Row],[TAXA]]) -> 10 | N73: =tbldados[[#This Row],[TOTAL BRUTO]]-tbldados[[#This Row],[VALOR PAGO]] -> 0 | O73: =CHOOSE(MONTH(tbldados[[#This Row],[DATA]]),"JANEIRO","FEVEREIRO","MARÇO","ABRIL","MAIO","JUNHO","JULHO","AGOSTO","SETEMBRO","OUTUBRO","NOVEMBRO","DEZEMBRO") -> JANEIRO | P73: =YEAR(tbldados[[#This Row],[DATA]]) -> 2022
A74: 73 | B74: PGTO | C74: 01 DE 01 | D74: PAGMAE | E74: DEZEMBRO | F74: RECARGAPAY | G74: PAGMAE | H74: CREDITO A VISTA | I74: =VLOOKUP(tbldados[[#This Row],[APP]],tblbandeira[],3,0) -> 0.0349 | J74: 44539 | K74: 44571 | L74: 1344.84 | M74: =tbldados[[#This Row],[VALOR PAGO]]+(tbldados[[#This Row],[VALOR PAGO]]*tbldados[[#This Row],[TAXA]]) -> 1391.774916 | N74: =tbldados[[#This Row],[TOTAL BRUTO]]-tbldados[[#This Row],[VALOR PAGO]] -> 46.934916 | O74: =CHOOSE(MONTH(tbldados[[#This Row],[DATA]]),"JANEIRO","FEVEREIRO","MARÇO","ABRIL","MAIO","JUNHO","JULHO","AGOSTO","SETEMBRO","OUTUBRO","NOVEMBRO","DEZEMBRO") -> JANEIRO | P74: =YEAR(tbldados[[#This Row],[DATA]]) -> 2022
A75: 74 | B75: GASTOS | C75: 01 DE 01 | D75: PGTOPAGMAE | E75: JUNIOR | F75: RECARGAPAY | G75: PAGMAE | H75: CREDITO A VISTA | I75: =VLOOKUP(tbldados[[#This Row],[APP]],tblbandeira[],3,0) -> 0.0349 | J75: 44539 | K75: 44571 | L75: 1344.84 | M75: =tbldados[[#This Row],[VALOR PAGO]]+(tbldados[[#This Row],[VALOR PAGO]]*tbldados[[#This Row],[TAXA]]) -> 1391.774916 | N75: =tbldados[[#This Row],[TOTAL BRUTO]]-tbldados[[#This Row],[VALOR PAGO]] -> 46.934916 | O75: =CHOOSE(MONTH(tbldados[[#This Row],[DATA]]),"JANEIRO","FEVEREIRO","MARÇO","ABRIL","MAIO","JUNHO","JULHO","AGOSTO","SETEMBRO","OUTUBRO","NOVEMBRO","DEZEMBRO") -> JANEIRO | P75: =YEAR(tbldados[[#This Row],[DATA]]) -> 2022
A76: 75 | B76: PGTO | C76: 01 DE 01 | D76: PAGMAE | E76: DEZEMBRO | F76: RECARGAPAY | G76: PAGMAE | H76: CREDITO A VISTA | I76: =VLOOKUP(tbldados[[#This Row],[APP]],tblbandeira[],3,0) -> 0.0349 | J76: 44539 | K76: 44571 | L76: 1289.83 | M76: =tbldados[[#This Row],[VALOR PAGO]]+(tbldados[[#This Row],[VALOR PAGO]]*tbldados[[#This Row],[TAXA]]) -> 1334.845067 | N76: =tbldados[[#This Row],[TOTAL BRUTO]]-tbldados[[#This Row],[VALOR PAGO]] -> 45.015067 | O76: =CHOOSE(MONTH(tbldados[[#This Row],[DATA]]),"JANEIRO","FEVEREIRO","MARÇO","ABRIL","MAIO","JUNHO","JULHO","AGOSTO","SETEMBRO","OUTUBRO","NOVEMBRO","DEZEMBRO") -> JANEIRO | P76: =YEAR(tbldados[[#This Row],[DATA]]) -> 2022
A77: 76 | B77: GASTOS | C77: 01 DE 01 | D77: PGTOPAGMAE | E77: JUNIOR | F77: RECARGAPAY | G77: PAGMAE | H77: CREDITO A VISTA | I77: =VLOOKUP(tbldados[[#This Row],[APP]],tblbandeira[],3,0) -> 0.0349 | J77: 44539 | K77: 44571 | L77: 1289.83 | M77: =tbldados[[#This Row],[VALOR PAGO]]+(tbldados[[#This Row],[VALOR PAGO]]*tbldados[[#This Row],[TAXA]]) -> 1334.845067 | N77: =tbldados[[#This Row],[TOTAL BRUTO]]-tbldados[[#This Row],[VALOR PAGO]] -> 45.015067 | O77: =CHOOSE(MONTH(tbldados[[#This Row],[DATA]]),"JANEIRO","FEVEREIRO","MARÇO","ABRIL","MAIO","JUNHO","JULHO","AGOSTO","SETEMBRO","OUTUBRO","NOVEMBRO","DEZEMBRO") -> JANEIRO | P77: =YEAR(tbldados[[#This Row],[DATA]]) -> 2022
A78: 77 | B78: PGTO | C78: 01 DE 01 | D78: TRIGMAE | E78: DEZEMBRO | F78: RECARGAPAY | G78: PAGMAE | H78: CREDITO A VISTA | I78: =VLOOKUP(tbldados[[#This Row],[APP]],tblbandeira[],3,0) -> 0.0349 | J78: 44539 | K78: 44571 | L78: 410.9 | M78: =tbldados[[#This Row],[VALOR PAGO]]+(tbldados[[#This Row],[VALOR PAGO]]*tbldados[[#This Row],[TAXA]]) -> 425.24041 | N78: =tbldados[[#This Row],[TOTAL BRUTO]]-tbldados[[#This Row],[VALOR PAGO]] -> 14.34041 | O78: =CHOOSE(MONTH(tbldados[[#This Row],[DATA]]),"JANEIRO","FEVEREIRO","MARÇO","ABRIL","MAIO","JUNHO","JULHO","AGOSTO","SETEMBRO","OUTUBRO","NOVEMBRO","DEZEMBRO") -> JANEIRO | P78: =YEAR(tbldados[[#This Row],[DATA]]) -> 2022
A79: 78 | B79: GASTOS | C79: 01 DE 01 | D79: PGTOTRIGMAE | E79: JUNIOR | F79: RECARGAPAY | G79: PAGMAE | H79: CREDITO A VISTA | I79: =VLOOKUP(tbldados[[#This Row],[APP]],tblbandeira[],3,0) -> 0.0349 | J79: 44539 | K79: 44571 | L79: 410.9 | M79: =tbldados[[#This Row],[VALOR PAGO]]+(tbldados[[#This Row],[VALOR PAGO]]*tbldados[[#This Row],[TAXA]]) -> 425.24041 | N79: =tbldados[[#This Row],[TOTAL BRUTO]]-tbldados[[#This Row],[VALOR PAGO]] -> 14.34041 | O79: =CHOOSE(MONTH(tbldados[[#This Row],[DATA]]),"JANEIRO","FEVEREIRO","MARÇO","ABRIL","MAIO","JUNHO","JULHO","AGOSTO","SETEMBRO","OUTUBRO","NOVEMBRO","DEZEMBRO") -> JANEIRO | P79: =YEAR(tbldados[[#This Row],[DATA]]) -> 2022
A80: 79 | B80: PGTO | C80: 01 DE 01 | D80: NUBANK | E80: DEZEMBRO | F80: RECARGAPAY | G80: PAGMAE | H80: CREDITO A VISTA | I80: =VLOOKUP(tbldados[[#This Row],[APP]],tblbandeira[],3,0) -> 0.0349 | J80: 44539 | K80: 44571 | L80: 1225.53 | M80: =tbldados[[#This Row],[VALOR PAGO]]+(tbldados[[#This Row],[VALOR PAGO]]*tbldados[[#This Row],[TAXA]]) -> 1268.300997 | N80: =tbldados[[#This Row],[TOTAL BRUTO]]-tbldados[[#This Row],[VALOR PAGO]] -> 42.770997 | O80: =CHOOSE(MONTH(tbldados[[#This Row],[DATA]]),"JANEIRO","FEVEREIRO","MARÇO","ABRIL","MAIO","JUNHO","JULHO","AGOSTO","SETEMBRO","OUTUBRO","NOVEMBRO","DEZEMBRO") -> JANEIRO | P80: =YEAR(tbldados[[#This Row],[DATA]]) -> 2022
A81: 80 | B81: GASTOS | C81: 01 DE 01 | D81: PGTONUBANK | E81: JUNIOR | F81: RECARGAPAY | G81: PAGMAE | H81: CREDITO A VISTA | I81: =VLOOKUP(tbldados[[#This Row],[APP]],tblbandeira[],3,0) -> 0.0349 | J81: 44539 | K81: 44571 | L81: 1225.53 | M81: =tbldados[[#This Row],[VALOR PAGO]]+(tbldados[[#This Row],[VALOR PAGO]]*tbldados[[#This Row],[TAXA]]) -> 1268.300997 | N81: =tbldados[[#This Row],[TOTAL BRUTO]]-tbldados[[#This Row],[VALOR PAGO]] -> 42.770997 | O81: =CHOOSE(MONTH(tbldados[[#This Row],[DATA]]),"JANEIRO","FEVEREIRO","MARÇO","ABRIL","MAIO","JUNHO","JULHO","AGOSTO","SETEMBRO","OUTUBRO","NOVEMBRO","DEZEMBRO") -> JANEIRO | P81: =YEAR(tbldados[[#This Row],[DATA]]) -> 2022
A82: 81 | B82: PGTO | C82: 01 DE 01 | D82: NUBANK | E82: DEZEMBRO | F82: RECARGAPAY | G82: NUBANK | H82: CREDITO A VISTA | I82: =VLOOKUP(tbldados[[#This Row],[APP]],tblbandeira[],3,0) -> 0.0349 | J82: 44540 | K82: 44574 | L82: 1080 | M82: =tbldados[[#This Row],[VALOR PAGO]]+(tbldados[[#This Row],[VALOR PAGO]]*tbldados[[#This Row],[TAXA]]) -> 1117.692 | N82: =tbldados[[#This Row],[TOTAL BRUTO]]-tbldados[[#This Row],[VALOR PAGO]] -> 37.692 | O82: =CHOOSE(MONTH(tbldados[[#This Row],[DATA]]),"JANEIRO","FEVEREIRO","MARÇO","ABRIL","MAIO","JUNHO","JULHO","AGOSTO","SETEMBRO","OUTUBRO","NOVEMBRO","DEZEMBRO") -> JANEIRO | P82: =YEAR(tbldados[[#This Row],[DATA]]) -> 2022
A83: 82 | B83: GASTOS | C83: 01 DE 01 | D83: PGTONUBANK | E83: JUNIOR | F83: RECARGAPAY | G83: NUBANK | H83: CREDITO A VISTA | I83: =VLOOKUP(tbldados[[#This Row],[APP]],tblbandeira[],3,0) -> 0.0349 | J83: 44540 | K83: 44574 | L83: 1080 | M83: =tbldados[[#This Row],[VALOR PAGO]]+(tbldados[[#This Row],[VALOR PAGO]]*tbldados[[#This Row],[TAXA]]) -> 1117.692 | N83: =tbldados[[#This Row],[TOTAL BRUTO]]-tbldados[[#This Row],[VALOR PAGO]] -> 37.692 | O83: =CHOOSE(MONTH(tbldados[[#This Row],[DATA]]),"JANEIRO","FEVEREIRO","MARÇO","ABRIL","MAIO","JUNHO","JULHO","AGOSTO","SETEMBRO","OUTUBRO","NOVEMBRO","DEZEMBRO") -> JANEIRO | P83: =YEAR(tbldados[[#This Row],[DATA]]) -> 2022
A84: 83 | B84: PGTO | C84: 01 DE 01 | D84: NUBANK | E84: DEZEMBRO | F84: RECARGAPAY | G84: NUBANK | H84: CREDITO A VISTA | I84: =VLOOKUP(tbldados[[#This Row],[APP]],tblbandeira[],3,0) -> 0.0349 | J84: 44540 | K84: 44574 | L84: 1080 | M84: =tbldados[[#This Row],[VALOR PAGO]]+(tbldados[[#This Row],[VALOR PAGO]]*tbldados[[#This Row],[TAXA]]) -> 1117.692 | N84: =tbldados[[#This Row],[TOTAL BRUTO]]-tbldados[[#This Row],[VALOR PAGO]] -> 37.692 | O84: =CHOOSE(MONTH(tbldados[[#This Row],[DATA]]),"JANEIRO","FEVEREIRO","MARÇO","ABRIL","MAIO","JUNHO","JULHO","AGOSTO","SETEMBRO","OUTUBRO","NOVEMBRO","DEZEMBRO") -> JANEIRO | P84: =YEAR(tbldados[[#This Row],[DATA]]) -> 2022
A85: 84 | B85: GASTOS | C85: 01 DE 01 | D85: PGTONUBANK | E85: JUNIOR | F85: RECARGAPAY | G85: NUBANK | H85: CREDITO A VISTA | I85: =VLOOKUP(tbldados[[#This Row],[APP]],tblbandeira[],3,0) -> 0.0349 | J85: 44540 | K85: 44574 | L85: 1080 | M85: =tbldados[[#This Row],[VALOR PAGO]]+(tbldados[[#This Row],[VALOR PAGO]]*tbldados[[#This Row],[TAXA]]) -> 1117.692 | N85: =tbldados[[#This Row],[TOTAL BRUTO]]-tbldados[[#This Row],[VALOR PAGO]] -> 37.692 | O85: =CHOOSE(MONTH(tbldados[[#This Row],[DATA]]),"JANEIRO","FEVEREIRO","MARÇO","ABRIL","MAIO","JUNHO","JULHO","AGOSTO","SETEMBRO","OUTUBRO","NOVEMBRO","DEZEMBRO") -> JANEIRO | P85: =YEAR(tbldados[[#This Row],[DATA]]) -> 2022
A86: 85 | B86: GASTOS | C86: 01 DE 01 | D86: JANTA | E86: JUNIOR | F86: GERAL | G86: NUBANK | H86: CREDITO A VISTA | I86: =VLOOKUP(tbldados[[#This Row],[APP]],tblbandeira[],3,0) -> 0 | J86: 44538 | K86: 44574 | L86: 27 | M86: =tbldados[[#This Row],[VALOR PAGO]]+(tbldados[[#This Row],[VALOR PAGO]]*tbldados[[#This Row],[TAXA]]) -> 27 | N86: =tbldados[[#This Row],[TOTAL BRUTO]]-tbldados[[#This Row],[VALOR PAGO]] -> 0 | O86: =CHOOSE(MONTH(tbldados[[#This Row],[DATA]]),"JANEIRO","FEVEREIRO","MARÇO","ABRIL","MAIO","JUNHO","JULHO","AGOSTO","SETEMBRO","OUTUBRO","NOVEMBRO","DEZEMBRO") -> JANEIRO | P86: =YEAR(tbldados[[#This Row],[DATA]]) -> 2022
A87: 86 | B87: GASTOS | C87: 01 DE 01 | D87: ALMOÇO | E87: JUNIOR | F87: GERAL | G87: NUBANK | H87: CREDITO A VISTA | I87: =VLOOKUP(tbldados[[#This Row],[APP]],tblbandeira[],3,0) -> 0 | J87: 44544 | K87: 44574 | L87: 21 | M87: =tbldados[[#This Row],[VALOR PAGO]]+(tbldados[[#This Row],[VALOR PAGO]]*tbldados[[#This Row],[TAXA]]) -> 21 | N87: =tbldados[[#This Row],[TOTAL BRUTO]]-tbldados[[#This Row],[VALOR PAGO]] -> 0 | O87: =CHOOSE(MONTH(tbldados[[#This Row],[DATA]]),"JANEIRO","FEVEREIRO","MARÇO","ABRIL","MAIO","JUNHO","JULHO","AGOSTO","SETEMBRO","OUTUBRO","NOVEMBRO","DEZEMBRO") -> JANEIRO | P87: =YEAR(tbldados[[#This Row],[DATA]]) -> 2022
A88: 87 | B88: GASTOS | C88: 01 DE 01 | D88: ALMOÇO | E88: JUNIOR | F88: GERAL | G88: PAN | H88: CREDITO A VISTA | I88: =VLOOKUP(tbldados[[#This Row],[APP]],tblbandeira[],3,0) -> 0 | J88: 44543 | K88: 44574 | L88: 25.98 | M88: =tbldados[[#This Row],[VALOR PAGO]]+(tbldados[[#This Row],[VALOR PAGO]]*tbldados[[#This Row],[TAXA]]) -> 25.98 | N88: =tbldados[[#This Row],[TOTAL BRUTO]]-tbldados[[#This Row],[VALOR PAGO]] -> 0 | O88: =CHOOSE(MONTH(tbldados[[#This Row],[DATA]]),"JANEIRO","FEVEREIRO","MARÇO","ABRIL","MAIO","JUNHO","JULHO","AGOSTO","SETEMBRO","OUTUBRO","NOVEMBRO","DEZEMBRO") -> JANEIRO | P88: =YEAR(tbldados[[#This Row],[DATA]]) -> 2022
A89: 88 | B89: PGTO | C89: 01 DE 01 | D89: PAN | E89: DEZEMBRO | F89: RECARGAPAY | G89: TRIGMAE | H89: CREDITO A VISTA | I89: =VLOOKUP(tbldados[[#This Row],[APP]],tblbandeira[],3,0) -> 0.0349 | J89: 44543 | K89: 44581 | L89: 447.92 | M89: =tbldados[[#This Row],[VALOR PAGO]]+(tbldados[[#This Row],[VALOR PAGO]]*tbldados[[#This Row],[TAXA]]) -> 463.552408 | N89: =tbldados[[#This Row],[TOTAL BRUTO]]-tbldados[[#This Row],[VALOR PAGO]] -> 15.632408 | O89: =CHOOSE(MONTH(tbldados[[#This Row],[DATA]]),"JANEIRO","FEVEREIRO","MARÇO","ABRIL","MAIO","JUNHO","JULHO","AGOSTO","SETEMBRO","OUTUBRO","NOVEMBRO","DEZEMBRO") -> JANEIRO | P89: =YEAR(tbldados[[#This Row],[DATA]]) -> 2022
A90: 89 | B90: GASTOS | C90: 01 DE 01 | D90: PGTOPAN | E90: DEZEMBRO | F90: RECARGAPAY | G90: TRIGMAE | H90: CREDITO A VISTA | I90: =VLOOKUP(tbldados[[#This Row],[APP]],tblbandeira[],3,0) -> 0.0349 | J90: 44543 | K90: 44581 | L90: 447.92 | M90: =tbldados[[#This Row],[VALOR PAGO]]+(tbldados[[#This Row],[VALOR PAGO]]*tbldados[[#This Row],[TAXA]]) -> 463.552408 | N90: =tbldados[[#This Row],[TOTAL BRUTO]]-tbldados[[#This Row],[VALOR PAGO]] -> 15.632408 | O90: =CHOOSE(MONTH(tbldados[[#This Row],[DATA]]),"JANEIRO","FEVEREIRO","MARÇO","ABRIL","MAIO","JUNHO","JULHO","AGOSTO","SETEMBRO","OUTUBRO","NOVEMBRO","DEZEMBRO") -> JANEIRO | P90: =YEAR(tbldados[[#This Row],[DATA]]) -> 2022
A91: 90 | B91: PGTO | C91: 01 DE 01 | D91: INTER | E91: DEZEMBRO | F91: RECARGAPAY | G91: NUBANK | H91: CREDITO A VISTA | I91: =VLOOKUP(tbldados[[#This Row],[APP]],tblbandeira[],3,0) -> 0.0349 | J91: 44540 | K91: 44574 | L91: 1260.72 | M91: =tbldados[[#This Row],[VALOR PAGO]]+(tbldados[[#This Row],[VALOR PAGO]]*tbldados[[#This Row],[TAXA]]) -> 1304.719128 | N91: =tbldados[[#This Row],[TOTAL BRUTO]]-tbldados[[#This Row],[VALOR PAGO]] -> 43.999128 | O91: =CHOOSE(MONTH(tbldados[[#This Row],[DATA]]),"JANEIRO","FEVEREIRO","MARÇO","ABRIL","MAIO","JUNHO","JULHO","AGOSTO","SETEMBRO","OUTUBRO","NOVEMBRO","DEZEMBRO") -> JANEIRO | P91: =YEAR(tbldados[[#This Row],[DATA]]) -> 2022
A92: 91 | B92: GASTOS | C92: 01 DE 01 | D92: PGTOINTER1 | E92: JUNIOR | F92: RECARGAPAY | G92: NUBANK | H92: CREDITO A VISTA | I92: =VLOOKUP(tbldados[[#This Row],[APP]],tblbandeira[],3,0) -> 0.0349 | J92: 44540 | K92: 44574 | L92: 1260.72 | M92: =tbldados[[#This Row],[VALOR PAGO]]+(tbldados[[#This Row],[VALOR PAGO]]*tbldados[[#This Row],[TAXA]]) -> 1304.719128 | N92: =tbldados[[#This Row],[TOTAL BRUTO]]-tbldados[[#This Row],[VALOR PAGO]] -> 43.999128 | O92: =CHOOSE(MONTH(tbldados[[#This Row],[DATA]]),"JANEIRO","FEVEREIRO","MARÇO","ABRIL","MAIO","JUNHO","JULHO","AGOSTO","SETEMBRO","OUTUBRO","NOVEMBRO","DEZEMBRO") -> JANEIRO | P92: =YEAR(tbldados[[#This Row],[DATA]]) -> 2022
A93: 92 | B93: PGTO | C93: 01 DE 01 | D93: INTER | E93: DEZEMBRO | F93: RECARGAPAY | G93: INTER | H93: CREDITO A VISTA | I93: =VLOOKUP(tbldados[[#This Row],[APP]],tblbandeira[],3,0) -> 0.0349 | J93: 44543 | K93: 44576 | L93: 1394.21 | M93: =tbldados[[#This Row],[VALOR PAGO]]+(tbldados[[#This Row],[VALOR PAGO]]*tbldados[[#This Row],[TAXA]]) -> 1442.867929 | N93: =tbldados[[#This Row],[TOTAL BRUTO]]-tbldados[[#This Row],[VALOR PAGO]] -> 48.657929 | O93: =CHOOSE(MONTH(tbldados[[#This Row],[DATA]]),"JANEIRO","FEVEREIRO","MARÇO","ABRIL","MAIO","JUNHO","JULHO","AGOSTO","SETEMBRO","OUTUBRO","NOVEMBRO","DEZEMBRO") -> JANEIRO | P93: =YEAR(tbldados[[#This Row],[DATA]]) -> 2022
A94: 93 | B94: GASTOS | C94: 01 DE 01 | D94: PGTOINTER2 | E94: JUNIOR | F94: RECARGAPAY | G94: INTER | H94: CREDITO A VISTA | I94: =VLOOKUP(tbldados[[#This Row],[APP]],tblbandeira[],3,0) -> 0.0349 | J94: 44543 | K94: 44576 | L94: 1394.21 | M94: =tbldados[[#This Row],[VALOR PAGO]]+(tbldados[[#This Row],[VALOR PAGO]]*tbldados[[#This Row],[TAXA]]) -> 1442.867929 | N94: =tbldados[[#This Row],[TOTAL BRUTO]]-tbldados[[#This Row],[VALOR PAGO]] -> 48.657929 | O94: =CHOOSE(MONTH(tbldados[[#This Row],[DATA]]),"JANEIRO","FEVEREIRO","MARÇO","ABRIL","MAIO","JUNHO","JULHO","AGOSTO","SETEMBRO","OUTUBRO","NOVEMBRO","DEZEMBRO") -> JANEIRO | P94: =YEAR(tbldados[[#This Row],[DATA]]) -> 2022
A95: 94 | B95: PGTO | C95: 01 DE 01 | D95: INTER | E95: DEZEMBRO | F95: RECARGAPAY | G95: INTER | H95: CREDITO A VISTA | I95: =VLOOKUP(tbldados[[#This Row],[APP]],tblbandeira[],3,0) -> 0.0349 | J95: 44544 | K95: 44576 | L95: 1393.7 | M95: =tbldados[[#This Row],[VALOR PAGO]]+(tbldados[[#This Row],[VALOR PAGO]]*tbldados[[#This Row],[TAXA]]) -> 1442.34013 | N95: =tbldados[[#This Row],[TOTAL BRUTO]]-tbldados[[#This Row],[VALOR PAGO]] -> 48.64013 | O95: =CHOOSE(MONTH(tbldados[[#This Row],[DATA]]),"JANEIRO","FEVEREIRO","MARÇO","ABRIL","MAIO","JUNHO","JULHO","AGOSTO","SETEMBRO","OUTUBRO","NOVEMBRO","DEZEMBRO") -> JANEIRO | P95: =YEAR(tbldados[[#This Row],[DATA]]) -> 2022
A96: 95 | B96: GASTOS | C96: 01 DE 01 | D96: PGTOINTER3 | E96: JUNIOR | F96: RECARGAPAY | G96: INTER | H96: CREDITO A VISTA | I96: =VLOOKUP(tbldados[[#This Row],[APP]],tblbandeira[],3,0) -> 0.0349 | J96: 44544 | K96: 44576 | L96: 1393.7 | M96: =tbldados[[#This Row],[VALOR PAGO]]+(tbldados[[#This Row],[VALOR PAGO]]*tbldados[[#This Row],[TAXA]]) -> 1442.34013 | N96: =tbldados[[#This Row],[TOTAL BRUTO]]-tbldados[[#This Row],[VALOR PAGO]] -> 48.64013 | O96: =CHOOSE(MONTH(tbldados[[#This Row],[DATA]]),"JANEIRO","FEVEREIRO","MARÇO","ABRIL","MAIO","JUNHO","JULHO","AGOSTO","SETEMBRO","OUTUBRO","NOVEMBRO","DEZEMBRO") -> JANEIRO | P96: =YEAR(tbldados[[#This Row],[DATA]]) -> 2022
A97: 96 | B97: GASTOS | C97: 01 DE 12 | D97: ASS-AMAZON | E97: JUNIOR | F97: GERAL | G97: INTER | H97: CREDITO PARCELADO | I97: =VLOOKUP(tbldados[[#This Row],[APP]],tblbandeira[],3,0) -> 0 | J97: 44545 | K97: 44576 | L97: 9.9 | M97: =tbldados[[#This Row],[VALOR PAGO]]+(tbldados[[#This Row],[VALOR PAGO]]*tbldados[[#This Row],[TAXA]]) -> 9.9 | N97: =tbldados[[#This Row],[TOTAL BRUTO]]-tbldados[[#This Row],[VALOR PAGO]] -> 0 | O97: =CHOOSE(MONTH(tbldados[[#This Row],[DATA]]),"JANEIRO","FEVEREIRO","MARÇO","ABRIL","MAIO","JUNHO","JULHO","AGOSTO","SETEMBRO","OUTUBRO","NOVEMBRO","DEZEMBRO") -> JANEIRO | P97: =YEAR(tbldados[[#This Row],[DATA]]) -> 2022
A98: 97 | B98: GASTOS | C98: 02 DE 12 | D98: ASS-AMAZON | E98: JUNIOR | F98: GERAL | G98: INTER | H98: CREDITO PARCELADO | I98: =VLOOKUP(tbldados[[#This Row],[APP]],tblbandeira[],3,0) -> 0 | J98: 44545 | K98: 44607 | L98: 9.9 | M98: =tbldados[[#This Row],[VALOR PAGO]]+(tbldados[[#This Row],[VALOR PAGO]]*tbldados[[#This Row],[TAXA]]) -> 9.9 | N98: =tbldados[[#This Row],[TOTAL BRUTO]]-tbldados[[#This Row],[VALOR PAGO]] -> 0 | O98: =CHOOSE(MONTH(tbldados[[#This Row],[DATA]]),"JANEIRO","FEVEREIRO","MARÇO","ABRIL","MAIO","JUNHO","JULHO","AGOSTO","SETEMBRO","OUTUBRO","NOVEMBRO","DEZEMBRO") -> FEVEREIRO | P98: =YEAR(tbldados[[#This Row],[DATA]]) -> 2022
A99: 98 | B99: GASTOS | C99: 03 DE 12 | D99: ASS-AMAZON | E99: JUNIOR | F99: GERAL | G99: INTER | H99: CREDITO PARCELADO | I99: =VLOOKUP(tbldados[[#This Row],[APP]],tblbandeira[],3,0) -> 0 | J99: 44545 | K99: 44635 | L99: 9.9 | M99: =tbldados[[#This Row],[VALOR PAGO]]+(tbldados[[#This Row],[VALOR PAGO]]*tbldados[[#This Row],[TAXA]]) -> 9.9 | N99: =tbldados[[#This Row],[TOTAL BRUTO]]-tbldados[[#This Row],[VALOR PAGO]] -> 0 | O99: =CHOOSE(MONTH(tbldados[[#This Row],[DATA]]),"JANEIRO","FEVEREIRO","MARÇO","ABRIL","MAIO","JUNHO","JULHO","AGOSTO","SETEMBRO","OUTUBRO","NOVEMBRO","DEZEMBRO") -> MARÇO | P99: =YEAR(tbldados[[#This Row],[DATA]]) -> 2022
A100: 99 | B100: GASTOS | C100: 04 DE 12 | D100: ASS-AMAZON | E100: JUNIOR | F100: GERAL | G100: INTER | H100: CREDITO PARCELADO | I100: =VLOOKUP(tbldados[[#This Row],[APP]],tblbandeira[],3,0) -> 0 | J100: 44545 | K100: 44666 | L100: 9.9 | M100: =tbldados[[#This Row],[VALOR PAGO]]+(tbldados[[#This Row],[VALOR PAGO]]*tbldados[[#This Row],[TAXA]]) -> 9.9 | N100: =tbldados[[#This Row],[TOTAL BRUTO]]-tbldados[[#This Row],[VALOR PAGO]] -> 0 | O100: =CHOOSE(MONTH(tbldados[[#This Row],[DATA]]),"JANEIRO","FEVEREIRO","MARÇO","ABRIL","MAIO","JUNHO","JULHO","AGOSTO","SETEMBRO","OUTUBRO","NOVEMBRO","DEZEMBRO") -> ABRIL | P100: =YEAR(tbldados[[#This Row],[DATA]]) -> 2022
A101: 100 | B101: GASTOS | C101: 05 DE 12 | D101: ASS-AMAZON | E101: JUNIOR | F101: GERAL | G101: INTER | H101: CREDITO PARCELADO | I101: =VLOOKUP(tbldados[[#This Row],[APP]],tblbandeira[],3,0) -> 0 | J101: 44545 | K101: 44696 | L101: 9.9 | M101: =tbldados[[#This Row],[VALOR PAGO]]+(tbldados[[#This Row],[VALOR PAGO]]*tbldados[[#This Row],[TAXA]]) -> 9.9 | N101: =tbldados[[#This Row],[TOTAL BRUTO]]-tbldados[[#This Row],[VALOR PAGO]] -> 0 | O101: =CHOOSE(MONTH(tbldados[[#This Row],[DATA]]),"JANEIRO","FEVEREIRO","MARÇO","ABRIL","MAIO","JUNHO","JULHO","AGOSTO","SETEMBRO","OUTUBRO","NOVEMBRO","DEZEMBRO") -> MAIO | P101: =YEAR(tbldados[[#This Row],[DATA]]) -> 2022
A102: 101 | B102: GASTOS | C102: 06 DE 12 | D102: ASS-AMAZON | E102: JUNIOR | F102: GERAL | G102: INTER | H102: CREDITO PARCELADO | I102: =VLOOKUP(tbldados[[#This Row],[APP]],tblbandeira[],3,0) -> 0 | J102: 44545 | K102: 44727 | L102: 9.9 | M102: =tbldados[[#This Row],[VALOR PAGO]]+(tbldados[[#This Row],[VALOR PAGO]]*tbldados[[#This Row],[TAXA]]) -> 9.9 | N102: =tbldados[[#This Row],[TOTAL BRUTO]]-tbldados[[#This Row],[VALOR PAGO]] -> 0 | O102: =CHOOSE(MONTH(tbldados[[#This Row],[DATA]]),"JANEIRO","FEVEREIRO","MARÇO","ABRIL","MAIO","JUNHO","JULHO","AGOSTO","SETEMBRO","OUTUBRO","NOVEMBRO","DEZEMBRO") -> JUNHO | P102: =YEAR(tbldados[[#This Row],[DATA]]) -> 2022
A103: 102 | B103: GASTOS | C103: 07 DE 12 | D103: ASS-AMAZON | E103: JUNIOR | F103: GERAL | G103: INTER | H103: CREDITO PARCELADO | I103: =VLOOKUP(tbldados[[#This Row],[APP]],tblbandeira[],3,0) -> 0 | J103: 44545 | K103: 44757 | L103: 14.9 | M103: =tbldados[[#This Row],[VALOR PAGO]]+(tbldados[[#This Row],[VALOR PAGO]]*tbldados[[#This Row],[TAXA]]) -> 14.9 | N103: =tbldados[[#This Row],[TOTAL BRUTO]]-tbldados[[#This Row],[VALOR PAGO]] -> 0 | O103: =CHOOSE(MONTH(tbldados[[#This Row],[DATA]]),"JANEIRO","FEVEREIRO","MARÇO","ABRIL","MAIO","JUNHO","JULHO","AGOSTO","SETEMBRO","OUTUBRO","NOVEMBRO","DEZEMBRO") -> JULHO | P103: =YEAR(tbldados[[#This Row],[DATA]]) -> 2022
A104: 103 | B104: GASTOS | C104: 08 DE 12 | D104: ASS-AMAZON | E104: JUNIOR | F104: GERAL | G104: INTER | H104: CREDITO PARCELADO | I104: =VLOOKUP(tbldados[[#This Row],[APP]],tblbandeira[],3,0) -> 0 | J104: 44545 | K104: 44788 | L104: 14.9 | M104: =tbldados[[#This Row],[VALOR PAGO]]+(tbldados[[#This Row],[VALOR PAGO]]*tbldados[[#This Row],[TAXA]]) -> 14.9 | N104: =tbldados[[#This Row],[TOTAL BRUTO]]-tbldados[[#This Row],[VALOR PAGO]] -> 0 | O104: =CHOOSE(MONTH(tbldados[[#This Row],[DATA]]),"JANEIRO","FEVEREIRO","MARÇO","ABRIL","MAIO","JUNHO","JULHO","AGOSTO","SETEMBRO","OUTUBRO","NOVEMBRO","DEZEMBRO") -> AGOSTO | P104: =YEAR(tbldados[[#This Row],[DATA]]) -> 2022
A105: 104 | B105: GASTOS | C105: 09 DE 12 | D105: ASS-AMAZON | E105: JUNIOR | F105: GERAL | G105: INTER | H105: CREDITO PARCELADO | I105: =VLOOKUP(tbldados[[#This Row],[APP]],tblbandeira[],3,0) -> 0 | J105: 44545 | K105: 44819 | L105: 14.9 | M105: =tbldados[[#This Row],[VALOR PAGO]]+(tbldados[[#This Row],[VALOR PAGO]]*tbldados[[#This Row],[TAXA]]) -> 14.9 | N105: =tbldados[[#This Row],[TOTAL BRUTO]]-tbldados[[#This Row],[VALOR PAGO]] -> 0 | O105: =CHOOSE(MONTH(tbldados[[#This Row],[DATA]]),"JANEIRO","FEVEREIRO","MARÇO","ABRIL","MAIO","JUNHO","JULHO","AGOSTO","SETEMBRO","OUTUBRO","NOVEMBRO","DEZEMBRO") -> SETEMBRO | P105: =YEAR(tbldados[[#This Row],[DATA]]) -> 2022
A106: 105 | B106: GASTOS | C106: 10 DE 12 | D106: ASS-AMAZON | E106: JUNIOR | F106: GERAL | G106: INTER | H106: CREDITO PARCELADO | I106: =VLOOKUP(tbldados[[#This Row],[APP]],tblbandeira[],3,0) -> 0 | J106: 44545 | K106: 44849 | L106: 14.9 | M106: =tbldados[[#This Row],[VALOR PAGO]]+(tbldados[[#This Row],[VALOR PAGO]]*tbldados[[#This Row],[TAXA]]) -> 14.9 | N106: =tbldados[[#This Row],[TOTAL BRUTO]]-tbldados[[#This Row],[VALOR PAGO]] -> 0 | O106: =CHOOSE(MONTH(tbldados[[#This Row],[DATA]]),"JANEIRO","FEVEREIRO","MARÇO","ABRIL","MAIO","JUNHO","JULHO","AGOSTO","SETEMBRO","OUTUBRO","NOVEMBRO","DEZEMBRO") -> OUTUBRO | P106: =YEAR(tbldados[[#This Row],[DATA]]) -> 2022
A107: 106 | B107: GASTOS | C107: 11 DE 12 | D107: ASS-AMAZON | E107: JUNIOR | F107: GERAL | G107: INTER | H107: CREDITO PARCELADO | I107: =VLOOKUP(tbldados[[#This Row],[APP]],tblbandeira[],3,0) -> 0 | J107: 44545 | K107: 44880 | L107: 14.9 | M107: =tbldados[[#This Row],[VALOR PAGO]]+(tbldados[[#This Row],[VALOR PAGO]]*tbldados[[#This Row],[TAXA]]) -> 14.9 | N107: =tbldados[[#This Row],[TOTAL BRUTO]]-tbldados[[#This Row],[VALOR PAGO]] -> 0 | O107: =CHOOSE(MONTH(tbldados[[#This Row],[DATA]]),"JANEIRO","FEVEREIRO","MARÇO","ABRIL","MAIO","JUNHO","JULHO","AGOSTO","SETEMBRO","OUTUBRO","NOVEMBRO","DEZEMBRO") -> NOVEMBRO | P107: =YEAR(tbldados[[#This Row],[DATA]]) -> 2022
A108: 107 | B108: GASTOS | C108: 12 DE 12 | D108: ASS-AMAZON | E108: JUNIOR | F108: GERAL | G108: INTER | H108: CREDITO PARCELADO | I108: =VLOOKUP(tbldados[[#This Row],[APP]],tblbandeira[],3,0) -> 0 | J108: 44545 | K108: 44910 | L108: 14.9 | M108: =tbldados[[#This Row],[VALOR PAGO]]+(tbldados[[#This Row],[VALOR PAGO]]*tbldados[[#This Row],[TAXA]]) -> 14.9 | N108: =tbldados[[#This Row],[TOTAL BRUTO]]-tbldados[[#This Row],[VALOR PAGO]] -> 0 | O108: =CHOOSE(MONTH(tbldados[[#This Row],[DATA]]),"JANEIRO","FEVEREIRO","MARÇO","ABRIL","MAIO","JUNHO","JULHO","AGOSTO","SETEMBRO","OUTUBRO","NOVEMBRO","DEZEMBRO") -> DEZEMBRO | P108: =YEAR(tbldados[[#This Row],[DATA]]) -> 2022
A109: 108 | B109: PGTO | C109: 01 DE 01 | D109: CLICK | E109: DEZEMBRO | F109: RECARGAPAY | G109: INTER | H109: CREDITO A VISTA | I109: =VLOOKUP(tbldados[[#This Row],[APP]],tblbandeira[],3,0) -> 0.0349 | J109: 44545 | K109: 44576 | L109: 1150 | M109: =tbldados[[#This Row],[VALOR PAGO]]+(tbldados[[#This Row],[VALOR PAGO]]*tbldados[[#This Row],[TAXA]]) -> 1190.135 | N109: =tbldados[[#This Row],[TOTAL BRUTO]]-tbldados[[#This Row],[VALOR PAGO]] -> 40.135 | O109: =CHOOSE(MONTH(tbldados[[#This Row],[DATA]]),"JANEIRO","FEVEREIRO","MARÇO","ABRIL","MAIO","JUNHO","JULHO","AGOSTO","SETEMBRO","OUTUBRO","NOVEMBRO","DEZEMBRO") -> JANEIRO | P109: =YEAR(tbldados[[#This Row],[DATA]]) -> 2022
A110: 109 | B110: GASTOS | C110: 01 DE 01 | D110: PGTOCLICK1 | E110: JUNIOR | F110: RECARGAPAY | G110: INTER | H110: CREDITO A VISTA | I110: =VLOOKUP(tbldados[[#This Row],[APP]],tblbandeira[],3,0) -> 0.0349 | J110: 44545 | K110: 44576 | L110: 1150 | M110: =tbldados[[#This Row],[VALOR PAGO]]+(tbldados[[#This Row],[VALOR PAGO]]*tbldados[[#This Row],[TAXA]]) -> 1190.135 | N110: =tbldados[[#This Row],[TOTAL BRUTO]]-tbldados[[#This Row],[VALOR PAGO]] -> 40.135 | O110: =CHOOSE(MONTH(tbldados[[#This Row],[DATA]]),"JANEIRO","FEVEREIRO","MARÇO","ABRIL","MAIO","JUNHO","JULHO","AGOSTO","SETEMBRO","OUTUBRO","NOVEMBRO","DEZEMBRO") -> JANEIRO | P110: =YEAR(tbldados[[#This Row],[DATA]]) -> 2022
A111: 110 | B111: GASTOS | C111: 01 DE 01 | D111: ALMOÇO | E111: JUNIOR | F111: GERAL | G111: ORIGINAL | H111: CREDITO A VISTA | I111: =VLOOKUP(tbldados[[#This Row],[APP]],tblbandeira[],3,0) -> 0 | J111: 44545 | K111: 44571 | L111: 20 | M111: =tbldados[[#This Row],[VALOR PAGO]]+(tbldados[[#This Row],[VALOR PAGO]]*tbldados[[#This Row],[TAXA]]) -> 20 | N111: =tbldados[[#This Row],[TOTAL BRUTO]]-tbldados[[#This Row],[VALOR PAGO]] -> 0 | O111: =CHOOSE(MONTH(tbldados[[#This Row],[DATA]]),"JANEIRO","FEVEREIRO","MARÇO","ABRIL","MAIO","JUNHO","JULHO","AGOSTO","SETEMBRO","OUTUBRO","NOVEMBRO","DEZEMBRO") -> JANEIRO | P111: =YEAR(tbldados[[#This Row],[DATA]]) -> 2022
A112: 111 | B112: PGTO | C112: 01 DE 01 | D112: CLICK | E112: DEZEMBRO | F112: RECARGAPAY | G112: CLICK | H112: CREDITO A VISTA | I112: =VLOOKUP(tbldados[[#This Row],[APP]],tblbandeira[],3,0) -> 0.0349 | J112: 44542 | K112: 44578 | L112: 1116.61 | M112: =tbldados[[#This Row],[VALOR PAGO]]+(tbldados[[#This Row],[VALOR PAGO]]*tbldados[[#This Row],[TAXA]]) -> 1155.579689 | N112: =tbldados[[#This Row],[TOTAL BRUTO]]-tbldados[[#This Row],[VALOR PAGO]] -> 38.969689 | O112: =CHOOSE(MONTH(tbldados[[#This Row],[DATA]]),"JANEIRO","FEVEREIRO","MARÇO","ABRIL","MAIO","JUNHO","JULHO","AGOSTO","SETEMBRO","OUTUBRO","NOVEMBRO","DEZEMBRO") -> JANEIRO | P112: =YEAR(tbldados[[#This Row],[DATA]]) -> 2022
A113: 112 | B113: GASTOS | C113: 01 DE 01 | D113: PGTOCLICK2 | E113: JUNIOR | F113: RECARGAPAY | G113: CLICK | H113: CREDITO A VISTA | I113: =VLOOKUP(tbldados[[#This Row],[APP]],tblbandeira[],3,0) -> 0.0349 | J113: 44545 | K113: 44578 | L113: 1116.61 | M113: =tbldados[[#This Row],[VALOR PAGO]]+(tbldados[[#This Row],[VALOR PAGO]]*tbldados[[#This Row],[TAXA]]) -> 1155.579689 | N113: =tbldados[[#This Row],[TOTAL BRUTO]]-tbldados[[#This Row],[VALOR PAGO]] -> 38.969689 | O113: =CHOOSE(MONTH(tbldados[[#This Row],[DATA]]),"JANEIRO","FEVEREIRO","MARÇO","ABRIL","MAIO","JUNHO","JULHO","AGOSTO","SETEMBRO","OUTUBRO","NOVEMBRO","DEZEMBRO") -> JANEIRO | P113: =YEAR(tbldados[[#This Row],[DATA]]) -> 2022
A114: 113 | B114: PGTO | C114: 01 DE 01 | D114: WILL | E114: DEZEMBRO | F114: RECARGAPAY | G114: CLICK | H114: CREDITO A VISTA | I114: =VLOOKUP(tbldados[[#This Row],[APP]],tblbandeira[],3,0) -> 0.0349 | J114: 44546 | K114: 44578 | L114: 1116.61 | M114: =tbldados[[#This Row],[VALOR PAGO]]+(tbldados[[#This Row],[VALOR PAGO]]*tbldados[[#This Row],[TAXA]]) -> 1155.579689 | N114: =tbldados[[#This Row],[TOTAL BRUTO]]-tbldados[[#This Row],[VALOR PAGO]] -> 38.969689 | O114: =CHOOSE(MONTH(tbldados[[#This Row],[DATA]]),"JANEIRO","FEVEREIRO","MARÇO","ABRIL","MAIO","JUNHO","JULHO","AGOSTO","SETEMBRO","OUTUBRO","NOVEMBRO","DEZEMBRO") -> JANEIRO | P114: =YEAR(tbldados[[#This Row],[DATA]]) -> 2022
A115: 114 | B115: GASTOS | C115: 01 DE 01 | D115: PGTOCLICK | E115: JUNIOR | F115: RECARGAPAY | G115: CLICK | H115: CREDITO A VISTA | I115: =VLOOKUP(tbldados[[#This Row],[APP]],tblbandeira[],3,0) -> 0.0349 | J115: 44546 | K115: 44578 | L115: 1116.61 | M115: =tbldados[[#This Row],[VALOR PAGO]]+(tbldados[[#This Row],[VALOR PAGO]]*tbldados[[#This Row],[TAXA]]) -> 1155.579689 | N115: =tbldados[[#This Row],[TOTAL BRUTO]]-tbldados[[#This Row],[VALOR PAGO]] -> 38.969689 | O115: =CHOOSE(MONTH(tbldados[[#This Row],[DATA]]),"JANEIRO","FEVEREIRO","MARÇO","ABRIL","MAIO","JUNHO","JULHO","AGOSTO","SETEMBRO","OUTUBRO","NOVEMBRO","DEZEMBRO") -> JANEIRO | P115: =YEAR(tbldados[[#This Row],[DATA]]) -> 2022
A116: 115 | B116: PGTO | C116: 01 DE 01 | D116: WILL | E116: DEZEMBRO | F116: RECARGAPAY | G116: WILL | H116: CREDITO A VISTA | I116: =VLOOKUP(tbldados[[#This Row],[APP]],tblbandeira[],3,0) -> 0.0349 | J116: 44546 | K116: 44581 | L116: 1183.4 | M116: =tbldados[[#This Row],[VALOR PAGO]]+(tbldados[[#This Row],[VALOR PAGO]]*tbldados[[#This Row],[TAXA]]) -> 1224.70066 | N116: =tbldados[[#This Row],[TOTAL BRUTO]]-tbldados[[#This Row],[VALOR PAGO]] -> 41.30066 | O116: =CHOOSE(MONTH(tbldados[[#This Row],[DATA]]),"JANEIRO","FEVEREIRO","MARÇO","ABRIL","MAIO","JUNHO","JULHO","AGOSTO","SETEMBRO","OUTUBRO","NOVEMBRO","DEZEMBRO") -> JANEIRO | P116: =YEAR(tbldados[[#This Row],[DATA]]) -> 2022
A117: 116 | B117: GASTOS | C117: 01 DE 01 | D117: PGTOWILL2 | E117: JUNIOR | F117: RECARGAPAY | G117: WILL | H117: CREDITO A VISTA | I117: =VLOOKUP(tbldados[[#This Row],[APP]],tblbandeira[],3,0) -> 0.0349 | J117: 44546 | K117: 44581 | L117: 1183.4 | M117: =tbldados[[#This Row],[VALOR PAGO]]+(tbldados[[#This Row],[VALOR PAGO]]*tbldados[[#This Row],[TAXA]]) -> 1224.70066 | N117: =tbldados[[#This Row],[TOTAL BRUTO]]-tbldados[[#This Row],[VALOR PAGO]] -> 41.30066 | O117: =CHOOSE(MONTH(tbldados[[#This Row],[DATA]]),"JANEIRO","FEVEREIRO","MARÇO","ABRIL","MAIO","JUNHO","JULHO","AGOSTO","SETEMBRO","OUTUBRO","NOVEMBRO","DEZEMBRO") -> JANEIRO | P117: =YEAR(tbldados[[#This Row],[DATA]]) -> 2022
A118: 117 | B118: PGTO | C118: 01 DE 01 | D118: GOLD | E118: DEZEMBRO | F118: RECARGAPAY | G118: WILL | H118: CREDITO A VISTA | I118: =VLOOKUP(tbldados[[#This Row],[APP]],tblbandeira[],3,0) -> 0.0349 | J118: 44548 | K118: 44581 | L118: 1250 | M118: =tbldados[[#This Row],[VALOR PAGO]]+(tbldados[[#This Row],[VALOR PAGO]]*tbldados[[#This Row],[TAXA]]) -> 1293.625 | N118: =tbldados[[#This Row],[TOTAL BRUTO]]-tbldados[[#This Row],[VALOR PAGO]] -> 43.625 | O118: =CHOOSE(MONTH(tbldados[[#This Row],[DATA]]),"JANEIRO","FEVEREIRO","MARÇO","ABRIL","MAIO","JUNHO","JULHO","AGOSTO","SETEMBRO","OUTUBRO","NOVEMBRO","DEZEMBRO") -> JANEIRO | P118: =YEAR(tbldados[[#This Row],[DATA]]) -> 2022
A119: 118 | B119: GASTOS | C119: 01 DE 01 | D119: PGTOGOLD | E119: JUNIOR | F119: RECARGAPAY | G119: WILL | H119: CREDITO A VISTA | I119: =VLOOKUP(tbldados[[#This Row],[APP]],tblbandeira[],3,0) -> 0.0349 | J119: 44548 | K119: 44581 | L119: 1250 | M119: =tbldados[[#This Row],[VALOR PAGO]]+(tbldados[[#This Row],[VALOR PAGO]]*tbldados[[#This Row],[TAXA]]) -> 1293.625 | N119: =tbldados[[#This Row],[TOTAL BRUTO]]-tbldados[[#This Row],[VALOR PAGO]] -> 43.625 | O119: =CHOOSE(MONTH(tbldados[[#This Row],[DATA]]),"JANEIRO","FEVEREIRO","MARÇO","ABRIL","MAIO","JUNHO","JULHO","AGOSTO","SETEMBRO","OUTUBRO","NOVEMBRO","DEZEMBRO") -> JANEIRO | P119: =YEAR(tbldados[[#This Row],[DATA]]) -> 2022
A120: 119 | B120: PGTO | C120: 01 DE 01 | D120: GOLD | E120: DEZEMBRO | F120: RECARGAPAY | G120: GOLD | H120: CREDITO A VISTA | I120: =VLOOKUP(tbldados[[#This Row],[APP]],tblbandeira[],3,0) -> 0.0349 | J120: 44550 | K120: 44584 | L120: 1200 | M120: =tbldados[[#This Row],[VALOR PAGO]]+(tbldados[[#This Row],[VALOR PAGO]]*tbldados[[#This Row],[TAXA]]) -> 1241.88 | N120: =tbldados[[#This Row],[TOTAL BRUTO]]-tbldados[[#This Row],[VALOR PAGO]] -> 41.88 | O120: =CHOOSE(MONTH(tbldados[[#This Row],[DATA]]),"JANEIRO","FEVEREIRO","MARÇO","ABRIL","MAIO","JUNHO","JULHO","AGOSTO","SETEMBRO","OUTUBRO","NOVEMBRO","DEZEMBRO") -> JANEIRO | P120: =YEAR(tbldados[[#This Row],[DATA]]) -> 2022
A121: 120 | B121: GASTOS | C121: 01 DE 01 | D121: PGTOGOLD2 | E121: JUNIOR | F121: RECARGAPAY | G121: GOLD | H121: CREDITO A VISTA | I121: =VLOOKUP(tbldados[[#This Row],[APP]],tblbandeira[],3,0) -> 0.0349 | J121: 44550 | K121: 44584 | L121: 1200 | M121: =tbldados[[#This Row],[VALOR PAGO]]+(tbldados[[#This Row],[VALOR PAGO]]*tbldados[[#This Row],[TAXA]]) -> 1241.88 | N121: =tbldados[[#This Row],[TOTAL BRUTO]]-tbldados[[#This Row],[VALOR PAGO]] -> 41.88 | O121: =CHOOSE(MONTH(tbldados[[#This Row],[DATA]]),"JANEIRO","FEVEREIRO","MARÇO","ABRIL","MAIO","JUNHO","JULHO","AGOSTO","SETEMBRO","OUTUBRO","NOVEMBRO","DEZEMBRO") -> JANEIRO | P121: =YEAR(tbldados[[#This Row],[DATA]]) -> 2022
A122: 121 | B122: PGTO | C122: 01 DE 01 | D122: LATAM | E122: DEZEMBRO | F122: RECARGAPAY | G122: GOLD | H122: CREDITO A VISTA | I122: =VLOOKUP(tbldados[[#This Row],[APP]],tblbandeira[],3,0) -> 0.0349 | J122: 44551 | K122: 44584 | L122: 1177.43 | M122: =tbldados[[#This Row],[VALOR PAGO]]+(tbldados[[#This Row],[VALOR PAGO]]*tbldados[[#This Row],[TAXA]]) -> 1218.522307 | N122: =tbldados[[#This Row],[TOTAL BRUTO]]-tbldados[[#This Row],[VALOR PAGO]] -> 41.092307 | O122: =CHOOSE(MONTH(tbldados[[#This Row],[DATA]]),"JANEIRO","FEVEREIRO","MARÇO","ABRIL","MAIO","JUNHO","JULHO","AGOSTO","SETEMBRO","OUTUBRO","NOVEMBRO","DEZEMBRO") -> JANEIRO | P122: =YEAR(tbldados[[#This Row],[DATA]]) -> 2022
A123: 122 | B123: GASTOS | C123: 01 DE 01 | D123: PGTOLATAM | E123: JUNIOR | F123: RECARGAPAY | G123: GOLD | H123: CREDITO A VISTA | I123: =VLOOKUP(tbldados[[#This Row],[APP]],tblbandeira[],3,0) -> 0.0349 | J123: 44551 | K123: 44584 | L123: 1177.43 | M123: =tbldados[[#This Row],[VALOR PAGO]]+(tbldados[[#This Row],[VALOR PAGO]]*tbldados[[#This Row],[TAXA]]) -> 1218.522307 | N123: =tbldados[[#This Row],[TOTAL BRUTO]]-tbldados[[#This Row],[VALOR PAGO]] -> 41.092307 | O123: =CHOOSE(MONTH(tbldados[[#This Row],[DATA]]),"JANEIRO","FEVEREIRO","MARÇO","ABRIL","MAIO","JUNHO","JULHO","AGOSTO","SETEMBRO","OUTUBRO","NOVEMBRO","DEZEMBRO") -> JANEIRO | P123: =YEAR(tbldados[[#This Row],[DATA]]) -> 2022
A124: 123 | B124: PGTO | C124: 01 DE 01 | D124: LATAM | E124: DEZEMBRO | F124: RECARGAPAY | G124: LATAM | H124: CREDITO A VISTA | I124: =VLOOKUP(tbldados[[#This Row],[APP]],tblbandeira[],3,0) -> 0.0349 | J124: 44551 | K124: 44586 | L124: 1143.24 | M124: =tbldados[[#This Row],[VALOR PAGO]]+(tbldados[[#This Row],[VALOR PAGO]]*tbldados[[#This Row],[TAXA]]) -> 1183.139076 | N124: =tbldados[[#This Row],[TOTAL BRUTO]]-tbldados[[#This Row],[VALOR PAGO]] -> 39.899076 | O124: =CHOOSE(MONTH(tbldados[[#This Row],[DATA]]),"JANEIRO","FEVEREIRO","MARÇO","ABRIL","MAIO","JUNHO","JULHO","AGOSTO","SETEMBRO","OUTUBRO","NOVEMBRO","DEZEMBRO") -> JANEIRO | P124: =YEAR(tbldados[[#This Row],[DATA]]) -> 2022
A125: 124 | B125: GASTOS | C125: 01 DE 01 | D125: PGTOLATAM2 | E125: JUNIOR | F125: RECARGAPAY | G125: LATAM | H125: CREDITO A VISTA | I125: =VLOOKUP(tbldados[[#This Row],[APP]],tblbandeira[],3,0) -> 0.0349 | J125: 44551 | K125: 44586 | L125: 1143.24 | M125: =tbldados[[#This Row],[VALOR PAGO]]+(tbldados[[#This Row],[VALOR PAGO]]*tbldados[[#This Row],[TAXA]]) -> 1183.139076 | N125: =tbldados[[#This Row],[TOTAL BRUTO]]-tbldados[[#This Row],[VALOR PAGO]] -> 39.899076 | O125: =CHOOSE(MONTH(tbldados[[#This Row],[DATA]]),"JANEIRO","FEVEREIRO","MARÇO","ABRIL","MAIO","JUNHO","JULHO","AGOSTO","SETEMBRO","OUTUBRO","NOVEMBRO","DEZEMBRO") -> JANEIRO | P125: =YEAR(tbldados[[#This Row],[DATA]]) -> 2022
A126: 125 | B126: PGTO | C126: 01 DE 01 | D126: LATAM | E126: DEZEMBRO | F126: RECARGAPAY | G126: LATAM | H126: CREDITO A VISTA | I126: =VLOOKUP(tbldados[[#This Row],[APP]],tblbandeira[],3,0) -> 0.0349 | J126: 44552 | K126: 44586 | L126: 1110.07 | M126: =tbldados[[#This Row],[VALOR PAGO]]+(tbldados[[#This Row],[VALOR PAGO]]*tbldados[[#This Row],[TAXA]]) -> 1148.811443 | N126: =tbldados[[#This Row],[TOTAL BRUTO]]-tbldados[[#This Row],[VALOR PAGO]] -> 38.741443 | O126: =CHOOSE(MONTH(tbldados[[#This Row],[DATA]]),"JANEIRO","FEVEREIRO","MARÇO","ABRIL","MAIO","JUNHO","JULHO","AGOSTO","SETEMBRO","OUTUBRO","NOVEMBRO","DEZEMBRO") -> JANEIRO | P126: =YEAR(tbldados[[#This Row],[DATA]]) -> 2022
A127: 126 | B127: GASTOS | C127: 01 DE 01 | D127: PGTOLATAM3 | E127: JUNIOR | F127: RECARGAPAY | G127: LATAM | H127: CREDITO A VISTA | I127: =VLOOKUP(tbldados[[#This Row],[APP]],tblbandeira[],3,0) -> 0.0349 | J127: 44552 | K127: 44586 | L127: 1110.07 | M127: =tbldados[[#This Row],[VALOR PAGO]]+(tbldados[[#This Row],[VALOR PAGO]]*tbldados[[#This Row],[TAXA]]) -> 1148.811443 | N127: =tbldados[[#This Row],[TOTAL BRUTO]]-tbldados[[#This Row],[VALOR PAGO]] -> 38.741443 | O127: =CHOOSE(MONTH(tbldados[[#This Row],[DATA]]),"JANEIRO","FEVEREIRO","MARÇO","ABRIL","MAIO","JUNHO","JULHO","AGOSTO","SETEMBRO","OUTUBRO","NOVEMBRO","DEZEMBRO") -> JANEIRO | P127: =YEAR(tbldados[[#This Row],[DATA]]) -> 2022
A128: 127 | B128: PGTO | C128: 01 DE 01 | D128: LATAM | E128: DEZEMBRO | F128: RECARGAPAY | G128: LATAM | H128: CREDITO A VISTA | I128: =VLOOKUP(tbldados[[#This Row],[APP]],tblbandeira[],3,0) -> 0.0349 | J128: 44552 | K128: 44586 | L128: 369.26 | M128: =tbldados[[#This Row],[VALOR PAGO]]+(tbldados[[#This Row],[VALOR PAGO]]*tbldados[[#This Row],[TAXA]]) -> 382.147174 | N128: =tbldados[[#This Row],[TOTAL BRUTO]]-tbldados[[#This Row],[VALOR PAGO]] -> 12.887174 | O128: =CHOOSE(MONTH(tbldados[[#This Row],[DATA]]),"JANEIRO","FEVEREIRO","MARÇO","ABRIL","MAIO","JUNHO","JULHO","AGOSTO","SETEMBRO","OUTUBRO","NOVEMBRO","DEZEMBRO") -> JANEIRO | P128: =YEAR(tbldados[[#This Row],[DATA]]) -> 2022
A129: 128 | B129: GASTOS | C129: 01 DE 01 | D129: PGTOLATAM4 | E129: JUNIOR | F129: RECARGAPAY | G129: LATAM | H129: CREDITO A VISTA | I129: =VLOOKUP(tbldados[[#This Row],[APP]],tblbandeira[],3,0) -> 0.0349 | J129: 44552 | K129: 44586 | L129: 369.26 | M129: =tbldados[[#This Row],[VALOR PAGO]]+(tbldados[[#This Row],[VALOR PAGO]]*tbldados[[#This Row],[TAXA]]) -> 382.147174 | N129: =tbldados[[#This Row],[TOTAL BRUTO]]-tbldados[[#This Row],[VALOR PAGO]] -> 12.887174 | O129: =CHOOSE(MONTH(tbldados[[#This Row],[DATA]]),"JANEIRO","FEVEREIRO","MARÇO","ABRIL","MAIO","JUNHO","JULHO","AGOSTO","SETEMBRO","OUTUBRO","NOVEMBRO","DEZEMBRO") -> JANEIRO | P129: =YEAR(tbldados[[#This Row],[DATA]]) -> 2022
A130: 129 | B130: GASTOS | C130: 01 DE 03 | D130: SUPERMERCADO | E130: JUNIOR | F130: GERAL | G130: C6 | H130: CREDITO PARCELADO | I130: =VLOOKUP(tbldados[[#This Row],[APP]],tblbandeira[],3,0) -> 0 | J130: 44553 | K130: 44593 | L130: 112.83 | M130: =tbldados[[#This Row],[VALOR PAGO]]+(tbldados[[#This Row],[VALOR PAGO]]*tbldados[[#This Row],[TAXA]]) -> 112.83 | N130: =tbldados[[#This Row],[TOTAL BRUTO]]-tbldados[[#This Row],[VALOR PAGO]] -> 0 | O130: =CHOOSE(MONTH(tbldados[[#This Row],[DATA]]),"JANEIRO","FEVEREIRO","MARÇO","ABRIL","MAIO","JUNHO","JULHO","AGOSTO","SETEMBRO","OUTUBRO","NOVEMBRO","DEZEMBRO") -> FEVEREIRO | P130: =YEAR(tbldados[[#This Row],[DATA]]) -> 2022
A131: 130 | B131: GASTOS | C131: 02 DE 03 | D131: SUPERMERCADO | E131: JUNIOR | F131: GERAL | G131: C6 | H131: CREDITO PARCELADO | I131: =VLOOKUP(tbldados[[#This Row],[APP]],tblbandeira[],3,0) -> 0 | J131: 44553 | K131: 44621 | L131: 112.83 | M131: =tbldados[[#This Row],[VALOR PAGO]]+(tbldados[[#This Row],[VALOR PAGO]]*tbldados[[#This Row],[TAXA]]) -> 112.83 | N131: =tbldados[[#This Row],[TOTAL BRUTO]]-tbldados[[#This Row],[VALOR PAGO]] -> 0 | O131: =CHOOSE(MONTH(tbldados[[#This Row],[DATA]]),"JANEIRO","FEVEREIRO","MARÇO","ABRIL","MAIO","JUNHO","JULHO","AGOSTO","SETEMBRO","OUTUBRO","NOVEMBRO","DEZEMBRO") -> MARÇO | P131: =YEAR(tbldados[[#This Row],[DATA]]) -> 2022
A132: 131 | B132: GASTOS | C132: 03 DE 03 | D132: SUPERMERCADO | E132: JUNIOR | F132: GERAL | G132: C6 | H132: CREDITO PARCELADO | I132: =VLOOKUP(tbldados[[#This Row],[APP]],tblbandeira[],3,0) -> 0 | J132: 44553 | K132: 44652 | L132: 112.83 | M132: =tbldados[[#This Row],[VALOR PAGO]]+(tbldados[[#This Row],[VALOR PAGO]]*tbldados[[#This Row],[TAXA]]) -> 112.83 | N132: =tbldados[[#This Row],[TOTAL BRUTO]]-tbldados[[#This Row],[VALOR PAGO]] -> 0 | O132: =CHOOSE(MONTH(tbldados[[#This Row],[DATA]]),"JANEIRO","FEVEREIRO","MARÇO","ABRIL","MAIO","JUNHO","JULHO","AGOSTO","SETEMBRO","OUTUBRO","NOVEMBRO","DEZEMBRO") -> ABRIL | P132: =YEAR(tbldados[[#This Row],[DATA]]) -> 2022
A133: 132 | B133: PGTO | C133: 01 DE 01 | D133: FREE | E133: DEZEMBRO | F133: RECARGAPAY | G133: PANMAE | H133: CREDITO A VISTA | I133: =VLOOKUP(tbldados[[#This Row],[APP]],tblbandeira[],3,0) -> 0.0349 | J133: 44558 | K133: 44578 | L133: 1490 | M133: =tbldados[[#This Row],[VALOR PAGO]]+(tbldados[[#This Row],[VALOR PAGO]]*tbldados[[#This Row],[TAXA]]) -> 1542.001 | N133: =tbldados[[#This Row],[TOTAL BRUTO]]-tbldados[[#This Row],[VALOR PAGO]] -> 52.001 | O133: =CHOOSE(MONTH(tbldados[[#This Row],[DATA]]),"JANEIRO","FEVEREIRO","MARÇO","ABRIL","MAIO","JUNHO","JULHO","AGOSTO","SETEMBRO","OUTUBRO","NOVEMBRO","DEZEMBRO") -> JANEIRO | P133: =YEAR(tbldados[[#This Row],[DATA]]) -> 2022
A134: 133 | B134: GASTOS | C134: 01 DE 01 | D134: PGTOFREE | E134: JUNIOR | F134: RECARGAPAY | G134: PANMAE | H134: CREDITO A VISTA | I134: =VLOOKUP(tbldados[[#This Row],[APP]],tblbandeira[],3,0) -> 0.0349 | J134: 44558 | K134: 44578 | L134: 1490 | M134: =tbldados[[#This Row],[VALOR PAGO]]+(tbldados[[#This Row],[VALOR PAGO]]*tbldados[[#This Row],[TAXA]]) -> 1542.001 | N134: =tbldados[[#This Row],[TOTAL BRUTO]]-tbldados[[#This Row],[VALOR PAGO]] -> 52.001 | O134: =CHOOSE(MONTH(tbldados[[#This Row],[DATA]]),"JANEIRO","FEVEREIRO","MARÇO","ABRIL","MAIO","JUNHO","JULHO","AGOSTO","SETEMBRO","OUTUBRO","NOVEMBRO","DEZEMBRO") -> JANEIRO | P134: =YEAR(tbldados[[#This Row],[DATA]]) -> 2022
A135: 134 | B135: GASTOS | C135: 01 DE 01 | D135: NETFLIX | E135: JUNIOR | F135: GERAL | G135: C6 | H135: CREDITO A VISTA | I135: =VLOOKUP(tbldados[[#This Row],[APP]],tblbandeira[],3,0) -> 0 | J135: 44555 | K135: 44593 | L135: 55.9 | M135: =tbldados[[#This Row],[VALOR PAGO]]+(tbldados[[#This Row],[VALOR PAGO]]*tbldados[[#This Row],[TAXA]]) -> 55.9 | N135: =tbldados[[#This Row],[TOTAL BRUTO]]-tbldados[[#This Row],[VALOR PAGO]] -> 0 | O135: =CHOOSE(MONTH(tbldados[[#This Row],[DATA]]),"JANEIRO","FEVEREIRO","MARÇO","ABRIL","MAIO","JUNHO","JULHO","AGOSTO","SETEMBRO","OUTUBRO","NOVEMBRO","DEZEMBRO") -> FEVEREIRO | P135: =YEAR(tbldados[[#This Row],[DATA]]) -> 2022
A136: 135 | B136: GASTOS | C136: 01 DE 01 | D136: CLARO | E136: JUNIOR | F136: GERAL | G136: PAGMAE | H136: CREDITO A VISTA | I136: =VLOOKUP(tbldados[[#This Row],[APP]],tblbandeira[],3,0) -> 0 | J136: 44552 | K136: 44571 | L136: 45.24 | M136: =tbldados[[#This Row],[VALOR PAGO]]+(tbldados[[#This Row],[VALOR PAGO]]*tbldados[[#This Row],[TAXA]]) -> 45.24 | N136: =tbldados[[#This Row],[TOTAL BRUTO]]-tbldados[[#This Row],[VALOR PAGO]] -> 0 | O136: =CHOOSE(MONTH(tbldados[[#This Row],[DATA]]),"JANEIRO","FEVEREIRO","MARÇO","ABRIL","MAIO","JUNHO","JULHO","AGOSTO","SETEMBRO","OUTUBRO","NOVEMBRO","DEZEMBRO") -> JANEIRO | P136: =YEAR(tbldados[[#This Row],[DATA]]) -> 2022
A137: 136 | B137: PGTO | C137: 01 DE 01 | D137: C6 | E137: JANEIRO | F137: RECARGAPAY | G137: LATAM | H137: CREDITO A VISTA | I137: =VLOOKUP(tbldados[[#This Row],[APP]],tblbandeira[],3,0) -> 0.0349 | J137: 44558 | K137: 44586 | L137: 1067.12 | M137: =tbldados[[#This Row],[VALOR PAGO]]+(tbldados[[#This Row],[VALOR PAGO]]*tbldados[[#This Row],[TAXA]]) -> 1104.362488 | N137: =tbldados[[#This Row],[TOTAL BRUTO]]-tbldados[[#This Row],[VALOR PAGO]] -> 37.242488 | O137: =CHOOSE(MONTH(tbldados[[#This Row],[DATA]]),"JANEIRO","FEVEREIRO","MARÇO","ABRIL","MAIO","JUNHO","JULHO","AGOSTO","SETEMBRO","OUTUBRO","NOVEMBRO","DEZEMBRO") -> JANEIRO | P137: =YEAR(tbldados[[#This Row],[DATA]]) -> 2022
A138: 137 | B138: GASTOS | C138: 01 DE 01 | D138: PGTOC61 | E138: JUNIOR | F138: RECARGAPAY | G138: LATAM | H138: CREDITO A VISTA | I138: =VLOOKUP(tbldados[[#This Row],[APP]],tblbandeira[],3,0) -> 0.0349 | J138: 44558 | K138: 44586 | L138: 1067.12 | M138: =tbldados[[#This Row],[VALOR PAGO]]+(tbldados[[#This Row],[VALOR PAGO]]*tbldados[[#This Row],[TAXA]]) -> 1104.362488 | N138: =tbldados[[#This Row],[TOTAL BRUTO]]-tbldados[[#This Row],[VALOR PAGO]] -> 37.242488 | O138: =CHOOSE(MONTH(tbldados[[#This Row],[DATA]]),"JANEIRO","FEVEREIRO","MARÇO","ABRIL","MAIO","JUNHO","JULHO","AGOSTO","SETEMBRO","OUTUBRO","NOVEMBRO","DEZEMBRO") -> JANEIRO | P138: =YEAR(tbldados[[#This Row],[DATA]]) -> 2022
A139: 138 | B139: GASTOS | C139: 01 DE 05 | D139: STANLEY | E139: JUNIOR | F139: GERAL | G139: FREE | H139: CREDITO PARCELADO | I139: =VLOOKUP(tbldados[[#This Row],[APP]],tblbandeira[],3,0) -> 0 | J139: 44200 | K139: 44591 | L139: 44 | M139: =tbldados[[#This Row],[VALOR PAGO]]+(tbldados[[#This Row],[VALOR PAGO]]*tbldados[[#This Row],[TAXA]]) -> 44 | N139: =tbldados[[#This Row],[TOTAL BRUTO]]-tbldados[[#This Row],[VALOR PAGO]] -> 0 | O139: =CHOOSE(MONTH(tbldados[[#This Row],[DATA]]),"JANEIRO","FEVEREIRO","MARÇO","ABRIL","MAIO","JUNHO","JULHO","AGOSTO","SETEMBRO","OUTUBRO","NOVEMBRO","DEZEMBRO") -> JANEIRO | P139: =YEAR(tbldados[[#This Row],[DATA]]) -> 2022
A140: 139 | B140: GASTOS | C140: 02 DE 05 | D140: STANLEY | E140: JUNIOR | F140: GERAL | G140: FREE | H140: CREDITO PARCELADO | I140: =VLOOKUP(tbldados[[#This Row],[APP]],tblbandeira[],3,0) -> 0 | J140: 44200 | K140: 44620 | L140: 44 | M140: =tbldados[[#This Row],[VALOR PAGO]]+(tbldados[[#This Row],[VALOR PAGO]]*tbldados[[#This Row],[TAXA]]) -> 44 | N140: =tbldados[[#This Row],[TOTAL BRUTO]]-tbldados[[#This Row],[VALOR PAGO]] -> 0 | O140: =CHOOSE(MONTH(tbldados[[#This Row],[DATA]]),"JANEIRO","FEVEREIRO","MARÇO","ABRIL","MAIO","JUNHO","JULHO","AGOSTO","SETEMBRO","OUTUBRO","NOVEMBRO","DEZEMBRO") -> FEVEREIRO | P140: =YEAR(tbldados[[#This Row],[DATA]]) -> 2022
A141: 140 | B141: GASTOS | C141: 03 DE 05 | D141: STANLEY | E141: JUNIOR | F141: GERAL | G141: FREE | H141: CREDITO PARCELADO | I141: =VLOOKUP(tbldados[[#This Row],[APP]],tblbandeira[],3,0) -> 0 | J141: 44200 | K141: 44648 | L141: 44 | M141: =tbldados[[#This Row],[VALOR PAGO]]+(tbldados[[#This Row],[VALOR PAGO]]*tbldados[[#This Row],[TAXA]]) -> 44 | N141: =tbldados[[#This Row],[TOTAL BRUTO]]-tbldados[[#This Row],[VALOR PAGO]] -> 0 | O141: =CHOOSE(MONTH(tbldados[[#This Row],[DATA]]),"JANEIRO","FEVEREIRO","MARÇO","ABRIL","MAIO","JUNHO","JULHO","AGOSTO","SETEMBRO","OUTUBRO","NOVEMBRO","DEZEMBRO") -> MARÇO | P141: =YEAR(tbldados[[#This Row],[DATA]]) -> 2022
A142: 141 | B142: GASTOS | C142: 04 DE 05 | D142: STANLEY | E142: JUNIOR | F142: GERAL | G142: FREE | H142: CREDITO PARCELADO | I142: =VLOOKUP(tbldados[[#This Row],[APP]],tblbandeira[],3,0) -> 0 | J142: 44200 | K142: 44679 | L142: 44 | M142: =tbldados[[#This Row],[VALOR PAGO]]+(tbldados[[#This Row],[VALOR PAGO]]*tbldados[[#This Row],[TAXA]]) -> 44 | N142: =tbldados[[#This Row],[TOTAL BRUTO]]-tbldados[[#This Row],[VALOR PAGO]] -> 0 | O142: =CHOOSE(MONTH(tbldados[[#This Row],[DATA]]),"JANEIRO","FEVEREIRO","MARÇO","ABRIL","MAIO","JUNHO","JULHO","AGOSTO","SETEMBRO","OUTUBRO","NOVEMBRO","DEZEMBRO") -> ABRIL | P142: =YEAR(tbldados[[#This Row],[DATA]]) -> 2022
A143: 142 | B143: GASTOS | C143: 05 DE 05 | D143: STANLEY | E143: JUNIOR | F143: GERAL | G143: FREE | H143: CREDITO PARCELADO | I143: =VLOOKUP(tbldados[[#This Row],[APP]],tblbandeira[],3,0) -> 0 | J143: 44200 | K143: 44709 | L143: 44 | M143: =tbldados[[#This Row],[VALOR PAGO]]+(tbldados[[#This Row],[VALOR PAGO]]*tbldados[[#This Row],[TAXA]]) -> 44 | N143: =tbldados[[#This Row],[TOTAL BRUTO]]-tbldados[[#This Row],[VALOR PAGO]] -> 0 | O143: =CHOOSE(MONTH(tbldados[[#This Row],[DATA]]),"JANEIRO","FEVEREIRO","MARÇO","ABRIL","MAIO","JUNHO","JULHO","AGOSTO","SETEMBRO","OUTUBRO","NOVEMBRO","DEZEMBRO") -> MAIO | P143: =YEAR(tbldados[[#This Row],[DATA]]) -> 2022
A144: 143 | B144: GASTOS | C144: 01 DE 12 | D144: CELULAR | E144: JUNIOR | F144: GERAL | G144: C6 | H144: CREDITO PARCELADO | I144: =VLOOKUP(tbldados[[#This Row],[APP]],tblbandeira[],3,0) -> 0 | J144: 44562 | K144: 44593 | L144: 141.25 | M144: =tbldados[[#This Row],[VALOR PAGO]]+(tbldados[[#This Row],[VALOR PAGO]]*tbldados[[#This Row],[TAXA]]) -> 141.25 | N144: =tbldados[[#This Row],[TOTAL BRUTO]]-tbldados[[#This Row],[VALOR PAGO]] -> 0 | O144: =CHOOSE(MONTH(tbldados[[#This Row],[DATA]]),"JANEIRO","FEVEREIRO","MARÇO","ABRIL","MAIO","JUNHO","JULHO","AGOSTO","SETEMBRO","OUTUBRO","NOVEMBRO","DEZEMBRO") -> FEVEREIRO | P144: =YEAR(tbldados[[#This Row],[DATA]]) -> 2022
A145: 144 | B145: GASTOS | C145: 02 DE 12 | D145: CELULAR | E145: JUNIOR | F145: GERAL | G145: C6 | H145: CREDITO PARCELADO | I145: =VLOOKUP(tbldados[[#This Row],[APP]],tblbandeira[],3,0) -> 0 | J145: 44562 | K145: 44621 | L145: 141.25 | M145: =tbldados[[#This Row],[VALOR PAGO]]+(tbldados[[#This Row],[VALOR PAGO]]*tbldados[[#This Row],[TAXA]]) -> 141.25 | N145: =tbldados[[#This Row],[TOTAL BRUTO]]-tbldados[[#This Row],[VALOR PAGO]] -> 0 | O145: =CHOOSE(MONTH(tbldados[[#This Row],[DATA]]),"JANEIRO","FEVEREIRO","MARÇO","ABRIL","MAIO","JUNHO","JULHO","AGOSTO","SETEMBRO","OUTUBRO","NOVEMBRO","DEZEMBRO") -> MARÇO | P145: =YEAR(tbldados[[#This Row],[DATA]]) -> 2022
A146: 145 | B146: GASTOS | C146: 03 DE 12 | D146: CELULAR | E146: JUNIOR | F146: GERAL | G146: C6 | H146: CREDITO PARCELADO | I146: =VLOOKUP(tbldados[[#This Row],[APP]],tblbandeira[],3,0) -> 0 | J146: 44562 | K146: 44652 | L146: 141.25 | M146: =tbldados[[#This Row],[VALOR PAGO]]+(tbldados[[#This Row],[VALOR PAGO]]*tbldados[[#This Row],[TAXA]]) -> 141.25 | N146: =tbldados[[#This Row],[TOTAL BRUTO]]-tbldados[[#This Row],[VALOR PAGO]] -> 0 | O146: =CHOOSE(MONTH(tbldados[[#This Row],[DATA]]),"JANEIRO","FEVEREIRO","MARÇO","ABRIL","MAIO","JUNHO","JULHO","AGOSTO","SETEMBRO","OUTUBRO","NOVEMBRO","DEZEMBRO") -> ABRIL | P146: =YEAR(tbldados[[#This Row],[DATA]]) -> 2022
A147: 146 | B147: GASTOS | C147: 04 DE 12 | D147: CELULAR | E147: JUNIOR | F147: GERAL | G147: C6 | H147: CREDITO PARCELADO | I147: =VLOOKUP(tbldados[[#This Row],[APP]],tblbandeira[],3,0) -> 0 | J147: 44562 | K147: 44682 | L147: 141.25 | M147: =tbldados[[#This Row],[VALOR PAGO]]+(tbldados[[#This Row],[VALOR PAGO]]*tbldados[[#This Row],[TAXA]]) -> 141.25 | N147: =tbldados[[#This Row],[TOTAL BRUTO]]-tbldados[[#This Row],[VALOR PAGO]] -> 0 | O147: =CHOOSE(MONTH(tbldados[[#This Row],[DATA]]),"JANEIRO","FEVEREIRO","MARÇO","ABRIL","MAIO","JUNHO","JULHO","AGOSTO","SETEMBRO","OUTUBRO","NOVEMBRO","DEZEMBRO") -> MAIO | P147: =YEAR(tbldados[[#This Row],[DATA]]) -> 2022
A148: 147 | B148: GASTOS | C148: 05 DE 12 | D148: CELULAR | E148: JUNIOR | F148: GERAL | G148: C6 | H148: CREDITO PARCELADO | I148: =VLOOKUP(tbldados[[#This Row],[APP]],tblbandeira[],3,0) -> 0 | J148: 44562 | K148: 44713 | L148: 141.25 | M148: =tbldados[[#This Row],[VALOR PAGO]]+(tbldados[[#This Row],[VALOR PAGO]]*tbldados[[#This Row],[TAXA]]) -> 141.25 | N148: =tbldados[[#This Row],[TOTAL BRUTO]]-tbldados[[#This Row],[VALOR PAGO]] -> 0 | O148: =CHOOSE(MONTH(tbldados[[#This Row],[DATA]]),"JANEIRO","FEVEREIRO","MARÇO","ABRIL","MAIO","JUNHO","JULHO","AGOSTO","SETEMBRO","OUTUBRO","NOVEMBRO","DEZEMBRO") -> JUNHO | P148: =YEAR(tbldados[[#This Row],[DATA]]) -> 2022
A149: 148 | B149: GASTOS | C149: 06 DE 12 | D149: CELULAR | E149: JUNIOR | F149: GERAL | G149: C6 | H149: CREDITO PARCELADO | I149: =VLOOKUP(tbldados[[#This Row],[APP]],tblbandeira[],3,0) -> 0 | J149: 44562 | K149: 44743 | L149: 141.25 | M149: =tbldados[[#This Row],[VALOR PAGO]]+(tbldados[[#This Row],[VALOR PAGO]]*tbldados[[#This Row],[TAXA]]) -> 141.25 | N149: =tbldados[[#This Row],[TOTAL BRUTO]]-tbldados[[#This Row],[VALOR PAGO]] -> 0 | O149: =CHOOSE(MONTH(tbldados[[#This Row],[DATA]]),"JANEIRO","FEVEREIRO","MARÇO","ABRIL","MAIO","JUNHO","JULHO","AGOSTO","SETEMBRO","OUTUBRO","NOVEMBRO","DEZEMBRO") -> JULHO | P149: =YEAR(tbldados[[#This Row],[DATA]]) -> 2022
A150: 149 | B150: GASTOS | C150: 07 DE 12 | D150: CELULAR | E150: JUNIOR | F150: GERAL | G150: C6 | H150: CREDITO PARCELADO | I150: =VLOOKUP(tbldados[[#This Row],[APP]],tblbandeira[],3,0) -> 0 | J150: 44562 | K150: 44774 | L150: 141.25 | M150: =tbldados[[#This Row],[VALOR PAGO]]+(tbldados[[#This Row],[VALOR PAGO]]*tbldados[[#This Row],[TAXA]]) -> 141.25 | N150: =tbldados[[#This Row],[TOTAL BRUTO]]-tbldados[[#This Row],[VALOR PAGO]] -> 0 | O150: =CHOOSE(MONTH(tbldados[[#This Row],[DATA]]),"JANEIRO","FEVEREIRO","MARÇO","ABRIL","MAIO","JUNHO","JULHO","AGOSTO","SETEMBRO","OUTUBRO","NOVEMBRO","DEZEMBRO") -> AGOSTO | P150: =YEAR(tbldados[[#This Row],[DATA]]) -> 2022
A151: 150 | B151: GASTOS | C151: 08 DE 12 | D151: CELULAR | E151: JUNIOR | F151: GERAL | G151: C6 | H151: CREDITO PARCELADO | I151: =VLOOKUP(tbldados[[#This Row],[APP]],tblbandeira[],3,0) -> 0 | J151: 44562 | K151: 44805 | L151: 141.25 | M151: =tbldados[[#This Row],[VALOR PAGO]]+(tbldados[[#This Row],[VALOR PAGO]]*tbldados[[#This Row],[TAXA]]) -> 141.25 | N151: =tbldados[[#This Row],[TOTAL BRUTO]]-tbldados[[#This Row],[VALOR PAGO]] -> 0 | O151: =CHOOSE(MONTH(tbldados[[#This Row],[DATA]]),"JANEIRO","FEVEREIRO","MARÇO","ABRIL","MAIO","JUNHO","JULHO","AGOSTO","SETEMBRO","OUTUBRO","NOVEMBRO","DEZEMBRO") -> SETEMBRO | P151: =YEAR(tbldados[[#This Row],[DATA]]) -> 2022
A152: 151 | B152: GASTOS | C152: 09 DE 12 | D152: CELULAR | E152: JUNIOR | F152: GERAL | G152: C6 | H152: CREDITO PARCELADO | I152: =VLOOKUP(tbldados[[#This Row],[APP]],tblbandeira[],3,0) -> 0 | J152: 44562 | K152: 44835 | L152: 141.25 | M152: =tbldados[[#This Row],[VALOR PAGO]]+(tbldados[[#This Row],[VALOR PAGO]]*tbldados[[#This Row],[TAXA]]) -> 141.25 | N152: =tbldados[[#This Row],[TOTAL BRUTO]]-tbldados[[#This Row],[VALOR PAGO]] -> 0 | O152: =CHOOSE(MONTH(tbldados[[#This Row],[DATA]]),"JANEIRO","FEVEREIRO","MARÇO","ABRIL","MAIO","JUNHO","JULHO","AGOSTO","SETEMBRO","OUTUBRO","NOVEMBRO","DEZEMBRO") -> OUTUBRO | P152: =YEAR(tbldados[[#This Row],[DATA]]) -> 2022
A153: 152 | B153: GASTOS | C153: 10 DE 12 | D153: CELULAR | E153: JUNIOR | F153: GERAL | G153: C6 | H153: CREDITO PARCELADO | I153: =VLOOKUP(tbldados[[#This Row],[APP]],tblbandeira[],3,0) -> 0 | J153: 44562 | K153: 44866 | L153: 141.25 | M153: =tbldados[[#This Row],[VALOR PAGO]]+(tbldados[[#This Row],[VALOR PAGO]]*tbldados[[#This Row],[TAXA]]) -> 141.25 | N153: =tbldados[[#This Row],[TOTAL BRUTO]]-tbldados[[#This Row],[VALOR PAGO]] -> 0 | O153: =CHOOSE(MONTH(tbldados[[#This Row],[DATA]]),"JANEIRO","FEVEREIRO","MARÇO","ABRIL","MAIO","JUNHO","JULHO","AGOSTO","SETEMBRO","OUTUBRO","NOVEMBRO","DEZEMBRO") -> NOVEMBRO | P153: =YEAR(tbldados[[#This Row],[DATA]]) -> 2022
A154: 153 | B154: GASTOS | C154: 11 DE 12 | D154: CELULAR | E154: JUNIOR | F154: GERAL | G154: C6 | H154: CREDITO PARCELADO | I154: =VLOOKUP(tbldados[[#This Row],[APP]],tblbandeira[],3,0) -> 0 | J154: 44562 | K154: 44896 | L154: 141.25 | M154: =tbldados[[#This Row],[VALOR PAGO]]+(tbldados[[#This Row],[VALOR PAGO]]*tbldados[[#This Row],[TAXA]]) -> 141.25 | N154: =tbldados[[#This Row],[TOTAL BRUTO]]-tbldados[[#This Row],[VALOR PAGO]] -> 0 | O154: =CHOOSE(MONTH(tbldados[[#This Row],[DATA]]),"JANEIRO","FEVEREIRO","MARÇO","ABRIL","MAIO","JUNHO","JULHO","AGOSTO","SETEMBRO","OUTUBRO","NOVEMBRO","DEZEMBRO") -> DEZEMBRO | P154: =YEAR(tbldados[[#This Row],[DATA]]) -> 2022
A155: 154 | B155: GASTOS | C155: 12 DE 12 | D155: CELULAR | E155: JUNIOR | F155: GERAL | G155: C6 | H155: CREDITO PARCELADO | I155: =VLOOKUP(tbldados[[#This Row],[APP]],tblbandeira[],3,0) -> 0 | J155: 44562 | K155: 44927 | L155: 141.25 | M155: =tbldados[[#This Row],[VALOR PAGO]]+(tbldados[[#This Row],[VALOR PAGO]]*tbldados[[#This Row],[TAXA]]) -> 141.25 | N155: =tbldados[[#This Row],[TOTAL BRUTO]]-tbldados[[#This Row],[VALOR PAGO]] -> 0 | O155: =CHOOSE(MONTH(tbldados[[#This Row],[DATA]]),"JANEIRO","FEVEREIRO","MARÇO","ABRIL","MAIO","JUNHO","JULHO","AGOSTO","SETEMBRO","OUTUBRO","NOVEMBRO","DEZEMBRO") -> JANEIRO | P155: =YEAR(tbldados[[#This Row],[DATA]]) -> 2023
A156: 155 | B156: PGTO | C156: 01 DE 01 | D156: MELIUZ | E156: JANEIRO | F156: RECARGAPAY | G156: C6 | H156: CREDITO A VISTA | I156: =VLOOKUP(tbldados[[#This Row],[APP]],tblbandeira[],3,0) -> 0.0349 | J156: 44559 | K156: 44593 | L156: 983.9 | M156: =tbldados[[#This Row],[VALOR PAGO]]+(tbldados[[#This Row],[VALOR PAGO]]*tbldados[[#This Row],[TAXA]]) -> 1018.23811 | N156: =tbldados[[#This Row],[TOTAL BRUTO]]-tbldados[[#This Row],[VALOR PAGO]] -> 34.33811 | O156: =CHOOSE(MONTH(tbldados[[#This Row],[DATA]]),"JANEIRO","FEVEREIRO","MARÇO","ABRIL","MAIO","JUNHO","JULHO","AGOSTO","SETEMBRO","OUTUBRO","NOVEMBRO","DEZEMBRO") -> FEVEREIRO | P156: =YEAR(tbldados[[#This Row],[DATA]]) -> 2022
A157: 156 | B157: GASTOS | C157: 01 DE 01 | D157: PGTOMELIUZ | E157: JUNIOR | F157: RECARGAPAY | G157: C6 | H157: CREDITO A VISTA | I157: =VLOOKUP(tbldados[[#This Row],[APP]],tblbandeira[],3,0) -> 0.0349 | J157: 44559 | K157: 44593 | L157: 983.9 | M157: =tbldados[[#This Row],[VALOR PAGO]]+(tbldados[[#This Row],[VALOR PAGO]]*tbldados[[#This Row],[TAXA]]) -> 1018.23811 | N157: =tbldados[[#This Row],[TOTAL BRUTO]]-tbldados[[#This Row],[VALOR PAGO]] -> 34.33811 | O157: =CHOOSE(MONTH(tbldados[[#This Row],[DATA]]),"JANEIRO","FEVEREIRO","MARÇO","ABRIL","MAIO","JUNHO","JULHO","AGOSTO","SETEMBRO","OUTUBRO","NOVEMBRO","DEZEMBRO") -> FEVEREIRO | P157: =YEAR(tbldados[[#This Row],[DATA]]) -> 2022
A158: 157 | B158: PGTO | C158: 01 DE 01 | D158: ORIGINAL | E158: JANEIRO | F158: RECARGAPAY | G158: PAN | H158: CREDITO A VISTA | I158: =VLOOKUP(tbldados[[#This Row],[APP]],tblbandeira[],3,0) -> 0.0349 | J158: 44564 | K158: 44605 | L158: 349.74 | M158: =tbldados[[#This Row],[VALOR PAGO]]+(tbldados[[#This Row],[VALOR PAGO]]*tbldados[[#This Row],[TAXA]]) -> 361.945926 | N158: =tbldados[[#This Row],[TOTAL BRUTO]]-tbldados[[#This Row],[VALOR PAGO]] -> 12.205926 | O158: =CHOOSE(MONTH(tbldados[[#This Row],[DATA]]),"JANEIRO","FEVEREIRO","MARÇO","ABRIL","MAIO","JUNHO","JULHO","AGOSTO","SETEMBRO","OUTUBRO","NOVEMBRO","DEZEMBRO") -> FEVEREIRO | P158: =YEAR(tbldados[[#This Row],[DATA]]) -> 2022
A159: 158 | B159: GASTOS | C159: 01 DE 01 | D159: PGTORIGINAL | E159: JUNIOR | F159: RECARGAPAY | G159: PAN | H159: CREDITO A VISTA | I159: =VLOOKUP(tbldados[[#This Row],[APP]],tblbandeira[],3,0) -> 0.0349 | J159: 44564 | K159: 44605 | L159: 349.74 | M159: =tbldados[[#This Row],[VALOR PAGO]]+(tbldados[[#This Row],[VALOR PAGO]]*tbldados[[#This Row],[TAXA]]) -> 361.945926 | N159: =tbldados[[#This Row],[TOTAL BRUTO]]-tbldados[[#This Row],[VALOR PAGO]] -> 12.205926 | O159: =CHOOSE(MONTH(tbldados[[#This Row],[DATA]]),"JANEIRO","FEVEREIRO","MARÇO","ABRIL","MAIO","JUNHO","JULHO","AGOSTO","SETEMBRO","OUTUBRO","NOVEMBRO","DEZEMBRO") -> FEVEREIRO | P159: =YEAR(tbldados[[#This Row],[DATA]]) -> 2022
A160: 159 | B160: PGTO | C160: 01 DE 01 | D160: ORIGINAL | E160: JANEIRO | F160: CONTA | G160: DÉBITO | H160: DINHEIRO | I160: =VLOOKUP(tbldados[[#This Row],[APP]],tblbandeira[],3,0) -> 0 | J160: 44564 | K160: 44564 | L160: 12.9 | M160: =tbldados[[#This Row],[VALOR PAGO]]+(tbldados[[#This Row],[VALOR PAGO]]*tbldados[[#This Row],[TAXA]]) -> 12.9 | N160: =tbldados[[#This Row],[TOTAL BRUTO]]-tbldados[[#This Row],[VALOR PAGO]] -> 0 | O160: =CHOOSE(MONTH(tbldados[[#This Row],[DATA]]),"JANEIRO","FEVEREIRO","MARÇO","ABRIL","MAIO","JUNHO","JULHO","AGOSTO","SETEMBRO","OUTUBRO","NOVEMBRO","DEZEMBRO") -> JANEIRO | P160: =YEAR(tbldados[[#This Row],[DATA]]) -> 2022
A161: 160 | B161: GASTOS | C161: 01 DE 01 | D161: PGTOZERO | E161: JUNIOR | F161: RECARGAPAY | G161: ZERO | H161: CREDITO A VISTA | I161: =VLOOKUP(tbldados[[#This Row],[APP]],tblbandeira[],3,0) -> 0.0349 | J161: 44564 | K161: 44595 | L161: 363.96 | M161: =tbldados[[#This Row],[VALOR PAGO]]+(tbldados[[#This Row],[VALOR PAGO]]*tbldados[[#This Row],[TAXA]]) -> 376.662204 | N161: =tbldados[[#This Row],[TOTAL BRUTO]]-tbldados[[#This Row],[VALOR PAGO]] -> 12.702204 | O161: =CHOOSE(MONTH(tbldados[[#This Row],[DATA]]),"JANEIRO","FEVEREIRO","MARÇO","ABRIL","MAIO","JUNHO","JULHO","AGOSTO","SETEMBRO","OUTUBRO","NOVEMBRO","DEZEMBRO") -> FEVEREIRO | P161: =YEAR(tbldados[[#This Row],[DATA]]) -> 2022
A162: 161 | B162: PGTO | C162: 01 DE 01 | D162: AZUL | E162: JANEIRO | F162: GERAL | G162: ZERO | H162: CREDITO A VISTA | I162: =VLOOKUP(tbldados[[#This Row],[APP]],tblbandeira[],3,0) -> 0 | J162: 44565 | K162: 44595 | L162: 1225.16 | M162: =tbldados[[#This Row],[VALOR PAGO]]+(tbldados[[#This Row],[VALOR PAGO]]*tbldados[[#This Row],[TAXA]]) -> 1225.16 | N162: =tbldados[[#This Row],[TOTAL BRUTO]]-tbldados[[#This Row],[VALOR PAGO]] -> 0 | O162: =CHOOSE(MONTH(tbldados[[#This Row],[DATA]]),"JANEIRO","FEVEREIRO","MARÇO","ABRIL","MAIO","JUNHO","JULHO","AGOSTO","SETEMBRO","OUTUBRO","NOVEMBRO","DEZEMBRO") -> FEVEREIRO | P162: =YEAR(tbldados[[#This Row],[DATA]]) -> 2022
A163: 162 | B163: GASTOS | C163: 01 DE 01 | D163: JUROSPAY | E163: JUNIOR | F163: GERAL | G163: INTER | H163: CREDITO A VISTA | I163: =VLOOKUP(tbldados[[#This Row],[APP]],tblbandeira[],3,0) -> 0 | J163: 44565 | K163: 44576 | L163: 19.99 | M163: =tbldados[[#This Row],[VALOR PAGO]]+(tbldados[[#This Row],[VALOR PAGO]]*tbldados[[#This Row],[TAXA]]) -> 19.99 | N163: =tbldados[[#This Row],[TOTAL BRUTO]]-tbldados[[#This Row],[VALOR PAGO]] -> 0 | O163: =CHOOSE(MONTH(tbldados[[#This Row],[DATA]]),"JANEIRO","FEVEREIRO","MARÇO","ABRIL","MAIO","JUNHO","JULHO","AGOSTO","SETEMBRO","OUTUBRO","NOVEMBRO","DEZEMBRO") -> JANEIRO | P163: =YEAR(tbldados[[#This Row],[DATA]]) -> 2022
A164: 163 | B164: PGTO | C164: 01 DE 01 | D164: ZERO | E164: JANEIRO | F164: RECARGAPAY | G164: PANMAE | H164: CREDITO A VISTA | I164: =VLOOKUP(tbldados[[#This Row],[APP]],tblbandeira[],3,0) -> 0.0349 | J164: 44564 | K164: 44578 | L164: 1236.04 | M164: =tbldados[[#This Row],[VALOR PAGO]]+(tbldados[[#This Row],[VALOR PAGO]]*tbldados[[#This Row],[TAXA]]) -> 1279.177796 | N164: =tbldados[[#This Row],[TOTAL BRUTO]]-tbldados[[#This Row],[VALOR PAGO]] -> 43.137796 | O164: =CHOOSE(MONTH(tbldados[[#This Row],[DATA]]),"JANEIRO","FEVEREIRO","MARÇO","ABRIL","MAIO","JUNHO","JULHO","AGOSTO","SETEMBRO","OUTUBRO","NOVEMBRO","DEZEMBRO") -> JANEIRO | P164: =YEAR(tbldados[[#This Row],[DATA]]) -> 2022
A165: 164 | B165: GASTOS | C165: 01 DE 01 | D165: PGTOZERO | E165: JUNIOR | F165: RECARGAPAY | G165: PANMAE | H165: CREDITO A VISTA | I165: =VLOOKUP(tbldados[[#This Row],[APP]],tblbandeira[],3,0) -> 0.0349 | J165: 44564 | K165: 44578 | L165: 1236.04 | M165: =tbldados[[#This Row],[VALOR PAGO]]+(tbldados[[#This Row],[VALOR PAGO]]*tbldados[[#This Row],[TAXA]]) -> 1279.177796 | N165: =tbldados[[#This Row],[TOTAL BRUTO]]-tbldados[[#This Row],[VALOR PAGO]] -> 43.137796 | O165: =CHOOSE(MONTH(tbldados[[#This Row],[DATA]]),"JANEIRO","FEVEREIRO","MARÇO","ABRIL","MAIO","JUNHO","JULHO","AGOSTO","SETEMBRO","OUTUBRO","NOVEMBRO","DEZEMBRO") -> JANEIRO | P165: =YEAR(tbldados[[#This Row],[DATA]]) -> 2022
A166: 165 | B166: GASTOS | C166: 01 DE 01 | D166: PGTOAZUL | E166: JUNIOR | F166: GERAL | G166: ZERO | H166: CREDITO A VISTA | I166: =VLOOKUP(tbldados[[#This Row],[APP]],tblbandeira[],3,0) -> 0 | J166: 44565 | K166: 44595 | L166: 1225.16 | M166: =tbldados[[#This Row],[VALOR PAGO]]+(tbldados[[#This Row],[VALOR PAGO]]*tbldados[[#This Row],[TAXA]]) -> 1225.16 | N166: =tbldados[[#This Row],[TOTAL BRUTO]]-tbldados[[#This Row],[VALOR PAGO]] -> 0 | O166: =CHOOSE(MONTH(tbldados[[#This Row],[DATA]]),"JANEIRO","FEVEREIRO","MARÇO","ABRIL","MAIO","JUNHO","JULHO","AGOSTO","SETEMBRO","OUTUBRO","NOVEMBRO","DEZEMBRO") -> FEVEREIRO | P166: =YEAR(tbldados[[#This Row],[DATA]]) -> 2022
A167: 166 | B167: GASTOS | C167: 01 DE 01 | D167: ANUIDADE | E167: JUNIOR | F167: GERAL | G167: NCARD | H167: CREDITO A VISTA | I167: =VLOOKUP(tbldados[[#This Row],[APP]],tblbandeira[],3,0) -> 0 | J167: 44539 | K167: 44570 | L167: 17.9 | M167: =tbldados[[#This Row],[VALOR PAGO]]+(tbldados[[#This Row],[VALOR PAGO]]*tbldados[[#This Row],[TAXA]]) -> 17.9 | N167: =tbldados[[#This Row],[TOTAL BRUTO]]-tbldados[[#This Row],[VALOR PAGO]] -> 0 | O167: =CHOOSE(MONTH(tbldados[[#This Row],[DATA]]),"JANEIRO","FEVEREIRO","MARÇO","ABRIL","MAIO","JUNHO","JULHO","AGOSTO","SETEMBRO","OUTUBRO","NOVEMBRO","DEZEMBRO") -> JANEIRO | P167: =YEAR(tbldados[[#This Row],[DATA]]) -> 2022
A168: 167 | B168: PGTO | C168: 01 DE 01 | D168: AZUL | E168: JANEIRO | F168: RECARGAPAY | G168: AZUL | H168: CREDITO A VISTA | I168: =VLOOKUP(tbldados[[#This Row],[APP]],tblbandeira[],3,0) -> 0.0349 | J168: 44566 | K168: 44598 | L168: 924.84 | M168: =tbldados[[#This Row],[VALOR PAGO]]+(tbldados[[#This Row],[VALOR PAGO]]*tbldados[[#This Row],[TAXA]]) -> 957.116916 | N168: =tbldados[[#This Row],[TOTAL BRUTO]]-tbldados[[#This Row],[VALOR PAGO]] -> 32.276916 | O168: =CHOOSE(MONTH(tbldados[[#This Row],[DATA]]),"JANEIRO","FEVEREIRO","MARÇO","ABRIL","MAIO","JUNHO","JULHO","AGOSTO","SETEMBRO","OUTUBRO","NOVEMBRO","DEZEMBRO") -> FEVEREIRO | P168: =YEAR(tbldados[[#This Row],[DATA]]) -> 2022
A169: 168 | B169: PGTO | C169: 01 DE 01 | D169: NCARD | E169: JANEIRO | F169: RECARGAPAY | G169: AZUL | H169: CREDITO A VISTA | I169: =VLOOKUP(tbldados[[#This Row],[APP]],tblbandeira[],3,0) -> 0.0349 | J169: 44566 | K169: 44598 | L169: 264.77 | M169: =tbldados[[#This Row],[VALOR PAGO]]+(tbldados[[#This Row],[VALOR PAGO]]*tbldados[[#This Row],[TAXA]]) -> 274.010473 | N169: =tbldados[[#This Row],[TOTAL BRUTO]]-tbldados[[#This Row],[VALOR PAGO]] -> 9.240473 | O169: =CHOOSE(MONTH(tbldados[[#This Row],[DATA]]),"JANEIRO","FEVEREIRO","MARÇO","ABRIL","MAIO","JUNHO","JULHO","AGOSTO","SETEMBRO","OUTUBRO","NOVEMBRO","DEZEMBRO") -> FEVEREIRO | P169: =YEAR(tbldados[[#This Row],[DATA]]) -> 2022
A170: 169 | B170: GASTOS | C170: 01 DE 01 | D170: PGTOAZULNCARD | E170: JUNIOR | F170: RECARGAPAY | G170: AZUL | H170: CREDITO A VISTA | I170: =VLOOKUP(tbldados[[#This Row],[APP]],tblbandeira[],3,0) -> 0.0349 | J170: 44566 | K170: 44598 | L170: 1189.6 | M170: =tbldados[[#This Row],[VALOR PAGO]]+(tbldados[[#This Row],[VALOR PAGO]]*tbldados[[#This Row],[TAXA]]) -> 1231.11704 | N170: =tbldados[[#This Row],[TOTAL BRUTO]]-tbldados[[#This Row],[VALOR PAGO]] -> 41.51704 | O170: =CHOOSE(MONTH(tbldados[[#This Row],[DATA]]),"JANEIRO","FEVEREIRO","MARÇO","ABRIL","MAIO","JUNHO","JULHO","AGOSTO","SETEMBRO","OUTUBRO","NOVEMBRO","DEZEMBRO") -> FEVEREIRO | P170: =YEAR(tbldados[[#This Row],[DATA]]) -> 2022
A171: 170 | B171: PGTO | C171: 01 DE 01 | D171: NCARD | E171: JANEIRO | F171: RECARGAPAY | G171: AZUL | H171: CREDITO A VISTA | I171: =VLOOKUP(tbldados[[#This Row],[APP]],tblbandeira[],3,0) -> 0.0349 | J171: 44566 | K171: 44598 | L171: 897.98 | M171: =tbldados[[#This Row],[VALOR PAGO]]+(tbldados[[#This Row],[VALOR PAGO]]*tbldados[[#This Row],[TAXA]]) -> 929.319502 | N171: =tbldados[[#This Row],[TOTAL BRUTO]]-tbldados[[#This Row],[VALOR PAGO]] -> 31.339502 | O171: =CHOOSE(MONTH(tbldados[[#This Row],[DATA]]),"JANEIRO","FEVEREIRO","MARÇO","ABRIL","MAIO","JUNHO","JULHO","AGOSTO","SETEMBRO","OUTUBRO","NOVEMBRO","DEZEMBRO") -> FEVEREIRO | P171: =YEAR(tbldados[[#This Row],[DATA]]) -> 2022
A172: 171 | B172: PGTO | C172: 01 DE 01 | D172: NCARD | E172: JANEIRO | F172: CONTA | G172: DÉBITO | H172: DINHEIRO | I172: =VLOOKUP(tbldados[[#This Row],[APP]],tblbandeira[],3,0) -> 0 | J172: 44566 | K172: 44566 | L172: 16.61 | M172: =tbldados[[#This Row],[VALOR PAGO]]+(tbldados[[#This Row],[VALOR PAGO]]*tbldados[[#This Row],[TAXA]]) -> 16.61 | N172: =tbldados[[#This Row],[TOTAL BRUTO]]-tbldados[[#This Row],[VALOR PAGO]] -> 0 | O172: =CHOOSE(MONTH(tbldados[[#This Row],[DATA]]),"JANEIRO","FEVEREIRO","MARÇO","ABRIL","MAIO","JUNHO","JULHO","AGOSTO","SETEMBRO","OUTUBRO","NOVEMBRO","DEZEMBRO") -> JANEIRO | P172: =YEAR(tbldados[[#This Row],[DATA]]) -> 2022
A173: 172 | B173: PGTO | C173: 01 DE 01 | D173: NCARD | E173: JANEIRO | F173: RECARGAPAY | G173: NCARD | H173: CREDITO A VISTA | I173: =VLOOKUP(tbldados[[#This Row],[APP]],tblbandeira[],3,0) -> 0.0349 | J173: 44566 | K173: 44601 | L173: 438.54 | M173: =tbldados[[#This Row],[VALOR PAGO]]+(tbldados[[#This Row],[VALOR PAGO]]*tbldados[[#This Row],[TAXA]]) -> 453.845046 | N173: =tbldados[[#This Row],[TOTAL BRUTO]]-tbldados[[#This Row],[VALOR PAGO]] -> 15.305046 | O173: =CHOOSE(MONTH(tbldados[[#This Row],[DATA]]),"JANEIRO","FEVEREIRO","MARÇO","ABRIL","MAIO","JUNHO","JULHO","AGOSTO","SETEMBRO","OUTUBRO","NOVEMBRO","DEZEMBRO") -> FEVEREIRO | P173: =YEAR(tbldados[[#This Row],[DATA]]) -> 2022
A174: 173 | B174: GASTOS | C174: 01 DE 01 | D174: PGTONCARD | E174: JUNIOR | F174: RECARGAPAY | G174: NCARD | H174: CREDITO A VISTA | I174: =VLOOKUP(tbldados[[#This Row],[APP]],tblbandeira[],3,0) -> 0.0349 | J174: 44566 | K174: 44601 | L174: 438.54 | M174: =tbldados[[#This Row],[VALOR PAGO]]+(tbldados[[#This Row],[VALOR PAGO]]*tbldados[[#This Row],[TAXA]]) -> 453.845046 | N174: =tbldados[[#This Row],[TOTAL BRUTO]]-tbldados[[#This Row],[VALOR PAGO]] -> 15.305046 | O174: =CHOOSE(MONTH(tbldados[[#This Row],[DATA]]),"JANEIRO","FEVEREIRO","MARÇO","ABRIL","MAIO","JUNHO","JULHO","AGOSTO","SETEMBRO","OUTUBRO","NOVEMBRO","DEZEMBRO") -> FEVEREIRO | P174: =YEAR(tbldados[[#This Row],[DATA]]) -> 2022
A175: 174 | B175: GASTOS | C175: 01 DE 01 | D175: PGTONCARD | E175: JUNIOR | F175: RECARGAPAY | G175: AZUL | H175: CREDITO A VISTA | I175: =VLOOKUP(tbldados[[#This Row],[APP]],tblbandeira[],3,0) -> 0.0349 | J175: 44566 | K175: 44598 | L175: 897.98 | M175: =tbldados[[#This Row],[VALOR PAGO]]+(tbldados[[#This Row],[VALOR PAGO]]*tbldados[[#This Row],[TAXA]]) -> 929.319502 | N175: =tbldados[[#This Row],[TOTAL BRUTO]]-tbldados[[#This Row],[VALOR PAGO]] -> 31.339502 | O175: =CHOOSE(MONTH(tbldados[[#This Row],[DATA]]),"JANEIRO","FEVEREIRO","MARÇO","ABRIL","MAIO","JUNHO","JULHO","AGOSTO","SETEMBRO","OUTUBRO","NOVEMBRO","DEZEMBRO") -> FEVEREIRO | P175: =YEAR(tbldados[[#This Row],[DATA]]) -> 2022
A176: 175 | B176: PGTO | C176: 01 DE 01 | D176: PAGMAE | E176: JANEIRO | F176: CONTA | G176: DÉBITO | H176: DINHEIRO | I176: =VLOOKUP(tbldados[[#This Row],[APP]],tblbandeira[],3,0) -> 0 | J176: 44567 | K176: 44567 | L176: 50 | M176: =tbldados[[#This Row],[VALOR PAGO]]+(tbldados[[#This Row],[VALOR PAGO]]*tbldados[[#This Row],[TAXA]]) -> 50 | N176: =tbldados[[#This Row],[TOTAL BRUTO]]-tbldados[[#This Row],[VALOR PAGO]] -> 0 | O176: =CHOOSE(MONTH(tbldados[[#This Row],[DATA]]),"JANEIRO","FEVEREIRO","MARÇO","ABRIL","MAIO","JUNHO","JULHO","AGOSTO","SETEMBRO","OUTUBRO","NOVEMBRO","DEZEMBRO") -> JANEIRO | P176: =YEAR(tbldados[[#This Row],[DATA]]) -> 2022
A177: 176 | B177: PGTO | C177: 01 DE 01 | D177: PAGMAE | E177: JANEIRO | F177: GERAL | G177: C6MAE | H177: CREDITO A VISTA | I177: =VLOOKUP(tbldados[[#This Row],[APP]],tblbandeira[],3,0) -> 0 | J177: 44566 | K177: 44597 | L177: 110 | M177: =tbldados[[#This Row],[VALOR PAGO]]+(tbldados[[#This Row],[VALOR PAGO]]*tbldados[[#This Row],[TAXA]]) -> 110 | N177: =tbldados[[#This Row],[TOTAL BRUTO]]-tbldados[[#This Row],[VALOR PAGO]] -> 0 | O177: =CHOOSE(MONTH(tbldados[[#This Row],[DATA]]),"JANEIRO","FEVEREIRO","MARÇO","ABRIL","MAIO","JUNHO","JULHO","AGOSTO","SETEMBRO","OUTUBRO","NOVEMBRO","DEZEMBRO") -> FEVEREIRO | P177: =YEAR(tbldados[[#This Row],[DATA]]) -> 2022
A178: 177 | B178: GASTOS | C178: 01 DE 01 | D178: PGTOPAGMAE | E178: JUNIOR | F178: GERAL | G178: C6MAE | H178: CREDITO A VISTA | I178: =VLOOKUP(tbldados[[#This Row],[APP]],tblbandeira[],3,0) -> 0 | J178: 44566 | K178: 44597 | L178: 110 | M178: =tbldados[[#This Row],[VALOR PAGO]]+(tbldados[[#This Row],[VALOR PAGO]]*tbldados[[#This Row],[TAXA]]) -> 110 | N178: =tbldados[[#This Row],[TOTAL BRUTO]]-tbldados[[#This Row],[VALOR PAGO]] -> 0 | O178: =CHOOSE(MONTH(tbldados[[#This Row],[DATA]]),"JANEIRO","FEVEREIRO","MARÇO","ABRIL","MAIO","JUNHO","JULHO","AGOSTO","SETEMBRO","OUTUBRO","NOVEMBRO","DEZEMBRO") -> FEVEREIRO | P178: =YEAR(tbldados[[#This Row],[DATA]]) -> 2022
A179: 178 | B179: PGTO | C179: 01 DE 01 | D179: PAGMAE | E179: JANEIRO | F179: RECARGAPAY | G179: NCARD | H179: CREDITO A VISTA | I179: =VLOOKUP(tbldados[[#This Row],[APP]],tblbandeira[],3,0) -> 0.0349 | J179: 44567 | K179: 44601 | L179: 1097.55 | M179: =tbldados[[#This Row],[VALOR PAGO]]+(tbldados[[#This Row],[VALOR PAGO]]*tbldados[[#This Row],[TAXA]]) -> 1135.854495 | N179: =tbldados[[#This Row],[TOTAL BRUTO]]-tbldados[[#This Row],[VALOR PAGO]] -> 38.304495 | O179: =CHOOSE(MONTH(tbldados[[#This Row],[DATA]]),"JANEIRO","FEVEREIRO","MARÇO","ABRIL","MAIO","JUNHO","JULHO","AGOSTO","SETEMBRO","OUTUBRO","NOVEMBRO","DEZEMBRO") -> FEVEREIRO | P179: =YEAR(tbldados[[#This Row],[DATA]]) -> 2022
A180: 179 | B180: GASTOS | C180: 01 DE 01 | D180: PGTOC6MAE | E180: JUNIOR | F180: GERAL | G180: PAGMAE | H180: CREDITO A VISTA | I180: =VLOOKUP(tbldados[[#This Row],[APP]],tblbandeira[],3,0) -> 0 | J180: 44566 | K180: 44602 | L180: 110 | M180: =tbldados[[#This Row],[VALOR PAGO]]+(tbldados[[#This Row],[VALOR PAGO]]*tbldados[[#This Row],[TAXA]]) -> 110 | N180: =tbldados[[#This Row],[TOTAL BRUTO]]-tbldados[[#This Row],[VALOR PAGO]] -> 0 | O180: =CHOOSE(MONTH(tbldados[[#This Row],[DATA]]),"JANEIRO","FEVEREIRO","MARÇO","ABRIL","MAIO","JUNHO","JULHO","AGOSTO","SETEMBRO","OUTUBRO","NOVEMBRO","DEZEMBRO") -> FEVEREIRO | P180: =YEAR(tbldados[[#This Row],[DATA]]) -> 2022
A181: 180 | B181: PGTO | C181: 01 DE 01 | D181: PAGMAE | E181: JANEIRO | F181: GERAL | G181: PAGMAE | H181: CREDITO A VISTA | I181: =VLOOKUP(tbldados[[#This Row],[APP]],tblbandeira[],3,0) -> 0 | J181: 44567 | K181: 44602 | L181: 1280 | M181: =tbldados[[#This Row],[VALOR PAGO]]+(tbldados[[#This Row],[VALOR PAGO]]*tbldados[[#This Row],[TAXA]]) -> 1280 | N181: =tbldados[[#This Row],[TOTAL BRUTO]]-tbldados[[#This Row],[VALOR PAGO]] -> 0 | O181: =CHOOSE(MONTH(tbldados[[#This Row],[DATA]]),"JANEIRO","FEVEREIRO","MARÇO","ABRIL","MAIO","JUNHO","JULHO","AGOSTO","SETEMBRO","OUTUBRO","NOVEMBRO","DEZEMBRO") -> FEVEREIRO | P181: =YEAR(tbldados[[#This Row],[DATA]]) -> 2022
A182: 181 | B182: GASTOS | C182: 01 DE 01 | D182: PGTOMAE4 | E182: JUNIOR | F182: GERAL | G182: PAGMAE | H182: CREDITO A VISTA | I182: =VLOOKUP(tbldados[[#This Row],[APP]],tblbandeira[],3,0) -> 0 | J182: 44567 | K182: 44602 | L182: 1280 | M182: =tbldados[[#This Row],[VALOR PAGO]]+(tbldados[[#This Row],[VALOR PAGO]]*tbldados[[#This Row],[TAXA]]) -> 1280 | N182: =tbldados[[#This Row],[TOTAL BRUTO]]-tbldados[[#This Row],[VALOR PAGO]] -> 0 | O182: =CHOOSE(MONTH(tbldados[[#This Row],[DATA]]),"JANEIRO","FEVEREIRO","MARÇO","ABRIL","MAIO","JUNHO","JULHO","AGOSTO","SETEMBRO","OUTUBRO","NOVEMBRO","DEZEMBRO") -> FEVEREIRO | P182: =YEAR(tbldados[[#This Row],[DATA]]) -> 2022
A183: 182 | B183: PGTO | C183: 01 DE 01 | D183: PAGMAE | E183: JANEIRO | F183: RECARGAPAY | G183: PAGMAE | H183: CREDITO A VISTA | I183: =VLOOKUP(tbldados[[#This Row],[APP]],tblbandeira[],3,0) -> 0.0349 | J183: 44569 | K183: 44602 | L183: 1753.85 | M183: =tbldados[[#This Row],[VALOR PAGO]]+(tbldados[[#This Row],[VALOR PAGO]]*tbldados[[#This Row],[TAXA]]) -> 1815.059365 | N183: =tbldados[[#This Row],[TOTAL BRUTO]]-tbldados[[#This Row],[VALOR PAGO]] -> 61.209365 | O183: =CHOOSE(MONTH(tbldados[[#This Row],[DATA]]),"JANEIRO","FEVEREIRO","MARÇO","ABRIL","MAIO","JUNHO","JULHO","AGOSTO","SETEMBRO","OUTUBRO","NOVEMBRO","DEZEMBRO") -> FEVEREIRO | P183: =YEAR(tbldados[[#This Row],[DATA]]) -> 2022
A184: 183 | B184: GASTOS | C184: 01 DE 01 | D184: PGTOPAGMAE | E184: JUNIOR | F184: RECARGAPAY | G184: PAGMAE | H184: CREDITO A VISTA | I184: =VLOOKUP(tbldados[[#This Row],[APP]],tblbandeira[],3,0) -> 0.0349 | J184: 44569 | K184: 44602 | L184: 1753.85 | M184: =tbldados[[#This Row],[VALOR PAGO]]+(tbldados[[#This Row],[VALOR PAGO]]*tbldados[[#This Row],[TAXA]]) -> 1815.059365 | N184: =tbldados[[#This Row],[TOTAL BRUTO]]-tbldados[[#This Row],[VALOR PAGO]] -> 61.209365 | O184: =CHOOSE(MONTH(tbldados[[#This Row],[DATA]]),"JANEIRO","FEVEREIRO","MARÇO","ABRIL","MAIO","JUNHO","JULHO","AGOSTO","SETEMBRO","OUTUBRO","NOVEMBRO","DEZEMBRO") -> FEVEREIRO | P184: =YEAR(tbldados[[#This Row],[DATA]]) -> 2022
A185: 184 | B185: PGTO | C185: 01 DE 01 | D185: PAGMAE | E185: JANEIRO | F185: RECARGAPAY | G185: PAGMAE | H185: CREDITO A VISTA | I185: =VLOOKUP(tbldados[[#This Row],[APP]],tblbandeira[],3,0) -> 0.0349 | J185: 44570 | K185: 44602 | L185: 1753.84 | M185: =tbldados[[#This Row],[VALOR PAGO]]+(tbldados[[#This Row],[VALOR PAGO]]*tbldados[[#This Row],[TAXA]]) -> 1815.049016 | N185: =tbldados[[#This Row],[TOTAL BRUTO]]-tbldados[[#This Row],[VALOR PAGO]] -> 61.209016 | O185: =CHOOSE(MONTH(tbldados[[#This Row],[DATA]]),"JANEIRO","FEVEREIRO","MARÇO","ABRIL","MAIO","JUNHO","JULHO","AGOSTO","SETEMBRO","OUTUBRO","NOVEMBRO","DEZEMBRO") -> FEVEREIRO | P185: =YEAR(tbldados[[#This Row],[DATA]]) -> 2022
A186: 185 | B186: GASTOS | C186: 01 DE 01 | D186: PGTOPAGMAE | E186: JUNIOR | F186: RECARGAPAY | G186: PAGMAE | H186: CREDITO A VISTA | I186: =VLOOKUP(tbldados[[#This Row],[APP]],tblbandeira[],3,0) -> 0.0349 | J186: 44570 | K186: 44602 | L186: 1753.84 | M186: =tbldados[[#This Row],[VALOR PAGO]]+(tbldados[[#This Row],[VALOR PAGO]]*tbldados[[#This Row],[TAXA]]) -> 1815.049016 | N186: =tbldados[[#This Row],[TOTAL BRUTO]]-tbldados[[#This Row],[VALOR PAGO]] -> 61.209016 | O186: =CHOOSE(MONTH(tbldados[[#This Row],[DATA]]),"JANEIRO","FEVEREIRO","MARÇO","ABRIL","MAIO","JUNHO","JULHO","AGOSTO","SETEMBRO","OUTUBRO","NOVEMBRO","DEZEMBRO") -> FEVEREIRO | P186: =YEAR(tbldados[[#This Row],[DATA]]) -> 2022
A187: 186 | B187: GASTOS | C187: 01 DE 01 | D187: COMIDA | E187: JUNIOR | F187: GERAL | G187: BMG | H187: CREDITO A VISTA | I187: =VLOOKUP(tbldados[[#This Row],[APP]],tblbandeira[],3,0) -> 0 | J187: 44569 | K187: 44586 | L187: 337.97 | M187: =tbldados[[#This Row],[VALOR PAGO]]+(tbldados[[#This Row],[VALOR PAGO]]*tbldados[[#This Row],[TAXA]]) -> 337.97 | N187: =tbldados[[#This Row],[TOTAL BRUTO]]-tbldados[[#This Row],[VALOR PAGO]] -> 0 | O187: =CHOOSE(MONTH(tbldados[[#This Row],[DATA]]),"JANEIRO","FEVEREIRO","MARÇO","ABRIL","MAIO","JUNHO","JULHO","AGOSTO","SETEMBRO","OUTUBRO","NOVEMBRO","DEZEMBRO") -> JANEIRO | P187: =YEAR(tbldados[[#This Row],[DATA]]) -> 2022
A188: 187 | B188: PGTO | C188: 01 DE 01 | D188: NUBANK | E188: JANEIRO | F188: RECARGAPAY | G188: PAGMAE | H188: CREDITO A VISTA | I188: =VLOOKUP(tbldados[[#This Row],[APP]],tblbandeira[],3,0) -> 0.0349 | J188: 44571 | K188: 44602 | L188: 1250 | M188: =tbldados[[#This Row],[VALOR PAGO]]+(tbldados[[#This Row],[VALOR PAGO]]*tbldados[[#This Row],[TAXA]]) -> 1293.625 | N188: =tbldados[[#This Row],[TOTAL BRUTO]]-tbldados[[#This Row],[VALOR PAGO]] -> 43.625 | O188: =CHOOSE(MONTH(tbldados[[#This Row],[DATA]]),"JANEIRO","FEVEREIRO","MARÇO","ABRIL","MAIO","JUNHO","JULHO","AGOSTO","SETEMBRO","OUTUBRO","NOVEMBRO","DEZEMBRO") -> FEVEREIRO | P188: =YEAR(tbldados[[#This Row],[DATA]]) -> 2022
A189: 188 | B189: GASTOS | C189: 01 DE 01 | D189: PGTONUBANK | E189: JUNIOR | F189: RECARGAPAY | G189: PAGMAE | H189: CREDITO A VISTA | I189: =VLOOKUP(tbldados[[#This Row],[APP]],tblbandeira[],3,0) -> 0.0349 | J189: 44571 | K189: 44602 | L189: 1250 | M189: =tbldados[[#This Row],[VALOR PAGO]]+(tbldados[[#This Row],[VALOR PAGO]]*tbldados[[#This Row],[TAXA]]) -> 1293.625 | N189: =tbldados[[#This Row],[TOTAL BRUTO]]-tbldados[[#This Row],[VALOR PAGO]] -> 43.625 | O189: =CHOOSE(MONTH(tbldados[[#This Row],[DATA]]),"JANEIRO","FEVEREIRO","MARÇO","ABRIL","MAIO","JUNHO","JULHO","AGOSTO","SETEMBRO","OUTUBRO","NOVEMBRO","DEZEMBRO") -> FEVEREIRO | P189: =YEAR(tbldados[[#This Row],[DATA]]) -> 2022
A190: 189 | B190: GASTOS | C190: 01 DE 01 | D190: ALMOÇOEJANTA | E190: JUNIOR | F190: GERAL | G190: FREE | H190: CREDITO A VISTA | I190: =VLOOKUP(tbldados[[#This Row],[APP]],tblbandeira[],3,0) -> 0 | J190: 44571 | K190: 44591 | L190: 28.49 | M190: =tbldados[[#This Row],[VALOR PAGO]]+(tbldados[[#This Row],[VALOR PAGO]]*tbldados[[#This Row],[TAXA]]) -> 28.49 | N190: =tbldados[[#This Row],[TOTAL BRUTO]]-tbldados[[#This Row],[VALOR PAGO]] -> 0 | O190: =CHOOSE(MONTH(tbldados[[#This Row],[DATA]]),"JANEIRO","FEVEREIRO","MARÇO","ABRIL","MAIO","JUNHO","JULHO","AGOSTO","SETEMBRO","OUTUBRO","NOVEMBRO","DEZEMBRO") -> JANEIRO | P190: =YEAR(tbldados[[#This Row],[DATA]]) -> 2022
A191: 190 | B191: PGTO | C191: 01 DE 01 | D191: PAN | E191: JANEIRO | F191: RECARGAPAY | G191: PAN | H191: CREDITO A VISTA | I191: =VLOOKUP(tbldados[[#This Row],[APP]],tblbandeira[],3,0) -> 0.0349 | J191: 44571 | K191: 44605 | L191: 75.98 | M191: =tbldados[[#This Row],[VALOR PAGO]]+(tbldados[[#This Row],[VALOR PAGO]]*tbldados[[#This Row],[TAXA]]) -> 78.631702 | N191: =tbldados[[#This Row],[TOTAL BRUTO]]-tbldados[[#This Row],[VALOR PAGO]] -> 2.651702 | O191: =CHOOSE(MONTH(tbldados[[#This Row],[DATA]]),"JANEIRO","FEVEREIRO","MARÇO","ABRIL","MAIO","JUNHO","JULHO","AGOSTO","SETEMBRO","OUTUBRO","NOVEMBRO","DEZEMBRO") -> FEVEREIRO | P191: =YEAR(tbldados[[#This Row],[DATA]]) -> 2022
A192: 191 | B192: GASTOS | C192: 01 DE 01 | D192: PGTOPAN | E192: JUNIOR | F192: RECARGAPAY | G192: PAN | H192: CREDITO A VISTA | I192: =VLOOKUP(tbldados[[#This Row],[APP]],tblbandeira[],3,0) -> 0.0349 | J192: 44571 | K192: 44605 | L192: 75.98 | M192: =tbldados[[#This Row],[VALOR PAGO]]+(tbldados[[#This Row],[VALOR PAGO]]*tbldados[[#This Row],[TAXA]]) -> 78.631702 | N192: =tbldados[[#This Row],[TOTAL BRUTO]]-tbldados[[#This Row],[VALOR PAGO]] -> 2.651702 | O192: =CHOOSE(MONTH(tbldados[[#This Row],[DATA]]),"JANEIRO","FEVEREIRO","MARÇO","ABRIL","MAIO","JUNHO","JULHO","AGOSTO","SETEMBRO","OUTUBRO","NOVEMBRO","DEZEMBRO") -> FEVEREIRO | P192: =YEAR(tbldados[[#This Row],[DATA]]) -> 2022
A193: 192 | B193: GASTOS | C193: 01 DE 01 | D193: JANTA | E193: JUNIOR | F193: GERAL | G193: PAN | H193: CREDITO A VISTA | I193: =VLOOKUP(tbldados[[#This Row],[APP]],tblbandeira[],3,0) -> 0 | J193: 44571 | K193: 44605 | L193: 33 | M193: =tbldados[[#This Row],[VALOR PAGO]]+(tbldados[[#This Row],[VALOR PAGO]]*tbldados[[#This Row],[TAXA]]) -> 33 | N193: =tbldados[[#This Row],[TOTAL BRUTO]]-tbldados[[#This Row],[VALOR PAGO]] -> 0 | O193: =CHOOSE(MONTH(tbldados[[#This Row],[DATA]]),"JANEIRO","FEVEREIRO","MARÇO","ABRIL","MAIO","JUNHO","JULHO","AGOSTO","SETEMBRO","OUTUBRO","NOVEMBRO","DEZEMBRO") -> FEVEREIRO | P193: =YEAR(tbldados[[#This Row],[DATA]]) -> 2022
A194: 193 | B194: PGTO | C194: 01 DE 01 | D194: NUBANK | E194: JANEIRO | F194: RECARGAPAY | G194: NUBANK | H194: CREDITO A VISTA | I194: =VLOOKUP(tbldados[[#This Row],[APP]],tblbandeira[],3,0) -> 0.0349 | J194: 44572 | K194: 44605 | L194: 1160.5 | M194: =tbldados[[#This Row],[VALOR PAGO]]+(tbldados[[#This Row],[VALOR PAGO]]*tbldados[[#This Row],[TAXA]]) -> 1201.00145 | N194: =tbldados[[#This Row],[TOTAL BRUTO]]-tbldados[[#This Row],[VALOR PAGO]] -> 40.50145 | O194: =CHOOSE(MONTH(tbldados[[#This Row],[DATA]]),"JANEIRO","FEVEREIRO","MARÇO","ABRIL","MAIO","JUNHO","JULHO","AGOSTO","SETEMBRO","OUTUBRO","NOVEMBRO","DEZEMBRO") -> FEVEREIRO | P194: =YEAR(tbldados[[#This Row],[DATA]]) -> 2022
A195: 194 | B195: GASTOS | C195: 01 DE 01 | D195: PGTONUBANK | E195: JUNIOR | F195: RECARGAPAY | G195: NUBANK | H195: CREDITO A VISTA | I195: =VLOOKUP(tbldados[[#This Row],[APP]],tblbandeira[],3,0) -> 0.0349 | J195: 44572 | K195: 44605 | L195: 1160.5 | M195: =tbldados[[#This Row],[VALOR PAGO]]+(tbldados[[#This Row],[VALOR PAGO]]*tbldados[[#This Row],[TAXA]]) -> 1201.00145 | N195: =tbldados[[#This Row],[TOTAL BRUTO]]-tbldados[[#This Row],[VALOR PAGO]] -> 40.50145 | O195: =CHOOSE(MONTH(tbldados[[#This Row],[DATA]]),"JANEIRO","FEVEREIRO","MARÇO","ABRIL","MAIO","JUNHO","JULHO","AGOSTO","SETEMBRO","OUTUBRO","NOVEMBRO","DEZEMBRO") -> FEVEREIRO | P195: =YEAR(tbldados[[#This Row],[DATA]]) -> 2022
A196: 195 | B196: PGTO | C196: 01 DE 01 | D196: NUBANK | E196: JANEIRO | F196: RECARGAPAY | G196: NUBANK | H196: CREDITO A VISTA | I196: =VLOOKUP(tbldados[[#This Row],[APP]],tblbandeira[],3,0) -> 0.0349 | J196: 44572 | K196: 44605 | L196: 1160.5 | M196: =tbldados[[#This Row],[VALOR PAGO]]+(tbldados[[#This Row],[VALOR PAGO]]*tbldados[[#This Row],[TAXA]]) -> 1201.00145 | N196: =tbldados[[#This Row],[TOTAL BRUTO]]-tbldados[[#This Row],[VALOR PAGO]] -> 40.50145 | O196: =CHOOSE(MONTH(tbldados[[#This Row],[DATA]]),"JANEIRO","FEVEREIRO","MARÇO","ABRIL","MAIO","JUNHO","JULHO","AGOSTO","SETEMBRO","OUTUBRO","NOVEMBRO","DEZEMBRO") -> FEVEREIRO | P196: =YEAR(tbldados[[#This Row],[DATA]]) -> 2022
A197: 196 | B197: GASTOS | C197: 01 DE 01 | D197: PGTONUBANK | E197: JUNIOR | F197: RECARGAPAY | G197: NUBANK | H197: CREDITO A VISTA | I197: =VLOOKUP(tbldados[[#This Row],[APP]],tblbandeira[],3,0) -> 0.0349 | J197: 44572 | K197: 44605 | L197: 1133.12 | M197: =tbldados[[#This Row],[VALOR PAGO]]+(tbldados[[#This Row],[VALOR PAGO]]*tbldados[[#This Row],[TAXA]]) -> 1172.665888 | N197: =tbldados[[#This Row],[TOTAL BRUTO]]-tbldados[[#This Row],[VALOR PAGO]] -> 39.545888 | O197: =CHOOSE(MONTH(tbldados[[#This Row],[DATA]]),"JANEIRO","FEVEREIRO","MARÇO","ABRIL","MAIO","JUNHO","JULHO","AGOSTO","SETEMBRO","OUTUBRO","NOVEMBRO","DEZEMBRO") -> FEVEREIRO | P197: =YEAR(tbldados[[#This Row],[DATA]]) -> 2022
A198: 197 | B198: PGTO | C198: 01 DE 01 | D198: INTER | E198: JANEIRO | F198: RECARGAPAY | G198: NUBANK | H198: CREDITO A VISTA | I198: =VLOOKUP(tbldados[[#This Row],[APP]],tblbandeira[],3,0) -> 0.0349 | J198: 44573 | K198: 44605 | L198: 1201.87 | M198: =tbldados[[#This Row],[VALOR PAGO]]+(tbldados[[#This Row],[VALOR PAGO]]*tbldados[[#This Row],[TAXA]]) -> 1243.815263 | N198: =tbldados[[#This Row],[TOTAL BRUTO]]-tbldados[[#This Row],[VALOR PAGO]] -> 41.945263 | O198: =CHOOSE(MONTH(tbldados[[#This Row],[DATA]]),"JANEIRO","FEVEREIRO","MARÇO","ABRIL","MAIO","JUNHO","JULHO","AGOSTO","SETEMBRO","OUTUBRO","NOVEMBRO","DEZEMBRO") -> FEVEREIRO | P198: =YEAR(tbldados[[#This Row],[DATA]]) -> 2022
A199: 198 | B199: GASTOS | C199: 01 DE 01 | D199: PGTOINTER | E199: JUNIOR | F199: RECARGAPAY | G199: NUBANK | H199: CREDITO A VISTA | I199: =VLOOKUP(tbldados[[#This Row],[APP]],tblbandeira[],3,0) -> 0.0349 | J199: 44573 | K199: 44605 | L199: 1201.87 | M199: =tbldados[[#This Row],[VALOR PAGO]]+(tbldados[[#This Row],[VALOR PAGO]]*tbldados[[#This Row],[TAXA]]) -> 1243.815263 | N199: =tbldados[[#This Row],[TOTAL BRUTO]]-tbldados[[#This Row],[VALOR PAGO]] -> 41.945263 | O199: =CHOOSE(MONTH(tbldados[[#This Row],[DATA]]),"JANEIRO","FEVEREIRO","MARÇO","ABRIL","MAIO","JUNHO","JULHO","AGOSTO","SETEMBRO","OUTUBRO","NOVEMBRO","DEZEMBRO") -> FEVEREIRO | P199: =YEAR(tbldados[[#This Row],[DATA]]) -> 2022
A200: 199 | B200: PGTO | C200: 01 DE 01 | D200: INTER | E200: JANEIRO | F200: RECARGAPAY | G200: INTER | H200: CREDITO A VISTA | I200: =VLOOKUP(tbldados[[#This Row],[APP]],tblbandeira[],3,0) -> 0.0349 | J200: 44573 | K200: 44607 | L200: 1626.78 | M200: =tbldados[[#This Row],[VALOR PAGO]]+(tbldados[[#This Row],[VALOR PAGO]]*tbldados[[#This Row],[TAXA]]) -> 1683.554622 | N200: =tbldados[[#This Row],[TOTAL BRUTO]]-tbldados[[#This Row],[VALOR PAGO]] -> 56.774622 | O200: =CHOOSE(MONTH(tbldados[[#This Row],[DATA]]),"JANEIRO","FEVEREIRO","MARÇO","ABRIL","MAIO","JUNHO","JULHO","AGOSTO","SETEMBRO","OUTUBRO","NOVEMBRO","DEZEMBRO") -> FEVEREIRO | P200: =YEAR(tbldados[[#This Row],[DATA]]) -> 2022
... 1039 more rows

Sheet AUXILIAR
Z2: ID | AA2: NÃO
B3: CARTÕES | C3: VENCIMENTO | D3: LIMITE | E3: GASTOS | Z3: TIPO | AA3: SIM
B4: AZUL | C4: 6 | D4: 2150 | E4: 2150 | P4: 2000 | Z4: PARCELA | AA4: SIM
B5: BMG | C5: 25 | D5: 350 | E5: 350 | P5: =P4-SUM(P6:P12) -> 681.31 | Z5: DESCRIÇÃO | AA5: SIM
B6: CLICK | C6: 17 | D6: 2300 | E6: 2300 | L6: =560/6 -> 93.33333333 | P6: 149.3 | Z6: REFERENTE | AA6: SIM
B7: CLICKV | C7: 15 | D7: 750 | P7: 314.51 | Z7: APP | AA7: SIM
B8: C6 | C8: 1 | D8: 13500 | E8: 2000 | P8: 680.23 | Z8: CARTÃO | AA8: SIM
B9: C6MAE | C9: 5 | D9: 210 | P9: 115.65 | Z9: FORMA | AA9: SIM
B10: DIGIO | C10: 15 | D10: 880 | P10: 59 | Z10: TAXA | AA10: NÃO
B11: FREE | C11: 30 | D11: 1490 | E11: 1490 | Z11: DATA DA VENDA | AA11: NÃO
B12: GOLD | C12: 23 | D12: 2500 | E12: 2500 | Z12: DATA | AA12: SIM
B13: INTER | C13: 15 | D13: 6500 | E13: 4500 | Z13: VALOR PAGO | AA13: NÃO
B14: MELIUZ | C14: 1 | D14: 1330 | E14: 950 | Z14: TOTAL BRUTO | AA14: SIM
B15: NEON | C15: 15 | D15: 850 | Z15: JUROS | AA15: SIM
B16: NCARD | C16: 9 | D16: 1600 | E16: 1600
B17: NUBANK | C17: 13 | D17: 4350 | E17: 4000
B18: LATAM | C18: 25 | D18: 3800 | E18: 3800
B19: WILL | C19: 20 | D19: 4300 | E19: 2500
B20: PAN | C20: 13 | D20: 560 | E20: 560
B21: PANMAE | C21: 17 | D21: 4110
B22: ZERO | C22: 3 | D22: 1600 | E22: 1600
B23: ORIGINAL | C23: 10 | D23: 528 | E23: 528
B24: TRIGMAE | C24: 20 | D24: 700
B25: MNEXT | C25: 4 | D25: 1200
B26: PAGMAE | C26: 10 | D26: 5400
C27: TOTAL | D27: =SUM(D4:D26) -> 60958 | E27: =SUM(E4:E26) -> 30828

Sheet relatório
A1: RELATÓRIO DE RECEBIMENTOS
B2: RELATÓRIO DE JUNIOR | I2: RELATÓRIO EMETIDO EM: | J2: 44825
I3: HORA: | J3: 22:16:09
B4: PARÂMETROS DO RELATÓRIO:
B5: BANDEIRAS: | E5: AZUL | I5: TOTAL BRUTO:
B6: FORMAS DE PAGEMENTOS: | E6: CREDITO A VISTA | I6: TAXAS:
B7: PERÍODO DO RELATÓRIO: | E7: 01/08/2022 à 30/08/2022 | I7: TOTAL LÍQUIDO:
B9: PARCELA | C9: CARTÃO | D9: FORMA | E9: DESCRIÇÃO | F9: JUROS | G9: DATA DA VENDA | H9: VALOR PAGO | I9: TOTAL BRUTO
B10: 906 | C10: GASTOS | D10: 01 DE 01 | E10: PGTOAZUL | F10: JUNIOR | G10: RECARGAPAY | H10: AZUL | I10: CREDITO A VISTA | J10: 0.0349 | K10: 44746 | L10: 44779 | M10: 603.82 | N10: 624.893318 | O10: 21.073318
B11: 910 | C11: GASTOS | D11: 01 DE 01 | E11: PGTONCARD | F11: JUNIOR | G11: RECARGAPAY | H11: AZUL | I11: CREDITO A VISTA | J11: 0.0349 | K11: 44747 | L11: 44779 | M11: 1464.06 | N11: 1515.155694 | O11: 51.095694

Sheet ANALISE
C2: ANALISE DE PAGAMENTO MENSAL - | F2: =INDEX({"JANEIRO";"FEVEREIRO";"MARÇO";"ABRIL";"MAIO";"JUNHO";"JULHO";"AGOSTO";"SETEMBRO";"OUTUBRO";"NOVEMBRO";"DEZEMBRO"},E5) -> SETEMBRO | N2: HAVER | O2: =SUM(F11:F20)-D6 -> 0.00116
M3: SIMULADOR | R3: SUBTOTAL | S3: =R10+S6 -> 879.996168
C4: CARTÃO | D4: NEON | E4: TIPO | F4: PGTO | G4: JUNIOR | M4: LIMTE | N4: =VLOOKUP(D4,TBLVENLIM[],3,0) -> 850 | O4: TAXA | P4: 0.0349 | S4: 850.32 | X4: SIMULADOR
C5: VENCIMENTO | D5: =DATE(ANNO,E5,VLOOKUP(D4,TBLVENLIM[],2,0)) -> 44819 | E5: 9 | F5: =E5+1 -> 10 | M5: DISPONIVEL | N5: =N4-R10 -> 850 | O5: JUROS | P5: =SUMIFS(tbldados[JUROS],tbldados[DESCRIÇÃO],ANALISE!D4,tbldados[REFERENTE],ANALISE!F2) -> 38.739 | R5: TAXA | S5: =S4*P4 -> 29.676168 | X5: VALOR
C6: VALOR | D6: =SUM(ANALISE!$O$11:$O$40) -> 1109.99884 | M6: UTILIZAR | N6: =N5-R10 -> 850 | R6: FINAL | S6: =S4+S5 -> 879.996168 | X6: TAXA
C7: RESTANTE | D7: =D6-SUM(F11:F40) -> -0.00116 | R7: ANTERIOR | S7: =SUM(ANALISE!$O$11:$O$20) -> 1109.99884 | X7: TOTAL | Y7: =Y5*Y6 -> 0
C8: DINHEIRO | D8: =SUMIF(C11:C121,"DINHEIRO",F11:F121) -> 0 | F8: =DATE(ANNO,F5,VLOOKUP(D4,TBLVENLIM[],2,0)) -> 44849 | M8: TIPO | N8: GASTOS | O8: JUNIOR | P8: =D4 -> NEON | R8: TOTAL | S8: =SUM(S6:S7) -> 1989.995008
C9: JUROS | D9: =SUM(G11:G40)-SUM(F11:F40) -> 38.739 | R9: PR. FATURA | S9: =S6+R10 -> 879.996168
B10: ID | C10: TIPO | D10: FORMA | E10: DESCRIÇÃO | F10: VALOR PAGO | G10: TOTAL BRUTO | H10: CARTÃO | L10: ID | M10: DATA DA VENDA | N10: DESCRIÇÃO | O10: TOTAL BRUTO | P10: PARCELA | R10: =SUM(R11:R30) -> 0 | S10: 1500
B11: =IFERROR(INDEX(tbldados[ID],SMALL(IF(FREQUENCY(IF((tbldados[REFERENTE]=$F$2)*(tbldados[DESCRIÇÃO]=$D$4)*(tbldados[TIPO]=$F$4),MATCH(tbldados[ID],tbldados[ID],0)),ROW(tbldados[ID])-ROW('BASE DE DADOS'!$J$2)+1),ROW(tbldados[])-ROW('BASE DE DADOS'!$J$2)+1),ROWS($1:1))),"") -> 1237 | C11: =IFERROR(INDEX(tbldados[],MATCH(ANALISE!$B11,tbldados[[ID]:[ID]],0),MATCH(ANALISE!C$10,'BASE DE DADOS'!$A$1:$N$1,0)),"") -> PGTO | D11: =IFERROR(INDEX(tbldados[],MATCH(ANALISE!$B11,tbldados[[ID]:[ID]],0),MATCH(ANALISE!D$10,'BASE DE DADOS'!$A$1:$N$1,0)),"") -> CREDITO A VISTA | E11: =IFERROR(INDEX(tbldados[],MATCH(ANALISE!$B11,tbldados[[ID]:[ID]],0),MATCH(ANALISE!E$10,'BASE DE DADOS'!$A$1:$N$1,0)),"") -> NEON | F11: =IFERROR(INDEX(tbldados[],MATCH(ANALISE!$B11,tbldados[[ID]:[ID]],0),MATCH(ANALISE!F$10,'BASE DE DADOS'!$A$1:$N$1,0)),"") -> 1110 | G11: =IFERROR(INDEX(tbldados[],MATCH(ANALISE!$B11,tbldados[[ID]:[ID]],0),MATCH(ANALISE!G$10,'BASE DE DADOS'!$A$1:$N$1,0)),"") -> 1148.739 | H11: =IFERROR(INDEX(tbldados[],MATCH(ANALISE!$B11,tbldados[[ID]:[ID]],0),MATCH(ANALISE!H$10,'BASE DE DADOS'!$A$1:$N$1,0)),"") -> TRIGMAE | K11: =IFERROR(INDEX(tbldados[ID],SMALL(IF(FREQUENCY(IF((tbldados[REFERENTE]=$O$8)*(tbldados[DATA]=$F$8)*(tbldados[TIPO]=$N$8)*(tbldados[CARTÃO]=$P$8),MATCH(tbldados[ID],tbldados[ID],0)),ROW(tbldados[ID])-ROW('BASE DE DADOS'!$J$2)+1),ROW(tbldados[])-ROW('BASE DE DADOS'!$J$2)+1),ROWS($1:1))),"") ->  | L11: =IFERROR(INDEX(tbldados[ID],SMALL(IF(FREQUENCY(IF((tbldados[REFERENTE]=$O$8)*(tbldados[DATA]=$D$5)*(tbldados[TIPO]=$N$8)*(tbldados[CARTÃO]=$P$8),MATCH(tbldados[ID],tbldados[ID],0)),ROW(tbldados[ID])-ROW('BASE DE DADOS'!$J$2)+1),ROW(tbldados[])-ROW('BASE DE DADOS'!$J$2)+1),ROWS($1:1))),"") -> 1114 | M11: =IFERROR(INDEX(tbldados[],MATCH(ANALISE!$L11,tbldados[[ID]:[ID]],0),MATCH(ANALISE!M$10,'BASE DE DADOS'!$A$1:$N$1,0)),"") -> 44800 | N11: =IFERROR(INDEX(tbldados[],MATCH(ANALISE!$L11,tbldados[[ID]:[ID]],0),MATCH(ANALISE!N$10,'BASE DE DADOS'!$A$1:$N$1,0)),"") -> PGTOPANMELIUZ | O11: =IFERROR(INDEX(tbldados[],MATCH(ANALISE!$L11,tbldados[[ID]:[ID]],0),MATCH(ANALISE!O$10,'BASE DE DADOS'!$A$1:$N$1,0)),"") -> 1108.99884 | P11: =IFERROR(INDEX(tbldados[],MATCH(ANALISE!$L11,tbldados[[ID]:[ID]],0),MATCH(ANALISE!P$10,'BASE DE DADOS'!$A$1:$N$1,0)),"") -> 01 DE 01 | R11: =IFERROR(INDEX(tbldados[],MATCH(ANALISE!$K11,tbldados[[ID]:[ID]],0),MATCH(ANALISE!O$10,'BASE DE DADOS'!$A$1:$N$1,0)),"") ->  | S11: 210
B12: =IFERROR(INDEX(tbldados[ID],SMALL(IF(FREQUENCY(IF((tbldados[REFERENTE]=$F$2)*(tbldados[DESCRIÇÃO]=$D$4)*(tbldados[TIPO]=$F$4),MATCH(tbldados[ID],tbldados[ID],0)),ROW(tbldados[ID])-ROW('BASE DE DADOS'!$J$2)+1),ROW(tbldados[])-ROW('BASE DE DADOS'!$J$2)+1),ROWS($1:2))),"") ->  | C12: =IFERROR(INDEX(tbldados[],MATCH(ANALISE!$B12,tbldados[[ID]:[ID]],0),MATCH(ANALISE!C$10,'BASE DE DADOS'!$A$1:$N$1,0)),"") ->  | D12: =IFERROR(INDEX(tbldados[],MATCH(ANALISE!$B12,tbldados[[ID]:[ID]],0),MATCH(ANALISE!D$10,'BASE DE DADOS'!$A$1:$N$1,0)),"") ->  | E12: =IFERROR(INDEX(tbldados[],MATCH(ANALISE!$B12,tbldados[[ID]:[ID]],0),MATCH(ANALISE!E$10,'BASE DE DADOS'!$A$1:$N$1,0)),"") ->  | F12: =IFERROR(INDEX(tbldados[],MATCH(ANALISE!$B12,tbldados[[ID]:[ID]],0),MATCH(ANALISE!F$10,'BASE DE DADOS'!$A$1:$N$1,0)),"") ->  | G12: =IFERROR(INDEX(tbldados[],MATCH(ANALISE!$B12,tbldados[[ID]:[ID]],0),MATCH(ANALISE!G$10,'BASE DE DADOS'!$A$1:$N$1,0)),"") ->  | H12: =IFERROR(INDEX(tbldados[],MATCH(ANALISE!$B12,tbldados[[ID]:[ID]],0),MATCH(ANALISE!H$10,'BASE DE DADOS'!$A$1:$N$1,0)),"") ->  | K12: =IFERROR(INDEX(tbldados[ID],SMALL(IF(FREQUENCY(IF((tbldados[REFERENTE]=$O$8)*(tbldados[DATA]=$F$8)*(tbldados[TIPO]=$N$8)*(tbldados[CARTÃO]=$P$8),MATCH(tbldados[ID],tbldados[ID],0)),ROW(tbldados[ID])-ROW('BASE DE DADOS'!$J$2)+1),ROW(tbldados[])-ROW('BASE DE DADOS'!$J$2)+1),ROWS($1:2))),"") ->  | L12: =IFERROR(INDEX(tbldados[ID],SMALL(IF(FREQUENCY(IF((tbldados[REFERENTE]=$O$8)*(tbldados[DATA]=$D$5)*(tbldados[TIPO]=$N$8)*(tbldados[CARTÃO]=$P$8),MATCH(tbldados[ID],tbldados[ID],0)),ROW(tbldados[ID])-ROW('BASE DE DADOS'!$J$2)+1),ROW(tbldados[])-ROW('BASE DE DADOS'!$J$2)+1),ROWS($1:2))),"") -> 1236 | M12: =IFERROR(INDEX(tbldados[],MATCH(ANALISE!$L12,tbldados[[ID]:[ID]],0),MATCH(ANALISE!M$10,'BASE DE DADOS'!$A$1:$N$1,0)),"") -> 44794 | N12: =IFERROR(INDEX(tbldados[],MATCH(ANALISE!$L12,tbldados[[ID]:[ID]],0),MATCH(ANALISE!N$10,'BASE DE DADOS'!$A$1:$N$1,0)),"") -> TESTE | O12: =IFERROR(INDEX(tbldados[],MATCH(ANALISE!$L12,tbldados[[ID]:[ID]],0),MATCH(ANALISE!O$10,'BASE DE DADOS'!$A$1:$N$1,0)),"") -> 1 | P12: =IFERROR(INDEX(tbldados[],MATCH(ANALISE!$L12,tbldados[[ID]:[ID]],0),MATCH(ANALISE!P$10,'BASE DE DADOS'!$A$1:$N$1,0)),"") -> 01 DE 01 | R12: =IFERROR(INDEX(tbldados[],MATCH(ANALISE!$K12,tbldados[[ID]:[ID]],0),MATCH(ANALISE!O$10,'BASE DE DADOS'!$A$1:$N$1,0)),"") -> 
B13: =IFERROR(INDEX(tbldados[ID],SMALL(IF(FREQUENCY(IF((tbldados[REFERENTE]=$F$2)*(tbldados[DESCRIÇÃO]=$D$4)*(tbldados[TIPO]=$F$4),MATCH(tbldados[ID],tbldados[ID],0)),ROW(tbldados[ID])-ROW('BASE DE DADOS'!$J$2)+1),ROW(tbldados[])-ROW('BASE DE DADOS'!$J$2)+1),ROWS($1:3))),"") ->  | C13: =IFERROR(INDEX(tbldados[],MATCH(ANALISE!$B13,tbldados[[ID]:[ID]],0),MATCH(ANALISE!C$10,'BASE DE DADOS'!$A$1:$N$1,0)),"") ->  | D13: =IFERROR(INDEX(tbldados[],MATCH(ANALISE!$B13,tbldados[[ID]:[ID]],0),MATCH(ANALISE!D$10,'BASE DE DADOS'!$A$1:$N$1,0)),"") ->  | E13: =IFERROR(INDEX(tbldados[],MATCH(ANALISE!$B13,tbldados[[ID]:[ID]],0),MATCH(ANALISE!E$10,'BASE DE DADOS'!$A$1:$N$1,0)),"") ->  | F13: =IFERROR(INDEX(tbldados[],MATCH(ANALISE!$B13,tbldados[[ID]:[ID]],0),MATCH(ANALISE!F$10,'BASE DE DADOS'!$A$1:$N$1,0)),"") ->  | G13: =IFERROR(INDEX(tbldados[],MATCH(ANALISE!$B13,tbldados[[ID]:[ID]],0),MATCH(ANALISE!G$10,'BASE DE DADOS'!$A$1:$N$1,0)),"") ->  | H13: =IFERROR(INDEX(tbldados[],MATCH(ANALISE!$B13,tbldados[[ID]:[ID]],0),MATCH(ANALISE!H$10,'BASE DE DADOS'!$A$1:$N$1,0)),"") ->  | I13: =IFERROR(INDEX(tbldados[TIPO],SMALL(IF(FREQUENCY(IF((tbldados[CARTÃO]=$D$4)*(tbldados[DATA]=$D$5),MATCH(tbldados[TIPO],tbldados[TIPO],0)),ROW(tbldados[TIPO])-ROW('BASE DE DADOS'!#REF!)+1),ROW(tbldados[])-ROW('BASE DE DADOS'!#REF!)+1),ROWS($1:2))),"") ->  | K13: =IFERROR(INDEX(tbldados[ID],SMALL(IF(FREQUENCY(IF((tbldados[REFERENTE]=$O$8)*(tbldados[DATA]=$F$8)*(tbldados[TIPO]=$N$8)*(tbldados[CARTÃO]=$P$8),MATCH(tbldados[ID],tbldados[ID],0)),ROW(tbldados[ID])-ROW('BASE DE DADOS'!$J$2)+1),ROW(tbldados[])-ROW('BASE DE DADOS'!$J$2)+1),ROWS($1:3))),"") ->  | L13: =IFERROR(INDEX(tbldados[ID],SMALL(IF(FREQUENCY(IF((tbldados[REFERENTE]=$O$8)*(tbldados[DATA]=$D$5)*(tbldados[TIPO]=$N$8)*(tbldados[CARTÃO]=$P$8),MATCH(tbldados[ID],tbldados[ID],0)),ROW(tbldados[ID])-ROW('BASE DE DADOS'!$J$2)+1),ROW(tbldados[])-ROW('BASE DE DADOS'!$J$2)+1),ROWS($1:3))),"") ->  | M13: =IFERROR(INDEX(tbldados[],MATCH(ANALISE!$L13,tbldados[[ID]:[ID]],0),MATCH(ANALISE!M$10,'BASE DE DADOS'!$A$1:$N$1,0)),"") ->  | N13: =IFERROR(INDEX(tbldados[],MATCH(ANALISE!$L13,tbldados[[ID]:[ID]],0),MATCH(ANALISE!N$10,'BASE DE DADOS'!$A$1:$N$1,0)),"") ->  | O13: =IFERROR(INDEX(tbldados[],MATCH(ANALISE!$L13,tbldados[[ID]:[ID]],0),MATCH(ANALISE!O$10,'BASE DE DADOS'!$A$1:$N$1,0)),"") ->  | P13: =IFERROR(INDEX(tbldados[],MATCH(ANALISE!$L13,tbldados[[ID]:[ID]],0),MATCH(ANALISE!P$10,'BASE DE DADOS'!$A$1:$N$1,0)),"") ->  | R13: =IFERROR(INDEX(tbldados[],MATCH(ANALISE!$K13,tbldados[[ID]:[ID]],0),MATCH(ANALISE!O$10,'BASE DE DADOS'!$A$1:$N$1,0)),"") -> 
B14: =IFERROR(INDEX(tbldados[ID],SMALL(IF(FREQUENCY(IF((tbldados[REFERENTE]=$F$2)*(tbldados[DESCRIÇÃO]=$D$4)*(tbldados[TIPO]=$F$4),MATCH(tbldados[ID],tbldados[ID],0)),ROW(tbldados[ID])-ROW('BASE DE DADOS'!$J$2)+1),ROW(tbldados[])-ROW('BASE DE DADOS'!$J$2)+1),ROWS($1:4))),"") ->  | C14: =IFERROR(INDEX(tbldados[],MATCH(ANALISE!$B14,tbldados[[ID]:[ID]],0),MATCH(ANALISE!C$10,'BASE DE DADOS'!$A$1:$N$1,0)),"") ->  | D14: =IFERROR(INDEX(tbldados[],MATCH(ANALISE!$B14,tbldados[[ID]:[ID]],0),MATCH(ANALISE!D$10,'BASE DE DADOS'!$A$1:$N$1,0)),"") ->  | E14: =IFERROR(INDEX(tbldados[],MATCH(ANALISE!$B14,tbldados[[ID]:[ID]],0),MATCH(ANALISE!E$10,'BASE DE DADOS'!$A$1:$N$1,0)),"") ->  | F14: =IFERROR(INDEX(tbldados[],MATCH(ANALISE!$B14,tbldados[[ID]:[ID]],0),MATCH(ANALISE!F$10,'BASE DE DADOS'!$A$1:$N$1,0)),"") ->  | G14: =IFERROR(INDEX(tbldados[],MATCH(ANALISE!$B14,tbldados[[ID]:[ID]],0),MATCH(ANALISE!G$10,'BASE DE DADOS'!$A$1:$N$1,0)),"") ->  | H14: =IFERROR(INDEX(tbldados[],MATCH(ANALISE!$B14,tbldados[[ID]:[ID]],0),MATCH(ANALISE!H$10,'BASE DE DADOS'!$A$1:$N$1,0)),"") ->  | I14: =IFERROR(INDEX(tbldados[TIPO],SMALL(IF(FREQUENCY(IF((tbldados[CARTÃO]=$D$4)*(tbldados[DATA]=$D$5),MATCH(tbldados[TIPO],tbldados[TIPO],0)),ROW(tbldados[TIPO])-ROW('BASE DE DADOS'!#REF!)+1),ROW(tbldados[])-ROW('BASE DE DADOS'!#REF!)+1),ROWS($1:3))),"") ->  | K14: =IFERROR(INDEX(tbldados[ID],SMALL(IF(FREQUENCY(IF((tbldados[REFERENTE]=$O$8)*(tbldados[DATA]=$F$8)*(tbldados[TIPO]=$N$8)*(tbldados[CARTÃO]=$P$8),MATCH(tbldados[ID],tbldados[ID],0)),ROW(tbldados[ID])-ROW('BASE DE DADOS'!$J$2)+1),ROW(tbldados[])-ROW('BASE DE DADOS'!$J$2)+1),ROWS($1:4))),"") ->  | L14: =IFERROR(INDEX(tbldados[ID],SMALL(IF(FREQUENCY(IF((tbldados[REFERENTE]=$O$8)*(tbldados[DATA]=$D$5)*(tbldados[TIPO]=$N$8)*(tbldados[CARTÃO]=$P$8),MATCH(tbldados[ID],tbldados[ID],0)),ROW(tbldados[ID])-ROW('BASE DE DADOS'!$J$2)+1),ROW(tbldados[])-ROW('BASE DE DADOS'!$J$2)+1),ROWS($1:4))),"") ->  | M14: =IFERROR(INDEX(tbldados[],MATCH(ANALISE!$L14,tbldados[[ID]:[ID]],0),MATCH(ANALISE!M$10,'BASE DE DADOS'!$A$1:$N$1,0)),"") ->  | N14: =IFERROR(INDEX(tbldados[],MATCH(ANALISE!$L14,tbldados[[ID]:[ID]],0),MATCH(ANALISE!N$10,'BASE DE DADOS'!$A$1:$N$1,0)),"") ->  | O14: =IFERROR(INDEX(tbldados[],MATCH(ANALISE!$L14,tbldados[[ID]:[ID]],0),MATCH(ANALISE!O$10,'BASE DE DADOS'!$A$1:$N$1,0)),"") ->  | P14: =IFERROR(INDEX(tbldados[],MATCH(ANALISE!$L14,tbldados[[ID]:[ID]],0),MATCH(ANALISE!P$10,'BASE DE DADOS'!$A$1:$N$1,0)),"") ->  | R14: =IFERROR(INDEX(tbldados[],MATCH(ANALISE!$K14,tbldados[[ID]:[ID]],0),MATCH(ANALISE!O$10,'BASE DE DADOS'!$A$1:$N$1,0)),"") -> 
B15: =IFERROR(INDEX(tbldados[ID],SMALL(IF(FREQUENCY(IF((tbldados[REFERENTE]=$F$2)*(tbldados[DESCRIÇÃO]=$D$4)*(tbldados[TIPO]=$F$4),MATCH(tbldados[ID],tbldados[ID],0)),ROW(tbldados[ID])-ROW('BASE DE DADOS'!$J$2)+1),ROW(tbldados[])-ROW('BASE DE DADOS'!$J$2)+1),ROWS($1:5))),"") ->  | C15: =IFERROR(INDEX(tbldados[],MATCH(ANALISE!$B15,tbldados[[ID]:[ID]],0),MATCH(ANALISE!C$10,'BASE DE DADOS'!$A$1:$N$1,0)),"") ->  | D15: =IFERROR(INDEX(tbldados[],MATCH(ANALISE!$B15,tbldados[[ID]:[ID]],0),MATCH(ANALISE!D$10,'BASE DE DADOS'!$A$1:$N$1,0)),"") ->  | E15: =IFERROR(INDEX(tbldados[],MATCH(ANALISE!$B15,tbldados[[ID]:[ID]],0),MATCH(ANALISE!E$10,'BASE DE DADOS'!$A$1:$N$1,0)),"") ->  | F15: =IFERROR(INDEX(tbldados[],MATCH(ANALISE!$B15,tbldados[[ID]:[ID]],0),MATCH(ANALISE!F$10,'BASE DE DADOS'!$A$1:$N$1,0)),"") ->  | G15: =IFERROR(INDEX(tbldados[],MATCH(ANALISE!$B15,tbldados[[ID]:[ID]],0),MATCH(ANALISE!G$10,'BASE DE DADOS'!$A$1:$N$1,0)),"") ->  | H15: =IFERROR(INDEX(tbldados[],MATCH(ANALISE!$B15,tbldados[[ID]:[ID]],0),MATCH(ANALISE!H$10,'BASE DE DADOS'!$A$1:$N$1,0)),"") ->  | K15: =IFERROR(INDEX(tbldados[ID],SMALL(IF(FREQUENCY(IF((tbldados[REFERENTE]=$O$8)*(tbldados[DATA]=$F$8)*(tbldados[TIPO]=$N$8)*(tbldados[CARTÃO]=$P$8),MATCH(tbldados[ID],tbldados[ID],0)),ROW(tbldados[ID])-ROW('BASE DE DADOS'!$J$2)+1),ROW(tbldados[])-ROW('BASE DE DADOS'!$J$2)+1),ROWS($1:5))),"") ->  | L15: =IFERROR(INDEX(tbldados[ID],SMALL(IF(FREQUENCY(IF((tbldados[REFERENTE]=$O$8)*(tbldados[DATA]=$D$5)*(tbldados[TIPO]=$N$8)*(tbldados[CARTÃO]=$P$8),MATCH(tbldados[ID],tbldados[ID],0)),ROW(tbldados[ID])-ROW('BASE DE DADOS'!$J$2)+1),ROW(tbldados[])-ROW('BASE DE DADOS'!$J$2)+1),ROWS($1:5))),"") ->  | M15: =IFERROR(INDEX(tbldados[],MATCH(ANALISE!$L15,tbldados[[ID]:[ID]],0),MATCH(ANALISE!M$10,'BASE DE DADOS'!$A$1:$N$1,0)),"") ->  | N15: =IFERROR(INDEX(tbldados[],MATCH(ANALISE!$L15,tbldados[[ID]:[ID]],0),MATCH(ANALISE!N$10,'BASE DE DADOS'!$A$1:$N$1,0)),"") ->  | O15: =IFERROR(INDEX(tbldados[],MATCH(ANALISE!$L15,tbldados[[ID]:[ID]],0),MATCH(ANALISE!O$10,'BASE DE DADOS'!$A$1:$N$1,0)),"") ->  | P15: =IFERROR(INDEX(tbldados[],MATCH(ANALISE!$L15,tbldados[[ID]:[ID]],0),MATCH(ANALISE!P$10,'BASE DE DADOS'!$A$1:$N$1,0)),"") ->  | R15: =IFERROR(INDEX(tbldados[],MATCH(ANALISE!$K15,tbldados[[ID]:[ID]],0),MATCH(ANALISE!O$10,'BASE DE DADOS'!$A$1:$N$1,0)),"") -> 
B16: =IFERROR(INDEX(tbldados[ID],SMALL(IF(FREQUENCY(IF((tbldados[REFERENTE]=$F$2)*(tbldados[DESCRIÇÃO]=$D$4)*(tbldados[TIPO]=$F$4),MATCH(tbldados[ID],tbldados[ID],0)),ROW(tbldados[ID])-ROW('BASE DE DADOS'!$J$2)+1),ROW(tbldados[])-ROW('BASE DE DADOS'!$J$2)+1),ROWS($1:6))),"") ->  | C16: =IFERROR(INDEX(tbldados[],MATCH(ANALISE!$B16,tbldados[[ID]:[ID]],0),MATCH(ANALISE!C$10,'BASE DE DADOS'!$A$1:$N$1,0)),"") ->  | D16: =IFERROR(INDEX(tbldados[],MATCH(ANALISE!$B16,tbldados[[ID]:[ID]],0),MATCH(ANALISE!D$10,'BASE DE DADOS'!$A$1:$N$1,0)),"") ->  | E16: =IFERROR(INDEX(tbldados[],MATCH(ANALISE!$B16,tbldados[[ID]:[ID]],0),MATCH(ANALISE!E$10,'BASE DE DADOS'!$A$1:$N$1,0)),"") ->  | F16: =IFERROR(INDEX(tbldados[],MATCH(ANALISE!$B16,tbldados[[ID]:[ID]],0),MATCH(ANALISE!F$10,'BASE DE DADOS'!$A$1:$N$1,0)),"") ->  | G16: =IFERROR(INDEX(tbldados[],MATCH(ANALISE!$B16,tbldados[[ID]:[ID]],0),MATCH(ANALISE!G$10,'BASE DE DADOS'!$A$1:$N$1,0)),"") ->  | H16: =IFERROR(INDEX(tbldados[],MATCH(ANALISE!$B16,tbldados[[ID]:[ID]],0),MATCH(ANALISE!H$10,'BASE DE DADOS'!$A$1:$N$1,0)),"") ->  | K16: =IFERROR(INDEX(tbldados[ID],SMALL(IF(FREQUENCY(IF((tbldados[REFERENTE]=$O$8)*(tbldados[DATA]=$F$8)*(tbldados[TIPO]=$N$8)*(tbldados[CARTÃO]=$P$8),MATCH(tbldados[ID],tbldados[ID],0)),ROW(tbldados[ID])-ROW('BASE DE DADOS'!$J$2)+1),ROW(tbldados[])-ROW('BASE DE DADOS'!$J$2)+1),ROWS($1:6))),"") ->  | L16: =IFERROR(INDEX(tbldados[ID],SMALL(IF(FREQUENCY(IF((tbldados[REFERENTE]=$O$8)*(tbldados[DATA]=$D$5)*(tbldados[TIPO]=$N$8)*(tbldados[CARTÃO]=$P$8),MATCH(tbldados[ID],tbldados[ID],0)),ROW(tbldados[ID])-ROW('BASE DE DADOS'!$J$2)+1),ROW(tbldados[])-ROW('BASE DE DADOS'!$J$2)+1),ROWS($1:6))),"") ->  | M16: =IFERROR(INDEX(tbldados[],MATCH(ANALISE!$L16,tbldados[[ID]:[ID]],0),MATCH(ANALISE!M$10,'BASE DE DADOS'!$A$1:$N$1,0)),"") ->  | N16: =IFERROR(INDEX(tbldados[],MATCH(ANALISE!$L16,tbldados[[ID]:[ID]],0),MATCH(ANALISE!N$10,'BASE DE DADOS'!$A$1:$N$1,0)),"") ->  | O16: =IFERROR(INDEX(tbldados[],MATCH(ANALISE!$L16,tbldados[[ID]:[ID]],0),MATCH(ANALISE!O$10,'BASE DE DADOS'!$A$1:$N$1,0)),"") ->  | P16: =IFERROR(INDEX(tbldados[],MATCH(ANALISE!$L16,tbldados[[ID]:[ID]],0),MATCH(ANALISE!P$10,'BASE DE DADOS'!$A$1:$N$1,0)),"") ->  | R16: =IFERROR(INDEX(tbldados[],MATCH(ANALISE!$K16,tbldados[[ID]:[ID]],0),MATCH(ANALISE!O$10,'BASE DE DADOS'!$A$1:$N$1,0)),"") -> 
B17: =IFERROR(INDEX(tbldados[ID],SMALL(IF(FREQUENCY(IF((tbldados[REFERENTE]=$F$2)*(tbldados[DESCRIÇÃO]=$D$4)*(tbldados[TIPO]=$F$4),MATCH(tbldados[ID],tbldados[ID],0)),ROW(tbldados[ID])-ROW('BASE DE DADOS'!$J$2)+1),ROW(tbldados[])-ROW('BASE DE DADOS'!$J$2)+1),ROWS($1:7))),"") ->  | C17: =IFERROR(INDEX(tbldados[],MATCH(ANALISE!$B17,tbldados[[ID]:[ID]],0),MATCH(ANALISE!C$10,'BASE DE DADOS'!$A$1:$N$1,0)),"") ->  | D17: =IFERROR(INDEX(tbldados[],MATCH(ANALISE!$B17,tbldados[[ID]:[ID]],0),MATCH(ANALISE!D$10,'BASE DE DADOS'!$A$1:$N$1,0)),"") ->  | E17: =IFERROR(INDEX(tbldados[],MATCH(ANALISE!$B17,tbldados[[ID]:[ID]],0),MATCH(ANALISE!E$10,'BASE DE DADOS'!$A$1:$N$1,0)),"") ->  | F17: =IFERROR(INDEX(tbldados[],MATCH(ANALISE!$B17,tbldados[[ID]:[ID]],0),MATCH(ANALISE!F$10,'BASE DE DADOS'!$A$1:$N$1,0)),"") ->  | G17: =IFERROR(INDEX(tbldados[],MATCH(ANALISE!$B17,tbldados[[ID]:[ID]],0),MATCH(ANALISE!G$10,'BASE DE DADOS'!$A$1:$N$1,0)),"") ->  | H17: =IFERROR(INDEX(tbldados[],MATCH(ANALISE!$B17,tbldados[[ID]:[ID]],0),MATCH(ANALISE!H$10,'BASE DE DADOS'!$A$1:$N$1,0)),"") ->  | K17: =IFERROR(INDEX(tbldados[ID],SMALL(IF(FREQUENCY(IF((tbldados[REFERENTE]=$O$8)*(tbldados[DATA]=$F$8)*(tbldados[TIPO]=$N$8)*(tbldados[CARTÃO]=$P$8),MATCH(tbldados[ID],tbldados[ID],0)),ROW(tbldados[ID])-ROW('BASE DE DADOS'!$J$2)+1),ROW(tbldados[])-ROW('BASE DE DADOS'!$J$2)+1),ROWS($1:7))),"") ->  | L17: =IFERROR(INDEX(tbldados[ID],SMALL(IF(FREQUENCY(IF((tbldados[REFERENTE]=$O$8)*(tbldados[DATA]=$D$5)*(tbldados[TIPO]=$N$8)*(tbldados[CARTÃO]=$P$8),MATCH(tbldados[ID],tbldados[ID],0)),ROW(tbldados[ID])-ROW('BASE DE DADOS'!$J$2)+1),ROW(tbldados[])-ROW('BASE DE DADOS'!$J$2)+1),ROWS($1:7))),"") ->  | M17: =IFERROR(INDEX(tbldados[],MATCH(ANALISE!$L17,tbldados[[ID]:[ID]],0),MATCH(ANALISE!M$10,'BASE DE DADOS'!$A$1:$N$1,0)),"") ->  | N17: =IFERROR(INDEX(tbldados[],MATCH(ANALISE!$L17,tbldados[[ID]:[ID]],0),MATCH(ANALISE!N$10,'BASE DE DADOS'!$A$1:$N$1,0)),"") ->  | O17: =IFERROR(INDEX(tbldados[],MATCH(ANALISE!$L17,tbldados[[ID]:[ID]],0),MATCH(ANALISE!O$10,'BASE DE DADOS'!$A$1:$N$1,0)),"") ->  | P17: =IFERROR(INDEX(tbldados[],MATCH(ANALISE!$L17,tbldados[[ID]:[ID]],0),MATCH(ANALISE!P$10,'BASE DE DADOS'!$A$1:$N$1,0)),"") ->  | R17: =IFERROR(INDEX(tbldados[],MATCH(ANALISE!$K17,tbldados[[ID]:[ID]],0),MATCH(ANALISE!O$10,'BASE DE DADOS'!$A$1:$N$1,0)),"") -> 
B18: =IFERROR(INDEX(tbldados[ID],SMALL(IF(FREQUENCY(IF((tbldados[REFERENTE]=$F$2)*(tbldados[DESCRIÇÃO]=$D$4)*(tbldados[TIPO]=$F$4),MATCH(tbldados[ID],tbldados[ID],0)),ROW(tbldados[ID])-ROW('BASE DE DADOS'!$J$2)+1),ROW(tbldados[])-ROW('BASE DE DADOS'!$J$2)+1),ROWS($1:8))),"") ->  | C18: =IFERROR(INDEX(tbldados[],MATCH(ANALISE!$B18,tbldados[[ID]:[ID]],0),MATCH(ANALISE!C$10,'BASE DE DADOS'!$A$1:$N$1,0)),"") ->  | D18: =IFERROR(INDEX(tbldados[],MATCH(ANALISE!$B18,tbldados[[ID]:[ID]],0),MATCH(ANALISE!D$10,'BASE DE DADOS'!$A$1:$N$1,0)),"") ->  | E18: =IFERROR(INDEX(tbldados[],MATCH(ANALISE!$B18,tbldados[[ID]:[ID]],0),MATCH(ANALISE!E$10,'BASE DE DADOS'!$A$1:$N$1,0)),"") ->  | F18: =IFERROR(INDEX(tbldados[],MATCH(ANALISE!$B18,tbldados[[ID]:[ID]],0),MATCH(ANALISE!F$10,'BASE DE DADOS'!$A$1:$N$1,0)),"") ->  | G18: =IFERROR(INDEX(tbldados[],MATCH(ANALISE!$B18,tbldados[[ID]:[ID]],0),MATCH(ANALISE!G$10,'BASE DE DADOS'!$A$1:$N$1,0)),"") ->  | H18: =IFERROR(INDEX(tbldados[],MATCH(ANALISE!$B18,tbldados[[ID]:[ID]],0),MATCH(ANALISE!H$10,'BASE DE DADOS'!$A$1:$N$1,0)),"") ->  | K18: =IFERROR(INDEX(tbldados[ID],SMALL(IF(FREQUENCY(IF((tbldados[REFERENTE]=$O$8)*(tbldados[DATA]=$F$8)*(tbldados[TIPO]=$N$8)*(tbldados[CARTÃO]=$P$8),MATCH(tbldados[ID],tbldados[ID],0)),ROW(tbldados[ID])-ROW('BASE DE DADOS'!$J$2)+1),ROW(tbldados[])-ROW('BASE DE DADOS'!$J$2)+1),ROWS($1:8))),"") ->  | L18: =IFERROR(INDEX(tbldados[ID],SMALL(IF(FREQUENCY(IF((tbldados[REFERENTE]=$O$8)*(tbldados[DATA]=$D$5)*(tbldados[TIPO]=$N$8)*(tbldados[CARTÃO]=$P$8),MATCH(tbldados[ID],tbldados[ID],0)),ROW(tbldados[ID])-ROW('BASE DE DADOS'!$J$2)+1),ROW(tbldados[])-ROW('BASE DE DADOS'!$J$2)+1),ROWS($1:8))),"") ->  | M18: =IFERROR(INDEX(tbldados[],MATCH(ANALISE!$L18,tbldados[[ID]:[ID]],0),MATCH(ANALISE!M$10,'BASE DE DADOS'!$A$1:$N$1,0)),"") ->  | N18: =IFERROR(INDEX(tbldados[],MATCH(ANALISE!$L18,tbldados[[ID]:[ID]],0),MATCH(ANALISE!N$10,'BASE DE DADOS'!$A$1:$N$1,0)),"") ->  | O18: =IFERROR(INDEX(tbldados[],MATCH(ANALISE!$L18,tbldados[[ID]:[ID]],0),MATCH(ANALISE!O$10,'BASE DE DADOS'!$A$1:$N$1,0)),"") ->  | P18: =IFERROR(INDEX(tbldados[],MATCH(ANALISE!$L18,tbldados[[ID]:[ID]],0),MATCH(ANALISE!P$10,'BASE DE DADOS'!$A$1:$N$1,0)),"") ->  | R18: =IFERROR(INDEX(tbldados[],MATCH(ANALISE!$K18,tbldados[[ID]:[ID]],0),MATCH(ANALISE!O$10,'BASE DE DADOS'!$A$1:$N$1,0)),"") -> 
B19: =IFERROR(INDEX(tbldados[ID],SMALL(IF(FREQUENCY(IF((tbldados[REFERENTE]=$F$2)*(tbldados[DESCRIÇÃO]=$D$4)*(tbldados[TIPO]=$F$4),MATCH(tbldados[ID],tbldados[ID],0)),ROW(tbldados[ID])-ROW('BASE DE DADOS'!$J$2)+1),ROW(tbldados[])-ROW('BASE DE DADOS'!$J$2)+1),ROWS($1:9))),"") ->  | C19: =IFERROR(INDEX(tbldados[],MATCH(ANALISE!$B19,tbldados[[ID]:[ID]],0),MATCH(ANALISE!C$10,'BASE DE DADOS'!$A$1:$N$1,0)),"") ->  | D19: =IFERROR(INDEX(tbldados[],MATCH(ANALISE!$B19,tbldados[[ID]:[ID]],0),MATCH(ANALISE!D$10,'BASE DE DADOS'!$A$1:$N$1,0)),"") ->  | E19: =IFERROR(INDEX(tbldados[],MATCH(ANALISE!$B19,tbldados[[ID]:[ID]],0),MATCH(ANALISE!E$10,'BASE DE DADOS'!$A$1:$N$1,0)),"") ->  | F19: =IFERROR(INDEX(tbldados[],MATCH(ANALISE!$B19,tbldados[[ID]:[ID]],0),MATCH(ANALISE!F$10,'BASE DE DADOS'!$A$1:$N$1,0)),"") ->  | G19: =IFERROR(INDEX(tbldados[],MATCH(ANALISE!$B19,tbldados[[ID]:[ID]],0),MATCH(ANALISE!G$10,'BASE DE DADOS'!$A$1:$N$1,0)),"") ->  | H19: =IFERROR(INDEX(tbldados[],MATCH(ANALISE!$B19,tbldados[[ID]:[ID]],0),MATCH(ANALISE!H$10,'BASE DE DADOS'!$A$1:$N$1,0)),"") ->  | K19: =IFERROR(INDEX(tbldados[ID],SMALL(IF(FREQUENCY(IF((tbldados[REFERENTE]=$O$8)*(tbldados[DATA]=$F$8)*(tbldados[TIPO]=$N$8)*(tbldados[CARTÃO]=$P$8),MATCH(tbldados[ID],tbldados[ID],0)),ROW(tbldados[ID])-ROW('BASE DE DADOS'!$J$2)+1),ROW(tbldados[])-ROW('BASE DE DADOS'!$J$2)+1),ROWS($1:9))),"") ->  | L19: =IFERROR(INDEX(tbldados[ID],SMALL(IF(FREQUENCY(IF((tbldados[REFERENTE]=$O$8)*(tbldados[DATA]=$D$5)*(tbldados[TIPO]=$N$8)*(tbldados[CARTÃO]=$P$8),MATCH(tbldados[ID],tbldados[ID],0)),ROW(tbldados[ID])-ROW('BASE DE DADOS'!$J$2)+1),ROW(tbldados[])-ROW('BASE DE DADOS'!$J$2)+1),ROWS($1:9))),"") ->  | M19: =IFERROR(INDEX(tbldados[],MATCH(ANALISE!$L19,tbldados[[ID]:[ID]],0),MATCH(ANALISE!M$10,'BASE DE DADOS'!$A$1:$N$1,0)),"") ->  | N19: =IFERROR(INDEX(tbldados[],MATCH(ANALISE!$L19,tbldados[[ID]:[ID]],0),MATCH(ANALISE!N$10,'BASE DE DADOS'!$A$1:$N$1,0)),"") ->  | O19: =IFERROR(INDEX(tbldados[],MATCH(ANALISE!$L19,tbldados[[ID]:[ID]],0),MATCH(ANALISE!O$10,'BASE DE DADOS'!$A$1:$N$1,0)),"") ->  | P19: =IFERROR(INDEX(tbldados[],MATCH(ANALISE!$L19,tbldados[[ID]:[ID]],0),MATCH(ANALISE!P$10,'BASE DE DADOS'!$A$1:$N$1,0)),"") ->  | R19: =IFERROR(INDEX(tbldados[],MATCH(ANALISE!$K19,tbldados[[ID]:[ID]],0),MATCH(ANALISE!O$10,'BASE DE DADOS'!$A$1:$N$1,0)),"") -> 
B20: =IFERROR(INDEX(tbldados[ID],SMALL(IF(FREQUENCY(IF((tbldados[REFERENTE]=$F$2)*(tbldados[DESCRIÇÃO]=$D$4)*(tbldados[TIPO]=$F$4),MATCH(tbldados[ID],tbldados[ID],0)),ROW(tbldados[ID])-ROW('BASE DE DADOS'!$J$2)+1),ROW(tbldados[])-ROW('BASE DE DADOS'!$J$2)+1),ROWS($1:10))),"") ->  | C20: =IFERROR(INDEX(tbldados[],MATCH(ANALISE!$B20,tbldados[[ID]:[ID]],0),MATCH(ANALISE!C$10,'BASE DE DADOS'!$A$1:$N$1,0)),"") ->  | D20: =IFERROR(INDEX(tbldados[],MATCH(ANALISE!$B20,tbldados[[ID]:[ID]],0),MATCH(ANALISE!D$10,'BASE DE DADOS'!$A$1:$N$1,0)),"") ->  | E20: =IFERROR(INDEX(tbldados[],MATCH(ANALISE!$B20,tbldados[[ID]:[ID]],0),MATCH(ANALISE!E$10,'BASE DE DADOS'!$A$1:$N$1,0)),"") ->  | F20: =IFERROR(INDEX(tbldados[],MATCH(ANALISE!$B20,tbldados[[ID]:[ID]],0),MATCH(ANALISE!F$10,'BASE DE DADOS'!$A$1:$N$1,0)),"") ->  | G20: =IFERROR(INDEX(tbldados[],MATCH(ANALISE!$B20,tbldados[[ID]:[ID]],0),MATCH(ANALISE!G$10,'BASE DE DADOS'!$A$1:$N$1,0)),"") ->  | H20: =IFERROR(INDEX(tbldados[],MATCH(ANALISE!$B20,tbldados[[ID]:[ID]],0),MATCH(ANALISE!H$10,'BASE DE DADOS'!$A$1:$N$1,0)),"") ->  | K20: =IFERROR(INDEX(tbldados[ID],SMALL(IF(FREQUENCY(IF((tbldados[REFERENTE]=$O$8)*(tbldados[DATA]=$F$8)*(tbldados[TIPO]=$N$8)*(tbldados[CARTÃO]=$P$8),MATCH(tbldados[ID],tbldados[ID],0)),ROW(tbldados[ID])-ROW('BASE DE DADOS'!$J$2)+1),ROW(tbldados[])-ROW('BASE DE DADOS'!$J$2)+1),ROWS($1:10))),"") ->  | L20: =IFERROR(INDEX(tbldados[ID],SMALL(IF(FREQUENCY(IF((tbldados[REFERENTE]=$O$8)*(tbldados[DATA]=$D$5)*(tbldados[TIPO]=$N$8)*(tbldados[CARTÃO]=$P$8),MATCH(tbldados[ID],tbldados[ID],0)),ROW(tbldados[ID])-ROW('BASE DE DADOS'!$J$2)+1),ROW(tbldados[])-ROW('BASE DE DADOS'!$J$2)+1),ROWS($1:10))),"") ->  | M20: =IFERROR(INDEX(tbldados[],MATCH(ANALISE!$L20,tbldados[[ID]:[ID]],0),MATCH(ANALISE!M$10,'BASE DE DADOS'!$A$1:$N$1,0)),"") ->  | N20: =IFERROR(INDEX(tbldados[],MATCH(ANALISE!$L20,tbldados[[ID]:[ID]],0),MATCH(ANALISE!N$10,'BASE DE DADOS'!$A$1:$N$1,0)),"") ->  | O20: =IFERROR(INDEX(tbldados[],MATCH(ANALISE!$L20,tbldados[[ID]:[ID]],0),MATCH(ANALISE!O$10,'BASE DE DADOS'!$A$1:$N$1,0)),"") ->  | P20: =IFERROR(INDEX(tbldados[],MATCH(ANALISE!$L20,tbldados[[ID]:[ID]],0),MATCH(ANALISE!P$10,'BASE DE DADOS'!$A$1:$N$1,0)),"") ->  | R20: =IFERROR(INDEX(tbldados[],MATCH(ANALISE!$K20,tbldados[[ID]:[ID]],0),MATCH(ANALISE!O$10,'BASE DE DADOS'!$A$1:$N$1,0)),"") ->  | S20: =SUM(S11:S12)-S10 -> -1290
B21: =IFERROR(INDEX(tbldados[ID],SMALL(IF(FREQUENCY(IF((tbldados[REFERENTE]=$F$2)*(tbldados[DESCRIÇÃO]=$D$4)*(tbldados[TIPO]=$F$4),MATCH(tbldados[ID],tbldados[ID],0)),ROW(tbldados[ID])-ROW('BASE DE DADOS'!$J$2)+1),ROW(tbldados[])-ROW('BASE DE DADOS'!$J$2)+1),ROWS($1:11))),"") ->  | C21: =IFERROR(INDEX(tbldados[],MATCH(ANALISE!$B21,tbldados[[ID]:[ID]],0),MATCH(ANALISE!C$10,'BASE DE DADOS'!$A$1:$N$1,0)),"") ->  | D21: =IFERROR(INDEX(tbldados[],MATCH(ANALISE!$B21,tbldados[[ID]:[ID]],0),MATCH(ANALISE!D$10,'BASE DE DADOS'!$A$1:$N$1,0)),"") ->  | E21: =IFERROR(INDEX(tbldados[],MATCH(ANALISE!$B21,tbldados[[ID]:[ID]],0),MATCH(ANALISE!E$10,'BASE DE DADOS'!$A$1:$N$1,0)),"") ->  | F21: =IFERROR(INDEX(tbldados[],MATCH(ANALISE!$B21,tbldados[[ID]:[ID]],0),MATCH(ANALISE!F$10,'BASE DE DADOS'!$A$1:$N$1,0)),"") ->  | G21: =IFERROR(INDEX(tbldados[],MATCH(ANALISE!$B21,tbldados[[ID]:[ID]],0),MATCH(ANALISE!G$10,'BASE DE DADOS'!$A$1:$N$1,0)),"") ->  | H21: =IFERROR(INDEX(tbldados[],MATCH(ANALISE!$B21,tbldados[[ID]:[ID]],0),MATCH(ANALISE!H$10,'BASE DE DADOS'!$A$1:$N$1,0)),"") ->  | K21: =IFERROR(INDEX(tbldados[ID],SMALL(IF(FREQUENCY(IF((tbldados[REFERENTE]=$O$8)*(tbldados[DATA]=$F$8)*(tbldados[TIPO]=$N$8)*(tbldados[CARTÃO]=$P$8),MATCH(tbldados[ID],tbldados[ID],0)),ROW(tbldados[ID])-ROW('BASE DE DADOS'!$J$2)+1),ROW(tbldados[])-ROW('BASE DE DADOS'!$J$2)+1),ROWS($1:11))),"") ->  | L21: =IFERROR(INDEX(tbldados[ID],SMALL(IF(FREQUENCY(IF((tbldados[REFERENTE]=$O$8)*(tbldados[DATA]=$D$5)*(tbldados[TIPO]=$N$8)*(tbldados[CARTÃO]=$P$8),MATCH(tbldados[ID],tbldados[ID],0)),ROW(tbldados[ID])-ROW('BASE DE DADOS'!$J$2)+1),ROW(tbldados[])-ROW('BASE DE DADOS'!$J$2)+1),ROWS($1:11))),"") ->  | M21: =IFERROR(INDEX(tbldados[],MATCH(ANALISE!$L21,tbldados[[ID]:[ID]],0),MATCH(ANALISE!M$10,'BASE DE DADOS'!$A$1:$N$1,0)),"") ->  | N21: =IFERROR(INDEX(tbldados[],MATCH(ANALISE!$L21,tbldados[[ID]:[ID]],0),MATCH(ANALISE!N$10,'BASE DE DADOS'!$A$1:$N$1,0)),"") ->  | O21: =IFERROR(INDEX(tbldados[],MATCH(ANALISE!$L21,tbldados[[ID]:[ID]],0),MATCH(ANALISE!O$10,'BASE DE DADOS'!$A$1:$N$1,0)),"") ->  | P21: =IFERROR(INDEX(tbldados[],MATCH(ANALISE!$L21,tbldados[[ID]:[ID]],0),MATCH(ANALISE!P$10,'BASE DE DADOS'!$A$1:$N$1,0)),"") ->  | R21: =IFERROR(INDEX(tbldados[],MATCH(ANALISE!$K21,tbldados[[ID]:[ID]],0),MATCH(ANALISE!O$10,'BASE DE DADOS'!$A$1:$N$1,0)),"") -> 
B22: =IFERROR(INDEX(tbldados[ID],SMALL(IF(FREQUENCY(IF((tbldados[REFERENTE]=$F$2)*(tbldados[DESCRIÇÃO]=$D$4)*(tbldados[TIPO]=$F$4),MATCH(tbldados[ID],tbldados[ID],0)),ROW(tbldados[ID])-ROW('BASE DE DADOS'!$J$2)+1),ROW(tbldados[])-ROW('BASE DE DADOS'!$J$2)+1),ROWS($1:12))),"") ->  | C22: =IFERROR(INDEX(tbldados[],MATCH(ANALISE!$B22,tbldados[[ID]:[ID]],0),MATCH(ANALISE!C$10,'BASE DE DADOS'!$A$1:$N$1,0)),"") ->  | D22: =IFERROR(INDEX(tbldados[],MATCH(ANALISE!$B22,tbldados[[ID]:[ID]],0),MATCH(ANALISE!D$10,'BASE DE DADOS'!$A$1:$N$1,0)),"") ->  | E22: =IFERROR(INDEX(tbldados[],MATCH(ANALISE!$B22,tbldados[[ID]:[ID]],0),MATCH(ANALISE!E$10,'BASE DE DADOS'!$A$1:$N$1,0)),"") ->  | F22: =IFERROR(INDEX(tbldados[],MATCH(ANALISE!$B22,tbldados[[ID]:[ID]],0),MATCH(ANALISE!F$10,'BASE DE DADOS'!$A$1:$N$1,0)),"") ->  | G22: =IFERROR(INDEX(tbldados[],MATCH(ANALISE!$B22,tbldados[[ID]:[ID]],0),MATCH(ANALISE!G$10,'BASE DE DADOS'!$A$1:$N$1,0)),"") ->  | H22: =IFERROR(INDEX(tbldados[],MATCH(ANALISE!$B22,tbldados[[ID]:[ID]],0),MATCH(ANALISE!H$10,'BASE DE DADOS'!$A$1:$N$1,0)),"") ->  | K22: =IFERROR(INDEX(tbldados[ID],SMALL(IF(FREQUENCY(IF((tbldados[REFERENTE]=$O$8)*(tbldados[DATA]=$F$8)*(tbldados[TIPO]=$N$8)*(tbldados[CARTÃO]=$P$8),MATCH(tbldados[ID],tbldados[ID],0)),ROW(tbldados[ID])-ROW('BASE DE DADOS'!$J$2)+1),ROW(tbldados[])-ROW('BASE DE DADOS'!$J$2)+1),ROWS($1:12))),"") ->  | L22: =IFERROR(INDEX(tbldados[ID],SMALL(IF(FREQUENCY(IF((tbldados[REFERENTE]=$O$8)*(tbldados[DATA]=$D$5)*(tbldados[TIPO]=$N$8)*(tbldados[CARTÃO]=$P$8),MATCH(tbldados[ID],tbldados[ID],0)),ROW(tbldados[ID])-ROW('BASE DE DADOS'!$J$2)+1),ROW(tbldados[])-ROW('BASE DE DADOS'!$J$2)+1),ROWS($1:12))),"") ->  | M22: =IFERROR(INDEX(tbldados[],MATCH(ANALISE!$L22,tbldados[[ID]:[ID]],0),MATCH(ANALISE!M$10,'BASE DE DADOS'!$A$1:$N$1,0)),"") ->  | N22: =IFERROR(INDEX(tbldados[],MATCH(ANALISE!$L22,tbldados[[ID]:[ID]],0),MATCH(ANALISE!N$10,'BASE DE DADOS'!$A$1:$N$1,0)),"") ->  | O22: =IFERROR(INDEX(tbldados[],MATCH(ANALISE!$L22,tbldados[[ID]:[ID]],0),MATCH(ANALISE!O$10,'BASE DE DADOS'!$A$1:$N$1,0)),"") ->  | P22: =IFERROR(INDEX(tbldados[],MATCH(ANALISE!$L22,tbldados[[ID]:[ID]],0),MATCH(ANALISE!P$10,'BASE DE DADOS'!$A$1:$N$1,0)),"") ->  | R22: =IFERROR(INDEX(tbldados[],MATCH(ANALISE!$K22,tbldados[[ID]:[ID]],0),MATCH(ANALISE!O$10,'BASE DE DADOS'!$A$1:$N$1,0)),"") -> 
B23: =IFERROR(INDEX(tbldados[ID],SMALL(IF(FREQUENCY(IF((tbldados[REFERENTE]=$F$2)*(tbldados[DESCRIÇÃO]=$D$4)*(tbldados[TIPO]=$F$4),MATCH(tbldados[ID],tbldados[ID],0)),ROW(tbldados[ID])-ROW('BASE DE DADOS'!$J$2)+1),ROW(tbldados[])-ROW('BASE DE DADOS'!$J$2)+1),ROWS($1:13))),"") ->  | C23: =IFERROR(INDEX(tbldados[],MATCH(ANALISE!$B23,tbldados[[ID]:[ID]],0),MATCH(ANALISE!C$10,'BASE DE DADOS'!$A$1:$N$1,0)),"") ->  | D23: =IFERROR(INDEX(tbldados[],MATCH(ANALISE!$B23,tbldados[[ID]:[ID]],0),MATCH(ANALISE!D$10,'BASE DE DADOS'!$A$1:$N$1,0)),"") ->  | E23: =IFERROR(INDEX(tbldados[],MATCH(ANALISE!$B23,tbldados[[ID]:[ID]],0),MATCH(ANALISE!E$10,'BASE DE DADOS'!$A$1:$N$1,0)),"") ->  | F23: =IFERROR(INDEX(tbldados[],MATCH(ANALISE!$B23,tbldados[[ID]:[ID]],0),MATCH(ANALISE!F$10,'BASE DE DADOS'!$A$1:$N$1,0)),"") ->  | G23: =IFERROR(INDEX(tbldados[],MATCH(ANALISE!$B23,tbldados[[ID]:[ID]],0),MATCH(ANALISE!G$10,'BASE DE DADOS'!$A$1:$N$1,0)),"") ->  | H23: =IFERROR(INDEX(tbldados[],MATCH(ANALISE!$B23,tbldados[[ID]:[ID]],0),MATCH(ANALISE!H$10,'BASE DE DADOS'!$A$1:$N$1,0)),"") ->  | K23: =IFERROR(INDEX(tbldados[ID],SMALL(IF(FREQUENCY(IF((tbldados[REFERENTE]=$O$8)*(tbldados[DATA]=$F$8)*(tbldados[TIPO]=$N$8)*(tbldados[CARTÃO]=$P$8),MATCH(tbldados[ID],tbldados[ID],0)),ROW(tbldados[ID])-ROW('BASE DE DADOS'!$J$2)+1),ROW(tbldados[])-ROW('BASE DE DADOS'!$J$2)+1),ROWS($1:13))),"") ->  | L23: =IFERROR(INDEX(tbldados[ID],SMALL(IF(FREQUENCY(IF((tbldados[REFERENTE]=$O$8)*(tbldados[DATA]=$D$5)*(tbldados[TIPO]=$N$8)*(tbldados[CARTÃO]=$P$8),MATCH(tbldados[ID],tbldados[ID],0)),ROW(tbldados[ID])-ROW('BASE DE DADOS'!$J$2)+1),ROW(tbldados[])-ROW('BASE DE DADOS'!$J$2)+1),ROWS($1:13))),"") ->  | M23: =IFERROR(INDEX(tbldados[],MATCH(ANALISE!$L23,tbldados[[ID]:[ID]],0),MATCH(ANALISE!M$10,'BASE DE DADOS'!$A$1:$N$1,0)),"") ->  | N23: =IFERROR(INDEX(tbldados[],MATCH(ANALISE!$L23,tbldados[[ID]:[ID]],0),MATCH(ANALISE!N$10,'BASE DE DADOS'!$A$1:$N$1,0)),"") ->  | O23: =IFERROR(INDEX(tbldados[],MATCH(ANALISE!$L23,tbldados[[ID]:[ID]],0),MATCH(ANALISE!O$10,'BASE DE DADOS'!$A$1:$N$1,0)),"") ->  | P23: =IFERROR(INDEX(tbldados[],MATCH(ANALISE!$L23,tbldados[[ID]:[ID]],0),MATCH(ANALISE!P$10,'BASE DE DADOS'!$A$1:$N$1,0)),"") ->  | R23: =IFERROR(INDEX(tbldados[],MATCH(ANALISE!$K23,tbldados[[ID]:[ID]],0),MATCH(ANALISE!O$10,'BASE DE DADOS'!$A$1:$N$1,0)),"") ->  | S23: =7000*15% -> 1050
B24: =IFERROR(INDEX(tbldados[ID],SMALL(IF(FREQUENCY(IF((tbldados[REFERENTE]=$F$2)*(tbldados[DESCRIÇÃO]=$D$4)*(tbldados[TIPO]=$F$4),MATCH(tbldados[ID],tbldados[ID],0)),ROW(tbldados[ID])-ROW('BASE DE DADOS'!$J$2)+1),ROW(tbldados[])-ROW('BASE DE DADOS'!$J$2)+1),ROWS($1:14))),"") ->  | C24: =IFERROR(INDEX(tbldados[],MATCH(ANALISE!$B24,tbldados[[ID]:[ID]],0),MATCH(ANALISE!C$10,'BASE DE DADOS'!$A$1:$N$1,0)),"") ->  | D24: =IFERROR(INDEX(tbldados[],MATCH(ANALISE!$B24,tbldados[[ID]:[ID]],0),MATCH(ANALISE!D$10,'BASE DE DADOS'!$A$1:$N$1,0)),"") ->  | F24: =IFERROR(INDEX(tbldados[],MATCH(ANALISE!$B24,tbldados[[ID]:[ID]],0),MATCH(ANALISE!F$10,'BASE DE DADOS'!$A$1:$N$1,0)),"") ->  | G24: =IFERROR(INDEX(tbldados[],MATCH(ANALISE!$B24,tbldados[[ID]:[ID]],0),MATCH(ANALISE!G$10,'BASE DE DADOS'!$A$1:$N$1,0)),"") ->  | H24: =IFERROR(INDEX(tbldados[],MATCH(ANALISE!$B24,tbldados[[ID]:[ID]],0),MATCH(ANALISE!H$10,'BASE DE DADOS'!$A$1:$N$1,0)),"") ->  | K24: =IFERROR(INDEX(tbldados[ID],SMALL(IF(FREQUENCY(IF((tbldados[REFERENTE]=$O$8)*(tbldados[DATA]=$F$8)*(tbldados[TIPO]=$N$8)*(tbldados[CARTÃO]=$P$8),MATCH(tbldados[ID],tbldados[ID],0)),ROW(tbldados[ID])-ROW('BASE DE DADOS'!$J$2)+1),ROW(tbldados[])-ROW('BASE DE DADOS'!$J$2)+1),ROWS($1:14))),"") ->  | L24: =IFERROR(INDEX(tbldados[ID],SMALL(IF(FREQUENCY(IF((tbldados[REFERENTE]=$O$8)*(tbldados[DATA]=$D$5)*(tbldados[TIPO]=$N$8)*(tbldados[CARTÃO]=$P$8),MATCH(tbldados[ID],tbldados[ID],0)),ROW(tbldados[ID])-ROW('BASE DE DADOS'!$J$2)+1),ROW(tbldados[])-ROW('BASE DE DADOS'!$J$2)+1),ROWS($1:14))),"") ->  | M24: =IFERROR(INDEX(tbldados[],MATCH(ANALISE!$L24,tbldados[[ID]:[ID]],0),MATCH(ANALISE!M$10,'BASE DE DADOS'!$A$1:$N$1,0)),"") ->  | N24: =IFERROR(INDEX(tbldados[],MATCH(ANALISE!$L24,tbldados[[ID]:[ID]],0),MATCH(ANALISE!N$10,'BASE DE DADOS'!$A$1:$N$1,0)),"") ->  | O24: =IFERROR(INDEX(tbldados[],MATCH(ANALISE!$L24,tbldados[[ID]:[ID]],0),MATCH(ANALISE!O$10,'BASE DE DADOS'!$A$1:$N$1,0)),"") ->  | P24: =IFERROR(INDEX(tbldados[],MATCH(ANALISE!$L24,tbldados[[ID]:[ID]],0),MATCH(ANALISE!P$10,'BASE DE DADOS'!$A$1:$N$1,0)),"") ->  | R24: =IFERROR(INDEX(tbldados[],MATCH(ANALISE!$K24,tbldados[[ID]:[ID]],0),MATCH(ANALISE!O$10,'BASE DE DADOS'!$A$1:$N$1,0)),"") -> 
B25: =IFERROR(INDEX(tbldados[ID],SMALL(IF(FREQUENCY(IF((tbldados[REFERENTE]=$F$2)*(tbldados[DESCRIÇÃO]=$D$4)*(tbldados[TIPO]=$F$4),MATCH(tbldados[ID],tbldados[ID],0)),ROW(tbldados[ID])-ROW('BASE DE DADOS'!$J$2)+1),ROW(tbldados[])-ROW('BASE DE DADOS'!$J$2)+1),ROWS($1:15))),"") ->  | C25: =IFERROR(INDEX(tbldados[],MATCH(ANALISE!$B25,tbldados[[ID]:[ID]],0),MATCH(ANALISE!C$10,'BASE DE DADOS'!$A$1:$N$1,0)),"") ->  | D25: =IFERROR(INDEX(tbldados[],MATCH(ANALISE!$B25,tbldados[[ID]:[ID]],0),MATCH(ANALISE!D$10,'BASE DE DADOS'!$A$1:$N$1,0)),"") ->  | E25: =IFERROR(INDEX(tbldados[],MATCH(ANALISE!$B25,tbldados[[ID]:[ID]],0),MATCH(ANALISE!E$10,'BASE DE DADOS'!$A$1:$N$1,0)),"") ->  | F25: =IFERROR(INDEX(tbldados[],MATCH(ANALISE!$B25,tbldados[[ID]:[ID]],0),MATCH(ANALISE!F$10,'BASE DE DADOS'!$A$1:$N$1,0)),"") ->  | G25: =IFERROR(INDEX(tbldados[],MATCH(ANALISE!$B25,tbldados[[ID]:[ID]],0),MATCH(ANALISE!G$10,'BASE DE DADOS'!$A$1:$N$1,0)),"") ->  | H25: =IFERROR(INDEX(tbldados[],MATCH(ANALISE!$B25,tbldados[[ID]:[ID]],0),MATCH(ANALISE!H$10,'BASE DE DADOS'!$A$1:$N$1,0)),"") ->  | K25: =IFERROR(INDEX(tbldados[ID],SMALL(IF(FREQUENCY(IF((tbldados[REFERENTE]=$O$8)*(tbldados[DATA]=$F$8)*(tbldados[TIPO]=$N$8)*(tbldados[CARTÃO]=$P$8),MATCH(tbldados[ID],tbldados[ID],0)),ROW(tbldados[ID])-ROW('BASE DE DADOS'!$J$2)+1),ROW(tbldados[])-ROW('BASE DE DADOS'!$J$2)+1),ROWS($1:15))),"") ->  | L25: =IFERROR(INDEX(tbldados[ID],SMALL(IF(FREQUENCY(IF((tbldados[REFERENTE]=$O$8)*(tbldados[DATA]=$D$5)*(tbldados[TIPO]=$N$8)*(tbldados[CARTÃO]=$P$8),MATCH(tbldados[ID],tbldados[ID],0)),ROW(tbldados[ID])-ROW('BASE DE DADOS'!$J$2)+1),ROW(tbldados[])-ROW('BASE DE DADOS'!$J$2)+1),ROWS($1:15))),"") ->  | M25: =IFERROR(INDEX(tbldados[],MATCH(ANALISE!$L25,tbldados[[ID]:[ID]],0),MATCH(ANALISE!M$10,'BASE DE DADOS'!$A$1:$N$1,0)),"") ->  | N25: =IFERROR(INDEX(tbldados[],MATCH(ANALISE!$L25,tbldados[[ID]:[ID]],0),MATCH(ANALISE!N$10,'BASE DE DADOS'!$A$1:$N$1,0)),"") ->  | O25: =IFERROR(INDEX(tbldados[],MATCH(ANALISE!$L25,tbldados[[ID]:[ID]],0),MATCH(ANALISE!O$10,'BASE DE DADOS'!$A$1:$N$1,0)),"") ->  | P25: =IFERROR(INDEX(tbldados[],MATCH(ANALISE!$L25,tbldados[[ID]:[ID]],0),MATCH(ANALISE!P$10,'BASE DE DADOS'!$A$1:$N$1,0)),"") ->  | R25: =IFERROR(INDEX(tbldados[],MATCH(ANALISE!$K25,tbldados[[ID]:[ID]],0),MATCH(ANALISE!O$10,'BASE DE DADOS'!$A$1:$N$1,0)),"") -> 
B26: =IFERROR(INDEX(tbldados[ID],SMALL(IF(FREQUENCY(IF((tbldados[REFERENTE]=$F$2)*(tbldados[DESCRIÇÃO]=$D$4)*(tbldados[TIPO]=$F$4),MATCH(tbldados[ID],tbldados[ID],0)),ROW(tbldados[ID])-ROW('BASE DE DADOS'!$J$2)+1),ROW(tbldados[])-ROW('BASE DE DADOS'!$J$2)+1),ROWS($1:16))),"") ->  | C26: =IFERROR(INDEX(tbldados[],MATCH(ANALISE!$B26,tbldados[[ID]:[ID]],0),MATCH(ANALISE!C$10,'BASE DE DADOS'!$A$1:$N$1,0)),"") ->  | D26: =IFERROR(INDEX(tbldados[],MATCH(ANALISE!$B26,tbldados[[ID]:[ID]],0),MATCH(ANALISE!D$10,'BASE DE DADOS'!$A$1:$N$1,0)),"") ->  | E26: =IFERROR(INDEX(tbldados[],MATCH(ANALISE!$B26,tbldados[[ID]:[ID]],0),MATCH(ANALISE!E$10,'BASE DE DADOS'!$A$1:$N$1,0)),"") ->  | F26: =IFERROR(INDEX(tbldados[],MATCH(ANALISE!$B26,tbldados[[ID]:[ID]],0),MATCH(ANALISE!F$10,'BASE DE DADOS'!$A$1:$N$1,0)),"") ->  | G26: =IFERROR(INDEX(tbldados[],MATCH(ANALISE!$B26,tbldados[[ID]:[ID]],0),MATCH(ANALISE!G$10,'BASE DE DADOS'!$A$1:$N$1,0)),"") ->  | H26: =IFERROR(INDEX(tbldados[],MATCH(ANALISE!$B26,tbldados[[ID]:[ID]],0),MATCH(ANALISE!H$10,'BASE DE DADOS'!$A$1:$N$1,0)),"") ->  | K26: =IFERROR(INDEX(tbldados[ID],SMALL(IF(FREQUENCY(IF((tbldados[REFERENTE]=$O$8)*(tbldados[DATA]=$F$8)*(tbldados[TIPO]=$N$8)*(tbldados[CARTÃO]=$P$8),MATCH(tbldados[ID],tbldados[ID],0)),ROW(tbldados[ID])-ROW('BASE DE DADOS'!$J$2)+1),ROW(tbldados[])-ROW('BASE DE DADOS'!$J$2)+1),ROWS($1:16))),"") ->  | L26: =IFERROR(INDEX(tbldados[ID],SMALL(IF(FREQUENCY(IF((tbldados[REFERENTE]=$O$8)*(tbldados[DATA]=$D$5)*(tbldados[TIPO]=$N$8)*(tbldados[CARTÃO]=$P$8),MATCH(tbldados[ID],tbldados[ID],0)),ROW(tbldados[ID])-ROW('BASE DE DADOS'!$J$2)+1),ROW(tbldados[])-ROW('BASE DE DADOS'!$J$2)+1),ROWS($1:16))),"") ->  | M26: =IFERROR(INDEX(tbldados[],MATCH(ANALISE!$L26,tbldados[[ID]:[ID]],0),MATCH(ANALISE!M$10,'BASE DE DADOS'!$A$1:$N$1,0)),"") ->  | N26: =IFERROR(INDEX(tbldados[],MATCH(ANALISE!$L26,tbldados[[ID]:[ID]],0),MATCH(ANALISE!N$10,'BASE DE DADOS'!$A$1:$N$1,0)),"") ->  | O26: =IFERROR(INDEX(tbldados[],MATCH(ANALISE!$L26,tbldados[[ID]:[ID]],0),MATCH(ANALISE!O$10,'BASE DE DADOS'!$A$1:$N$1,0)),"") ->  | P26: =IFERROR(INDEX(tbldados[],MATCH(ANALISE!$L26,tbldados[[ID]:[ID]],0),MATCH(ANALISE!P$10,'BASE DE DADOS'!$A$1:$N$1,0)),"") ->  | R26: =IFERROR(INDEX(tbldados[],MATCH(ANALISE!$K26,tbldados[[ID]:[ID]],0),MATCH(ANALISE!O$10,'BASE DE DADOS'!$A$1:$N$1,0)),"") -> 
B27: =IFERROR(INDEX(tbldados[ID],SMALL(IF(FREQUENCY(IF((tbldados[REFERENTE]=$F$2)*(tbldados[DESCRIÇÃO]=$D$4)*(tbldados[TIPO]=$F$4),MATCH(tbldados[ID],tbldados[ID],0)),ROW(tbldados[ID])-ROW('BASE DE DADOS'!$J$2)+1),ROW(tbldados[])-ROW('BASE DE DADOS'!$J$2)+1),ROWS($1:17))),"") ->  | C27: =IFERROR(INDEX(tbldados[],MATCH(ANALISE!$B27,tbldados[[ID]:[ID]],0),MATCH(ANALISE!C$10,'BASE DE DADOS'!$A$1:$N$1,0)),"") ->  | D27: =IFERROR(INDEX(tbldados[],MATCH(ANALISE!$B27,tbldados[[ID]:[ID]],0),MATCH(ANALISE!D$10,'BASE DE DADOS'!$A$1:$N$1,0)),"") ->  | E27: =IFERROR(INDEX(tbldados[],MATCH(ANALISE!$B27,tbldados[[ID]:[ID]],0),MATCH(ANALISE!E$10,'BASE DE DADOS'!$A$1:$N$1,0)),"") ->  | F27: =IFERROR(INDEX(tbldados[],MATCH(ANALISE!$B27,tbldados[[ID]:[ID]],0),MATCH(ANALISE!F$10,'BASE DE DADOS'!$A$1:$N$1,0)),"") ->  | G27: =IFERROR(INDEX(tbldados[],MATCH(ANALISE!$B27,tbldados[[ID]:[ID]],0),MATCH(ANALISE!G$10,'BASE DE DADOS'!$A$1:$N$1,0)),"") ->  | H27: =IFERROR(INDEX(tbldados[],MATCH(ANALISE!$B27,tbldados[[ID]:[ID]],0),MATCH(ANALISE!H$10,'BASE DE DADOS'!$A$1:$N$1,0)),"") ->  | K27: =IFERROR(INDEX(tbldados[ID],SMALL(IF(FREQUENCY(IF((tbldados[REFERENTE]=$O$8)*(tbldados[DATA]=$F$8)*(tbldados[TIPO]=$N$8)*(tbldados[CARTÃO]=$P$8),MATCH(tbldados[ID],tbldados[ID],0)),ROW(tbldados[ID])-ROW('BASE DE DADOS'!$J$2)+1),ROW(tbldados[])-ROW('BASE DE DADOS'!$J$2)+1),ROWS($1:17))),"") ->  | L27: =IFERROR(INDEX(tbldados[ID],SMALL(IF(FREQUENCY(IF((tbldados[REFERENTE]=$O$8)*(tbldados[DATA]=$D$5)*(tbldados[TIPO]=$N$8)*(tbldados[CARTÃO]=$P$8),MATCH(tbldados[ID],tbldados[ID],0)),ROW(tbldados[ID])-ROW('BASE DE DADOS'!$J$2)+1),ROW(tbldados[])-ROW('BASE DE DADOS'!$J$2)+1),ROWS($1:17))),"") ->  | M27: =IFERROR(INDEX(tbldados[],MATCH(ANALISE!$L27,tbldados[[ID]:[ID]],0),MATCH(ANALISE!M$10,'BASE DE DADOS'!$A$1:$N$1,0)),"") ->  | N27: =IFERROR(INDEX(tbldados[],MATCH(ANALISE!$L27,tbldados[[ID]:[ID]],0),MATCH(ANALISE!N$10,'BASE DE DADOS'!$A$1:$N$1,0)),"") ->  | O27: =IFERROR(INDEX(tbldados[],MATCH(ANALISE!$L27,tbldados[[ID]:[ID]],0),MATCH(ANALISE!O$10,'BASE DE DADOS'!$A$1:$N$1,0)),"") ->  | P27: =IFERROR(INDEX(tbldados[],MATCH(ANALISE!$L27,tbldados[[ID]:[ID]],0),MATCH(ANALISE!P$10,'BASE DE DADOS'!$A$1:$N$1,0)),"") ->  | R27: =IFERROR(INDEX(tbldados[],MATCH(ANALISE!$K27,tbldados[[ID]:[ID]],0),MATCH(ANALISE!O$10,'BASE DE DADOS'!$A$1:$N$1,0)),"") -> 
B28: =IFERROR(INDEX(tbldados[ID],SMALL(IF(FREQUENCY(IF((tbldados[REFERENTE]=$F$2)*(tbldados[DESCRIÇÃO]=$D$4)*(tbldados[TIPO]=$F$4),MATCH(tbldados[ID],tbldados[ID],0)),ROW(tbldados[ID])-ROW('BASE DE DADOS'!$J$2)+1),ROW(tbldados[])-ROW('BASE DE DADOS'!$J$2)+1),ROWS($1:18))),"") ->  | C28: =IFERROR(INDEX(tbldados[],MATCH(ANALISE!$B28,tbldados[[ID]:[ID]],0),MATCH(ANALISE!C$10,'BASE DE DADOS'!$A$1:$N$1,0)),"") ->  | D28: =IFERROR(INDEX(tbldados[],MATCH(ANALISE!$B28,tbldados[[ID]:[ID]],0),MATCH(ANALISE!D$10,'BASE DE DADOS'!$A$1:$N$1,0)),"") ->  | E28: =IFERROR(INDEX(tbldados[],MATCH(ANALISE!$B28,tbldados[[ID]:[ID]],0),MATCH(ANALISE!E$10,'BASE DE DADOS'!$A$1:$N$1,0)),"") ->  | F28: =IFERROR(INDEX(tbldados[],MATCH(ANALISE!$B28,tbldados[[ID]:[ID]],0),MATCH(ANALISE!F$10,'BASE DE DADOS'!$A$1:$N$1,0)),"") ->  | G28: =IFERROR(INDEX(tbldados[],MATCH(ANALISE!$B28,tbldados[[ID]:[ID]],0),MATCH(ANALISE!G$10,'BASE DE DADOS'!$A$1:$N$1,0)),"") ->  | H28: =IFERROR(INDEX(tbldados[],MATCH(ANALISE!$B28,tbldados[[ID]:[ID]],0),MATCH(ANALISE!H$10,'BASE DE DADOS'!$A$1:$N$1,0)),"") ->  | K28: =IFERROR(INDEX(tbldados[ID],SMALL(IF(FREQUENCY(IF((tbldados[REFERENTE]=$O$8)*(tbldados[DATA]=$F$8)*(tbldados[TIPO]=$N$8)*(tbldados[CARTÃO]=$P$8),MATCH(tbldados[ID],tbldados[ID],0)),ROW(tbldados[ID])-ROW('BASE DE DADOS'!$J$2)+1),ROW(tbldados[])-ROW('BASE DE DADOS'!$J$2)+1),ROWS($1:18))),"") ->  | L28: =IFERROR(INDEX(tbldados[ID],SMALL(IF(FREQUENCY(IF((tbldados[REFERENTE]=$O$8)*(tbldados[DATA]=$D$5)*(tbldados[TIPO]=$N$8)*(tbldados[CARTÃO]=$P$8),MATCH(tbldados[ID],tbldados[ID],0)),ROW(tbldados[ID])-ROW('BASE DE DADOS'!$J$2)+1),ROW(tbldados[])-ROW('BASE DE DADOS'!$J$2)+1),ROWS($1:18))),"") ->  | M28: =IFERROR(INDEX(tbldados[],MATCH(ANALISE!$L28,tbldados[[ID]:[ID]],0),MATCH(ANALISE!M$10,'BASE DE DADOS'!$A$1:$N$1,0)),"") ->  | N28: =IFERROR(INDEX(tbldados[],MATCH(ANALISE!$L28,tbldados[[ID]:[ID]],0),MATCH(ANALISE!N$10,'BASE DE DADOS'!$A$1:$N$1,0)),"") ->  | O28: =IFERROR(INDEX(tbldados[],MATCH(ANALISE!$L28,tbldados[[ID]:[ID]],0),MATCH(ANALISE!O$10,'BASE DE DADOS'!$A$1:$N$1,0)),"") ->  | P28: =IFERROR(INDEX(tbldados[],MATCH(ANALISE!$L28,tbldados[[ID]:[ID]],0),MATCH(ANALISE!P$10,'BASE DE DADOS'!$A$1:$N$1,0)),"") ->  | R28: =IFERROR(INDEX(tbldados[],MATCH(ANALISE!$K28,tbldados[[ID]:[ID]],0),MATCH(ANALISE!O$10,'BASE DE DADOS'!$A$1:$N$1,0)),"") -> 
B29: =IFERROR(INDEX(tbldados[ID],SMALL(IF(FREQUENCY(IF((tbldados[REFERENTE]=$F$2)*(tbldados[DESCRIÇÃO]=$D$4)*(tbldados[TIPO]=$F$4),MATCH(tbldados[ID],tbldados[ID],0)),ROW(tbldados[ID])-ROW('BASE DE DADOS'!$J$2)+1),ROW(tbldados[])-ROW('BASE DE DADOS'!$J$2)+1),ROWS($1:19))),"") ->  | C29: =IFERROR(INDEX(tbldados[],MATCH(ANALISE!$B29,tbldados[[ID]:[ID]],0),MATCH(ANALISE!C$10,'BASE DE DADOS'!$A$1:$N$1,0)),"") ->  | D29: =IFERROR(INDEX(tbldados[],MATCH(ANALISE!$B29,tbldados[[ID]:[ID]],0),MATCH(ANALISE!D$10,'BASE DE DADOS'!$A$1:$N$1,0)),"") ->  | E29: =IFERROR(INDEX(tbldados[],MATCH(ANALISE!$B29,tbldados[[ID]:[ID]],0),MATCH(ANALISE!E$10,'BASE DE DADOS'!$A$1:$N$1,0)),"") ->  | F29: =IFERROR(INDEX(tbldados[],MATCH(ANALISE!$B29,tbldados[[ID]:[ID]],0),MATCH(ANALISE!F$10,'BASE DE DADOS'!$A$1:$N$1,0)),"") ->  | G29: =IFERROR(INDEX(tbldados[],MATCH(ANALISE!$B29,tbldados[[ID]:[ID]],0),MATCH(ANALISE!G$10,'BASE DE DADOS'!$A$1:$N$1,0)),"") ->  | H29: =IFERROR(INDEX(tbldados[],MATCH(ANALISE!$B29,tbldados[[ID]:[ID]],0),MATCH(ANALISE!H$10,'BASE DE DADOS'!$A$1:$N$1,0)),"") ->  | K29: =IFERROR(INDEX(tbldados[ID],SMALL(IF(FREQUENCY(IF((tbldados[REFERENTE]=$O$8)*(tbldados[DATA]=$F$8)*(tbldados[TIPO]=$N$8)*(tbldados[CARTÃO]=$P$8),MATCH(tbldados[ID],tbldados[ID],0)),ROW(tbldados[ID])-ROW('BASE DE DADOS'!$J$2)+1),ROW(tbldados[])-ROW('BASE DE DADOS'!$J$2)+1),ROWS($1:19))),"") ->  | L29: =IFERROR(INDEX(tbldados[ID],SMALL(IF(FREQUENCY(IF((tbldados[REFERENTE]=$O$8)*(tbldados[DATA]=$D$5)*(tbldados[TIPO]=$N$8)*(tbldados[CARTÃO]=$P$8),MATCH(tbldados[ID],tbldados[ID],0)),ROW(tbldados[ID])-ROW('BASE DE DADOS'!$J$2)+1),ROW(tbldados[])-ROW('BASE DE DADOS'!$J$2)+1),ROWS($1:19))),"") ->  | M29: =IFERROR(INDEX(tbldados[],MATCH(ANALISE!$L29,tbldados[[ID]:[ID]],0),MATCH(ANALISE!M$10,'BASE DE DADOS'!$A$1:$N$1,0)),"") ->  | N29: =IFERROR(INDEX(tbldados[],MATCH(ANALISE!$L29,tbldados[[ID]:[ID]],0),MATCH(ANALISE!N$10,'BASE DE DADOS'!$A$1:$N$1,0)),"") ->  | O29: =IFERROR(INDEX(tbldados[],MATCH(ANALISE!$L29,tbldados[[ID]:[ID]],0),MATCH(ANALISE!O$10,'BASE DE DADOS'!$A$1:$N$1,0)),"") ->  | P29: =IFERROR(INDEX(tbldados[],MATCH(ANALISE!$L29,tbldados[[ID]:[ID]],0),MATCH(ANALISE!P$10,'BASE DE DADOS'!$A$1:$N$1,0)),"") ->  | R29: =IFERROR(INDEX(tbldados[],MATCH(ANALISE!$K29,tbldados[[ID]:[ID]],0),MATCH(ANALISE!O$10,'BASE DE DADOS'!$A$1:$N$1,0)),"") -> 
B30: =IFERROR(INDEX(tbldados[ID],SMALL(IF(FREQUENCY(IF((tbldados[REFERENTE]=$F$2)*(tbldados[DESCRIÇÃO]=$D$4)*(tbldados[TIPO]=$F$4),MATCH(tbldados[ID],tbldados[ID],0)),ROW(tbldados[ID])-ROW('BASE DE DADOS'!$J$2)+1),ROW(tbldados[])-ROW('BASE DE DADOS'!$J$2)+1),ROWS($1:20))),"") ->  | C30: =IFERROR(INDEX(tbldados[],MATCH(ANALISE!$B30,tbldados[[ID]:[ID]],0),MATCH(ANALISE!C$10,'BASE DE DADOS'!$A$1:$N$1,0)),"") ->  | D30: =IFERROR(INDEX(tbldados[],MATCH(ANALISE!$B30,tbldados[[ID]:[ID]],0),MATCH(ANALISE!D$10,'BASE DE DADOS'!$A$1:$N$1,0)),"") ->  | E30: =IFERROR(INDEX(tbldados[],MATCH(ANALISE!$B30,tbldados[[ID]:[ID]],0),MATCH(ANALISE!E$10,'BASE DE DADOS'!$A$1:$N$1,0)),"") ->  | F30: =IFERROR(INDEX(tbldados[],MATCH(ANALISE!$B30,tbldados[[ID]:[ID]],0),MATCH(ANALISE!F$10,'BASE DE DADOS'!$A$1:$N$1,0)),"") ->  | G30: =IFERROR(INDEX(tbldados[],MATCH(ANALISE!$B30,tbldados[[ID]:[ID]],0),MATCH(ANALISE!G$10,'BASE DE DADOS'!$A$1:$N$1,0)),"") ->  | H30: =IFERROR(INDEX(tbldados[],MATCH(ANALISE!$B30,tbldados[[ID]:[ID]],0),MATCH(ANALISE!H$10,'BASE DE DADOS'!$A$1:$N$1,0)),"") ->  | K30: =IFERROR(INDEX(tbldados[ID],SMALL(IF(FREQUENCY(IF((tbldados[REFERENTE]=$O$8)*(tbldados[DATA]=$F$8)*(tbldados[TIPO]=$N$8)*(tbldados[CARTÃO]=$P$8),MATCH(tbldados[ID],tbldados[ID],0)),ROW(tbldados[ID])-ROW('BASE DE DADOS'!$J$2)+1),ROW(tbldados[])-ROW('BASE DE DADOS'!$J$2)+1),ROWS($1:20))),"") ->  | L30: =IFERROR(INDEX(tbldados[ID],SMALL(IF(FREQUENCY(IF((tbldados[REFERENTE]=$O$8)*(tbldados[DATA]=$D$5)*(tbldados[TIPO]=$N$8)*(tbldados[CARTÃO]=$P$8),MATCH(tbldados[ID],tbldados[ID],0)),ROW(tbldados[ID])-ROW('BASE DE DADOS'!$J$2)+1),ROW(tbldados[])-ROW('BASE DE DADOS'!$J$2)+1),ROWS($1:20))),"") ->  | M30: =IFERROR(INDEX(tbldados[],MATCH(ANALISE!$L30,tbldados[[ID]:[ID]],0),MATCH(ANALISE!M$10,'BASE DE DADOS'!$A$1:$N$1,0)),"") ->  | N30: =IFERROR(INDEX(tbldados[],MATCH(ANALISE!$L30,tbldados[[ID]:[ID]],0),MATCH(ANALISE!N$10,'BASE DE DADOS'!$A$1:$N$1,0)),"") ->  | O30: =IFERROR(INDEX(tbldados[],MATCH(ANALISE!$L30,tbldados[[ID]:[ID]],0),MATCH(ANALISE!O$10,'BASE DE DADOS'!$A$1:$N$1,0)),"") ->  | P30: =IFERROR(INDEX(tbldados[],MATCH(ANALISE!$L30,tbldados[[ID]:[ID]],0),MATCH(ANALISE!P$10,'BASE DE DADOS'!$A$1:$N$1,0)),"") ->  | R30: =IFERROR(INDEX(tbldados[],MATCH(ANALISE!$K30,tbldados[[ID]:[ID]],0),MATCH(ANALISE!O$10,'BASE DE DADOS'!$A$1:$N$1,0)),"") -> 
B31: =IFERROR(INDEX(tbldados[ID],SMALL(IF(FREQUENCY(IF((tbldados[REFERENTE]=$F$2)*(tbldados[DESCRIÇÃO]=$D$4)*(tbldados[TIPO]=$F$4),MATCH(tbldados[ID],tbldados[ID],0)),ROW(tbldados[ID])-ROW('BASE DE DADOS'!$J$2)+1),ROW(tbldados[])-ROW('BASE DE DADOS'!$J$2)+1),ROWS($1:21))),"") ->  | C31: =IFERROR(INDEX(tbldados[],MATCH(ANALISE!$B31,tbldados[[ID]:[ID]],0),MATCH(ANALISE!C$10,'BASE DE DADOS'!$A$1:$N$1,0)),"") ->  | D31: =IFERROR(INDEX(tbldados[],MATCH(ANALISE!$B31,tbldados[[ID]:[ID]],0),MATCH(ANALISE!D$10,'BASE DE DADOS'!$A$1:$N$1,0)),"") ->  | E31: =IFERROR(INDEX(tbldados[],MATCH(ANALISE!$B31,tbldados[[ID]:[ID]],0),MATCH(ANALISE!E$10,'BASE DE DADOS'!$A$1:$N$1,0)),"") ->  | F31: =IFERROR(INDEX(tbldados[],MATCH(ANALISE!$B31,tbldados[[ID]:[ID]],0),MATCH(ANALISE!F$10,'BASE DE DADOS'!$A$1:$N$1,0)),"") ->  | G31: =IFERROR(INDEX(tbldados[],MATCH(ANALISE!$B31,tbldados[[ID]:[ID]],0),MATCH(ANALISE!G$10,'BASE DE DADOS'!$A$1:$N$1,0)),"") ->  | H31: =IFERROR(INDEX(tbldados[],MATCH(ANALISE!$B31,tbldados[[ID]:[ID]],0),MATCH(ANALISE!H$10,'BASE DE DADOS'!$A$1:$N$1,0)),"") ->  | L31: =IFERROR(INDEX(tbldados[ID],SMALL(IF(FREQUENCY(IF((tbldados[REFERENTE]=$O$8)*(tbldados[DATA]=$D$5)*(tbldados[TIPO]=$N$8)*(tbldados[CARTÃO]=$P$8),MATCH(tbldados[ID],tbldados[ID],0)),ROW(tbldados[ID])-ROW('BASE DE DADOS'!$J$2)+1),ROW(tbldados[])-ROW('BASE DE DADOS'!$J$2)+1),ROWS($1:21))),"") ->  | M31: =IFERROR(INDEX(tbldados[],MATCH(ANALISE!$L31,tbldados[[ID]:[ID]],0),MATCH(ANALISE!M$10,'BASE DE DADOS'!$A$1:$N$1,0)),"") ->  | N31: =IFERROR(INDEX(tbldados[],MATCH(ANALISE!$L31,tbldados[[ID]:[ID]],0),MATCH(ANALISE!N$10,'BASE DE DADOS'!$A$1:$N$1,0)),"") ->  | O31: =IFERROR(INDEX(tbldados[],MATCH(ANALISE!$L31,tbldados[[ID]:[ID]],0),MATCH(ANALISE!O$10,'BASE DE DADOS'!$A$1:$N$1,0)),"") ->  | P31: =IFERROR(INDEX(tbldados[],MATCH(ANALISE!$L31,tbldados[[ID]:[ID]],0),MATCH(ANALISE!P$10,'BASE DE DADOS'!$A$1:$N$1,0)),"") -> 
B32: =IFERROR(INDEX(tbldados[ID],SMALL(IF(FREQUENCY(IF((tbldados[REFERENTE]=$F$2)*(tbldados[DESCRIÇÃO]=$D$4)*(tbldados[TIPO]=$F$4),MATCH(tbldados[ID],tbldados[ID],0)),ROW(tbldados[ID])-ROW('BASE DE DADOS'!$J$2)+1),ROW(tbldados[])-ROW('BASE DE DADOS'!$J$2)+1),ROWS($1:22))),"") ->  | C32: =IFERROR(INDEX(tbldados[],MATCH(ANALISE!$B32,tbldados[[ID]:[ID]],0),MATCH(ANALISE!C$10,'BASE DE DADOS'!$A$1:$N$1,0)),"") ->  | D32: =IFERROR(INDEX(tbldados[],MATCH(ANALISE!$B32,tbldados[[ID]:[ID]],0),MATCH(ANALISE!D$10,'BASE DE DADOS'!$A$1:$N$1,0)),"") ->  | E32: =IFERROR(INDEX(tbldados[],MATCH(ANALISE!$B32,tbldados[[ID]:[ID]],0),MATCH(ANALISE!E$10,'BASE DE DADOS'!$A$1:$N$1,0)),"") ->  | F32: =IFERROR(INDEX(tbldados[],MATCH(ANALISE!$B32,tbldados[[ID]:[ID]],0),MATCH(ANALISE!F$10,'BASE DE DADOS'!$A$1:$N$1,0)),"") ->  | G32: =IFERROR(INDEX(tbldados[],MATCH(ANALISE!$B32,tbldados[[ID]:[ID]],0),MATCH(ANALISE!G$10,'BASE DE DADOS'!$A$1:$N$1,0)),"") ->  | H32: =IFERROR(INDEX(tbldados[],MATCH(ANALISE!$B32,tbldados[[ID]:[ID]],0),MATCH(ANALISE!H$10,'BASE DE DADOS'!$A$1:$N$1,0)),"") ->  | L32: =IFERROR(INDEX(tbldados[ID],SMALL(IF(FREQUENCY(IF((tbldados[REFERENTE]=$O$8)*(tbldados[DATA]=$D$5)*(tbldados[TIPO]=$N$8)*(tbldados[CARTÃO]=$P$8),MATCH(tbldados[ID],tbldados[ID],0)),ROW(tbldados[ID])-ROW('BASE DE DADOS'!$J$2)+1),ROW(tbldados[])-ROW('BASE DE DADOS'!$J$2)+1),ROWS($1:22))),"") ->  | M32: =IFERROR(INDEX(tbldados[],MATCH(ANALISE!$L32,tbldados[[ID]:[ID]],0),MATCH(ANALISE!M$10,'BASE DE DADOS'!$A$1:$N$1,0)),"") ->  | N32: =IFERROR(INDEX(tbldados[],MATCH(ANALISE!$L32,tbldados[[ID]:[ID]],0),MATCH(ANALISE!N$10,'BASE DE DADOS'!$A$1:$N$1,0)),"") ->  | O32: =IFERROR(INDEX(tbldados[],MATCH(ANALISE!$L32,tbldados[[ID]:[ID]],0),MATCH(ANALISE!O$10,'BASE DE DADOS'!$A$1:$N$1,0)),"") ->  | P32: =IFERROR(INDEX(tbldados[],MATCH(ANALISE!$L32,tbldados[[ID]:[ID]],0),MATCH(ANALISE!P$10,'BASE DE DADOS'!$A$1:$N$1,0)),"") -> 
B33: =IFERROR(INDEX(tbldados[ID],SMALL(IF(FREQUENCY(IF((tbldados[REFERENTE]=$F$2)*(tbldados[DESCRIÇÃO]=$D$4)*(tbldados[TIPO]=$F$4),MATCH(tbldados[ID],tbldados[ID],0)),ROW(tbldados[ID])-ROW('BASE DE DADOS'!$J$2)+1),ROW(tbldados[])-ROW('BASE DE DADOS'!$J$2)+1),ROWS($1:23))),"") ->  | C33: =IFERROR(INDEX(tbldados[],MATCH(ANALISE!$B33,tbldados[[ID]:[ID]],0),MATCH(ANALISE!C$10,'BASE DE DADOS'!$A$1:$N$1,0)),"") ->  | D33: =IFERROR(INDEX(tbldados[],MATCH(ANALISE!$B33,tbldados[[ID]:[ID]],0),MATCH(ANALISE!D$10,'BASE DE DADOS'!$A$1:$N$1,0)),"") ->  | E33: =IFERROR(INDEX(tbldados[],MATCH(ANALISE!$B33,tbldados[[ID]:[ID]],0),MATCH(ANALISE!E$10,'BASE DE DADOS'!$A$1:$N$1,0)),"") ->  | F33: =IFERROR(INDEX(tbldados[],MATCH(ANALISE!$B33,tbldados[[ID]:[ID]],0),MATCH(ANALISE!F$10,'BASE DE DADOS'!$A$1:$N$1,0)),"") ->  | G33: =IFERROR(INDEX(tbldados[],MATCH(ANALISE!$B33,tbldados[[ID]:[ID]],0),MATCH(ANALISE!G$10,'BASE DE DADOS'!$A$1:$N$1,0)),"") ->  | H33: =IFERROR(INDEX(tbldados[],MATCH(ANALISE!$B33,tbldados[[ID]:[ID]],0),MATCH(ANALISE!H$10,'BASE DE DADOS'!$A$1:$N$1,0)),"") ->  | L33: =IFERROR(INDEX(tbldados[ID],SMALL(IF(FREQUENCY(IF((tbldados[REFERENTE]=$O$8)*(tbldados[DATA]=$D$5)*(tbldados[TIPO]=$N$8)*(tbldados[CARTÃO]=$P$8),MATCH(tbldados[ID],tbldados[ID],0)),ROW(tbldados[ID])-ROW('BASE DE DADOS'!$J$2)+1),ROW(tbldados[])-ROW('BASE DE DADOS'!$J$2)+1),ROWS($1:23))),"") ->  | M33: =IFERROR(INDEX(tbldados[],MATCH(ANALISE!$L33,tbldados[[ID]:[ID]],0),MATCH(ANALISE!M$10,'BASE DE DADOS'!$A$1:$N$1,0)),"") ->  | N33: =IFERROR(INDEX(tbldados[],MATCH(ANALISE!$L33,tbldados[[ID]:[ID]],0),MATCH(ANALISE!N$10,'BASE DE DADOS'!$A$1:$N$1,0)),"") ->  | O33: =IFERROR(INDEX(tbldados[],MATCH(ANALISE!$L33,tbldados[[ID]:[ID]],0),MATCH(ANALISE!O$10,'BASE DE DADOS'!$A$1:$N$1,0)),"") ->  | P33: =IFERROR(INDEX(tbldados[],MATCH(ANALISE!$L33,tbldados[[ID]:[ID]],0),MATCH(ANALISE!P$10,'BASE DE DADOS'!$A$1:$N$1,0)),"") -> 
B34: =IFERROR(INDEX(tbldados[ID],SMALL(IF(FREQUENCY(IF((tbldados[REFERENTE]=$F$2)*(tbldados[DESCRIÇÃO]=$D$4)*(tbldados[TIPO]=$F$4),MATCH(tbldados[ID],tbldados[ID],0)),ROW(tbldados[ID])-ROW('BASE DE DADOS'!$J$2)+1),ROW(tbldados[])-ROW('BASE DE DADOS'!$J$2)+1),ROWS($1:24))),"") ->  | C34: =IFERROR(INDEX(tbldados[],MATCH(ANALISE!$B34,tbldados[[ID]:[ID]],0),MATCH(ANALISE!C$10,'BASE DE DADOS'!$A$1:$N$1,0)),"") ->  | D34: =IFERROR(INDEX(tbldados[],MATCH(ANALISE!$B34,tbldados[[ID]:[ID]],0),MATCH(ANALISE!D$10,'BASE DE DADOS'!$A$1:$N$1,0)),"") ->  | E34: =IFERROR(INDEX(tbldados[],MATCH(ANALISE!$B34,tbldados[[ID]:[ID]],0),MATCH(ANALISE!E$10,'BASE DE DADOS'!$A$1:$N$1,0)),"") ->  | F34: =IFERROR(INDEX(tbldados[],MATCH(ANALISE!$B34,tbldados[[ID]:[ID]],0),MATCH(ANALISE!F$10,'BASE DE DADOS'!$A$1:$N$1,0)),"") ->  | G34: =IFERROR(INDEX(tbldados[],MATCH(ANALISE!$B34,tbldados[[ID]:[ID]],0),MATCH(ANALISE!G$10,'BASE DE DADOS'!$A$1:$N$1,0)),"") ->  | H34: =IFERROR(INDEX(tbldados[],MATCH(ANALISE!$B34,tbldados[[ID]:[ID]],0),MATCH(ANALISE!H$10,'BASE DE DADOS'!$A$1:$N$1,0)),"") ->  | L34: =IFERROR(INDEX(tbldados[ID],SMALL(IF(FREQUENCY(IF((tbldados[REFERENTE]=$O$8)*(tbldados[DATA]=$D$5)*(tbldados[TIPO]=$N$8)*(tbldados[CARTÃO]=$P$8),MATCH(tbldados[ID],tbldados[ID],0)),ROW(tbldados[ID])-ROW('BASE DE DADOS'!$J$2)+1),ROW(tbldados[])-ROW('BASE DE DADOS'!$J$2)+1),ROWS($1:24))),"") ->  | M34: =IFERROR(INDEX(tbldados[],MATCH(ANALISE!$L34,tbldados[[ID]:[ID]],0),MATCH(ANALISE!M$10,'BASE DE DADOS'!$A$1:$N$1,0)),"") ->  | N34: =IFERROR(INDEX(tbldados[],MATCH(ANALISE!$L34,tbldados[[ID]:[ID]],0),MATCH(ANALISE!N$10,'BASE DE DADOS'!$A$1:$N$1,0)),"") ->  | O34: =IFERROR(INDEX(tbldados[],MATCH(ANALISE!$L34,tbldados[[ID]:[ID]],0),MATCH(ANALISE!O$10,'BASE DE DADOS'!$A$1:$N$1,0)),"") ->  | P34: =IFERROR(INDEX(tbldados[],MATCH(ANALISE!$L34,tbldados[[ID]:[ID]],0),MATCH(ANALISE!P$10,'BASE DE DADOS'!$A$1:$N$1,0)),"") -> 
B35: =IFERROR(INDEX(tbldados[ID],SMALL(IF(FREQUENCY(IF((tbldados[REFERENTE]=$F$2)*(tbldados[DESCRIÇÃO]=$D$4)*(tbldados[TIPO]=$F$4),MATCH(tbldados[ID],tbldados[ID],0)),ROW(tbldados[ID])-ROW('BASE DE DADOS'!$J$2)+1),ROW(tbldados[])-ROW('BASE DE DADOS'!$J$2)+1),ROWS($1:25))),"") ->  | C35: =IFERROR(INDEX(tbldados[],MATCH(ANALISE!$B35,tbldados[[ID]:[ID]],0),MATCH(ANALISE!C$10,'BASE DE DADOS'!$A$1:$N$1,0)),"") ->  | D35: =IFERROR(INDEX(tbldados[],MATCH(ANALISE!$B35,tbldados[[ID]:[ID]],0),MATCH(ANALISE!D$10,'BASE DE DADOS'!$A$1:$N$1,0)),"") ->  | E35: =IFERROR(INDEX(tbldados[],MATCH(ANALISE!$B35,tbldados[[ID]:[ID]],0),MATCH(ANALISE!E$10,'BASE DE DADOS'!$A$1:$N$1,0)),"") ->  | F35: =IFERROR(INDEX(tbldados[],MATCH(ANALISE!$B35,tbldados[[ID]:[ID]],0),MATCH(ANALISE!F$10,'BASE DE DADOS'!$A$1:$N$1,0)),"") ->  | G35: =IFERROR(INDEX(tbldados[],MATCH(ANALISE!$B35,tbldados[[ID]:[ID]],0),MATCH(ANALISE!G$10,'BASE DE DADOS'!$A$1:$N$1,0)),"") ->  | H35: =IFERROR(INDEX(tbldados[],MATCH(ANALISE!$B35,tbldados[[ID]:[ID]],0),MATCH(ANALISE!H$10,'BASE DE DADOS'!$A$1:$N$1,0)),"") ->  | L35: =IFERROR(INDEX(tbldados[ID],SMALL(IF(FREQUENCY(IF((tbldados[REFERENTE]=$O$8)*(tbldados[DATA]=$D$5)*(tbldados[TIPO]=$N$8)*(tbldados[CARTÃO]=$P$8),MATCH(tbldados[ID],tbldados[ID],0)),ROW(tbldados[ID])-ROW('BASE DE DADOS'!$J$2)+1),ROW(tbldados[])-ROW('BASE DE DADOS'!$J$2)+1),ROWS($1:25))),"") ->  | M35: =IFERROR(INDEX(tbldados[],MATCH(ANALISE!$L35,tbldados[[ID]:[ID]],0),MATCH(ANALISE!M$10,'BASE DE DADOS'!$A$1:$N$1,0)),"") ->  | N35: =IFERROR(INDEX(tbldados[],MATCH(ANALISE!$L35,tbldados[[ID]:[ID]],0),MATCH(ANALISE!N$10,'BASE DE DADOS'!$A$1:$N$1,0)),"") ->  | O35: =IFERROR(INDEX(tbldados[],MATCH(ANALISE!$L35,tbldados[[ID]:[ID]],0),MATCH(ANALISE!O$10,'BASE DE DADOS'!$A$1:$N$1,0)),"") ->  | P35: =IFERROR(INDEX(tbldados[],MATCH(ANALISE!$L35,tbldados[[ID]:[ID]],0),MATCH(ANALISE!P$10,'BASE DE DADOS'!$A$1:$N$1,0)),"") -> 
B36: =IFERROR(INDEX(tbldados[ID],SMALL(IF(FREQUENCY(IF((tbldados[REFERENTE]=$F$2)*(tbldados[DESCRIÇÃO]=$D$4)*(tbldados[TIPO]=$F$4),MATCH(tbldados[ID],tbldados[ID],0)),ROW(tbldados[ID])-ROW('BASE DE DADOS'!$J$2)+1),ROW(tbldados[])-ROW('BASE DE DADOS'!$J$2)+1),ROWS($1:26))),"") ->  | C36: =IFERROR(INDEX(tbldados[],MATCH(ANALISE!$B36,tbldados[[ID]:[ID]],0),MATCH(ANALISE!C$10,'BASE DE DADOS'!$A$1:$N$1,0)),"") ->  | D36: =IFERROR(INDEX(tbldados[],MATCH(ANALISE!$B36,tbldados[[ID]:[ID]],0),MATCH(ANALISE!D$10,'BASE DE DADOS'!$A$1:$N$1,0)),"") ->  | E36: =IFERROR(INDEX(tbldados[],MATCH(ANALISE!$B36,tbldados[[ID]:[ID]],0),MATCH(ANALISE!E$10,'BASE DE DADOS'!$A$1:$N$1,0)),"") ->  | F36: =IFERROR(INDEX(tbldados[],MATCH(ANALISE!$B36,tbldados[[ID]:[ID]],0),MATCH(ANALISE!F$10,'BASE DE DADOS'!$A$1:$N$1,0)),"") ->  | G36: =IFERROR(INDEX(tbldados[],MATCH(ANALISE!$B36,tbldados[[ID]:[ID]],0),MATCH(ANALISE!G$10,'BASE DE DADOS'!$A$1:$N$1,0)),"") ->  | H36: =IFERROR(INDEX(tbldados[],MATCH(ANALISE!$B36,tbldados[[ID]:[ID]],0),MATCH(ANALISE!H$10,'BASE DE DADOS'!$A$1:$N$1,0)),"") ->  | L36: =IFERROR(INDEX(tbldados[ID],SMALL(IF(FREQUENCY(IF((tbldados[REFERENTE]=$O$8)*(tbldados[DATA]=$D$5)*(tbldados[TIPO]=$N$8)*(tbldados[CARTÃO]=$P$8),MATCH(tbldados[ID],tbldados[ID],0)),ROW(tbldados[ID])-ROW('BASE DE DADOS'!$J$2)+1),ROW(tbldados[])-ROW('BASE DE DADOS'!$J$2)+1),ROWS($1:26))),"") ->  | M36: =IFERROR(INDEX(tbldados[],MATCH(ANALISE!$L36,tbldados[[ID]:[ID]],0),MATCH(ANALISE!M$10,'BASE DE DADOS'!$A$1:$N$1,0)),"") ->  | N36: =IFERROR(INDEX(tbldados[],MATCH(ANALISE!$L36,tbldados[[ID]:[ID]],0),MATCH(ANALISE!N$10,'BASE DE DADOS'!$A$1:$N$1,0)),"") ->  | O36: =IFERROR(INDEX(tbldados[],MATCH(ANALISE!$L36,tbldados[[ID]:[ID]],0),MATCH(ANALISE!O$10,'BASE DE DADOS'!$A$1:$N$1,0)),"") ->  | P36: =IFERROR(INDEX(tbldados[],MATCH(ANALISE!$L36,tbldados[[ID]:[ID]],0),MATCH(ANALISE!P$10,'BASE DE DADOS'!$A$1:$N$1,0)),"") -> 
B37: =IFERROR(INDEX(tbldados[ID],SMALL(IF(FREQUENCY(IF((tbldados[REFERENTE]=$F$2)*(tbldados[DESCRIÇÃO]=$D$4)*(tbldados[TIPO]=$F$4),MATCH(tbldados[ID],tbldados[ID],0)),ROW(tbldados[ID])-ROW('BASE DE DADOS'!$J$2)+1),ROW(tbldados[])-ROW('BASE DE DADOS'!$J$2)+1),ROWS($1:27))),"") ->  | C37: =IFERROR(INDEX(tbldados[],MATCH(ANALISE!$B37,tbldados[[ID]:[ID]],0),MATCH(ANALISE!C$10,'BASE DE DADOS'!$A$1:$N$1,0)),"") ->  | D37: =IFERROR(INDEX(tbldados[],MATCH(ANALISE!$B37,tbldados[[ID]:[ID]],0),MATCH(ANALISE!D$10,'BASE DE DADOS'!$A$1:$N$1,0)),"") ->  | E37: =IFERROR(INDEX(tbldados[],MATCH(ANALISE!$B37,tbldados[[ID]:[ID]],0),MATCH(ANALISE!E$10,'BASE DE DADOS'!$A$1:$N$1,0)),"") ->  | F37: =IFERROR(INDEX(tbldados[],MATCH(ANALISE!$B37,tbldados[[ID]:[ID]],0),MATCH(ANALISE!F$10,'BASE DE DADOS'!$A$1:$N$1,0)),"") ->  | G37: =IFERROR(INDEX(tbldados[],MATCH(ANALISE!$B37,tbldados[[ID]:[ID]],0),MATCH(ANALISE!G$10,'BASE DE DADOS'!$A$1:$N$1,0)),"") ->  | H37: =IFERROR(INDEX(tbldados[],MATCH(ANALISE!$B37,tbldados[[ID]:[ID]],0),MATCH(ANALISE!H$10,'BASE DE DADOS'!$A$1:$N$1,0)),"") ->  | L37: =IFERROR(INDEX(tbldados[ID],SMALL(IF(FREQUENCY(IF((tbldados[REFERENTE]=$O$8)*(tbldados[DATA]=$D$5)*(tbldados[TIPO]=$N$8)*(tbldados[CARTÃO]=$P$8),MATCH(tbldados[ID],tbldados[ID],0)),ROW(tbldados[ID])-ROW('BASE DE DADOS'!$J$2)+1),ROW(tbldados[])-ROW('BASE DE DADOS'!$J$2)+1),ROWS($1:27))),"") ->  | M37: =IFERROR(INDEX(tbldados[],MATCH(ANALISE!$L37,tbldados[[ID]:[ID]],0),MATCH(ANALISE!M$10,'BASE DE DADOS'!$A$1:$N$1,0)),"") ->  | N37: =IFERROR(INDEX(tbldados[],MATCH(ANALISE!$L37,tbldados[[ID]:[ID]],0),MATCH(ANALISE!N$10,'BASE DE DADOS'!$A$1:$N$1,0)),"") ->  | O37: =IFERROR(INDEX(tbldados[],MATCH(ANALISE!$L37,tbldados[[ID]:[ID]],0),MATCH(ANALISE!O$10,'BASE DE DADOS'!$A$1:$N$1,0)),"") ->  | P37: =IFERROR(INDEX(tbldados[],MATCH(ANALISE!$L37,tbldados[[ID]:[ID]],0),MATCH(ANALISE!P$10,'BASE DE DADOS'!$A$1:$N$1,0)),"") -> 
B38: =IFERROR(INDEX(tbldados[ID],SMALL(IF(FREQUENCY(IF((tbldados[REFERENTE]=$F$2)*(tbldados[DESCRIÇÃO]=$D$4)*(tbldados[TIPO]=$F$4),MATCH(tbldados[ID],tbldados[ID],0)),ROW(tbldados[ID])-ROW('BASE DE DADOS'!$J$2)+1),ROW(tbldados[])-ROW('BASE DE DADOS'!$J$2)+1),ROWS($1:28))),"") ->  | C38: =IFERROR(INDEX(tbldados[],MATCH(ANALISE!$B38,tbldados[[ID]:[ID]],0),MATCH(ANALISE!C$10,'BASE DE DADOS'!$A$1:$N$1,0)),"") ->  | D38: =IFERROR(INDEX(tbldados[],MATCH(ANALISE!$B38,tbldados[[ID]:[ID]],0),MATCH(ANALISE!D$10,'BASE DE DADOS'!$A$1:$N$1,0)),"") ->  | E38: =IFERROR(INDEX(tbldados[],MATCH(ANALISE!$B38,tbldados[[ID]:[ID]],0),MATCH(ANALISE!E$10,'BASE DE DADOS'!$A$1:$N$1,0)),"") ->  | F38: =IFERROR(INDEX(tbldados[],MATCH(ANALISE!$B38,tbldados[[ID]:[ID]],0),MATCH(ANALISE!F$10,'BASE DE DADOS'!$A$1:$N$1,0)),"") ->  | G38: =IFERROR(INDEX(tbldados[],MATCH(ANALISE!$B38,tbldados[[ID]:[ID]],0),MATCH(ANALISE!G$10,'BASE DE DADOS'!$A$1:$N$1,0)),"") ->  | H38: =IFERROR(INDEX(tbldados[],MATCH(ANALISE!$B38,tbldados[[ID]:[ID]],0),MATCH(ANALISE!H$10,'BASE DE DADOS'!$A$1:$N$1,0)),"") ->  | L38: =IFERROR(INDEX(tbldados[ID],SMALL(IF(FREQUENCY(IF((tbldados[REFERENTE]=$O$8)*(tbldados[DATA]=$D$5)*(tbldados[TIPO]=$N$8)*(tbldados[CARTÃO]=$P$8),MATCH(tbldados[ID],tbldados[ID],0)),ROW(tbldados[ID])-ROW('BASE DE DADOS'!$J$2)+1),ROW(tbldados[])-ROW('BASE DE DADOS'!$J$2)+1),ROWS($1:28))),"") ->  | M38: =IFERROR(INDEX(tbldados[],MATCH(ANALISE!$L38,tbldados[[ID]:[ID]],0),MATCH(ANALISE!M$10,'BASE DE DADOS'!$A$1:$N$1,0)),"") ->  | N38: =IFERROR(INDEX(tbldados[],MATCH(ANALISE!$L38,tbldados[[ID]:[ID]],0),MATCH(ANALISE!N$10,'BASE DE DADOS'!$A$1:$N$1,0)),"") ->  | O38: =IFERROR(INDEX(tbldados[],MATCH(ANALISE!$L38,tbldados[[ID]:[ID]],0),MATCH(ANALISE!O$10,'BASE DE DADOS'!$A$1:$N$1,0)),"") ->  | P38: =IFERROR(INDEX(tbldados[],MATCH(ANALISE!$L38,tbldados[[ID]:[ID]],0),MATCH(ANALISE!P$10,'BASE DE DADOS'!$A$1:$N$1,0)),"") -> 
B39: =IFERROR(INDEX(tbldados[ID],SMALL(IF(FREQUENCY(IF((tbldados[REFERENTE]=$F$2)*(tbldados[DESCRIÇÃO]=$D$4)*(tbldados[TIPO]=$F$4),MATCH(tbldados[ID],tbldados[ID],0)),ROW(tbldados[ID])-ROW('BASE DE DADOS'!$J$2)+1),ROW(tbldados[])-ROW('BASE DE DADOS'!$J$2)+1),ROWS($1:29))),"") ->  | C39: =IFERROR(INDEX(tbldados[],MATCH(ANALISE!$B39,tbldados[[ID]:[ID]],0),MATCH(ANALISE!C$10,'BASE DE DADOS'!$A$1:$N$1,0)),"") ->  | D39: =IFERROR(INDEX(tbldados[],MATCH(ANALISE!$B39,tbldados[[ID]:[ID]],0),MATCH(ANALISE!D$10,'BASE DE DADOS'!$A$1:$N$1,0)),"") ->  | E39: =IFERROR(INDEX(tbldados[],MATCH(ANALISE!$B39,tbldados[[ID]:[ID]],0),MATCH(ANALISE!E$10,'BASE DE DADOS'!$A$1:$N$1,0)),"") ->  | F39: =IFERROR(INDEX(tbldados[],MATCH(ANALISE!$B39,tbldados[[ID]:[ID]],0),MATCH(ANALISE!F$10,'BASE DE DADOS'!$A$1:$N$1,0)),"") ->  | G39: =IFERROR(INDEX(tbldados[],MATCH(ANALISE!$B39,tbldados[[ID]:[ID]],0),MATCH(ANALISE!G$10,'BASE DE DADOS'!$A$1:$N$1,0)),"") ->  | H39: =IFERROR(INDEX(tbldados[],MATCH(ANALISE!$B39,tbldados[[ID]:[ID]],0),MATCH(ANALISE!H$10,'BASE DE DADOS'!$A$1:$N$1,0)),"") ->  | L39: =IFERROR(INDEX(tbldados[ID],SMALL(IF(FREQUENCY(IF((tbldados[REFERENTE]=$O$8)*(tbldados[DATA]=$D$5)*(tbldados[TIPO]=$N$8)*(tbldados[CARTÃO]=$P$8),MATCH(tbldados[ID],tbldados[ID],0)),ROW(tbldados[ID])-ROW('BASE DE DADOS'!$J$2)+1),ROW(tbldados[])-ROW('BASE DE DADOS'!$J$2)+1),ROWS($1:29))),"") ->  | M39: =IFERROR(INDEX(tbldados[],MATCH(ANALISE!$L39,tbldados[[ID]:[ID]],0),MATCH(ANALISE!M$10,'BASE DE DADOS'!$A$1:$N$1,0)),"") ->  | N39: =IFERROR(INDEX(tbldados[],MATCH(ANALISE!$L39,tbldados[[ID]:[ID]],0),MATCH(ANALISE!N$10,'BASE DE DADOS'!$A$1:$N$1,0)),"") ->  | O39: =IFERROR(INDEX(tbldados[],MATCH(ANALISE!$L39,tbldados[[ID]:[ID]],0),MATCH(ANALISE!O$10,'BASE DE DADOS'!$A$1:$N$1,0)),"") ->  | P39: =IFERROR(INDEX(tbldados[],MATCH(ANALISE!$L39,tbldados[[ID]:[ID]],0),MATCH(ANALISE!P$10,'BASE DE DADOS'!$A$1:$N$1,0)),"") -> 
B40: =IFERROR(INDEX(tbldados[ID],SMALL(IF(FREQUENCY(IF((tbldados[REFERENTE]=$F$2)*(tbldados[DESCRIÇÃO]=$D$4)*(tbldados[TIPO]=$F$4),MATCH(tbldados[ID],tbldados[ID],0)),ROW(tbldados[ID])-ROW('BASE DE DADOS'!$J$2)+1),ROW(tbldados[])-ROW('BASE DE DADOS'!$J$2)+1),ROWS($1:30))),"") ->  | C40: =IFERROR(INDEX(tbldados[],MATCH(ANALISE!$B40,tbldados[[ID]:[ID]],0),MATCH(ANALISE!C$10,'BASE DE DADOS'!$A$1:$N$1,0)),"") ->  | D40: =IFERROR(INDEX(tbldados[],MATCH(ANALISE!$B40,tbldados[[ID]:[ID]],0),MATCH(ANALISE!D$10,'BASE DE DADOS'!$A$1:$N$1,0)),"") ->  | E40: =IFERROR(INDEX(tbldados[],MATCH(ANALISE!$B40,tbldados[[ID]:[ID]],0),MATCH(ANALISE!E$10,'BASE DE DADOS'!$A$1:$N$1,0)),"") ->  | F40: =IFERROR(INDEX(tbldados[],MATCH(ANALISE!$B40,tbldados[[ID]:[ID]],0),MATCH(ANALISE!F$10,'BASE DE DADOS'!$A$1:$N$1,0)),"") ->  | G40: =IFERROR(INDEX(tbldados[],MATCH(ANALISE!$B40,tbldados[[ID]:[ID]],0),MATCH(ANALISE!G$10,'BASE DE DADOS'!$A$1:$N$1,0)),"") ->  | H40: =IFERROR(INDEX(tbldados[],MATCH(ANALISE!$B40,tbldados[[ID]:[ID]],0),MATCH(ANALISE!H$10,'BASE DE DADOS'!$A$1:$N$1,0)),"") ->  | L40: =IFERROR(INDEX(tbldados[ID],SMALL(IF(FREQUENCY(IF((tbldados[REFERENTE]=$O$8)*(tbldados[DATA]=$D$5)*(tbldados[TIPO]=$N$8)*(tbldados[CARTÃO]=$P$8),MATCH(tbldados[ID],tbldados[ID],0)),ROW(tbldados[ID])-ROW('BASE DE DADOS'!$J$2)+1),ROW(tbldados[])-ROW('BASE DE DADOS'!$J$2)+1),ROWS($1:30))),"") ->  | M40: =IFERROR(INDEX(tbldados[],MATCH(ANALISE!$L40,tbldados[[ID]:[ID]],0),MATCH(ANALISE!M$10,'BASE DE DADOS'!$A$1:$N$1,0)),"") ->  | N40: =IFERROR(INDEX(tbldados[],MATCH(ANALISE!$L40,tbldados[[ID]:[ID]],0),MATCH(ANALISE!N$10,'BASE DE DADOS'!$A$1:$N$1,0)),"") ->  | O40: =IFERROR(INDEX(tbldados[],MATCH(ANALISE!$L40,tbldados[[ID]:[ID]],0),MATCH(ANALISE!O$10,'BASE DE DADOS'!$A$1:$N$1,0)),"") ->  | P40: =IFERROR(INDEX(tbldados[],MATCH(ANALISE!$L40,tbldados[[ID]:[ID]],0),MATCH(ANALISE!P$10,'BASE DE DADOS'!$A$1:$N$1,0)),"") -> 
C49: TOTAL A PAGAR | D49: =D6+(D6*P4) -> 1148.7378 | E49: JUROS | F49: =D6*P4 -> 38.73895952 | M49: HOJE 10/08/2022 VOU FAZER UM PAGAMENTO DE 1067,40 PARA O CARD DA MAE.
M50: ESSE VALOR VAI SER RETORNADO DO CARTÃO NEON DA MAE PARA A FATURA DO CARD PAN MEU

Sheet CALENDARIO
M1: ANO | O1: 2022 | U1: CARD - | W1: NUBANK | AD1: MÊS - | AF1: =INDEX({"JANEIRO";"FEVEREIRO";"MARCO";"ABRIL";"MAIO";"JUNHO";"JULHO";"AGOSTO";"SETEMBRO";"OUTUBRO";"NOVEMBRO";"DEZEMBRO"},AG2) -> SETEMBRO
AG2: 9
D3: 1 | L3: =D3+1 -> 2 | T3: =L3+1 -> 3 | AB3: =T3+1 -> 4 | AJ3: =AB3+1 -> 5 | AR3: =AJ3+1 -> 6
D4: =DATE(O1,D3,1) -> 2022-01-01 | L4: =DATE(ANNO,L3,1) -> 2022-02-01 | T4: =DATE(ANNO,T3,1) -> 2022-03-01 | AB4: =DATE(ANNO,AB3,1) -> 2022-04-01 | AJ4: =DATE(ANNO,AJ3,1) -> 2022-05-01 | AR4: =DATE(ANNO,AR3,1) -> 2022-06-01
D5: 1 | E5: 2 | F5: 3 | G5: 4 | H5: 5 | I5: 6 | J5: 7 | L5: 1 | M5: 2 | N5: 3 | O5: 4 | P5: 5 | Q5: 6 | R5: 7 | T5: 1 | U5: 2 | V5: 3 | W5: 4 | X5: 5 | Y5: 6 | Z5: 7 | AB5: 1 | AC5: 2 | AD5: 3 | AE5: 4 | AF5: 5 | AG5: 6 | AH5: 7 | AJ5: 1 | AK5: 2 | AL5: 3 | AM5: 4 | AN5: 5 | AO5: 6 | AP5: 7 | AR5: 1 | AS5: 2 | AT5: 3 | AU5: 4 | AV5: 5 | AW5: 6 | AX5: 7
D6: D | E6: S | F6: T | G6: Q | H6: Q | I6: S | J6: S | L6: D | M6: S | N6: T | O6: Q | P6: Q | Q6: S | R6: S | T6: D | U6: S | V6: T | W6: Q | X6: Q | Y6: S | Z6: S | AB6: D | AC6: S | AD6: T | AE6: Q | AF6: Q | AG6: S | AH6: S | AJ6: D | AK6: S | AL6: T | AM6: Q | AN6: Q | AO6: S | AP6: S | AR6: D | AS6: S | AT6: T | AU6: Q | AV6: Q | AW6: S | AX6: S
D7: =IF(WEEKDAY(D4)=D5,D4,IF(WEEKDAY(D4)>D5,"",C7+1)) ->  | E7: =IF(WEEKDAY(D4)=E5,D4,IF(WEEKDAY(D4)>E5,"",D7+1)) ->  | F7: =IF(WEEKDAY(D4)=F5,D4,IF(WEEKDAY(D4)>F5,"",E7+1)) ->  | G7: =IF(WEEKDAY(D4)=G5,D4,IF(WEEKDAY(D4)>G5,"",F7+1)) ->  | H7: =IF(WEEKDAY(D4)=H5,D4,IF(WEEKDAY(D4)>H5,"",G7+1)) ->  | I7: =IF(WEEKDAY(D4)=I5,D4,IF(WEEKDAY(D4)>I5,"",H7+1)) ->  | J7: =IF(WEEKDAY(D4)=J5,D4,IF(WEEKDAY(D4)>J5,"",I7+1)) -> 2022-01-01 | L7: =IF(WEEKDAY(L4)=L5,L4,IF(WEEKDAY(L4)>L5,"",K7+1)) ->  | M7: =IF(WEEKDAY(L4)=M5,L4,IF(WEEKDAY(L4)>M5,"",L7+1)) ->  | N7: =IF(WEEKDAY(L4)=N5,L4,IF(WEEKDAY(L4)>N5,"",M7+1)) -> 2022-02-01 | O7: =IF(WEEKDAY(L4)=O5,L4,IF(WEEKDAY(L4)>O5,"",N7+1)) -> 2022-02-02 | P7: =IF(WEEKDAY(L4)=P5,L4,IF(WEEKDAY(L4)>P5,"",O7+1)) -> 2022-02-03 | Q7: =IF(WEEKDAY(L4)=Q5,L4,IF(WEEKDAY(L4)>Q5,"",P7+1)) -> 2022-02-04 | R7: =IF(WEEKDAY(L4)=R5,L4,IF(WEEKDAY(L4)>R5,"",Q7+1)) -> 2022-02-05 | T7: =IF(WEEKDAY(T4)=T5,T4,IF(WEEKDAY(T4)>T5,"",S7+1)) ->  | U7: =IF(WEEKDAY(T4)=U5,T4,IF(WEEKDAY(T4)>U5,"",T7+1)) ->  | V7: =IF(WEEKDAY(T4)=V5,T4,IF(WEEKDAY(T4)>V5,"",U7+1)) -> 2022-03-01 | W7: =IF(WEEKDAY(T4)=W5,T4,IF(WEEKDAY(T4)>W5,"",V7+1)) -> 2022-03-02 | X7: =IF(WEEKDAY(T4)=X5,T4,IF(WEEKDAY(T4)>X5,"",W7+1)) -> 2022-03-03 | Y7: =IF(WEEKDAY(T4)=Y5,T4,IF(WEEKDAY(T4)>Y5,"",X7+1)) -> 2022-03-04 | Z7: =IF(WEEKDAY(T4)=Z5,T4,IF(WEEKDAY(T4)>Z5,"",Y7+1)) -> 2022-03-05 | AB7: =IF(WEEKDAY(AB4)=AB5,AB4,IF(WEEKDAY(AB4)>AB5,"",AA7+1)) ->  | AC7: =IF(WEEKDAY(AB4)=AC5,AB4,IF(WEEKDAY(AB4)>AC5,"",AB7+1)) ->  | AD7: =IF(WEEKDAY(AB4)=AD5,AB4,IF(WEEKDAY(AB4)>AD5,"",AC7+1)) ->  | AE7: =IF(WEEKDAY(AB4)=AE5,AB4,IF(WEEKDAY(AB4)>AE5,"",AD7+1)) ->  | AF7: =IF(WEEKDAY(AB4)=AF5,AB4,IF(WEEKDAY(AB4)>AF5,"",AE7+1)) ->  | AG7: =IF(WEEKDAY(AB4)=AG5,AB4,IF(WEEKDAY(AB4)>AG5,"",AF7+1)) -> 2022-04-01 | AH7: =IF(WEEKDAY(AB4)=AH5,AB4,IF(WEEKDAY(AB4)>AH5,"",AG7+1)) -> 2022-04-02 | AJ7: =IF(WEEKDAY(AJ4)=AJ5,AJ4,IF(WEEKDAY(AJ4)>AJ5,"",AI7+1)) -> 2022-05-01 | AK7: =IF(WEEKDAY(AJ4)=AK5,AJ4,IF(WEEKDAY(AJ4)>AK5,"",AJ7+1)) -> 2022-05-02 | AL7: =IF(WEEKDAY(AJ4)=AL5,AJ4,IF(WEEKDAY(AJ4)>AL5,"",AK7+1)) -> 2022-05-03 | AM7: =IF(WEEKDAY(AJ4)=AM5,AJ4,IF(WEEKDAY(AJ4)>AM5,"",AL7+1)) -> 2022-05-04 | AN7: =IF(WEEKDAY(AJ4)=AN5,AJ4,IF(WEEKDAY(AJ4)>AN5,"",AM7+1)) -> 2022-05-05 | AO7: =IF(WEEKDAY(AJ4)=AO5,AJ4,IF(WEEKDAY(AJ4)>AO5,"",AN7+1)) -> 2022-05-06 | AP7: =IF(WEEKDAY(AJ4)=AP5,AJ4,IF(WEEKDAY(AJ4)>AP5,"",AO7+1)) -> 2022-05-07 | AR7: =IF(WEEKDAY(AR4)=AR5,AR4,IF(WEEKDAY(AR4)>AR5,"",AQ7+1)) ->  | AS7: =IF(WEEKDAY(AR4)=AS5,AR4,IF(WEEKDAY(AR4)>AS5,"",AR7+1)) ->  | AT7: =IF(WEEKDAY(AR4)=AT5,AR4,IF(WEEKDAY(AR4)>AT5,"",AS7+1)) ->  | AU7: =IF(WEEKDAY(AR4)=AU5,AR4,IF(WEEKDAY(AR4)>AU5,"",AT7+1)) -> 2022-06-01 | AV7: =IF(WEEKDAY(AR4)=AV5,AR4,IF(WEEKDAY(AR4)>AV5,"",AU7+1)) -> 2022-06-02 | AW7: =IF(WEEKDAY(AR4)=AW5,AR4,IF(WEEKDAY(AR4)>AW5,"",AV7+1)) -> 2022-06-03 | AX7: =IF(WEEKDAY(AR4)=AX5,AR4,IF(WEEKDAY(AR4)>AX5,"",AW7+1)) -> 2022-06-04
D8: =J7+1 -> 2022-01-02 | E8: =D8+1 -> 2022-01-03 | F8: =E8+1 -> 2022-01-04 | G8: 2022-01-05 | H8: 2022-01-06 | I8: 2022-01-07 | J8: 2022-01-08 | L8: =R7+1 -> 2022-02-06 | M8: =L8+1 -> 2022-02-07 | N8: =M8+1 -> 2022-02-08 | O8: 2022-02-09 | P8: 2022-02-10 | Q8: 2022-02-11 | R8: 2022-02-12 | T8: =Z7+1 -> 2022-03-06 | U8: =T8+1 -> 2022-03-07 | V8: =U8+1 -> 2022-03-08 | W8: 2022-03-09 | X8: 2022-03-10 | Y8: 2022-03-11 | Z8: 2022-03-12 | AB8: =AH7+1 -> 2022-04-03 | AC8: =AB8+1 -> 2022-04-04 | AD8: =AC8+1 -> 2022-04-05 | AE8: 2022-04-06 | AF8: 2022-04-07 | AG8: 2022-04-08 | AH8: 2022-04-09 | AJ8: =AP7+1 -> 2022-05-08 | AK8: =AJ8+1 -> 2022-05-09 | AL8: =AK8+1 -> 2022-05-10 | AM8: 2022-05-11 | AN8: 2022-05-12 | AO8: 2022-05-13 | AP8: 2022-05-14 | AR8: =AX7+1 -> 2022-06-05 | AS8: =AR8+1 -> 2022-06-06 | AT8: =AS8+1 -> 2022-06-07 | AU8: 2022-06-08 | AV8: 2022-06-09 | AW8: 2022-06-10 | AX8: 2022-06-11
D9: =J8+1 -> 2022-01-09 | E9: =D9+1 -> 2022-01-10 | F9: 2022-01-11 | G9: 2022-01-12 | H9: 2022-01-13 | I9: 2022-01-14 | J9: 2022-01-15 | L9: =R8+1 -> 2022-02-13 | M9: =L9+1 -> 2022-02-14 | N9: 2022-02-15 | O9: 2022-02-16 | P9: 2022-02-17 | Q9: 2022-02-18 | R9: 2022-02-19 | T9: =Z8+1 -> 2022-03-13 | U9: =T9+1 -> 2022-03-14 | V9: 2022-03-15 | W9: 2022-03-16 | X9: 2022-03-17 | Y9: 2022-03-18 | Z9: 2022-03-19 | AB9: =AH8+1 -> 2022-04-10 | AC9: =AB9+1 -> 2022-04-11 | AD9: 2022-04-12 | AE9: 2022-04-13 | AF9: 2022-04-14 | AG9: 2022-04-15 | AH9: 2022-04-16 | AJ9: =AP8+1 -> 2022-05-15 | AK9: =AJ9+1 -> 2022-05-16 | AL9: 2022-05-17 | AM9: 2022-05-18 | AN9: 2022-05-19 | AO9: 2022-05-20 | AP9: 2022-05-21 | AR9: =AX8+1 -> 2022-06-12 | AS9: =AR9+1 -> 2022-06-13 | AT9: 2022-06-14 | AU9: 2022-06-15 | AV9: 2022-06-16 | AW9: 2022-06-17 | AX9: 2022-06-18
D10: =J9+1 -> 2022-01-16 | E10: =D10+1 -> 2022-01-17 | F10: 2022-01-18 | G10: 2022-01-19 | H10: 2022-01-20 | I10: 2022-01-21 | J10: 2022-01-22 | L10: =R9+1 -> 2022-02-20 | M10: =L10+1 -> 2022-02-21 | N10: 2022-02-22 | O10: 2022-02-23 | P10: 2022-02-24 | Q10: 2022-02-25 | R10: 2022-02-26 | T10: =Z9+1 -> 2022-03-20 | U10: =T10+1 -> 2022-03-21 | V10: 2022-03-22 | W10: 2022-03-23 | X10: 2022-03-24 | Y10: 2022-03-25 | Z10: 2022-03-26 | AB10: =AH9+1 -> 2022-04-17 | AC10: =AB10+1 -> 2022-04-18 | AD10: 2022-04-19 | AE10: 2022-04-20 | AF10: 2022-04-21 | AG10: 2022-04-22 | AH10: 2022-04-23 | AJ10: =AP9+1 -> 2022-05-22 | AK10: =AJ10+1 -> 2022-05-23 | AL10: 2022-05-24 | AM10: 2022-05-25 | AN10: 2022-05-26 | AO10: 2022-05-27 | AP10: 2022-05-28 | AR10: =AX9+1 -> 2022-06-19 | AS10: =AR10+1 -> 2022-06-20 | AT10: 2022-06-21 | AU10: 2022-06-22 | AV10: 2022-06-23 | AW10: 2022-06-24 | AX10: 2022-06-25
D11: =IFERROR(IF(MONTH(J10+1)<>MONTH(J10),"",J10+1),"") -> 2022-01-23 | E11: =IFERROR(IF(MONTH(D11+1)<>MONTH(D11),"",D11+1),"") -> 2022-01-24 | F11: =IFERROR(IF(MONTH(E11+1)<>MONTH(E11),"",E11+1),"") -> 2022-01-25 | G11: 2022-01-26 | H11: 2022-01-27 | I11: 2022-01-28 | J11: 2022-01-29 | L11: =IFERROR(IF(MONTH(R10+1)<>MONTH(R10),"",R10+1),"") -> 2022-02-27 | M11: =IFERROR(IF(MONTH(L11+1)<>MONTH(L11),"",L11+1),"") -> 2022-02-28 | N11: =IFERROR(IF(MONTH(M11+1)<>MONTH(M11),"",M11+1),"") ->  | T11: =IFERROR(IF(MONTH(Z10+1)<>MONTH(Z10),"",Z10+1),"") -> 2022-03-27 | U11: =IFERROR(IF(MONTH(T11+1)<>MONTH(T11),"",T11+1),"") -> 2022-03-28 | V11: =IFERROR(IF(MONTH(U11+1)<>MONTH(U11),"",U11+1),"") -> 2022-03-29 | W11: 2022-03-30 | X11: 2022-03-31 | AB11: =IFERROR(IF(MONTH(AH10+1)<>MONTH(AH10),"",AH10+1),"") -> 2022-04-24 | AC11: =IFERROR(IF(MONTH(AB11+1)<>MONTH(AB11),"",AB11+1),"") -> 2022-04-25 | AD11: =IFERROR(IF(MONTH(AC11+1)<>MONTH(AC11),"",AC11+1),"") -> 2022-04-26 | AE11: 2022-04-27 | AF11: 2022-04-28 | AG11: 2022-04-29 | AH11: 2022-04-30 | AJ11: =IFERROR(IF(MONTH(AP10+1)<>MONTH(AP10),"",AP10+1),"") -> 2022-05-29 | AK11: =IFERROR(IF(MONTH(AJ11+1)<>MONTH(AJ11),"",AJ11+1),"") -> 2022-05-30 | AL11: =IFERROR(IF(MONTH(AK11+1)<>MONTH(AK11),"",AK11+1),"") -> 2022-05-31 | AR11: =IFERROR(IF(MONTH(AX10+1)<>MONTH(AX10),"",AX10+1),"") -> 2022-06-26 | AS11: =IFERROR(IF(MONTH(AR11+1)<>MONTH(AR11),"",AR11+1),"") -> 2022-06-27 | AT11: =IFERROR(IF(MONTH(AS11+1)<>MONTH(AS11),"",AS11+1),"") -> 2022-06-28 | AU11: 2022-06-29 | AV11: 2022-06-30
D12: =IFERROR(IF(MONTH(J11+1)<>MONTH(J11),"",J11+1),"") -> 2022-01-30 | E12: =IFERROR(IF(MONTH(D12+1)<>MONTH(D12),"",D12+1),"") -> 2022-01-31 | L12: =IFERROR(IF(MONTH(R11+1)<>MONTH(R11),"",R11+1),"") ->  | M12: =IFERROR(IF(MONTH(L12+1)<>MONTH(L12),"",L12+1),"") ->  | T12: =IFERROR(IF(MONTH(Z11+1)<>MONTH(Z11),"",Z11+1),"") ->  | U12: =IFERROR(IF(MONTH(T12+1)<>MONTH(T12),"",T12+1),"") ->  | AB12: =IFERROR(IF(MONTH(AH11+1)<>MONTH(AH11),"",AH11+1),"") ->  | AC12: =IFERROR(IF(MONTH(AB12+1)<>MONTH(AB12),"",AB12+1),"") ->  | AJ12: =IFERROR(IF(MONTH(AP11+1)<>MONTH(AP11),"",AP11+1),"") ->  | AK12: =IFERROR(IF(MONTH(AJ12+1)<>MONTH(AJ12),"",AJ12+1),"") ->  | AR12: =IFERROR(IF(MONTH(AX11+1)<>MONTH(AX11),"",AX11+1),"") ->  | AS12: =IFERROR(IF(MONTH(AR12+1)<>MONTH(AR12),"",AR12+1),"") -> 
D14: =AR3+1 -> 7 | L14: =D14+1 -> 8 | T14: =L14+1 -> 9 | AB14: =T14+1 -> 10 | AJ14: =AB14+1 -> 11 | AR14: =AJ14+1 -> 12
D15: =DATE(ANNO,D14,1) -> 2022-07-01 | L15: =DATE(ANNO,L14,1) -> 2022-08-01 | T15: =DATE(ANNO,T14,1) -> 2022-09-01 | AB15: =DATE(ANNO,AB14,1) -> 2022-10-01 | AJ15: =DATE(ANNO,AJ14,1) -> 2022-11-01 | AR15: =DATE(ANNO,AR14,1) -> 2022-12-01
D16: 1 | E16: 2 | F16: 3 | G16: 4 | H16: 5 | I16: 6 | J16: 7 | L16: 1 | M16: 2 | N16: 3 | O16: 4 | P16: 5 | Q16: 6 | R16: 7 | T16: 1 | U16: 2 | V16: 3 | W16: 4 | X16: 5 | Y16: 6 | Z16: 7 | AB16: 1 | AC16: 2 | AD16: 3 | AE16: 4 | AF16: 5 | AG16: 6 | AH16: 7 | AJ16: 1 | AK16: 2 | AL16: 3 | AM16: 4 | AN16: 5 | AO16: 6 | AP16: 7 | AR16: 1 | AS16: 2 | AT16: 3 | AU16: 4 | AV16: 5 | AW16: 6 | AX16: 7
D17: D | E17: S | F17: T | G17: Q | H17: Q | I17: S | J17: S | L17: D | M17: S | N17: T | O17: Q | P17: Q | Q17: S | R17: S | T17: D | U17: S | V17: T | W17: Q | X17: Q | Y17: S | Z17: S | AB17: D | AC17: S | AD17: T | AE17: Q | AF17: Q | AG17: S | AH17: S | AJ17: D | AK17: S | AL17: T | AM17: Q | AN17: Q | AO17: S | AP17: S | AR17: D | AS17: S | AT17: T | AU17: Q | AV17: Q | AW17: S | AX17: S
D18: =IF(WEEKDAY(D15)=D16,D15,IF(WEEKDAY(D15)>D16,"",C18+1)) ->  | E18: =IF(WEEKDAY(D15)=E16,D15,IF(WEEKDAY(D15)>E16,"",D18+1)) ->  | F18: =IF(WEEKDAY(D15)=F16,D15,IF(WEEKDAY(D15)>F16,"",E18+1)) ->  | G18: =IF(WEEKDAY(D15)=G16,D15,IF(WEEKDAY(D15)>G16,"",F18+1)) ->  | H18: =IF(WEEKDAY(D15)=H16,D15,IF(WEEKDAY(D15)>H16,"",G18+1)) ->  | I18: =IF(WEEKDAY(D15)=I16,D15,IF(WEEKDAY(D15)>I16,"",H18+1)) -> 2022-07-01 | J18: =IF(WEEKDAY(D15)=J16,D15,IF(WEEKDAY(D15)>J16,"",I18+1)) -> 2022-07-02 | L18: =IF(WEEKDAY(L15)=L16,L15,IF(WEEKDAY(L15)>L16,"",K18+1)) ->  | M18: =IF(WEEKDAY(L15)=M16,L15,IF(WEEKDAY(L15)>M16,"",L18+1)) -> 2022-08-01 | N18: =IF(WEEKDAY(L15)=N16,L15,IF(WEEKDAY(L15)>N16,"",M18+1)) -> 2022-08-02 | O18: =IF(WEEKDAY(L15)=O16,L15,IF(WEEKDAY(L15)>O16,"",N18+1)) -> 2022-08-03 | P18: =IF(WEEKDAY(L15)=P16,L15,IF(WEEKDAY(L15)>P16,"",O18+1)) -> 2022-08-04 | Q18: =IF(WEEKDAY(L15)=Q16,L15,IF(WEEKDAY(L15)>Q16,"",P18+1)) -> 2022-08-05 | R18: =IF(WEEKDAY(L15)=R16,L15,IF(WEEKDAY(L15)>R16,"",Q18+1)) -> 2022-08-06 | T18: =IF(WEEKDAY(T15)=T16,T15,IF(WEEKDAY(T15)>T16,"",S18+1)) ->  | U18: =IF(WEEKDAY(T15)=U16,T15,IF(WEEKDAY(T15)>U16,"",T18+1)) ->  | V18: =IF(WEEKDAY(T15)=V16,T15,IF(WEEKDAY(T15)>V16,"",U18+1)) ->  | W18: =IF(WEEKDAY(T15)=W16,T15,IF(WEEKDAY(T15)>W16,"",V18+1)) ->  | X18: =IF(WEEKDAY(T15)=X16,T15,IF(WEEKDAY(T15)>X16,"",W18+1)) -> 2022-09-01 | Y18: =IF(WEEKDAY(T15)=Y16,T15,IF(WEEKDAY(T15)>Y16,"",X18+1)) -> 2022-09-02 | Z18: =IF(WEEKDAY(T15)=Z16,T15,IF(WEEKDAY(T15)>Z16,"",Y18+1)) -> 2022-09-03 | AB18: =IF(WEEKDAY(AB15)=AB16,AB15,IF(WEEKDAY(AB15)>AB16,"",AA18+1)) ->  | AC18: =IF(WEEKDAY(AB15)=AC16,AB15,IF(WEEKDAY(AB15)>AC16,"",AB18+1)) ->  | AD18: =IF(WEEKDAY(AB15)=AD16,AB15,IF(WEEKDAY(AB15)>AD16,"",AC18+1)) ->  | AE18: =IF(WEEKDAY(AB15)=AE16,AB15,IF(WEEKDAY(AB15)>AE16,"",AD18+1)) ->  | AF18: =IF(WEEKDAY(AB15)=AF16,AB15,IF(WEEKDAY(AB15)>AF16,"",AE18+1)) ->  | AG18: =IF(WEEKDAY(AB15)=AG16,AB15,IF(WEEKDAY(AB15)>AG16,"",AF18+1)) ->  | AH18: =IF(WEEKDAY(AB15)=AH16,AB15,IF(WEEKDAY(AB15)>AH16,"",AG18+1)) -> 2022-10-01 | AJ18: =IF(WEEKDAY(AJ15)=AJ16,AJ15,IF(WEEKDAY(AJ15)>AJ16,"",AI18+1)) ->  | AK18: =IF(WEEKDAY(AJ15)=AK16,AJ15,IF(WEEKDAY(AJ15)>AK16,"",AJ18+1)) ->  | AL18: =IF(WEEKDAY(AJ15)=AL16,AJ15,IF(WEEKDAY(AJ15)>AL16,"",AK18+1)) -> 2022-11-01 | AM18: =IF(WEEKDAY(AJ15)=AM16,AJ15,IF(WEEKDAY(AJ15)>AM16,"",AL18+1)) -> 2022-11-02 | AN18: =IF(WEEKDAY(AJ15)=AN16,AJ15,IF(WEEKDAY(AJ15)>AN16,"",AM18+1)) -> 2022-11-03 | AO18: =IF(WEEKDAY(AJ15)=AO16,AJ15,IF(WEEKDAY(AJ15)>AO16,"",AN18+1)) -> 2022-11-04 | AP18: =IF(WEEKDAY(AJ15)=AP16,AJ15,IF(WEEKDAY(AJ15)>AP16,"",AO18+1)) -> 2022-11-05 | AR18: =IF(WEEKDAY(AR15)=AR16,AR15,IF(WEEKDAY(AR15)>AR16,"",AQ18+1)) ->  | AS18: =IF(WEEKDAY(AR15)=AS16,AR15,IF(WEEKDAY(AR15)>AS16,"",AR18+1)) ->  | AT18: =IF(WEEKDAY(AR15)=AT16,AR15,IF(WEEKDAY(AR15)>AT16,"",AS18+1)) ->  | AU18: =IF(WEEKDAY(AR15)=AU16,AR15,IF(WEEKDAY(AR15)>AU16,"",AT18+1)) ->  | AV18: =IF(WEEKDAY(AR15)=AV16,AR15,IF(WEEKDAY(AR15)>AV16,"",AU18+1)) -> 2022-12-01 | AW18: =IF(WEEKDAY(AR15)=AW16,AR15,IF(WEEKDAY(AR15)>AW16,"",AV18+1)) -> 2022-12-02 | AX18: =IF(WEEKDAY(AR15)=AX16,AR15,IF(WEEKDAY(AR15)>AX16,"",AW18+1)) -> 2022-12-03
D19: =J18+1 -> 2022-07-03 | E19: =D19+1 -> 2022-07-04 | F19: =E19+1 -> 2022-07-05 | G19: 2022-07-06 | H19: 2022-07-07 | I19: 2022-07-08 | J19: 2022-07-09 | L19: =R18+1 -> 2022-08-07 | M19: =L19+1 -> 2022-08-08 | N19: =M19+1 -> 2022-08-09 | O19: 2022-08-10 | P19: 2022-08-11 | Q19: 2022-08-12 | R19: 2022-08-13 | T19: =Z18+1 -> 2022-09-04 | U19: =T19+1 -> 2022-09-05 | V19: =U19+1 -> 2022-09-06 | W19: 2022-09-07 | X19: 2022-09-08 | Y19: 2022-09-09 | Z19: 2022-09-10 | AB19: =AH18+1 -> 2022-10-02 | AC19: =AB19+1 -> 2022-10-03 | AD19: =AC19+1 -> 2022-10-04 | AE19: 2022-10-05 | AF19: 2022-10-06 | AG19: 2022-10-07 | AH19: 2022-10-08 | AJ19: =AP18+1 -> 2022-11-06 | AK19: =AJ19+1 -> 2022-11-07 | AL19: =AK19+1 -> 2022-11-08 | AM19: 2022-11-09 | AN19: 2022-11-10 | AO19: 2022-11-11 | AP19: 2022-11-12 | AR19: =AX18+1 -> 2022-12-04 | AS19: =AR19+1 -> 2022-12-05 | AT19: =AS19+1 -> 2022-12-06 | AU19: 2022-12-07 | AV19: 2022-12-08 | AW19: 2022-12-09 | AX19: 2022-12-10
D20: =J19+1 -> 2022-07-10 | E20: =D20+1 -> 2022-07-11 | F20: 2022-07-12 | G20: 2022-07-13 | H20: 2022-07-14 | I20: 2022-07-15 | J20: 2022-07-16 | L20: =R19+1 -> 2022-08-14 | M20: =L20+1 -> 2022-08-15 | N20: 2022-08-16 | O20: 2022-08-17 | P20: 2022-08-18 | Q20: 2022-08-19 | R20: 2022-08-20 | T20: =Z19+1 -> 2022-09-11 | U20: =T20+1 -> 2022-09-12 | V20: 2022-09-13 | W20: 2022-09-14 | X20: 2022-09-15 | Y20: 2022-09-16 | Z20: 2022-09-17 | AB20: =AH19+1 -> 2022-10-09 | AC20: =AB20+1 -> 2022-10-10 | AD20: 2022-10-11 | AE20: 2022-10-12 | AF20: 2022-10-13 | AG20: 2022-10-14 | AH20: 2022-10-15 | AJ20: =AP19+1 -> 2022-11-13 | AK20: =AJ20+1 -> 2022-11-14 | AL20: 2022-11-15 | AM20: 2022-11-16 | AN20: 2022-11-17 | AO20: 2022-11-18 | AP20: 2022-11-19 | AR20: =AX19+1 -> 2022-12-11 | AS20: =AR20+1 -> 2022-12-12 | AT20: 2022-12-13 | AU20: 2022-12-14 | AV20: 2022-12-15 | AW20: 2022-12-16 | AX20: 2022-12-17
D21: =J20+1 -> 2022-07-17 | E21: =D21+1 -> 2022-07-18 | F21: 2022-07-19 | G21: 2022-07-20 | H21: 2022-07-21 | I21: 2022-07-22 | J21: 2022-07-23 | L21: =R20+1 -> 2022-08-21 | M21: =L21+1 -> 2022-08-22 | N21: 2022-08-23 | O21: 2022-08-24 | P21: 2022-08-25 | Q21: 2022-08-26 | R21: 2022-08-27 | T21: =Z20+1 -> 2022-09-18 | U21: =T21+1 -> 2022-09-19 | V21: 2022-09-20 | W21: 2022-09-21 | X21: 2022-09-22 | Y21: 2022-09-23 | Z21: 2022-09-24 | AB21: =AH20+1 -> 2022-10-16 | AC21: =AB21+1 -> 2022-10-17 | AD21: 2022-10-18 | AE21: 2022-10-19 | AF21: 2022-10-20 | AG21: 2022-10-21 | AH21: 2022-10-22 | AJ21: =AP20+1 -> 2022-11-20 | AK21: =AJ21+1 -> 2022-11-21 | AL21: 2022-11-22 | AM21: 2022-11-23 | AN21: 2022-11-24 | AO21: 2022-11-25 | AP21: 2022-11-26 | AR21: =AX20+1 -> 2022-12-18 | AS21: =AR21+1 -> 2022-12-19 | AT21: 2022-12-20 | AU21: 2022-12-21 | AV21: 2022-12-22 | AW21: 2022-12-23 | AX21: 2022-12-24
D22: =IFERROR(IF(MONTH(J21+1)<>MONTH(J21),"",J21+1),"") -> 2022-07-24 | E22: =IFERROR(IF(MONTH(D22+1)<>MONTH(D22),"",D22+1),"") -> 2022-07-25 | F22: =IFERROR(IF(MONTH(E22+1)<>MONTH(E22),"",E22+1),"") -> 2022-07-26 | G22: 2022-07-27 | H22: 2022-07-28 | I22: 2022-07-29 | J22: 2022-07-30 | L22: =IFERROR(IF(MONTH(R21+1)<>MONTH(R21),"",R21+1),"") -> 2022-08-28 | M22: =IFERROR(IF(MONTH(L22+1)<>MONTH(L22),"",L22+1),"") -> 2022-08-29 | N22: =IFERROR(IF(MONTH(M22+1)<>MONTH(M22),"",M22+1),"") -> 2022-08-30 | O22: 2022-08-31 | T22: =IFERROR(IF(MONTH(Z21+1)<>MONTH(Z21),"",Z21+1),"") -> 2022-09-25 | U22: =IFERROR(IF(MONTH(T22+1)<>MONTH(T22),"",T22+1),"") -> 2022-09-26 | V22: =IFERROR(IF(MONTH(U22+1)<>MONTH(U22),"",U22+1),"") -> 2022-09-27 | W22: 2022-09-28 | X22: 2022-09-29 | Y22: 2022-09-30 | AB22: =IFERROR(IF(MONTH(AH21+1)<>MONTH(AH21),"",AH21+1),"") -> 2022-10-23 | AC22: =IFERROR(IF(MONTH(AB22+1)<>MONTH(AB22),"",AB22+1),"") -> 2022-10-24 | AD22: =IFERROR(IF(MONTH(AC22+1)<>MONTH(AC22),"",AC22+1),"") -> 2022-10-25 | AE22: 2022-10-26 | AF22: 2022-10-27 | AG22: 2022-10-28 | AH22: 2022-10-29 | AJ22: =IFERROR(IF(MONTH(AP21+1)<>MONTH(AP21),"",AP21+1),"") -> 2022-11-27 | AK22: =IFERROR(IF(MONTH(AJ22+1)<>MONTH(AJ22),"",AJ22+1),"") -> 2022-11-28 | AL22: =IFERROR(IF(MONTH(AK22+1)<>MONTH(AK22),"",AK22+1),"") -> 2022-11-29 | AM22: 2022-11-30 | AR22: =IFERROR(IF(MONTH(AX21+1)<>MONTH(AX21),"",AX21+1),"") -> 2022-12-25 | AS22: =IFERROR(IF(MONTH(AR22+1)<>MONTH(AR22),"",AR22+1),"") -> 2022-12-26 | AT22: =IFERROR(IF(MONTH(AS22+1)<>MONTH(AS22),"",AS22+1),"") -> 2022-12-27 | AU22: 2022-12-28 | AV22: 2022-12-29 | AW22: 2022-12-30 | AX22: 2022-12-31
D23: =IFERROR(IF(MONTH(J22+1)<>MONTH(J22),"",J22+1),"") -> 2022-07-31 | E23: =IFERROR(IF(MONTH(D23+1)<>MONTH(D23),"",D23+1),"") ->  | L23: =IFERROR(IF(MONTH(R22+1)<>MONTH(R22),"",R22+1),"") ->  | M23: =IFERROR(IF(MONTH(L23+1)<>MONTH(L23),"",L23+1),"") ->  | T23: =IFERROR(IF(MONTH(Z22+1)<>MONTH(Z22),"",Z22+1),"") ->  | U23: =IFERROR(IF(MONTH(T23+1)<>MONTH(T23),"",T23+1),"") ->  | AB23: =IFERROR(IF(MONTH(AH22+1)<>MONTH(AH22),"",AH22+1),"") -> 2022-10-30 | AC23: =IFERROR(IF(MONTH(AB23+1)<>MONTH(AB23),"",AB23+1),"") -> 2022-10-31 | AJ23: =IFERROR(IF(MONTH(AP22+1)<>MONTH(AP22),"",AP22+1),"") ->  | AK23: =IFERROR(IF(MONTH(AJ23+1)<>MONTH(AJ23),"",AJ23+1),"") ->  | AR23: =IFERROR(IF(MONTH(AX22+1)<>MONTH(AX22),"",AX22+1),"") ->  | AS23: =IFERROR(IF(MONTH(AR23+1)<>MONTH(AR23),"",AR23+1),"") -> 

Sheet FERIADOS
A1: DATA DO FERIADO | B1: DESCRIÇÃO DO FERIADO | C1: ANO | D1: MÊS | E1: DIA | H1: =ANNO -> 2022 | I1: TITULAR | J1: DIA | K1: FECHAMENTO | L1: VENCIMENTO | Q1: CARTÕES | R1: FECHAMENTO | S1: VENCIMENTO
A2: =DATE(C2,D2,E2) -> 44562 | B2: INICIO DO ANO | C2: =$H$1 -> 2022 | D2: 1 | E2: 1 | J2: =DAY(L2) -> 13 | K2: =VLOOKUP(CALENDARIO!W1,CONFIG!$A$2:$C$15,3,0) -> 44810 | L2: =VLOOKUP(CALENDARIO!W1,CONFIG!$A$2:$C$15,2,0) -> 44817
A3: =A4-1 -> 44620 | B3: CARNAVAL | C3: =$H$1 -> 2022 | D3: X | E3: X
A4: =A6-47 -> 44621 | B4: CARNAVAL | C4: 2022 | D4: X | E4: X
A5: =A6-2 -> 44666 | B5: SEXTA SANTA | C5: 2022 | D5: X | E5: X
A6: =FLOOR(DAY(MINUTE(H1/38)/2+56)&"/5"&"/"&H1,7)-34 -> 44668 | B6: PASCOA | C6: 2022 | D6: X | E6: X
A7: =DATE(C7,D7,E7) -> 44672 | B7: TIRADENTES | C7: 2022 | D7: 4 | E7: 21
A8: =DATE(C8,D8,E8) -> 44682 | B8: DIA DO TRABALHADOR | C8: 2022 | D8: 5 | E8: 1
A9: =A6+60 -> 44728 | B9: CORPUS CRISTHI | C9: 2022 | D9: X | E9: X
A10: =DATE(C10,D10,E10) -> 44811 | B10: INDEPENDÊNCIA | C10: 2022 | D10: 9 | E10: 7
A11: =DATE(C11,D11,E11) -> 44846 | B11: NOSSA SENHORA APARECIDA | C11: 2022 | D11: 10 | E11: 12
A12: =DATE(C12,D12,E12) -> 44867 | B12: FINADOS | C12: 2022 | D12: 11 | E12: 2
A13: 44880 | B13: PROCLAMAÇÃO DA REPÚBLICA | C13: 2022 | D13: 11 | E13: 15
A14: 44920 | B14: NATAL | C14: 2022 | D14: 12 | E14: 25
A15: 44896 | B15: NIVER | C15: 2022 | D15: 12 | E15: 1
C16: 2022
C17: 2022 | L17: SE(CALENDÁRIO!AD1<>"";DATA(ANO(HOJE());SE(MÊS(L2)=MÊS(DATA(ANO(HOJE());CALENDÁRIO!AG2;PROCV(CALENDÁRIO!AD1;AUXILIAR!D2:G15;4;0)));MÊS(L2)-1;CALENDÁRIO!AG2);PROCV(CALENDÁRIO!AD1;AUXILIAR!D2:G15;4;0)))
C18: 2022
C19: 2022 | L19: 77175
C20: 2022
C21: 2022
C22: 2022
C23: 2022
C24: 2022
C25: 2022
C26: 2022
C27: 2022
C28: 2022

Sheet GASTOS_MENSAIS
R2: LIMITE D
R3: LIMITE G
B4: GASTOS
A5: CARTÃO | B5: JANEIRO | C5: FEVEREIRO | D5: MARÇO | E5: ABRIL | F5: MAIO | G5: JUNHO | H5: JULHO | I5: AGOSTO | J5: SETEMBRO | K5: OUTUBRO | L5: NOVEMBRO | M5: DEZEMBRO | N5: TOTAL | R5: CARDS | S5: JANEIRO | T5: FEVEREIRO | U5: MARÇO | V5: ABRIL | W5: MAIO | X5: JUNHO | Y5: JULHO | Z5: AGOSTO | AA5: SETEMBRO | AB5: OUTUBRO | AC5: NOVEMBRO | AD5: DEZEMBRO
A6: CARTÃO | B6: 2021-01-01 | C6: 2021-02-01 | D6: 2021-03-01 | E6: 2021-04-01 | F6: 2021-05-01 | G6: 2021-06-01 | H6: 2021-07-01 | I6: 2021-08-01 | J6: 2021-09-01 | K6: 2021-10-01 | L6: 2021-11-01 | M6: 2021-12-01
A7: =CONFIG!A2 -> CLICK | B7: =SUMIFS('BASE DE DADOS'!$M:$M,'BASE DE DADOS'!$B:$B,GASTOS_MENSAIS!$B$4,'BASE DE DADOS'!$G:$G,GASTOS_MENSAIS!$A7,'BASE DE DADOS'!$K:$K,DATE(YEAR(TODAY()),MONTH(B$6),DAY(VLOOKUP($A7,CONFIG!$A$2:$C$100,2,0)))) -> 2311.159378 | C7: =SUMIFS('BASE DE DADOS'!$M:$M,'BASE DE DADOS'!$B:$B,GASTOS_MENSAIS!$B$4,'BASE DE DADOS'!$G:$G,GASTOS_MENSAIS!$A7,'BASE DE DADOS'!$K:$K,DATE(YEAR(TODAY()),MONTH(C$6),DAY(VLOOKUP($A7,CONFIG!$A$2:$C$100,2,0)))) -> 2311.169727 | D7: =SUMIFS('BASE DE DADOS'!$M:$M,'BASE DE DADOS'!$B:$B,GASTOS_MENSAIS!$B$4,'BASE DE DADOS'!$G:$G,GASTOS_MENSAIS!$A7,'BASE DE DADOS'!$K:$K,DATE(YEAR(TODAY()),MONTH(D$6),DAY(VLOOKUP($A7,CONFIG!$A$2:$C$100,2,0)))) -> 2315.659773 | E7: =SUMIFS('BASE DE DADOS'!$M:$M,'BASE DE DADOS'!$B:$B,GASTOS_MENSAIS!$B$4,'BASE DE DADOS'!$G:$G,GASTOS_MENSAIS!$A7,'BASE DE DADOS'!$K:$K,DATE(YEAR(TODAY()),MONTH(E$6),DAY(VLOOKUP($A7,CONFIG!$A$2:$C$100,2,0)))) -> 2300.68619 | F7: =SUMIFS('BASE DE DADOS'!$M:$M,'BASE DE DADOS'!$B:$B,GASTOS_MENSAIS!$B$4,'BASE DE DADOS'!$G:$G,GASTOS_MENSAIS!$A7,'BASE DE DADOS'!$K:$K,DATE(YEAR(TODAY()),MONTH(F$6),DAY(VLOOKUP($A7,CONFIG!$A$2:$C$100,2,0)))) -> 2359.820376 | G7: =SUMIFS('BASE DE DADOS'!$M:$M,'BASE DE DADOS'!$B:$B,GASTOS_MENSAIS!$B$4,'BASE DE DADOS'!$G:$G,GASTOS_MENSAIS!$A7,'BASE DE DADOS'!$K:$K,DATE(YEAR(TODAY()),MONTH(G$6),DAY(VLOOKUP($A7,CONFIG!$A$2:$C$100,2,0)))) -> 2299.994932 | H7: =SUMIFS('BASE DE DADOS'!$M:$M,'BASE DE DADOS'!$B:$B,GASTOS_MENSAIS!$B$4,'BASE DE DADOS'!$G:$G,GASTOS_MENSAIS!$A7,'BASE DE DADOS'!$K:$K,DATE(YEAR(TODAY()),MONTH(H$6),DAY(VLOOKUP($A7,CONFIG!$A$2:$C$100,2,0)))) -> 2305.836176 | I7: =SUMIFS('BASE DE DADOS'!$M:$M,'BASE DE DADOS'!$B:$B,GASTOS_MENSAIS!$B$4,'BASE DE DADOS'!$G:$G,GASTOS_MENSAIS!$A7,'BASE DE DADOS'!$K:$K,DATE(YEAR(TODAY()),MONTH(I$6),DAY(VLOOKUP($A7,CONFIG!$A$2:$C$100,2,0)))) -> 2288.940075 | J7: =SUMIFS('BASE DE DADOS'!$M:$M,'BASE DE DADOS'!$B:$B,GASTOS_MENSAIS!$B$4,'BASE DE DADOS'!$G:$G,GASTOS_MENSAIS!$A7,'BASE DE DADOS'!$K:$K,DATE(YEAR(TODAY()),MONTH(J$6),DAY(VLOOKUP($A7,CONFIG!$A$2:$C$100,2,0)))) -> 2293.749188 | K7: =SUMIFS('BASE DE DADOS'!$M:$M,'BASE DE DADOS'!$B:$B,GASTOS_MENSAIS!$B$4,'BASE DE DADOS'!$G:$G,GASTOS_MENSAIS!$A7,'BASE DE DADOS'!$K:$K,DATE(YEAR(TODAY()),MONTH(K$6),DAY(VLOOKUP($A7,CONFIG!$A$2:$C$100,2,0)))) -> 2300.003156 | L7: =SUMIFS('BASE DE DADOS'!$M:$M,'BASE DE DADOS'!$B:$B,GASTOS_MENSAIS!$B$4,'BASE DE DADOS'!$G:$G,GASTOS_MENSAIS!$A7,'BASE DE DADOS'!$K:$K,DATE(YEAR(TODAY()),MONTH(L$6),DAY(VLOOKUP($A7,CONFIG!$A$2:$C$100,2,0)))) -> 0 | M7: =SUMIFS('BASE DE DADOS'!$M:$M,'BASE DE DADOS'!$B:$B,GASTOS_MENSAIS!$B$4,'BASE DE DADOS'!$G:$G,GASTOS_MENSAIS!$A7,'BASE DE DADOS'!$K:$K,DATE(YEAR(TODAY()),MONTH(M$6),DAY(VLOOKUP($A7,CONFIG!$A$2:$C$100,2,0)))) -> 0 | N7: =SUM(B7:M7) -> 23087.01897
A8: DIGIO | B8: =SUMIFS('BASE DE DADOS'!$M:$M,'BASE DE DADOS'!$B:$B,GASTOS_MENSAIS!$B$4,'BASE DE DADOS'!$G:$G,GASTOS_MENSAIS!$A8,'BASE DE DADOS'!$K:$K,DATE(YEAR(TODAY()),MONTH(B$6),DAY(VLOOKUP($A8,CONFIG!$A$2:$C$100,2,0)))) -> 0 | C8: =SUMIFS('BASE DE DADOS'!$M:$M,'BASE DE DADOS'!$B:$B,GASTOS_MENSAIS!$B$4,'BASE DE DADOS'!$G:$G,GASTOS_MENSAIS!$A8,'BASE DE DADOS'!$K:$K,DATE(YEAR(TODAY()),MONTH(C$6),DAY(VLOOKUP($A8,CONFIG!$A$2:$C$100,2,0)))) -> 884.270305 | D8: =SUMIFS('BASE DE DADOS'!$M:$M,'BASE DE DADOS'!$B:$B,GASTOS_MENSAIS!$B$4,'BASE DE DADOS'!$G:$G,GASTOS_MENSAIS!$A8,'BASE DE DADOS'!$K:$K,DATE(YEAR(TODAY()),MONTH(D$6),DAY(VLOOKUP($A8,CONFIG!$A$2:$C$100,2,0)))) -> 879.998055 | E8: =SUMIFS('BASE DE DADOS'!$M:$M,'BASE DE DADOS'!$B:$B,GASTOS_MENSAIS!$B$4,'BASE DE DADOS'!$G:$G,GASTOS_MENSAIS!$A8,'BASE DE DADOS'!$K:$K,DATE(YEAR(TODAY()),MONTH(E$6),DAY(VLOOKUP($A8,CONFIG!$A$2:$C$100,2,0)))) -> 879.665 | F8: =SUMIFS('BASE DE DADOS'!$M:$M,'BASE DE DADOS'!$B:$B,GASTOS_MENSAIS!$B$4,'BASE DE DADOS'!$G:$G,GASTOS_MENSAIS!$A8,'BASE DE DADOS'!$K:$K,DATE(YEAR(TODAY()),MONTH(F$6),DAY(VLOOKUP($A8,CONFIG!$A$2:$C$100,2,0)))) -> 879.665 | G8: =SUMIFS('BASE DE DADOS'!$M:$M,'BASE DE DADOS'!$B:$B,GASTOS_MENSAIS!$B$4,'BASE DE DADOS'!$G:$G,GASTOS_MENSAIS!$A8,'BASE DE DADOS'!$K:$K,DATE(YEAR(TODAY()),MONTH(G$6),DAY(VLOOKUP($A8,CONFIG!$A$2:$C$100,2,0)))) -> 879.665 | H8: =SUMIFS('BASE DE DADOS'!$M:$M,'BASE DE DADOS'!$B:$B,GASTOS_MENSAIS!$B$4,'BASE DE DADOS'!$G:$G,GASTOS_MENSAIS!$A8,'BASE DE DADOS'!$K:$K,DATE(YEAR(TODAY()),MONTH(H$6),DAY(VLOOKUP($A8,CONFIG!$A$2:$C$100,2,0)))) -> 0 | I8: =SUMIFS('BASE DE DADOS'!$M:$M,'BASE DE DADOS'!$B:$B,GASTOS_MENSAIS!$B$4,'BASE DE DADOS'!$G:$G,GASTOS_MENSAIS!$A8,'BASE DE DADOS'!$K:$K,DATE(YEAR(TODAY()),MONTH(I$6),DAY(VLOOKUP($A8,CONFIG!$A$2:$C$100,2,0)))) -> 0 | J8: =SUMIFS('BASE DE DADOS'!$M:$M,'BASE DE DADOS'!$B:$B,GASTOS_MENSAIS!$B$4,'BASE DE DADOS'!$G:$G,GASTOS_MENSAIS!$A8,'BASE DE DADOS'!$K:$K,DATE(YEAR(TODAY()),MONTH(J$6),DAY(VLOOKUP($A8,CONFIG!$A$2:$C$100,2,0)))) -> 875.773776 | K8: =SUMIFS('BASE DE DADOS'!$M:$M,'BASE DE DADOS'!$B:$B,GASTOS_MENSAIS!$B$4,'BASE DE DADOS'!$G:$G,GASTOS_MENSAIS!$A8,'BASE DE DADOS'!$K:$K,DATE(YEAR(TODAY()),MONTH(K$6),DAY(VLOOKUP($A8,CONFIG!$A$2:$C$100,2,0)))) -> 879.996168 | L8: =SUMIFS('BASE DE DADOS'!$M:$M,'BASE DE DADOS'!$B:$B,GASTOS_MENSAIS!$B$4,'BASE DE DADOS'!$G:$G,GASTOS_MENSAIS!$A8,'BASE DE DADOS'!$K:$K,DATE(YEAR(TODAY()),MONTH(L$6),DAY(VLOOKUP($A8,CONFIG!$A$2:$C$100,2,0)))) -> 0 | M8: =SUMIFS('BASE DE DADOS'!$M:$M,'BASE DE DADOS'!$B:$B,GASTOS_MENSAIS!$B$4,'BASE DE DADOS'!$G:$G,GASTOS_MENSAIS!$A8,'BASE DE DADOS'!$K:$K,DATE(YEAR(TODAY()),MONTH(M$6),DAY(VLOOKUP($A8,CONFIG!$A$2:$C$100,2,0)))) -> 0 | N8: =SUM(B8:M8) -> 6159.033304
A9: =CONFIG!A3 -> MELIUZ | B9: =SUMIFS('BASE DE DADOS'!$M:$M,'BASE DE DADOS'!$B:$B,GASTOS_MENSAIS!$B$4,'BASE DE DADOS'!$G:$G,GASTOS_MENSAIS!$A9,'BASE DE DADOS'!$K:$K,DATE(YEAR(TODAY()),MONTH(B$6),DAY(VLOOKUP($A9,CONFIG!$A$2:$C$100,2,0)))) -> 1026.622972 | C9: =SUMIFS('BASE DE DADOS'!$M:$M,'BASE DE DADOS'!$B:$B,GASTOS_MENSAIS!$B$4,'BASE DE DADOS'!$G:$G,GASTOS_MENSAIS!$A9,'BASE DE DADOS'!$K:$K,DATE(YEAR(TODAY()),MONTH(C$6),DAY(VLOOKUP($A9,CONFIG!$A$2:$C$100,2,0)))) -> 0 | D9: =SUMIFS('BASE DE DADOS'!$M:$M,'BASE DE DADOS'!$B:$B,GASTOS_MENSAIS!$B$4,'BASE DE DADOS'!$G:$G,GASTOS_MENSAIS!$A9,'BASE DE DADOS'!$K:$K,DATE(YEAR(TODAY()),MONTH(D$6),DAY(VLOOKUP($A9,CONFIG!$A$2:$C$100,2,0)))) -> 1869.536274 | E9: =SUMIFS('BASE DE DADOS'!$M:$M,'BASE DE DADOS'!$B:$B,GASTOS_MENSAIS!$B$4,'BASE DE DADOS'!$G:$G,GASTOS_MENSAIS!$A9,'BASE DE DADOS'!$K:$K,DATE(YEAR(TODAY()),MONTH(E$6),DAY(VLOOKUP($A9,CONFIG!$A$2:$C$100,2,0)))) -> 1870.072232 | F9: =SUMIFS('BASE DE DADOS'!$M:$M,'BASE DE DADOS'!$B:$B,GASTOS_MENSAIS!$B$4,'BASE DE DADOS'!$G:$G,GASTOS_MENSAIS!$A9,'BASE DE DADOS'!$K:$K,DATE(YEAR(TODAY()),MONTH(F$6),DAY(VLOOKUP($A9,CONFIG!$A$2:$C$100,2,0)))) -> 1869.89376 | G9: =SUMIFS('BASE DE DADOS'!$M:$M,'BASE DE DADOS'!$B:$B,GASTOS_MENSAIS!$B$4,'BASE DE DADOS'!$G:$G,GASTOS_MENSAIS!$A9,'BASE DE DADOS'!$K:$K,DATE(YEAR(TODAY()),MONTH(G$6),DAY(VLOOKUP($A9,CONFIG!$A$2:$C$100,2,0)))) -> 1870.260931 | H9: =SUMIFS('BASE DE DADOS'!$M:$M,'BASE DE DADOS'!$B:$B,GASTOS_MENSAIS!$B$4,'BASE DE DADOS'!$G:$G,GASTOS_MENSAIS!$A9,'BASE DE DADOS'!$K:$K,DATE(YEAR(TODAY()),MONTH(H$6),DAY(VLOOKUP($A9,CONFIG!$A$2:$C$100,2,0)))) -> 1861.008925 | I9: =SUMIFS('BASE DE DADOS'!$M:$M,'BASE DE DADOS'!$B:$B,GASTOS_MENSAIS!$B$4,'BASE DE DADOS'!$G:$G,GASTOS_MENSAIS!$A9,'BASE DE DADOS'!$K:$K,DATE(YEAR(TODAY()),MONTH(I$6),DAY(VLOOKUP($A9,CONFIG!$A$2:$C$100,2,0)))) -> 1687.24 | J9: =SUMIFS('BASE DE DADOS'!$M:$M,'BASE DE DADOS'!$B:$B,GASTOS_MENSAIS!$B$4,'BASE DE DADOS'!$G:$G,GASTOS_MENSAIS!$A9,'BASE DE DADOS'!$K:$K,DATE(YEAR(TODAY()),MONTH(J$6),DAY(VLOOKUP($A9,CONFIG!$A$2:$C$100,2,0)))) -> 11143.4207 | K9: =SUMIFS('BASE DE DADOS'!$M:$M,'BASE DE DADOS'!$B:$B,GASTOS_MENSAIS!$B$4,'BASE DE DADOS'!$G:$G,GASTOS_MENSAIS!$A9,'BASE DE DADOS'!$K:$K,DATE(YEAR(TODAY()),MONTH(K$6),DAY(VLOOKUP($A9,CONFIG!$A$2:$C$100,2,0)))) -> 6448.956691 | L9: =SUMIFS('BASE DE DADOS'!$M:$M,'BASE DE DADOS'!$B:$B,GASTOS_MENSAIS!$B$4,'BASE DE DADOS'!$G:$G,GASTOS_MENSAIS!$A9,'BASE DE DADOS'!$K:$K,DATE(YEAR(TODAY()),MONTH(L$6),DAY(VLOOKUP($A9,CONFIG!$A$2:$C$100,2,0)))) -> 218.486783 | M9: =SUMIFS('BASE DE DADOS'!$M:$M,'BASE DE DADOS'!$B:$B,GASTOS_MENSAIS!$B$4,'BASE DE DADOS'!$G:$G,GASTOS_MENSAIS!$A9,'BASE DE DADOS'!$K:$K,DATE(YEAR(TODAY()),MONTH(M$6),DAY(VLOOKUP($A9,CONFIG!$A$2:$C$100,2,0)))) -> 218.486783 | N9: 30083.98605
A10: =CONFIG!A4 -> ZERO | B10: =SUMIFS('BASE DE DADOS'!$M:$M,'BASE DE DADOS'!$B:$B,GASTOS_MENSAIS!$B$4,'BASE DE DADOS'!$G:$G,GASTOS_MENSAIS!$A10,'BASE DE DADOS'!$K:$K,DATE(YEAR(TODAY()),MONTH(B$6),DAY(VLOOKUP($A10,CONFIG!$A$2:$C$100,2,0)))) -> 1607.768895 | C10: =SUMIFS('BASE DE DADOS'!$M:$M,'BASE DE DADOS'!$B:$B,GASTOS_MENSAIS!$B$4,'BASE DE DADOS'!$G:$G,GASTOS_MENSAIS!$A10,'BASE DE DADOS'!$K:$K,DATE(YEAR(TODAY()),MONTH(C$6),DAY(VLOOKUP($A10,CONFIG!$A$2:$C$100,2,0)))) -> 1601.822204 | D10: =SUMIFS('BASE DE DADOS'!$M:$M,'BASE DE DADOS'!$B:$B,GASTOS_MENSAIS!$B$4,'BASE DE DADOS'!$G:$G,GASTOS_MENSAIS!$A10,'BASE DE DADOS'!$K:$K,DATE(YEAR(TODAY()),MONTH(D$6),DAY(VLOOKUP($A10,CONFIG!$A$2:$C$100,2,0)))) -> 1607.758546 | E10: =SUMIFS('BASE DE DADOS'!$M:$M,'BASE DE DADOS'!$B:$B,GASTOS_MENSAIS!$B$4,'BASE DE DADOS'!$G:$G,GASTOS_MENSAIS!$A10,'BASE DE DADOS'!$K:$K,DATE(YEAR(TODAY()),MONTH(E$6),DAY(VLOOKUP($A10,CONFIG!$A$2:$C$100,2,0)))) -> 1600.004751 | F10: =SUMIFS('BASE DE DADOS'!$M:$M,'BASE DE DADOS'!$B:$B,GASTOS_MENSAIS!$B$4,'BASE DE DADOS'!$G:$G,GASTOS_MENSAIS!$A10,'BASE DE DADOS'!$K:$K,DATE(YEAR(TODAY()),MONTH(F$6),DAY(VLOOKUP($A10,CONFIG!$A$2:$C$100,2,0)))) -> 1599.996796 | G10: =SUMIFS('BASE DE DADOS'!$M:$M,'BASE DE DADOS'!$B:$B,GASTOS_MENSAIS!$B$4,'BASE DE DADOS'!$G:$G,GASTOS_MENSAIS!$A10,'BASE DE DADOS'!$K:$K,DATE(YEAR(TODAY()),MONTH(G$6),DAY(VLOOKUP($A10,CONFIG!$A$2:$C$100,2,0)))) -> 1599.996796 | H10: =SUMIFS('BASE DE DADOS'!$M:$M,'BASE DE DADOS'!$B:$B,GASTOS_MENSAIS!$B$4,'BASE DE DADOS'!$G:$G,GASTOS_MENSAIS!$A10,'BASE DE DADOS'!$K:$K,DATE(YEAR(TODAY()),MONTH(H$6),DAY(VLOOKUP($A10,CONFIG!$A$2:$C$100,2,0)))) -> 1599.996796 | I10: =SUMIFS('BASE DE DADOS'!$M:$M,'BASE DE DADOS'!$B:$B,GASTOS_MENSAIS!$B$4,'BASE DE DADOS'!$G:$G,GASTOS_MENSAIS!$A10,'BASE DE DADOS'!$K:$K,DATE(YEAR(TODAY()),MONTH(I$6),DAY(VLOOKUP($A10,CONFIG!$A$2:$C$100,2,0)))) -> 1592.29714 | J10: =SUMIFS('BASE DE DADOS'!$M:$M,'BASE DE DADOS'!$B:$B,GASTOS_MENSAIS!$B$4,'BASE DE DADOS'!$G:$G,GASTOS_MENSAIS!$A10,'BASE DE DADOS'!$K:$K,DATE(YEAR(TODAY()),MONTH(J$6),DAY(VLOOKUP($A10,CONFIG!$A$2:$C$100,2,0)))) -> 1599.997489 | K10: =SUMIFS('BASE DE DADOS'!$M:$M,'BASE DE DADOS'!$B:$B,GASTOS_MENSAIS!$B$4,'BASE DE DADOS'!$G:$G,GASTOS_MENSAIS!$A10,'BASE DE DADOS'!$K:$K,DATE(YEAR(TODAY()),MONTH(K$6),DAY(VLOOKUP($A10,CONFIG!$A$2:$C$100,2,0)))) -> 1655.798604 | L10: =SUMIFS('BASE DE DADOS'!$M:$M,'BASE DE DADOS'!$B:$B,GASTOS_MENSAIS!$B$4,'BASE DE DADOS'!$G:$G,GASTOS_MENSAIS!$A10,'BASE DE DADOS'!$K:$K,DATE(YEAR(TODAY()),MONTH(L$6),DAY(VLOOKUP($A10,CONFIG!$A$2:$C$100,2,0)))) -> 0 | M10: =SUMIFS('BASE DE DADOS'!$M:$M,'BASE DE DADOS'!$B:$B,GASTOS_MENSAIS!$B$4,'BASE DE DADOS'!$G:$G,GASTOS_MENSAIS!$A10,'BASE DE DADOS'!$K:$K,DATE(YEAR(TODAY()),MONTH(M$6),DAY(VLOOKUP($A10,CONFIG!$A$2:$C$100,2,0)))) -> 0 | N10: 16065.43802
A11: =CONFIG!A5 -> NUBANK | B11: =SUMIFS('BASE DE DADOS'!$M:$M,'BASE DE DADOS'!$B:$B,GASTOS_MENSAIS!$B$4,'BASE DE DADOS'!$G:$G,GASTOS_MENSAIS!$A11,'BASE DE DADOS'!$K:$K,DATE(YEAR(TODAY()),MONTH(B$6),DAY(VLOOKUP($A11,CONFIG!$A$2:$C$100,2,0)))) -> 3588.103128 | C11: =SUMIFS('BASE DE DADOS'!$M:$M,'BASE DE DADOS'!$B:$B,GASTOS_MENSAIS!$B$4,'BASE DE DADOS'!$G:$G,GASTOS_MENSAIS!$A11,'BASE DE DADOS'!$K:$K,DATE(YEAR(TODAY()),MONTH(C$6),DAY(VLOOKUP($A11,CONFIG!$A$2:$C$100,2,0)))) -> 3824.732601 | D11: =SUMIFS('BASE DE DADOS'!$M:$M,'BASE DE DADOS'!$B:$B,GASTOS_MENSAIS!$B$4,'BASE DE DADOS'!$G:$G,GASTOS_MENSAIS!$A11,'BASE DE DADOS'!$K:$K,DATE(YEAR(TODAY()),MONTH(D$6),DAY(VLOOKUP($A11,CONFIG!$A$2:$C$100,2,0)))) -> 3647.847645 | E11: =SUMIFS('BASE DE DADOS'!$M:$M,'BASE DE DADOS'!$B:$B,GASTOS_MENSAIS!$B$4,'BASE DE DADOS'!$G:$G,GASTOS_MENSAIS!$A11,'BASE DE DADOS'!$K:$K,DATE(YEAR(TODAY()),MONTH(E$6),DAY(VLOOKUP($A11,CONFIG!$A$2:$C$100,2,0)))) -> 3659.682791 | F11: =SUMIFS('BASE DE DADOS'!$M:$M,'BASE DE DADOS'!$B:$B,GASTOS_MENSAIS!$B$4,'BASE DE DADOS'!$G:$G,GASTOS_MENSAIS!$A11,'BASE DE DADOS'!$K:$K,DATE(YEAR(TODAY()),MONTH(F$6),DAY(VLOOKUP($A11,CONFIG!$A$2:$C$100,2,0)))) -> 3699.995178 | G11: =SUMIFS('BASE DE DADOS'!$M:$M,'BASE DE DADOS'!$B:$B,GASTOS_MENSAIS!$B$4,'BASE DE DADOS'!$G:$G,GASTOS_MENSAIS!$A11,'BASE DE DADOS'!$K:$K,DATE(YEAR(TODAY()),MONTH(G$6),DAY(VLOOKUP($A11,CONFIG!$A$2:$C$100,2,0)))) -> 3924.291184 | H11: =SUMIFS('BASE DE DADOS'!$M:$M,'BASE DE DADOS'!$B:$B,GASTOS_MENSAIS!$B$4,'BASE DE DADOS'!$G:$G,GASTOS_MENSAIS!$A11,'BASE DE DADOS'!$K:$K,DATE(YEAR(TODAY()),MONTH(H$6),DAY(VLOOKUP($A11,CONFIG!$A$2:$C$100,2,0)))) -> 4130.7578 | I11: =SUMIFS('BASE DE DADOS'!$M:$M,'BASE DE DADOS'!$B:$B,GASTOS_MENSAIS!$B$4,'BASE DE DADOS'!$G:$G,GASTOS_MENSAIS!$A11,'BASE DE DADOS'!$K:$K,DATE(YEAR(TODAY()),MONTH(I$6),DAY(VLOOKUP($A11,CONFIG!$A$2:$C$100,2,0)))) -> 4056.859148 | J11: =SUMIFS('BASE DE DADOS'!$M:$M,'BASE DE DADOS'!$B:$B,GASTOS_MENSAIS!$B$4,'BASE DE DADOS'!$G:$G,GASTOS_MENSAIS!$A11,'BASE DE DADOS'!$K:$K,DATE(YEAR(TODAY()),MONTH(J$6),DAY(VLOOKUP($A11,CONFIG!$A$2:$C$100,2,0)))) -> 3843.237998 | K11: =SUMIFS('BASE DE DADOS'!$M:$M,'BASE DE DADOS'!$B:$B,GASTOS_MENSAIS!$B$4,'BASE DE DADOS'!$G:$G,GASTOS_MENSAIS!$A11,'BASE DE DADOS'!$K:$K,DATE(YEAR(TODAY()),MONTH(K$6),DAY(VLOOKUP($A11,CONFIG!$A$2:$C$100,2,0)))) -> 3476.777 | L11: =SUMIFS('BASE DE DADOS'!$M:$M,'BASE DE DADOS'!$B:$B,GASTOS_MENSAIS!$B$4,'BASE DE DADOS'!$G:$G,GASTOS_MENSAIS!$A11,'BASE DE DADOS'!$K:$K,DATE(YEAR(TODAY()),MONTH(L$6),DAY(VLOOKUP($A11,CONFIG!$A$2:$C$100,2,0)))) -> 30.56 | M11: =SUMIFS('BASE DE DADOS'!$M:$M,'BASE DE DADOS'!$B:$B,GASTOS_MENSAIS!$B$4,'BASE DE DADOS'!$G:$G,GASTOS_MENSAIS!$A11,'BASE DE DADOS'!$K:$K,DATE(YEAR(TODAY()),MONTH(M$6),DAY(VLOOKUP($A11,CONFIG!$A$2:$C$100,2,0)))) -> 30.56 | N11: 37913.40447
A12: NEON | B12: =SUMIFS('BASE DE DADOS'!$M:$M,'BASE DE DADOS'!$B:$B,GASTOS_MENSAIS!$B$4,'BASE DE DADOS'!$G:$G,GASTOS_MENSAIS!$A12,'BASE DE DADOS'!$K:$K,DATE(YEAR(TODAY()),MONTH(B$6),DAY(VLOOKUP($A12,CONFIG!$A$2:$C$100,2,0)))) -> 0 | C12: =SUMIFS('BASE DE DADOS'!$M:$M,'BASE DE DADOS'!$B:$B,GASTOS_MENSAIS!$B$4,'BASE DE DADOS'!$G:$G,GASTOS_MENSAIS!$A12,'BASE DE DADOS'!$K:$K,DATE(YEAR(TODAY()),MONTH(C$6),DAY(VLOOKUP($A12,CONFIG!$A$2:$C$100,2,0)))) -> 927.585227 | D12: =SUMIFS('BASE DE DADOS'!$M:$M,'BASE DE DADOS'!$B:$B,GASTOS_MENSAIS!$B$4,'BASE DE DADOS'!$G:$G,GASTOS_MENSAIS!$A12,'BASE DE DADOS'!$K:$K,DATE(YEAR(TODAY()),MONTH(D$6),DAY(VLOOKUP($A12,CONFIG!$A$2:$C$100,2,0)))) -> 849.997068 | E12: =SUMIFS('BASE DE DADOS'!$M:$M,'BASE DE DADOS'!$B:$B,GASTOS_MENSAIS!$B$4,'BASE DE DADOS'!$G:$G,GASTOS_MENSAIS!$A12,'BASE DE DADOS'!$K:$K,DATE(YEAR(TODAY()),MONTH(E$6),DAY(VLOOKUP($A12,CONFIG!$A$2:$C$100,2,0)))) -> 850.004766 | F12: =SUMIFS('BASE DE DADOS'!$M:$M,'BASE DE DADOS'!$B:$B,GASTOS_MENSAIS!$B$4,'BASE DE DADOS'!$G:$G,GASTOS_MENSAIS!$A12,'BASE DE DADOS'!$K:$K,DATE(YEAR(TODAY()),MONTH(F$6),DAY(VLOOKUP($A12,CONFIG!$A$2:$C$100,2,0)))) -> 850.004766 | G12: =SUMIFS('BASE DE DADOS'!$M:$M,'BASE DE DADOS'!$B:$B,GASTOS_MENSAIS!$B$4,'BASE DE DADOS'!$G:$G,GASTOS_MENSAIS!$A12,'BASE DE DADOS'!$K:$K,DATE(YEAR(TODAY()),MONTH(G$6),DAY(VLOOKUP($A12,CONFIG!$A$2:$C$100,2,0)))) -> 850.004766 | H12: =SUMIFS('BASE DE DADOS'!$M:$M,'BASE DE DADOS'!$B:$B,GASTOS_MENSAIS!$B$4,'BASE DE DADOS'!$G:$G,GASTOS_MENSAIS!$A12,'BASE DE DADOS'!$K:$K,DATE(YEAR(TODAY()),MONTH(H$6),DAY(VLOOKUP($A12,CONFIG!$A$2:$C$100,2,0)))) -> 1059.085613 | I12: =SUMIFS('BASE DE DADOS'!$M:$M,'BASE DE DADOS'!$B:$B,GASTOS_MENSAIS!$B$4,'BASE DE DADOS'!$G:$G,GASTOS_MENSAIS!$A12,'BASE DE DADOS'!$K:$K,DATE(YEAR(TODAY()),MONTH(I$6),DAY(VLOOKUP($A12,CONFIG!$A$2:$C$100,2,0)))) -> 0 | J12: =SUMIFS('BASE DE DADOS'!$M:$M,'BASE DE DADOS'!$B:$B,GASTOS_MENSAIS!$B$4,'BASE DE DADOS'!$G:$G,GASTOS_MENSAIS!$A12,'BASE DE DADOS'!$K:$K,DATE(YEAR(TODAY()),MONTH(J$6),DAY(VLOOKUP($A12,CONFIG!$A$2:$C$100,2,0)))) -> 1109.99884 | K12: =SUMIFS('BASE DE DADOS'!$M:$M,'BASE DE DADOS'!$B:$B,GASTOS_MENSAIS!$B$4,'BASE DE DADOS'!$G:$G,GASTOS_MENSAIS!$A12,'BASE DE DADOS'!$K:$K,DATE(YEAR(TODAY()),MONTH(K$6),DAY(VLOOKUP($A12,CONFIG!$A$2:$C$100,2,0)))) -> 0 | L12: =SUMIFS('BASE DE DADOS'!$M:$M,'BASE DE DADOS'!$B:$B,GASTOS_MENSAIS!$B$4,'BASE DE DADOS'!$G:$G,GASTOS_MENSAIS!$A12,'BASE DE DADOS'!$K:$K,DATE(YEAR(TODAY()),MONTH(L$6),DAY(VLOOKUP($A12,CONFIG!$A$2:$C$100,2,0)))) -> 0 | M12: =SUMIFS('BASE DE DADOS'!$M:$M,'BASE DE DADOS'!$B:$B,GASTOS_MENSAIS!$B$4,'BASE DE DADOS'!$G:$G,GASTOS_MENSAIS!$A12,'BASE DE DADOS'!$K:$K,DATE(YEAR(TODAY()),MONTH(M$6),DAY(VLOOKUP($A12,CONFIG!$A$2:$C$100,2,0)))) -> 0 | N12: 6496.681046
A13: =CONFIG!A6 -> AZUL | B13: =SUMIFS('BASE DE DADOS'!$M:$M,'BASE DE DADOS'!$B:$B,GASTOS_MENSAIS!$B$4,'BASE DE DADOS'!$G:$G,GASTOS_MENSAIS!$A13,'BASE DE DADOS'!$K:$K,DATE(YEAR(TODAY()),MONTH(B$6),DAY(VLOOKUP($A13,CONFIG!$A$2:$C$100,2,0)))) -> 2160.436542 | C13: =SUMIFS('BASE DE DADOS'!$M:$M,'BASE DE DADOS'!$B:$B,GASTOS_MENSAIS!$B$4,'BASE DE DADOS'!$G:$G,GASTOS_MENSAIS!$A13,'BASE DE DADOS'!$K:$K,DATE(YEAR(TODAY()),MONTH(C$6),DAY(VLOOKUP($A13,CONFIG!$A$2:$C$100,2,0)))) -> 2160.436542 | D13: =SUMIFS('BASE DE DADOS'!$M:$M,'BASE DE DADOS'!$B:$B,GASTOS_MENSAIS!$B$4,'BASE DE DADOS'!$G:$G,GASTOS_MENSAIS!$A13,'BASE DE DADOS'!$K:$K,DATE(YEAR(TODAY()),MONTH(D$6),DAY(VLOOKUP($A13,CONFIG!$A$2:$C$100,2,0)))) -> 2149.253483 | E13: =SUMIFS('BASE DE DADOS'!$M:$M,'BASE DE DADOS'!$B:$B,GASTOS_MENSAIS!$B$4,'BASE DE DADOS'!$G:$G,GASTOS_MENSAIS!$A13,'BASE DE DADOS'!$K:$K,DATE(YEAR(TODAY()),MONTH(E$6),DAY(VLOOKUP($A13,CONFIG!$A$2:$C$100,2,0)))) -> 2157.797547 | F13: =SUMIFS('BASE DE DADOS'!$M:$M,'BASE DE DADOS'!$B:$B,GASTOS_MENSAIS!$B$4,'BASE DE DADOS'!$G:$G,GASTOS_MENSAIS!$A13,'BASE DE DADOS'!$K:$K,DATE(YEAR(TODAY()),MONTH(F$6),DAY(VLOOKUP($A13,CONFIG!$A$2:$C$100,2,0)))) -> 2165.890465 | G13: =SUMIFS('BASE DE DADOS'!$M:$M,'BASE DE DADOS'!$B:$B,GASTOS_MENSAIS!$B$4,'BASE DE DADOS'!$G:$G,GASTOS_MENSAIS!$A13,'BASE DE DADOS'!$K:$K,DATE(YEAR(TODAY()),MONTH(G$6),DAY(VLOOKUP($A13,CONFIG!$A$2:$C$100,2,0)))) -> 2150.00475 | H13: =SUMIFS('BASE DE DADOS'!$M:$M,'BASE DE DADOS'!$B:$B,GASTOS_MENSAIS!$B$4,'BASE DE DADOS'!$G:$G,GASTOS_MENSAIS!$A13,'BASE DE DADOS'!$K:$K,DATE(YEAR(TODAY()),MONTH(H$6),DAY(VLOOKUP($A13,CONFIG!$A$2:$C$100,2,0)))) -> 2132.608337 | I13: =SUMIFS('BASE DE DADOS'!$M:$M,'BASE DE DADOS'!$B:$B,GASTOS_MENSAIS!$B$4,'BASE DE DADOS'!$G:$G,GASTOS_MENSAIS!$A13,'BASE DE DADOS'!$K:$K,DATE(YEAR(TODAY()),MONTH(I$6),DAY(VLOOKUP($A13,CONFIG!$A$2:$C$100,2,0)))) -> 2140.049012 | J13: =SUMIFS('BASE DE DADOS'!$M:$M,'BASE DE DADOS'!$B:$B,GASTOS_MENSAIS!$B$4,'BASE DE DADOS'!$G:$G,GASTOS_MENSAIS!$A13,'BASE DE DADOS'!$K:$K,DATE(YEAR(TODAY()),MONTH(J$6),DAY(VLOOKUP($A13,CONFIG!$A$2:$C$100,2,0)))) -> 0 | K13: =SUMIFS('BASE DE DADOS'!$M:$M,'BASE DE DADOS'!$B:$B,GASTOS_MENSAIS!$B$4,'BASE DE DADOS'!$G:$G,GASTOS_MENSAIS!$A13,'BASE DE DADOS'!$K:$K,DATE(YEAR(TODAY()),MONTH(K$6),DAY(VLOOKUP($A13,CONFIG!$A$2:$C$100,2,0)))) -> 2150.00475 | L13: =SUMIFS('BASE DE DADOS'!$M:$M,'BASE DE DADOS'!$B:$B,GASTOS_MENSAIS!$B$4,'BASE DE DADOS'!$G:$G,GASTOS_MENSAIS!$A13,'BASE DE DADOS'!$K:$K,DATE(YEAR(TODAY()),MONTH(L$6),DAY(VLOOKUP($A13,CONFIG!$A$2:$C$100,2,0)))) -> 0 | M13: =SUMIFS('BASE DE DADOS'!$M:$M,'BASE DE DADOS'!$B:$B,GASTOS_MENSAIS!$B$4,'BASE DE DADOS'!$G:$G,GASTOS_MENSAIS!$A13,'BASE DE DADOS'!$K:$K,DATE(YEAR(TODAY()),MONTH(M$6),DAY(VLOOKUP($A13,CONFIG!$A$2:$C$100,2,0)))) -> 0 | N13: 19366.48143
A14: =CONFIG!A7 -> GOLD | B14: =SUMIFS('BASE DE DADOS'!$M:$M,'BASE DE DADOS'!$B:$B,GASTOS_MENSAIS!$B$4,'BASE DE DADOS'!$G:$G,GASTOS_MENSAIS!$A14,'BASE DE DADOS'!$K:$K,DATE(YEAR(TODAY()),MONTH(B$6),DAY(VLOOKUP($A14,CONFIG!$A$2:$C$100,2,0)))) -> 2511.882307 | C14: =SUMIFS('BASE DE DADOS'!$M:$M,'BASE DE DADOS'!$B:$B,GASTOS_MENSAIS!$B$4,'BASE DE DADOS'!$G:$G,GASTOS_MENSAIS!$A14,'BASE DE DADOS'!$K:$K,DATE(YEAR(TODAY()),MONTH(C$6),DAY(VLOOKUP($A14,CONFIG!$A$2:$C$100,2,0)))) -> 2512.136958 | D14: =SUMIFS('BASE DE DADOS'!$M:$M,'BASE DE DADOS'!$B:$B,GASTOS_MENSAIS!$B$4,'BASE DE DADOS'!$G:$G,GASTOS_MENSAIS!$A14,'BASE DE DADOS'!$K:$K,DATE(YEAR(TODAY()),MONTH(D$6),DAY(VLOOKUP($A14,CONFIG!$A$2:$C$100,2,0)))) -> 2499.999858 | E14: =SUMIFS('BASE DE DADOS'!$M:$M,'BASE DE DADOS'!$B:$B,GASTOS_MENSAIS!$B$4,'BASE DE DADOS'!$G:$G,GASTOS_MENSAIS!$A14,'BASE DE DADOS'!$K:$K,DATE(YEAR(TODAY()),MONTH(E$6),DAY(VLOOKUP($A14,CONFIG!$A$2:$C$100,2,0)))) -> 2499.997581 | F14: =SUMIFS('BASE DE DADOS'!$M:$M,'BASE DE DADOS'!$B:$B,GASTOS_MENSAIS!$B$4,'BASE DE DADOS'!$G:$G,GASTOS_MENSAIS!$A14,'BASE DE DADOS'!$K:$K,DATE(YEAR(TODAY()),MONTH(F$6),DAY(VLOOKUP($A14,CONFIG!$A$2:$C$100,2,0)))) -> 2499.997581 | G14: =SUMIFS('BASE DE DADOS'!$M:$M,'BASE DE DADOS'!$B:$B,GASTOS_MENSAIS!$B$4,'BASE DE DADOS'!$G:$G,GASTOS_MENSAIS!$A14,'BASE DE DADOS'!$K:$K,DATE(YEAR(TODAY()),MONTH(G$6),DAY(VLOOKUP($A14,CONFIG!$A$2:$C$100,2,0)))) -> 2500.000882 | H14: =SUMIFS('BASE DE DADOS'!$M:$M,'BASE DE DADOS'!$B:$B,GASTOS_MENSAIS!$B$4,'BASE DE DADOS'!$G:$G,GASTOS_MENSAIS!$A14,'BASE DE DADOS'!$K:$K,DATE(YEAR(TODAY()),MONTH(H$6),DAY(VLOOKUP($A14,CONFIG!$A$2:$C$100,2,0)))) -> 2406.287386 | I14: =SUMIFS('BASE DE DADOS'!$M:$M,'BASE DE DADOS'!$B:$B,GASTOS_MENSAIS!$B$4,'BASE DE DADOS'!$G:$G,GASTOS_MENSAIS!$A14,'BASE DE DADOS'!$K:$K,DATE(YEAR(TODAY()),MONTH(I$6),DAY(VLOOKUP($A14,CONFIG!$A$2:$C$100,2,0)))) -> 2456.12817 | J14: =SUMIFS('BASE DE DADOS'!$M:$M,'BASE DE DADOS'!$B:$B,GASTOS_MENSAIS!$B$4,'BASE DE DADOS'!$G:$G,GASTOS_MENSAIS!$A14,'BASE DE DADOS'!$K:$K,DATE(YEAR(TODAY()),MONTH(J$6),DAY(VLOOKUP($A14,CONFIG!$A$2:$C$100,2,0)))) -> 0 | K14: =SUMIFS('BASE DE DADOS'!$M:$M,'BASE DE DADOS'!$B:$B,GASTOS_MENSAIS!$B$4,'BASE DE DADOS'!$G:$G,GASTOS_MENSAIS!$A14,'BASE DE DADOS'!$K:$K,DATE(YEAR(TODAY()),MONTH(K$6),DAY(VLOOKUP($A14,CONFIG!$A$2:$C$100,2,0)))) -> 0 | L14: =SUMIFS('BASE DE DADOS'!$M:$M,'BASE DE DADOS'!$B:$B,GASTOS_MENSAIS!$B$4,'BASE DE DADOS'!$G:$G,GASTOS_MENSAIS!$A14,'BASE DE DADOS'!$K:$K,DATE(YEAR(TODAY()),MONTH(L$6),DAY(VLOOKUP($A14,CONFIG!$A$2:$C$100,2,0)))) -> 0 | M14: =SUMIFS('BASE DE DADOS'!$M:$M,'BASE DE DADOS'!$B:$B,GASTOS_MENSAIS!$B$4,'BASE DE DADOS'!$G:$G,GASTOS_MENSAIS!$A14,'BASE DE DADOS'!$K:$K,DATE(YEAR(TODAY()),MONTH(M$6),DAY(VLOOKUP($A14,CONFIG!$A$2:$C$100,2,0)))) -> 0 | N14: 19886.43072
A15: =CONFIG!A8 -> LATAM | B15: =SUMIFS('BASE DE DADOS'!$M:$M,'BASE DE DADOS'!$B:$B,GASTOS_MENSAIS!$B$4,'BASE DE DADOS'!$G:$G,GASTOS_MENSAIS!$A15,'BASE DE DADOS'!$K:$K,DATE(YEAR(TODAY()),MONTH(B$6),DAY(VLOOKUP($A15,CONFIG!$A$2:$C$100,2,0)))) -> 3818.460181 | C15: =SUMIFS('BASE DE DADOS'!$M:$M,'BASE DE DADOS'!$B:$B,GASTOS_MENSAIS!$B$4,'BASE DE DADOS'!$G:$G,GASTOS_MENSAIS!$A15,'BASE DE DADOS'!$K:$K,DATE(YEAR(TODAY()),MONTH(C$6),DAY(VLOOKUP($A15,CONFIG!$A$2:$C$100,2,0)))) -> 3818.429134 | D15: =SUMIFS('BASE DE DADOS'!$M:$M,'BASE DE DADOS'!$B:$B,GASTOS_MENSAIS!$B$4,'BASE DE DADOS'!$G:$G,GASTOS_MENSAIS!$A15,'BASE DE DADOS'!$K:$K,DATE(YEAR(TODAY()),MONTH(D$6),DAY(VLOOKUP($A15,CONFIG!$A$2:$C$100,2,0)))) -> 3818.460181 | E15: =SUMIFS('BASE DE DADOS'!$M:$M,'BASE DE DADOS'!$B:$B,GASTOS_MENSAIS!$B$4,'BASE DE DADOS'!$G:$G,GASTOS_MENSAIS!$A15,'BASE DE DADOS'!$K:$K,DATE(YEAR(TODAY()),MONTH(E$6),DAY(VLOOKUP($A15,CONFIG!$A$2:$C$100,2,0)))) -> 3800.00205 | F15: =SUMIFS('BASE DE DADOS'!$M:$M,'BASE DE DADOS'!$B:$B,GASTOS_MENSAIS!$B$4,'BASE DE DADOS'!$G:$G,GASTOS_MENSAIS!$A15,'BASE DE DADOS'!$K:$K,DATE(YEAR(TODAY()),MONTH(F$6),DAY(VLOOKUP($A15,CONFIG!$A$2:$C$100,2,0)))) -> 3800.007914 | G15: =SUMIFS('BASE DE DADOS'!$M:$M,'BASE DE DADOS'!$B:$B,GASTOS_MENSAIS!$B$4,'BASE DE DADOS'!$G:$G,GASTOS_MENSAIS!$A15,'BASE DE DADOS'!$K:$K,DATE(YEAR(TODAY()),MONTH(G$6),DAY(VLOOKUP($A15,CONFIG!$A$2:$C$100,2,0)))) -> 3799.980156 | H15: =SUMIFS('BASE DE DADOS'!$M:$M,'BASE DE DADOS'!$B:$B,GASTOS_MENSAIS!$B$4,'BASE DE DADOS'!$G:$G,GASTOS_MENSAIS!$A15,'BASE DE DADOS'!$K:$K,DATE(YEAR(TODAY()),MONTH(H$6),DAY(VLOOKUP($A15,CONFIG!$A$2:$C$100,2,0)))) -> 3659.167229 | I15: =SUMIFS('BASE DE DADOS'!$M:$M,'BASE DE DADOS'!$B:$B,GASTOS_MENSAIS!$B$4,'BASE DE DADOS'!$G:$G,GASTOS_MENSAIS!$A15,'BASE DE DADOS'!$K:$K,DATE(YEAR(TODAY()),MONTH(I$6),DAY(VLOOKUP($A15,CONFIG!$A$2:$C$100,2,0)))) -> 3661.310616 | J15: =SUMIFS('BASE DE DADOS'!$M:$M,'BASE DE DADOS'!$B:$B,GASTOS_MENSAIS!$B$4,'BASE DE DADOS'!$G:$G,GASTOS_MENSAIS!$A15,'BASE DE DADOS'!$K:$K,DATE(YEAR(TODAY()),MONTH(J$6),DAY(VLOOKUP($A15,CONFIG!$A$2:$C$100,2,0)))) -> 0 | K15: =SUMIFS('BASE DE DADOS'!$M:$M,'BASE DE DADOS'!$B:$B,GASTOS_MENSAIS!$B$4,'BASE DE DADOS'!$G:$G,GASTOS_MENSAIS!$A15,'BASE DE DADOS'!$K:$K,DATE(YEAR(TODAY()),MONTH(K$6),DAY(VLOOKUP($A15,CONFIG!$A$2:$C$100,2,0)))) -> 0 | L15: =SUMIFS('BASE DE DADOS'!$M:$M,'BASE DE DADOS'!$B:$B,GASTOS_MENSAIS!$B$4,'BASE DE DADOS'!$G:$G,GASTOS_MENSAIS!$A15,'BASE DE DADOS'!$K:$K,DATE(YEAR(TODAY()),MONTH(L$6),DAY(VLOOKUP($A15,CONFIG!$A$2:$C$100,2,0)))) -> 0 | M15: =SUMIFS('BASE DE DADOS'!$M:$M,'BASE DE DADOS'!$B:$B,GASTOS_MENSAIS!$B$4,'BASE DE DADOS'!$G:$G,GASTOS_MENSAIS!$A15,'BASE DE DADOS'!$K:$K,DATE(YEAR(TODAY()),MONTH(M$6),DAY(VLOOKUP($A15,CONFIG!$A$2:$C$100,2,0)))) -> 0 | N15: 30175.81746
A16: =CONFIG!A9 -> FREE | B16: =SUMIFS('BASE DE DADOS'!$M:$M,'BASE DE DADOS'!$B:$B,GASTOS_MENSAIS!$B$4,'BASE DE DADOS'!$G:$G,GASTOS_MENSAIS!$A16,'BASE DE DADOS'!$K:$K,DATE(YEAR(TODAY()),MONTH(B$6),DAY(VLOOKUP($A16,CONFIG!$A$2:$C$100,2,0)))) -> 164.28 | C16: =SUMIFS('BASE DE DADOS'!$M:$M,'BASE DE DADOS'!$B:$B,GASTOS_MENSAIS!$B$4,'BASE DE DADOS'!$G:$G,GASTOS_MENSAIS!$A16,'BASE DE DADOS'!$K:$K,DATE(YEAR(TODAY()),MONTH(C$6),DAY(VLOOKUP($A16,CONFIG!$A$2:$C$100,2,0)))) -> 59.382562 | D16: =SUMIFS('BASE DE DADOS'!$M:$M,'BASE DE DADOS'!$B:$B,GASTOS_MENSAIS!$B$4,'BASE DE DADOS'!$G:$G,GASTOS_MENSAIS!$A16,'BASE DE DADOS'!$K:$K,DATE(YEAR(TODAY()),MONTH(D$6),DAY(VLOOKUP($A16,CONFIG!$A$2:$C$100,2,0)))) -> 0 | E16: =SUMIFS('BASE DE DADOS'!$M:$M,'BASE DE DADOS'!$B:$B,GASTOS_MENSAIS!$B$4,'BASE DE DADOS'!$G:$G,GASTOS_MENSAIS!$A16,'BASE DE DADOS'!$K:$K,DATE(YEAR(TODAY()),MONTH(E$6),DAY(VLOOKUP($A16,CONFIG!$A$2:$C$100,2,0)))) -> 0 | F16: =SUMIFS('BASE DE DADOS'!$M:$M,'BASE DE DADOS'!$B:$B,GASTOS_MENSAIS!$B$4,'BASE DE DADOS'!$G:$G,GASTOS_MENSAIS!$A16,'BASE DE DADOS'!$K:$K,DATE(YEAR(TODAY()),MONTH(F$6),DAY(VLOOKUP($A16,CONFIG!$A$2:$C$100,2,0)))) -> 0 | G16: =SUMIFS('BASE DE DADOS'!$M:$M,'BASE DE DADOS'!$B:$B,GASTOS_MENSAIS!$B$4,'BASE DE DADOS'!$G:$G,GASTOS_MENSAIS!$A16,'BASE DE DADOS'!$K:$K,DATE(YEAR(TODAY()),MONTH(G$6),DAY(VLOOKUP($A16,CONFIG!$A$2:$C$100,2,0)))) -> 0 | H16: =SUMIFS('BASE DE DADOS'!$M:$M,'BASE DE DADOS'!$B:$B,GASTOS_MENSAIS!$B$4,'BASE DE DADOS'!$G:$G,GASTOS_MENSAIS!$A16,'BASE DE DADOS'!$K:$K,DATE(YEAR(TODAY()),MONTH(H$6),DAY(VLOOKUP($A16,CONFIG!$A$2:$C$100,2,0)))) -> 0 | I16: =SUMIFS('BASE DE DADOS'!$M:$M,'BASE DE DADOS'!$B:$B,GASTOS_MENSAIS!$B$4,'BASE DE DADOS'!$G:$G,GASTOS_MENSAIS!$A16,'BASE DE DADOS'!$K:$K,DATE(YEAR(TODAY()),MONTH(I$6),DAY(VLOOKUP($A16,CONFIG!$A$2:$C$100,2,0)))) -> 0 | J16: =SUMIFS('BASE DE DADOS'!$M:$M,'BASE DE DADOS'!$B:$B,GASTOS_MENSAIS!$B$4,'BASE DE DADOS'!$G:$G,GASTOS_MENSAIS!$A16,'BASE DE DADOS'!$K:$K,DATE(YEAR(TODAY()),MONTH(J$6),DAY(VLOOKUP($A16,CONFIG!$A$2:$C$100,2,0)))) -> 0 | K16: =SUMIFS('BASE DE DADOS'!$M:$M,'BASE DE DADOS'!$B:$B,GASTOS_MENSAIS!$B$4,'BASE DE DADOS'!$G:$G,GASTOS_MENSAIS!$A16,'BASE DE DADOS'!$K:$K,DATE(YEAR(TODAY()),MONTH(K$6),DAY(VLOOKUP($A16,CONFIG!$A$2:$C$100,2,0)))) -> 0 | L16: =SUMIFS('BASE DE DADOS'!$M:$M,'BASE DE DADOS'!$B:$B,GASTOS_MENSAIS!$B$4,'BASE DE DADOS'!$G:$G,GASTOS_MENSAIS!$A16,'BASE DE DADOS'!$K:$K,DATE(YEAR(TODAY()),MONTH(L$6),DAY(VLOOKUP($A16,CONFIG!$A$2:$C$100,2,0)))) -> 0 | M16: =SUMIFS('BASE DE DADOS'!$M:$M,'BASE DE DADOS'!$B:$B,GASTOS_MENSAIS!$B$4,'BASE DE DADOS'!$G:$G,GASTOS_MENSAIS!$A16,'BASE DE DADOS'!$K:$K,DATE(YEAR(TODAY()),MONTH(M$6),DAY(VLOOKUP($A16,CONFIG!$A$2:$C$100,2,0)))) -> 0 | N16: 223.662562
